Workbook

Sheet Passageavgifter (hidden)
B3: Passageavgift JA | D3: Passageavgift UA
A4: Område | B4: P | C4: G | D4: P | E4: G
A5: Göteborg: C | B5: 0 | C5: 0 | D5: 0 | E5: 0
A6: Malmö: D | B6: 0 | C6: 0 | D6: 0 | E6: 0
A7: Malmö: E | B7: 0 | C7: 0 | D7: 0 | E7: 0
A8: Ulriksdal – Skavstaby: F | B8: 0 | C8: 0 | D8: 0 | E8: 0
A9: Huvudsta – Barkarby: G | B9: 0 | C9: 0 | D9: 0 | E9: 0
A10: Flemingsberg – Björnkulla – Malmsjö – Södertälje Syd övre :H | B10: 0 | C10: 0 | D10: 0 | E10: 0
B17: Statistik | C17: Statistik | E17: Andelar av persontågen i högtrafik | J17: Andelar av godstågspassager i högtrafik
A18: Område | B18: Persontåg | C18: godståg | E18: Snabb | F18: Pendel | G18: Fjärr | H18: Reg | J18: Vagnslast | K18: Lokal | L18: system | M18: malm | N18: kombi
A19: Göteborg: C | B19: 70103 | C19: 7106 | E19: 0.09715900173 | F19: 0.4382357558 | G19: 0.06765029038 | H19: 0.3969549521 | J19: 0.14 | K19: 0.5 | L19: 0.22 | M19: 0 | N19: 0.14
A20: Malmö: D | B20: 37301 | C20: 3883 | E20: 0.1063388626 | F20: 0.4626777251 | G20: 0.0740521327 | H20: 0.3569312796 | J20: 0.21 | K20: 0.37 | L20: 0.21 | M20: 0 | N20: 0.21
A21: Malmö: E | B21: 28908 | C21: 1650 | E21: 0.0181531176 | F21: 0.6140489345 | G21: 0.1093133386 | H21: 0.2584846093 | J21: 0.333 | K21: 0 | L21: 0.333 | M21: 0 | N21: 0.333
A22: Ulriksdal – Skavstaby: F | B22: 55187 | C22: 0 | E22: 0.05502392344 | F22: 0.7320574163 | G22: 0.03209728868 | H22: 0.1808213716 | J22: 0.2713178295 | K22: 0 | L22: 0.4573643411 | M22: 0 | N22: 0.2713178295
A23: Huvudsta – Barkarby: G | B23: 24651 | C23: 0 | E23: 0 | F23: 0.7345844504 | G23: 0 | H23: 0.2654155496 | J23: 0.2713178295 | K23: 0 | L23: 0.4573643411 | M23: 0 | N23: 0.2713178295
A24: Flemingsberg – Björnkulla – Malmsjö – Södertälje Syd övre :H | B24: 30393 | C24: 726 | E24: 0.3475721066 | F24: 0.1931361811 | G24: 0.0259218693 | H24: 0.433369843 | J24: 0.2713178295 | K24: 0 | L24: 0.4573643411 | M24: 0 | N24: 0.2713178295
A30: Passageavgifter JA | E30: =+SUMPRODUCT($B$19:$B$28,E19:E28,$B$5:$B$14) -> 0 | F30: =+SUMPRODUCT($B$19:$B$28,F19:F28,$B$5:$B$14) -> 0 | G30: =+SUMPRODUCT($B$19:$B$28,G19:G28,$B$5:$B$14) -> 0 | H30: =+SUMPRODUCT($B$19:$B$28,H19:H28,$B$5:$B$14) -> 0 | J30: =+SUMPRODUCT($C$19:$C$28,J19:J28,$C$5:$C$14) -> 0 | K30: =+SUMPRODUCT($C$19:$C$28,K19:K28,$C$5:$C$14) -> 0 | L30: =+SUMPRODUCT($C$19:$C$28,L19:L28,$C$5:$C$14) -> 0 | M30: =+SUMPRODUCT($C$19:$C$28,M19:M28,$C$5:$C$14) -> 0 | N30: =+SUMPRODUCT($C$19:$C$28,N19:N28,$C$5:$C$14) -> 0
A31: Passageavgift UA | E31: =+SUMPRODUCT($B$19:$B$28,E19:E28,$D$5:$D$14) -> 0 | F31: =+SUMPRODUCT($B$19:$B$28,F19:F28,$D$5:$D$14) -> 0 | G31: =+SUMPRODUCT($B$19:$B$28,G19:G28,$D$5:$D$14) -> 0 | H31: =+SUMPRODUCT($B$19:$B$28,H19:H28,$D$5:$D$14) -> 0 | J31: =+SUMPRODUCT($C$19:$C$28,J19:J28,$E$5:$E$14) -> 0 | K31: =+SUMPRODUCT($C$19:$C$28,K19:K28,$E$5:$E$14) -> 0 | L31: =+SUMPRODUCT($C$19:$C$28,L19:L28,$E$5:$E$14) -> 0 | M31: =+SUMPRODUCT($C$19:$C$28,M19:M28,$E$5:$E$14) -> 0 | N31: =+SUMPRODUCT($C$19:$C$28,N19:N28,$E$5:$E$14) -> 0
B33: JA | C33: UA
A34: Snabbtåg | B34: =+E30/1000000 -> 0 | C34: =+E31/1000000 -> 0
A35: Långväga IC, nattåg | B35: =+G30/1000000 -> 0 | C35: =+G31/1000000 -> 0
A36: Pendeltåg | B36: =+F30/1000000 -> 0 | C36: =+F31/1000000 -> 0
A37: Regionaltåg | B37: =+H30/1000000 -> 0 | C37: =+H31/1000000 -> 0
A38: alla persontåg | B38: =+SUM(B34:B37) -> 0 | C38: =+SUM(C34:C37) -> 0
A40: Vagnslast | B40: =+J30/1000000 -> 0 | C40: =+J31/1000000 -> 0
A41: Lokal | B41: =+K30/1000000 -> 0 | C41: =+K31/1000000 -> 0
A42: system | B42: =+L30/1000000 -> 0 | C42: =+L31/1000000 -> 0
A43: malm | B43: =+M30/1000000 -> 0 | C43: =+M31/1000000 -> 0
A44: kombi | B44: =+N30/1000000 -> 0 | C44: =+N31/1000000 -> 0
A45: Alla godståg | B45: =+SUM(B40:B44) -> 0 | C45: =+SUM(C40:C44) -> 0

Sheet Handledning
A2: Flik
A3: 1. Beskrivning av åtgärd | B3: Här beskrivs och definieras kalkylspecifika förutsättningar
B4: =+'Beskrivning av åtgärd'!A24 -> 1. Beskriv aktuell åtgärd och effekter i kalkylen
B5: =+'Beskrivning av åtgärd'!A38 -> 2. Korrigering av prognosindata
B6: =+'Beskrivning av åtgärd'!A45 -> 3. Byggtid och kalkylperiod
B7: =+'Beskrivning av åtgärd'!A51 -> 4. Kalkylspecifika tillväxttal
B8: =+'Beskrivning av åtgärd'!A57 -> 5. Om åtgärden innebär förändringar i kapacitetsberäkningens linjedelar
B9: =+'Beskrivning av åtgärd'!A77 -> 6. Om åtgärden innebär andra förändringar i kapacitetsberäkningen:
B10: =+'Beskrivning av åtgärd'!A90 -> 7. Om effekterna beräknas utanför modellen - med tidtabellsanalys/simulering
A11: Tidtabellsanalys person | B11: Redovisa förändrad tidtbellstid samt förseningstid framtagen med tidtabellsanalys
A12: Länkar | B12: Nyckel länk-bandel-linjedel
B13: Förändrad gångtid UA-JA persontåg per länk
B14: elektrifiering per länk i JA och UA
B15: avstånd per länk i JA och UA
B16: fyrspår i JA och UA
A17: Persontågslinejr | B17: Ändra antal dubbelturer för aktuella persontrafiklinjer i kolumn H
B18: Ändra tågtyp per linje i kolumn K och L
B19: Sammanställning tågyper - nedan
A20: 4 Effekter godståg | B20: Per Bangodssträcka följande:
B21: Byte av drivmedelstyp, exempelvis vid elektrifiering
B22: Gångtidsförändring, minuter
B23: Avståndsförändring, km
B24: Förändrad förseningstid, minuter
A25: 5 Trafikomflyttningar | B25: Om annat än defaultsatta värden ska användas så anges detta här
B26: Default: 50 % av tillkommande/försvinnande resenärer är överflyttade från/till personbil
B27: samt 100 % gods till/från lastbil
B28: Här anges också om det överflyttade godset ska ha en annan fördelning av lastbils-/fartygsttper
B29: än de defaultsatta (fördelning enligt bas-prognosen)
A30: 6 Investering och UH | B30: Ange investeringskostnad per år under byggtiden i UA och JA, exkl skattefaktor
B31: Kostnader för Underhåll, reinvestering och drift ; tre alternativ
B32: Alternativ 1: Uppgift finns om förändrad genomsnittlig årlig kostnad; ange beloppet under alternativ 1
B33: Alternativ 2: Uppgifter finns årliga kostnader under kalkylperioden; ange årliga belopp under alternativ 2 för UA och JA
B34: Alternativ 3: Beräknas med schablonvärden
A35: 7 Kap.beräkning_UA | B35: Ange förändrad linjedelsindelning, se över formler och parametervärden
A36: 8 Kap.beräkning_JA
A37: 10 Linjelänk UA-JA | B37: Ange eventuella linjespecifika effekter (tidtabellsanalys, linjespecifika gångtider)
A40: Kort beskrivning av hantering av olika typer av effekter
A42: Om åtgärden innebär förändrade gångtider och/eller förändrade avstånd
A43: 1. Sök fram aktuella länkar i "2 Persontåg effekter länkar" | C43: Tips är att filtrera på stråk eller Linjedel
A44: Ändra tider och avstånd per länk | C44: OBS varje länk avser EN RIKTNING
A45: 2. Sök fram aktuell sträcka i "4 Effekter godståg" | C45: Tips är att filtera på stråk eller sträcka
A46: Ange aktuella förändringar per sträcka | C46: OBS varje sträcka avser BÅDA RKTNINGARNA
A48: Om åtgärden innebär förändringar i kapacitetsarkets linjedelsindelning; fler eller färre linjedelar:
A49: 1. Beskriv vilka ändringar som görs i linjedels- | C49: Obs särskilt viktigt att ange linjedelar i JA och UA under punkt 4
A50: indelningen i flik " Åtgärd och effekter".
A51: 2. Ändra i "Kap.beräkning UA" | C51: lägg till nya linjedelar, se över parametervärden och formler i kapacitetsberäkningen
C52: Se också till att antal tåg på de nya linjedelarna är korrekta
A53: 3. Ändra i nyckeln flik "NYCKEL LÄNK_LINJEDEL"
A55: Om åtgärden innebär elektrifiering
A56: 1. Ändra värde från "D" till "E" i flik "Kap.beräkning UA" kolumn G
A58: Förändrad turtäthet Persontåg
A59: 1. Ange förändrat antal dubbelturer i flik "3 Persontåg övriga effekter"
A61: Om åtgärden innebär förändring i kapacitetspåverkande variabler (dubbelspår, fjb osv)
A62: Beskriv förändring i "1 Beskrivning av åtgärd"
A63: Genomför förändringen i "Kap.beräkning _UA"
A65: Persontågstyper i prognos och kalkyl | C65: Tågtypnr | D65: Min platser | E65: Beläggnings- | F65: kostnad minsta tåg | H65: kostnad extra platser | J65: Drivmedel
E66: grad | F66: kr/tågkm | G66: kr/tågminut | H66: kr/km | I66: kr/minut
A67: IC/IR-tåg | B67: =+Indata_Kalkylvärden!A33 -> GIR-200 | C67: =+Indata_Kalkylvärden!B33 -> 1 | D67: =+Indata_Kalkylvärden!C33 -> 150 | E67: =+Indata_Kalkylvärden!D33 -> 0.5 | F67: =+Indata_Kalkylvärden!L33 -> 13.07369128 | G67: =+Indata_Kalkylvärden!M33 -> 51.88452541 | H67: =+Indata_Kalkylvärden!N33 -> 0.0755704698 | I67: =+Indata_Kalkylvärden!O33 -> 0.1403451582 | J67: E
A68: Snabbtåg | B68: =+Indata_Kalkylvärden!A31 -> GHS-T250 | C68: =+Indata_Kalkylvärden!B31 -> 2 | D68: =+Indata_Kalkylvärden!C31 -> 240 | E68: =+Indata_Kalkylvärden!D31 -> 0.65 | F68: =+Indata_Kalkylvärden!L31 -> 21.56 | G68: =+Indata_Kalkylvärden!M31 -> 99.53 | H68: =+Indata_Kalkylvärden!N31 -> 0.08 | I68: =+Indata_Kalkylvärden!O31 -> 0.32 | J68: E
A69: Snabbtåg stambanor | B69: =+Indata_Kalkylvärden!A39 -> GHS-T250 | C69: =+Indata_Kalkylvärden!B39 -> 5 | D69: =+Indata_Kalkylvärden!C39 -> 240 | E69: =+Indata_Kalkylvärden!D39 -> 0.65 | F69: =+Indata_Kalkylvärden!L39 -> 21.56 | G69: =+Indata_Kalkylvärden!M39 -> 99.53 | H69: =+Indata_Kalkylvärden!N39 -> 0.08 | I69: =+Indata_Kalkylvärden!O39 -> 0.32 | J69: E
A70: Pendeltåg | B70: =+Indata_Kalkylvärden!A35 -> GPL-B160 | C70: =+Indata_Kalkylvärden!B35 -> 15 | D70: =+Indata_Kalkylvärden!C35 -> 215 | E70: =+Indata_Kalkylvärden!D35 -> 0.35 | F70: =+Indata_Kalkylvärden!L35 -> 13.95894535 | G70: =+Indata_Kalkylvärden!M35 -> 47.04801534 | H70: =+Indata_Kalkylvärden!N35 -> 0.0647746884 | I70: =+Indata_Kalkylvärden!O35 -> 0.107957814 | J70: E
A71: Nattåg | B71: =+Indata_Kalkylvärden!A34 -> GNT-B200 | C71: =+Indata_Kalkylvärden!B34 -> 16 | D71: =+Indata_Kalkylvärden!C34 -> 250 | E71: =+Indata_Kalkylvärden!D34 -> 0.5 | F71: =+Indata_Kalkylvärden!L34 -> 39.91200384 | G71: =+Indata_Kalkylvärden!M34 -> 111.3476894 | H71: =+Indata_Kalkylvärden!N34 -> 0.1295493768 | I71: =+Indata_Kalkylvärden!O34 -> 0.2806903164 | J71: E
A72: Bimodalt reg.tåg eldrift | B72: =+Indata_Kalkylvärden!A37 -> GRB-C160(el) | C72: =+Indata_Kalkylvärden!B37 -> 17 | D72: =+Indata_Kalkylvärden!C37 -> 150 | E72: =+Indata_Kalkylvärden!D37 -> 0.35 | F72: =+Indata_Kalkylvärden!L37 -> 12.80379674 | G72: =+Indata_Kalkylvärden!M37 -> 54.06527325 | H72: =+Indata_Kalkylvärden!N37 -> 0.0863662512 | I72: =+Indata_Kalkylvärden!O37 -> 0.1835282838 | J72: E
A73: Bimodalt reg.tåg dieseldrift | B73: =+Indata_Kalkylvärden!A38 -> GRB-C140(fbr | C73: =+Indata_Kalkylvärden!B38 -> 17 | D73: =+Indata_Kalkylvärden!C38 -> 150 | E73: =+Indata_Kalkylvärden!D38 -> 0.35 | F73: =+Indata_Kalkylvärden!L38 -> 20.32845638 | G73: =+Indata_Kalkylvärden!M38 -> 54.06527325 | H73: =+Indata_Kalkylvärden!N38 -> 0.0863662512 | I73: =+Indata_Kalkylvärden!O38 -> 0.1835282838 | J73: D
A74: Pendeltåg Stockholm | B74: =+Indata_Kalkylvärden!A36 -> GPLS-B160 | C74: =+Indata_Kalkylvärden!B36 -> 18 | D74: =+Indata_Kalkylvärden!C36 -> 375 | E74: =+Indata_Kalkylvärden!D36 -> 0.35 | F74: =+Indata_Kalkylvärden!L36 -> 22.57397891 | G74: =+Indata_Kalkylvärden!M36 -> 39.9875743 | H74: =+Indata_Kalkylvärden!N36 -> 0.053978907 | I74: =+Indata_Kalkylvärden!O36 -> 0.053978907 | J74: E
A75: Höghastighetståg | B75: =+Indata_Kalkylvärden!A30 -> GHS-B320 | C75: =+Indata_Kalkylvärden!B30 -> 3 | D75: =+Indata_Kalkylvärden!C30 -> 250 | E75: =+Indata_Kalkylvärden!D30 -> 0.65 | F75: =+Indata_Kalkylvärden!L30 -> 21.66 | G75: =+Indata_Kalkylvärden!M30 -> 108.56 | H75: =+Indata_Kalkylvärden!N30 -> 0.08 | I75: =+Indata_Kalkylvärden!O30 -> 0.31 | J75: E
A76: Snabba regionaltåg | B76: =+Indata_Kalkylvärden!A32 -> GIR-C250 | C76: =+Indata_Kalkylvärden!B32 -> 4 | D76: =+Indata_Kalkylvärden!C32 -> 220 | E76: =+Indata_Kalkylvärden!D32 -> 0.65 | F76: =+Indata_Kalkylvärden!L32 -> 19.14092042 | G76: =+Indata_Kalkylvärden!M32 -> 86.5389837 | H76: =+Indata_Kalkylvärden!N32 -> 0.0863662512 | I76: =+Indata_Kalkylvärden!O32 -> 0.2483029722 | J76: E

Sheet 2. Samhällsekonomisk analys
A1: Samlad effektbedömning version 2024 | BN1: m | BO1: u | BQ1: Instruktioner | BT1: Kommentar Upprättaren | BU1: Kommentar Regional granskare | BV1: Kommentar Nationell granskare
AV2: Samlad Effektbedömning
A3: 2. Samhällsekonomisk analys
A5: Tabell 2.1 Allmänna kalkylförutsättningar för samhällsekonomisk kalkyl
A6: Prognos persontrafik - huvudanalys | AJ6: Basprognoser 2026-05-04
A7: Avvikelse från prognos persontrafik | AJ7: Upprättaren skriver in, värden: JA eller NEJ
A8: Prognos godstrafik - huvudanalys | AJ8: Basprognoser 2026-05-04
A9: Avvikelse från prognos godstrafik | AJ9: Upprättaren skriver in, värden: JA eller NEJ
A10: ASEK-version | AJ10: ASEK 8.1
A11: Avvikelse från ASEK | AJ11: Upprättaren skriver in, värden: JA eller NEJ
A12: Prisnivå för kalkylvärden | AJ12: 2019
A13: Kalkylränta % | AJ13: 0.035
A14: Prognosår 1 | AJ14: 2045
A15: Diskonteringsår | AJ15: 2028
A16: Öppningsår | AJ16: =AJ15+AJ17 -> 2028
A17: Utförandetid/byggtid, antal år (projektspecifik) | AJ17: ='Beskrivning av åtgärd'!C47 -> 0
A18: Kalkylperiod från startår för effekter | AJ18: ='Beskrivning av åtgärd'!C48 -> 1
A19: Kalkylverktyg - samhällsekonomi | AJ19: Bansek 2019 2026.1
A20: Datum för samhällsekonomisk kalkyl | AJ20: 2026-05-04
A21: Trafiktillväxttal persontrafik på järnväg period t o m 2045 | AJ21: =Diskontering!B14 -> 0.0149 | BC21: Namn och tillväxttal hämtas för de rader som har tillväxttal. Samkalk har 6 som default. Övriga har 4.
A22: Trafiktillväxttal persontrafik på järnväg period 2045-2065 | AJ22: =Diskontering!B15 -> 0.014
A23: Trafiktillväxttal godstrafik på järnväg period t o m 2045 | AJ23: =Diskontering!B17 -> 0.009654342314
A24: Trafiktillväxttal godstrafik på järnväg period 2045-2065 | AJ24: =Diskontering!B18 -> 0.0054
A25: Trafiktillväxttal | AJ25: Ej angett
A26: Trafiktillväxttal | AJ26: Ej angett
A27: Trafiktillväxttal | AJ27: Ej angett
A28: Trafiktillväxttal | AJ28: Ej angett
A29: Trafiktillväxttal | AJ29: Ej angett
A30: Trafiktillväxttal | AJ30: Ej angett
A31: Trafiktillväxttal | AJ31: Ej angett
A32: Trafiktillväxttal | AJ32: Ej angett
A33: Trafiktillväxttal | AJ33: Ej angett
A34: Trafiktillväxttal | AJ34: Ej angett
A35: Trafiktillväxttal | AJ35: Ej angett
A36: Trafiktillväxttal | AJ36: Ej angett
A37: Trafiktillväxttal | AJ37: Ej angett
A38: Trafiktillväxttal | AJ38: Ej angett
A40: Kommentar
BQ41: Avvikelser från gällande förutsättningar beskrivs här
A44: Tabell 2.2 Nyckeltal samhällsekonomi
AS45: Omräknad investeringskostnad (mnkr) | BB45: Netto-nuvärde (mnkr) | BH45: NNK | BM45: Övriga "utgifter" (mnkr) | BN45: Summa nyttor (mnkr)
A52: Enhetligt tidsvärde på privata resor | BB52: - | BH52: - | BN52: =Kalkylsammanställning!H7 -> 0 | BQ52: Länk behövs
A53: Högre transportflöden i prognosår 1, +20% | BB53: - | BH53: - | BM53: =Kalkylsammanställning!G8 -> 0 | BN53: =Kalkylsammanställning!H8 -> 0 | BQ53: Länk behövs
A54: Lägre transportflöden i prognosår 1, -20% | BB54: - | BH54: - | BM54: =Kalkylsammanställning!G9 -> 0 | BN54: =Kalkylsammanställning!H9 -> 0 | BQ54: Länk behövs
A55: Ej angett | BB55: - | BH55: -
A56: Ej angett | BB56: - | BH56: -
A59: Kommentar
A60: test2
A62: Samhällsekonomisk analys
... 64 more rows

Sheet Kalkylsammanställning
F1: Känslighetsanalyser | G1: Välj: | H1: Instruktion
A2: Kalkylsammanställning, miljoner kronor | B2: =+'Beskrivning av åtgärd'!C23 -> Totalt | C2: =+B2 -> Totalt | D2: =C2 -> Totalt | F2: KA Volym | G2: 1 | H2: Instruktion: för att göra känslighetsanalys "Transportvolym prognosår", ändra från default 1 till 0,8 respektive 1,2 och klistra in värden från kalkylsammanställningstabell (kolumn A-D) in tabell nedan. Dessa värden är kopplade till SEB-IT flik. | M2: Lista för val KA
B3: Basåret | C3: Öppningsår | D3: Nuvärde | F3: KA Gemensamt tidsvärde | G3: Nej | H3: Instruktion: för att göra känslighetsanalys "Gemensamt tidsvärde", ändra från default "nej" i listan till "ja" och klistra in värden från kalkylsammanställningstabell (kolumn A-D) in tabell nedan. Dessa värden är kopplade till SEB-IT flik.
A4: Investeringskostnad | D4: =-Diskontering!D49 -> 0 | M4: 1 | N4: Nej
A5: Kostnader för underhåll | D5: =+Diskontering!D52+Diskontering!D53+Diskontering!D55+Diskontering!D57+Diskontering!D59 -> 0 | F5: TABELL KÄNSLIGHETSANALYSER (Fyll i enligt instruktion ovan, kopplade till SEB-IT flik) | M5: 0.8 | N5: Ja
A6: Kostnad för reinvestering | D6: =+Diskontering!D54+Diskontering!D56+Diskontering!D58+Diskontering!D60 -> 0 | G6: = negativ summering av D5:D8 | H6: Summa nyttor (mnkr) = D37 | M6: 1.2
A7: Infrastruktur järnväg | B7: =+IF(B$2="Persontrafik",Kalkylsammanställning!B222,IF(B$2="Godstrafik",Kalkylsammanställning!E222,Kalkylsammanställning!H222)) -> 0 | C7: =+IF(C$2="Persontrafik",Kalkylsammanställning!C222,IF(C$2="Godstrafik",Kalkylsammanställning!F222,Kalkylsammanställning!I222)) -> 0 | D7: =+IF(D$2="Persontrafik",Kalkylsammanställning!D222,IF(D$2="Godstrafik",Kalkylsammanställning!G222,Kalkylsammanställning!J222)) -> 0 | F7: Enhetligt tidsvärde på privata resor | G7: Beräknas i SEB-IT
A8: Infrastruktur väg | B8: =+IF(B$2="Persontrafik",Kalkylsammanställning!B223,IF(B$2="Godstrafik",Kalkylsammanställning!E223,Kalkylsammanställning!H223)) -> 6.935526836e-16 | C8: =+IF(C$2="Persontrafik",Kalkylsammanställning!C223,IF(C$2="Godstrafik",Kalkylsammanställning!F223,Kalkylsammanställning!I223)) -> 6.935526836e-16 | D8: =+IF(D$2="Persontrafik",Kalkylsammanställning!D223,IF(D$2="Godstrafik",Kalkylsammanställning!G223,Kalkylsammanställning!J223)) -> 6.935526836e-16 | F8: Trafiktillväxt +20%
A9: Effekter för persontrafikföretag | F9: Trafiktillväxt -20%
A10: Biljettintäkter | B10: =+IF(B$2="Persontrafik",Kalkylsammanställning!B198,IF(B$2="Godstrafik",Kalkylsammanställning!E198,Kalkylsammanställning!H198)) -> 0 | C10: =+IF(C$2="Persontrafik",Kalkylsammanställning!C198,IF(C$2="Godstrafik",Kalkylsammanställning!F198,Kalkylsammanställning!I198)) -> 0 | D10: =+IF(D$2="Persontrafik",Kalkylsammanställning!D198,IF(D$2="Godstrafik",Kalkylsammanställning!G198,Kalkylsammanställning!J198)) -> 0
A11: Fordonskostnader kollektivtrafik | B11: =+IF(B$2="Persontrafik",Kalkylsammanställning!B199,IF(B$2="Godstrafik",Kalkylsammanställning!E199,Kalkylsammanställning!H199)) -> 0 | C11: =+IF(C$2="Persontrafik",Kalkylsammanställning!C199,IF(C$2="Godstrafik",Kalkylsammanställning!F199,Kalkylsammanställning!I199)) -> 0 | D11: =+IF(D$2="Persontrafik",Kalkylsammanställning!D199,IF(D$2="Godstrafik",Kalkylsammanställning!G199,Kalkylsammanställning!J199)) -> 0
A12: Omkostnader | B12: =+IF(B$2="Persontrafik",Kalkylsammanställning!B200,IF(B$2="Godstrafik",Kalkylsammanställning!E200,Kalkylsammanställning!H200)) -> 0 | C12: =+IF(C$2="Persontrafik",Kalkylsammanställning!C200,IF(C$2="Godstrafik",Kalkylsammanställning!F200,Kalkylsammanställning!I200)) -> 0 | D12: =+IF(D$2="Persontrafik",Kalkylsammanställning!D200,IF(D$2="Godstrafik",Kalkylsammanställning!G200,Kalkylsammanställning!J200)) -> 0
A13: Moms på biljettintäkter | B13: =+IF(B$2="Persontrafik",Kalkylsammanställning!B201,IF(B$2="Godstrafik",Kalkylsammanställning!E201,Kalkylsammanställning!H201)) -> 0 | C13: =+IF(C$2="Persontrafik",Kalkylsammanställning!C201,IF(C$2="Godstrafik",Kalkylsammanställning!F201,Kalkylsammanställning!I201)) -> 0 | D13: =+IF(D$2="Persontrafik",Kalkylsammanställning!D201,IF(D$2="Godstrafik",Kalkylsammanställning!G201,Kalkylsammanställning!J201)) -> 0
A14: Banavgifter | B14: =+IF(B$2="Persontrafik",Kalkylsammanställning!B202,IF(B$2="Godstrafik",Kalkylsammanställning!E202,Kalkylsammanställning!H202)) -> 0 | C14: =+IF(C$2="Persontrafik",Kalkylsammanställning!C202,IF(C$2="Godstrafik",Kalkylsammanställning!F202,Kalkylsammanställning!I202)) -> 0 | D14: =+IF(D$2="Persontrafik",Kalkylsammanställning!D202,IF(D$2="Godstrafik",Kalkylsammanställning!G202,Kalkylsammanställning!J202)) -> 0
A15: Budgeteffekter
A16: Drivmedelsskatt och moms | B16: =+IF(B$2="Persontrafik",Kalkylsammanställning!B204,IF(B$2="Godstrafik",Kalkylsammanställning!E204,Kalkylsammanställning!H204)) -> -6.470790045e-16 | C16: =+IF(C$2="Persontrafik",Kalkylsammanställning!C204,IF(C$2="Godstrafik",Kalkylsammanställning!F204,Kalkylsammanställning!I204)) -> -6.470790045e-16 | D16: =+IF(D$2="Persontrafik",Kalkylsammanställning!D204,IF(D$2="Godstrafik",Kalkylsammanställning!G204,Kalkylsammanställning!J204)) -> -6.470790045e-16
A17: Moms på biljettintäkter | B17: =+IF(B$2="Persontrafik",Kalkylsammanställning!B205,IF(B$2="Godstrafik",Kalkylsammanställning!E205,Kalkylsammanställning!H205)) -> 0 | C17: =+IF(C$2="Persontrafik",Kalkylsammanställning!C205,IF(C$2="Godstrafik",Kalkylsammanställning!F205,Kalkylsammanställning!I205)) -> 0 | D17: =+IF(D$2="Persontrafik",Kalkylsammanställning!D205,IF(D$2="Godstrafik",Kalkylsammanställning!G205,Kalkylsammanställning!J205)) -> 0
A18: Banavgifter | B18: =+IF(B$2="Persontrafik",Kalkylsammanställning!B206,IF(B$2="Godstrafik",Kalkylsammanställning!E206,Kalkylsammanställning!H206)) -> 0 | C18: =+IF(C$2="Persontrafik",Kalkylsammanställning!C206,IF(C$2="Godstrafik",Kalkylsammanställning!F206,Kalkylsammanställning!I206)) -> 0 | D18: =+IF(D$2="Persontrafik",Kalkylsammanställning!D206,IF(D$2="Godstrafik",Kalkylsammanställning!G206,Kalkylsammanställning!J206)) -> 0
A19: Skattefinansieringskostnad
A20: Skattefinansieringskostnad | B20: =B8*(INDATABLAD!D6-1) -> 1.387105367e-16 | C20: =C8*(INDATABLAD!D6-1) -> 1.387105367e-16 | D20: =(D8+D4+D5+D6)*(INDATABLAD!D6-1) -> 1.387105367e-16
A21: Effekter för resenärer
A22: Reskostnader | B22: =+IF(B$2="Persontrafik",Kalkylsammanställning!B208,IF(B$2="Godstrafik",Kalkylsammanställning!E208,Kalkylsammanställning!H208)) -> 0 | C22: =+IF(C$2="Persontrafik",Kalkylsammanställning!C208,IF(C$2="Godstrafik",Kalkylsammanställning!F208,Kalkylsammanställning!I208)) -> 0 | D22: =+IF(D$2="Persontrafik",Kalkylsammanställning!D208,IF(D$2="Godstrafik",Kalkylsammanställning!G208,Kalkylsammanställning!J208)) -> 0
A23: Åktid | B23: =+IF(B$2="Persontrafik",Kalkylsammanställning!B209,IF(B$2="Godstrafik",Kalkylsammanställning!E209,Kalkylsammanställning!H209)) -> 0 | C23: =+IF(C$2="Persontrafik",Kalkylsammanställning!C209,IF(C$2="Godstrafik",Kalkylsammanställning!F209,Kalkylsammanställning!I209)) -> 0 | D23: =+IF(D$2="Persontrafik",Kalkylsammanställning!D209,IF(D$2="Godstrafik",Kalkylsammanställning!G209,Kalkylsammanställning!J209)) -> 0
A24: Turintervall | B24: =+IF(B$2="Persontrafik",Kalkylsammanställning!B210,IF(B$2="Godstrafik",Kalkylsammanställning!E210,Kalkylsammanställning!H210)) -> 0 | C24: =+IF(C$2="Persontrafik",Kalkylsammanställning!C210,IF(C$2="Godstrafik",Kalkylsammanställning!F210,Kalkylsammanställning!I210)) -> 0 | D24: =+IF(D$2="Persontrafik",Kalkylsammanställning!D210,IF(D$2="Godstrafik",Kalkylsammanställning!G210,Kalkylsammanställning!J210)) -> 0
A25: Förseningstid | B25: =+IF(B$2="Persontrafik",Kalkylsammanställning!B211,IF(B$2="Godstrafik",Kalkylsammanställning!E211,Kalkylsammanställning!H211)) -> 0 | C25: =+IF(C$2="Persontrafik",Kalkylsammanställning!C211,IF(C$2="Godstrafik",Kalkylsammanställning!F211,Kalkylsammanställning!I211)) -> 0 | D25: =+IF(D$2="Persontrafik",Kalkylsammanställning!D211,IF(D$2="Godstrafik",Kalkylsammanställning!G211,Kalkylsammanställning!J211)) -> 0
A26: Effekter för godskunder
A27: Transportkostnader | B27: =+IF(B$2="Persontrafik",Kalkylsammanställning!B213,IF(B$2="Godstrafik",Kalkylsammanställning!E213,Kalkylsammanställning!H213)) -> 1.37658761e-15 | C27: =+IF(C$2="Persontrafik",Kalkylsammanställning!C213,IF(C$2="Godstrafik",Kalkylsammanställning!F213,Kalkylsammanställning!I213)) -> 1.37658761e-15 | D27: =+IF(D$2="Persontrafik",Kalkylsammanställning!D213,IF(D$2="Godstrafik",Kalkylsammanställning!G213,Kalkylsammanställning!J213)) -> 1.37658761e-15
A28: Transporttid | B28: =+IF(B$2="Persontrafik",Kalkylsammanställning!B214,IF(B$2="Godstrafik",Kalkylsammanställning!E214,Kalkylsammanställning!H214)) -> 3.862279345e-16 | C28: =+IF(C$2="Persontrafik",Kalkylsammanställning!C214,IF(C$2="Godstrafik",Kalkylsammanställning!F214,Kalkylsammanställning!I214)) -> 3.862279345e-16 | D28: =+IF(D$2="Persontrafik",Kalkylsammanställning!D214,IF(D$2="Godstrafik",Kalkylsammanställning!G214,Kalkylsammanställning!J214)) -> 3.862279345e-16
A29: Förseningstid | B29: =+IF(B$2="Persontrafik",Kalkylsammanställning!B215,IF(B$2="Godstrafik",Kalkylsammanställning!E215,Kalkylsammanställning!H215)) -> 0 | C29: =+IF(C$2="Persontrafik",Kalkylsammanställning!C215,IF(C$2="Godstrafik",Kalkylsammanställning!F215,Kalkylsammanställning!I215)) -> 0 | D29: =+IF(D$2="Persontrafik",Kalkylsammanställning!D215,IF(D$2="Godstrafik",Kalkylsammanställning!G215,Kalkylsammanställning!J215)) -> 0
A30: Externa effekter
A31: Luftföroreningar-Pmavgas | B31: =+IF(B$2="Persontrafik",Kalkylsammanställning!B217,IF(B$2="Godstrafik",Kalkylsammanställning!E217,Kalkylsammanställning!H217)) -> 4.399633423e-17 | C31: =+IF(C$2="Persontrafik",Kalkylsammanställning!C217,IF(C$2="Godstrafik",Kalkylsammanställning!F217,Kalkylsammanställning!I217)) -> 4.399633423e-17 | D31: =+IF(D$2="Persontrafik",Kalkylsammanställning!D217,IF(D$2="Godstrafik",Kalkylsammanställning!G217,Kalkylsammanställning!J217)) -> 4.399633423e-17
A32: Luftföroreningar-Nox | B32: =+IF(B$2="Persontrafik",Kalkylsammanställning!B218,IF(B$2="Godstrafik",Kalkylsammanställning!E218,Kalkylsammanställning!H218)) -> 5.99522818e-17 | C32: =+IF(C$2="Persontrafik",Kalkylsammanställning!C218,IF(C$2="Godstrafik",Kalkylsammanställning!F218,Kalkylsammanställning!I218)) -> 5.99522818e-17 | D32: =+IF(D$2="Persontrafik",Kalkylsammanställning!D218,IF(D$2="Godstrafik",Kalkylsammanställning!G218,Kalkylsammanställning!J218)) -> 5.99522818e-17
A33: Luftföroreningar-Pmslitage | B33: =+IF(B$2="Persontrafik",Kalkylsammanställning!B219,IF(B$2="Godstrafik",Kalkylsammanställning!E219,Kalkylsammanställning!H219)) -> 1.033891882e-16 | C33: =+IF(C$2="Persontrafik",Kalkylsammanställning!C219,IF(C$2="Godstrafik",Kalkylsammanställning!F219,Kalkylsammanställning!I219)) -> 1.033891882e-16 | D33: =+IF(D$2="Persontrafik",Kalkylsammanställning!D219,IF(D$2="Godstrafik",Kalkylsammanställning!G219,Kalkylsammanställning!J219)) -> 1.033891882e-16
A34: Luftföroreningar-NH3 | B34: =+IF(B$2="Persontrafik",Kalkylsammanställning!B220,IF(B$2="Godstrafik",Kalkylsammanställning!E220,Kalkylsammanställning!H220)) -> 0 | C34: =+IF(C$2="Persontrafik",Kalkylsammanställning!C220,IF(C$2="Godstrafik",Kalkylsammanställning!F220,Kalkylsammanställning!I220)) -> 0 | D34: =+IF(D$2="Persontrafik",Kalkylsammanställning!D220,IF(D$2="Godstrafik",Kalkylsammanställning!G220,Kalkylsammanställning!J220)) -> 0
A35: Trafikolyckor | B35: =+IF(B$2="Persontrafik",Kalkylsammanställning!B221,IF(B$2="Godstrafik",Kalkylsammanställning!E221,Kalkylsammanställning!H221)) -> 0 | C35: =+IF(C$2="Persontrafik",Kalkylsammanställning!C221,IF(C$2="Godstrafik",Kalkylsammanställning!F221,Kalkylsammanställning!I221)) -> 0 | D35: =+IF(D$2="Persontrafik",Kalkylsammanställning!D221,IF(D$2="Godstrafik",Kalkylsammanställning!G221,Kalkylsammanställning!J221)) -> 0
A36: Buller | B36: =+IF(B$2="Persontrafik",Kalkylsammanställning!B224,IF(B$2="Godstrafik",Kalkylsammanställning!E224,Kalkylsammanställning!H224)) -> 2.634900788e-16 | C36: =+IF(C$2="Persontrafik",Kalkylsammanställning!C224,IF(C$2="Godstrafik",Kalkylsammanställning!F224,Kalkylsammanställning!I224)) -> 2.634900788e-16 | D36: =+IF(D$2="Persontrafik",Kalkylsammanställning!D224,IF(D$2="Godstrafik",Kalkylsammanställning!G224,Kalkylsammanställning!J224)) -> 2.634900788e-16
A37: SUMMA effekter | B37: =+SUM(B7:B36) -> 2.418827643e-15 | C37: =+SUM(C7:C36) -> 2.418827643e-15 | D37: =+SUM(D7:D36) -> 2.418827643e-15
A38: Nettoresultat | D38: =+D37+(D4+D5+D6+D7+D8) -> 3.112380327e-15
A39: Nettonuvärdeskvot | D39: =+IF(D4=0,"-",D38/(-D4-D5-D6-D7-D8)) -> -
A40: NUK | D40: =+IF(D4=0,"-",D37/(-D4-D5-D6-D7-D8)) -> -
A41: CO2 MSEK | B41: =+IF('Beskrivning av åtgärd'!$C23="Persontrafik",Kalkylsammanställning!B227,IF('Beskrivning av åtgärd'!$C23="godstrafik",Kalkylsammanställning!E227,Kalkylsammanställning!H227)) -> 9.978247192e-16 | C41: =+IF('Beskrivning av åtgärd'!$C23="Persontrafik",Kalkylsammanställning!C227,IF('Beskrivning av åtgärd'!$C23="godstrafik",Kalkylsammanställning!F227,Kalkylsammanställning!I227)) -> 9.978247192e-16 | D41: =+IF('Beskrivning av åtgärd'!$C23="Persontrafik",Kalkylsammanställning!D227,IF('Beskrivning av åtgärd'!$C23="godstrafik",Kalkylsammanställning!G227,Kalkylsammanställning!J227)) -> 9.978247192e-16
A42: Investeringskostnad | D42: =+D4 -> 0
A43: Drift, underhåll och reinvestering | C43: =+C7+C8 -> 6.935526836e-16 | D43: =+D5 -> 0
A44: Persontrafikföretag | C44: =+SUM(C10:C14) -> 0 | D44: =+SUM(D10:D14) -> 0
A45: Budgeteffekter | C45: =+SUM(C16:C20) -> -5.083684678e-16 | D45: =+SUM(D16:D20) -> -5.083684678e-16
A46: Resenärer | C46: =+SUM(C22:C25) -> 0 | D46: =+SUM(D22:D25) -> 0
A47: Godskunder | C47: =+SUM(C27:C29) -> 1.762815544e-15 | D47: =+SUM(D27:D29) -> 1.762815544e-15
A48: Externa effekter | C48: =+SUM(C31:C36) -> 4.70827883e-16 | D48: =+SUM(D31:D36) -> 4.70827883e-16
A49: SUMMA effekter | C49: =+SUM(C43:C48) -> 2.418827643e-15 | D49: =+SUM(D44:D48) -> 1.72527496e-15
A50: Nettoresultat | D50: =+D49+D42 -> 1.72527496e-15
A51: Nettonuvärdeskvot | D51: =+IF(D42=0,"-",D50/-D42) -> -
A52: Kalkylperiod, år | D52: =+'Beskrivning av åtgärd'!C48 -> 1
C53: =+C45*0.2 -> -1.016736936e-16
A55: Kalkylförutsättningar
A56: Kalkylränta | B56: =+Diskontering!B2 -> 0.035
A57: Moms biljettintäkter | B57: =+Diskontering!B3 -> 0.05660377358
A58: Byggstart | B58: =+Diskontering!B29 -> 2019 | F58: L2916
A59: Byggtid | B59: =+Diskontering!B28 -> 0
A60: Trafikstart | B60: =+Diskontering!B4 -> 2019
A61: Diskonteringsår | B61: =+Diskontering!B4 -> 2019
A62: Kalkylperiod, år | B62: =+Diskontering!B5 -> 1
... 35 more rows

Sheet BANAVG RESULTAT
A1: JA | C1: Ange namn om annat än JA, exempelvis år
A2: UA | C2: Ange namn om annat än UA, exempelvis år
B6: Sammanställning resultat per tågtyp JA | R6: RESOR I JA, 1000-TAL PER ÅR | X6: FÖRSENINGTIMMAR AVSTIGANDE I JA
C7: milj Tågkm per år | D7: Tågtimmar per år | E7: Avgångar per dag | F7: Förseningar, tågtimmar/år | G7: Personkm, miljoner/år | H7: Resor, 1000-tal/år | I7: Resande per tåg | J7: Försening, minuter/tåg | K7: Försening, min/resenär | L7: Tåghastighet, km/h | M7: BTKM | N7: Spåravgift | O7: Tåglägesavgift | P7: foko exkl avg | R7: NT | S7: NP | T7: NA | U7: RT | V7: RP | W7: RA | X7: AV NT | Y7: AV NP | Z7: AV NA | AA7: AV RT | AB7: AV RP | AC7: AV RA
A8: 1 | B8: Långväga persontåg | C8: =+SUMIF(Persontåg!$A:$A,'BANAVG RESULTAT'!$A8,Persontåg!FM:FM) -> 38.40701484 | D8: =+SUMIF(Persontåg!$A:$A,'BANAVG RESULTAT'!$A8,Persontåg!FO:FO)/60*1000000 -> 440449.8448 | E8: =+SUMIF(Persontåg!$A:$A,'BANAVG RESULTAT'!$A8,Persontåg!G:G) -> 754 | F8: =+SUMIF(Persontåg!$A:$A,'BANAVG RESULTAT'!$A8,Persontåg!LA:LA) -> 9836.298141 | G8: =+SUMIF(Persontåg!$A:$A,'BANAVG RESULTAT'!$A8,Persontåg!FK:FK) -> 4363.327414 | H8: =+SUM(R8:W8) -> 60781.57046 | I8: =+IF(C8=0,"-",G8/C8) -> 113.6075644 | J8: =+IF(E8=0,"-",F8*60/(E8*320)) -> 2.446029047 | K8: =+SUM(X8:AC8)*60/(SUM(R8:W8)*1000) -> 2.353124814 | L8: =+C8*1000000/D8 -> 87.19951953 | M8: =+SUMIF(Persontåg!$A:$A,'BANAVG RESULTAT'!$A8,Persontåg!HB:HB) -> 7939.391777 | N8: =+SUMIF(Persontåg!$A:$A,'BANAVG RESULTAT'!$A8,Persontåg!HF:HF) -> 61.00084329 | O8: =+SUMIF(Persontåg!$A:$A,'BANAVG RESULTAT'!$A8,Persontåg!HH:HH) -> 199.3986711 | P8: =+SUMIF(Persontåg!$A:$A,'BANAVG RESULTAT'!$A8,Persontåg!LE:LE) -> 3168.742157 | R8: =+SUMIF(Persontåg!$A:$A,'BANAVG RESULTAT'!$A8,Persontåg!AD:AD) -> 3731.164224 | S8: =+SUMIF(Persontåg!$A:$A,'BANAVG RESULTAT'!$A8,Persontåg!AE:AE) -> 10790.60775 | T8: =+SUMIF(Persontåg!$A:$A,'BANAVG RESULTAT'!$A8,Persontåg!AF:AF) -> 4685.031153 | U8: =+SUMIF(Persontåg!$A:$A,'BANAVG RESULTAT'!$A8,Persontåg!AG:AG) -> 4479.995658 | V8: =+SUMIF(Persontåg!$A:$A,'BANAVG RESULTAT'!$A8,Persontåg!AH:AH) -> 21881.52063 | W8: =+SUMIF(Persontåg!$A:$A,'BANAVG RESULTAT'!$A8,Persontåg!AI:AI) -> 15213.25105 | X8: =+SUMIF(Persontåg!$A:$A,'BANAVG RESULTAT'!$A8,Persontåg!LS:LS)/60 -> 181766.4065 | Y8: =+SUMIF(Persontåg!$A:$A,'BANAVG RESULTAT'!$A8,Persontåg!LT:LT)/60 -> 579883.2897 | Z8: =+SUMIF(Persontåg!$A:$A,'BANAVG RESULTAT'!$A8,Persontåg!LU:LU)/60 -> 208079.1011 | AA8: =+SUMIF(Persontåg!$A:$A,'BANAVG RESULTAT'!$A8,Persontåg!LV:LV)/60 -> 133520.5743 | AB8: =+SUMIF(Persontåg!$A:$A,'BANAVG RESULTAT'!$A8,Persontåg!LW:LW)/60 -> 735544.3185 | AC8: =+SUMIF(Persontåg!$A:$A,'BANAVG RESULTAT'!$A8,Persontåg!LX:LX)/60 -> 544983.3376
A9: 2 | B9: Snabbtåg | C9: =+SUMIF(Persontåg!A:A,'BANAVG RESULTAT'!A9,Persontåg!FM:FM) -> 24.73664414 | D9: =+SUMIF(Persontåg!$A:$A,'BANAVG RESULTAT'!$A9,Persontåg!FO:FO)/60*1000000 -> 203195.9279 | E9: =+SUMIF(Persontåg!$A:$A,'BANAVG RESULTAT'!$A9,Persontåg!G:G) -> 168 | F9: =+SUMIF(Persontåg!$A:$A,'BANAVG RESULTAT'!$A9,Persontåg!LA:LA) -> 4958.487675 | G9: =+SUMIF(Persontåg!$A:$A,'BANAVG RESULTAT'!$A9,Persontåg!FK:FK) -> 4014.15687 | H9: =+SUM(R9:W9) -> 13798.12137 | I9: =+IF(C9=0,"-",G9/C9) -> 162.2757253 | J9: =+IF(E9=0,"-",F9*60/(E9*320)) -> 5.534026423 | K9: =+SUM(X9:AC9)*60/(SUM(R9:W9)*1000) -> 4.819295157 | L9: =+C9*1000000/D9 -> 121.7378931 | M9: =+SUMIF(Persontåg!$A:$A,'BANAVG RESULTAT'!$A9,Persontåg!HB:HB) -> 6383.389786 | N9: =+SUMIF(Persontåg!$A:$A,'BANAVG RESULTAT'!$A9,Persontåg!HF:HF) -> 49.04559076 | O9: =+SUMIF(Persontåg!$A:$A,'BANAVG RESULTAT'!$A9,Persontåg!HH:HH) -> 128.4258615 | P9: =+SUMIF(Persontåg!$A:$A,'BANAVG RESULTAT'!$A9,Persontåg!LE:LE) -> 2553.879311 | R9: =+SUMIF(Persontåg!$A:$A,'BANAVG RESULTAT'!$A9,Persontåg!AD:AD) -> 2679.447814 | S9: =+SUMIF(Persontåg!$A:$A,'BANAVG RESULTAT'!$A9,Persontåg!AE:AE) -> 8922.489142 | T9: =+SUMIF(Persontåg!$A:$A,'BANAVG RESULTAT'!$A9,Persontåg!AF:AF) -> 2196.184419 | U9: =+SUMIF(Persontåg!$A:$A,'BANAVG RESULTAT'!$A9,Persontåg!AG:AG) -> 0 | V9: =+SUMIF(Persontåg!$A:$A,'BANAVG RESULTAT'!$A9,Persontåg!AH:AH) -> 0 | W9: =+SUMIF(Persontåg!$A:$A,'BANAVG RESULTAT'!$A9,Persontåg!AI:AI) -> 0 | X9: =+SUMIF(Persontåg!$A:$A,'BANAVG RESULTAT'!$A9,Persontåg!LS:LS)/60 -> 199379.7711 | Y9: =+SUMIF(Persontåg!$A:$A,'BANAVG RESULTAT'!$A9,Persontåg!LT:LT)/60 -> 748810.8434 | Z9: =+SUMIF(Persontåg!$A:$A,'BANAVG RESULTAT'!$A9,Persontåg!LU:LU)/60 -> 160096.3774 | AA9: =+SUMIF(Persontåg!$A:$A,'BANAVG RESULTAT'!$A9,Persontåg!LV:LV)/60 -> 0 | AB9: =+SUMIF(Persontåg!$A:$A,'BANAVG RESULTAT'!$A9,Persontåg!LW:LW)/60 -> 0 | AC9: =+SUMIF(Persontåg!$A:$A,'BANAVG RESULTAT'!$A9,Persontåg!LX:LX)/60 -> 0
A10: 3 | B10: Regionaltåg | C10: =+SUMIF(Persontåg!A:A,'BANAVG RESULTAT'!A10,Persontåg!FM:FM) -> 29.66116273 | D10: =+SUMIF(Persontåg!$A:$A,'BANAVG RESULTAT'!$A10,Persontåg!FO:FO)/60*1000000 -> 461137.8708 | E10: =+SUMIF(Persontåg!$A:$A,'BANAVG RESULTAT'!$A10,Persontåg!G:G) -> 1288 | F10: =+SUMIF(Persontåg!$A:$A,'BANAVG RESULTAT'!$A10,Persontåg!LA:LBA) -> 10739.791 | G10: =+SUMIF(Persontåg!$A:$A,'BANAVG RESULTAT'!$A10,Persontåg!FK:FK) -> 3249.902131 | H10: =+SUM(R10:W10) -> 146461.2635 | I10: =+IF(C10=0,"-",G10/C10) -> 109.5675905 | J10: =+IF(E10=0,"-",F10*60/(E10*320)) -> 1.563440072 | K10: =+SUM(X10:AC10)*60/(SUM(R10:W10)*1000) -> 1.237969081 | L10: =+C10*1000000/D10 -> 64.32168036 | M10: =+SUMIF(Persontåg!$A:$A,'BANAVG RESULTAT'!$A10,Persontåg!HB:HB) -> 6055.833947 | N10: =+SUMIF(Persontåg!$A:$A,'BANAVG RESULTAT'!$A10,Persontåg!HF:HF) -> 46.52887627 | O10: =+SUMIF(Persontåg!$A:$A,'BANAVG RESULTAT'!$A10,Persontåg!HH:HH) -> 153.9926093 | P10: =+SUMIF(Persontåg!$A:$A,'BANAVG RESULTAT'!$A10,Persontåg!LE:LE) -> 2490.977401 | R10: =+SUMIF(Persontåg!$A:$A,'BANAVG RESULTAT'!$A10,Persontåg!AD:AD) -> 2451.971947 | S10: =+SUMIF(Persontåg!$A:$A,'BANAVG RESULTAT'!$A10,Persontåg!AE:AE) -> 7405.692913 | T10: =+SUMIF(Persontåg!$A:$A,'BANAVG RESULTAT'!$A10,Persontåg!AF:AF) -> 2709.670783 | U10: =+SUMIF(Persontåg!$A:$A,'BANAVG RESULTAT'!$A10,Persontåg!AG:AG) -> 5646.246038 | V10: =+SUMIF(Persontåg!$A:$A,'BANAVG RESULTAT'!$A10,Persontåg!AH:AH) -> 69434.44468 | W10: =+SUMIF(Persontåg!$A:$A,'BANAVG RESULTAT'!$A10,Persontåg!AI:AI) -> 58813.23713 | X10: =+SUMIF(Persontåg!$A:$A,'BANAVG RESULTAT'!$A10,Persontåg!LS:LS)/60 -> 59376.36634 | Y10: =+SUMIF(Persontåg!$A:$A,'BANAVG RESULTAT'!$A10,Persontåg!LT:LT)/60 -> 185769.5341 | Z10: =+SUMIF(Persontåg!$A:$A,'BANAVG RESULTAT'!$A10,Persontåg!LU:LU)/60 -> 62508.51445 | AA10: =+SUMIF(Persontåg!$A:$A,'BANAVG RESULTAT'!$A10,Persontåg!LV:LV)/60 -> 114838.8054 | AB10: =+SUMIF(Persontåg!$A:$A,'BANAVG RESULTAT'!$A10,Persontåg!LW:LW)/60 -> 1425955.129 | AC10: =+SUMIF(Persontåg!$A:$A,'BANAVG RESULTAT'!$A10,Persontåg!LX:LX)/60 -> 1173460.247
A11: 4 | B11: Pendeltåg | C11: =+SUMIF(Persontåg!A:A,'BANAVG RESULTAT'!A11,Persontåg!FM:FM) -> 34.98086732 | D11: =+SUMIF(Persontåg!$A:$A,'BANAVG RESULTAT'!$A11,Persontåg!FO:FO)/60*1000000 -> 429940.3646 | E11: =+SUMIF(Persontåg!$A:$A,'BANAVG RESULTAT'!$A11,Persontåg!G:G) -> 812 | F11: =+SUMIF(Persontåg!$A:$A,'BANAVG RESULTAT'!$A11,Persontåg!LA:LBA) -> 9896.843796 | G11: =+SUMIF(Persontåg!$A:$A,'BANAVG RESULTAT'!$A11,Persontåg!FK:FK) -> 2338.680418 | H11: =+SUM(R11:W11) -> 40016.59829 | I11: =+IF(C11=0,"-",G11/C11) -> 66.85598721 | J11: =+IF(E11=0,"-",F11*60/(E11*320)) -> 2.285293364 | K11: =+SUM(X11:AC11)*60/(SUM(R11:W11)*1000) -> 2.142201338 | L11: =+C11*1000000/D11 -> 81.3621381 | M11: =+SUMIF(Persontåg!$A:$A,'BANAVG RESULTAT'!$A11,Persontåg!HB:HB) -> 4898.673237 | N11: =+SUMIF(Persontåg!$A:$A,'BANAVG RESULTAT'!$A11,Persontåg!HF:HF) -> 37.6380467 | O11: =+SUMIF(Persontåg!$A:$A,'BANAVG RESULTAT'!$A11,Persontåg!HH:HH) -> 181.6110543 | P11: =+SUMIF(Persontåg!$A:$A,'BANAVG RESULTAT'!$A11,Persontåg!LE:LE) -> 2378.21851 | R11: =+SUMIF(Persontåg!$A:$A,'BANAVG RESULTAT'!$A11,Persontåg!AD:AD) -> 2048.848622 | S11: =+SUMIF(Persontåg!$A:$A,'BANAVG RESULTAT'!$A11,Persontåg!AE:AE) -> 6724.801886 | T11: =+SUMIF(Persontåg!$A:$A,'BANAVG RESULTAT'!$A11,Persontåg!AF:AF) -> 2406.752256 | U11: =+SUMIF(Persontåg!$A:$A,'BANAVG RESULTAT'!$A11,Persontåg!AG:AG) -> 1767.19 | V11: =+SUMIF(Persontåg!$A:$A,'BANAVG RESULTAT'!$A11,Persontåg!AH:AH) -> 15295.3681 | W11: =+SUMIF(Persontåg!$A:$A,'BANAVG RESULTAT'!$A11,Persontåg!AI:AI) -> 11773.63743 | X11: =+SUMIF(Persontåg!$A:$A,'BANAVG RESULTAT'!$A11,Persontåg!LS:LS)/60 -> 92351.55537 | Y11: =+SUMIF(Persontåg!$A:$A,'BANAVG RESULTAT'!$A11,Persontåg!LT:LT)/60 -> 303309.3875 | Z11: =+SUMIF(Persontåg!$A:$A,'BANAVG RESULTAT'!$A11,Persontåg!LU:LU)/60 -> 104118.5694 | AA11: =+SUMIF(Persontåg!$A:$A,'BANAVG RESULTAT'!$A11,Persontåg!LV:LV)/60 -> 62356.0437 | AB11: =+SUMIF(Persontåg!$A:$A,'BANAVG RESULTAT'!$A11,Persontåg!LW:LW)/60 -> 494427.631 | AC11: =+SUMIF(Persontåg!$A:$A,'BANAVG RESULTAT'!$A11,Persontåg!LX:LX)/60 -> 372163.6531
B12: SUMMA | C12: =+SUM(C8:C11) -> 127.785689 | D12: 1534724.008 | E12: 3022 | F12: 35431.42062 | G12: 13966.06683 | H12: 261057.5536 | I12: =+IF(C12=0,"-",G12/C12) -> 109.2928867 | J12: =+IF(E12=0,"-",F12*60/(E12*320)) -> 2.198342609 | K12: =+SUM(X12:AC12)*60/(SUM(R12:W12)*1000) -> 1.825505375 | L12: =+C12*1000000/D12 -> 83.26297651 | M12: =+SUM(M8:M11) -> 25277.28875 | N12: =+SUM(N8:N11) -> 194.213357 | O12: =+SUM(O8:O11) -> 663.4281963 | P12: =+SUM(P8:P11) -> 10591.81738 | Q12: =+O12/P12 -> 0.06263591719 | R12: =+SUM(R8:R11) -> 10911.43261 | S12: 33843.59169 | T12: 11997.63861 | U12: 11893.4317 | V12: 106611.3334 | W12: 85800.12562 | X12: 532874.0994 | Y12: 1817773.055 | Z12: 534802.5624 | AA12: 310715.4234 | AB12: 2655927.078 | AC12: 2090607.238
B15: Sammanställning resultat per tågtyp UA | R15: RESOR I UA, 1000-TAL PER ÅR | X15: FÖRSENINGTIMMAR AVSTIGANDE I UA
C16: Tågkm per år | D16: Tågtimmar per år | E16: Avgångar per dag | F16: Förseningar, tågtimmar/år | G16: Personkm, miljoner/år | H16: Resor, 1000-tal/år | I16: Resande per tåg | J16: Försening, minuter/tåg | K16: Försening, min/resenär | L16: Tåghastighet, km/h | M16: BTKM | N16: Spåravgift | O16: Banavgift | P16: foko exkl avg | R16: NT | S16: NP | T16: NA | U16: RT | V16: RP | W16: RA | X16: AV NT | Y16: AV NP | Z16: AV NA | AA16: AV RT | AB16: AV RP | AC16: AV RA
A17: 1 | B17: Långväga persontåg | C17: =+SUMIF(Persontåg!A:A,'BANAVG RESULTAT'!A17,Persontåg!FN:FN) -> 38.40701484 | D17: =+SUMIF(Persontåg!$A:$A,'BANAVG RESULTAT'!$A17,Persontåg!FP:FP)/60*1000000 -> 440449.8448 | E17: =+SUMIF(Persontåg!$A:$A,'BANAVG RESULTAT'!$A17,Persontåg!H:H) -> 754 | F17: =+SUMIF(Persontåg!$A:$A,'BANAVG RESULTAT'!$A17,Persontåg!LB:LB) -> 9836.298141 | G17: =+SUMIF(Persontåg!$A:$A,'BANAVG RESULTAT'!$A17,Persontåg!FL:FL) -> 4363.327414 | H17: =+SUM(R17:W17) -> 60781.57046 | I17: =+IF(C17=0,"-",G17/C17) -> 113.6075644 | J17: =+IF(E17=0,"-",F17*60/(E17*320)) -> 2.446029047 | K17: =+SUM(X17:AC17)*60/(SUM(R17:W17)*1000) -> 2.353124814 | L17: =+C17*1000000/D17 -> 87.19951953 | M17: =+SUMIF(Persontåg!$A:$A,'BANAVG RESULTAT'!$A17,Persontåg!HC:HC) -> 7939.391777 | N17: =+SUMIF(Persontåg!$A:$A,'BANAVG RESULTAT'!$A17,Persontåg!HG:HG) -> 61.00084329 | O17: =+SUMIF(Persontåg!$A:$A,'BANAVG RESULTAT'!$A17,Persontåg!HI:HI) -> 199.3986711 | P17: =+SUMIF(Persontåg!$A:$A,'BANAVG RESULTAT'!$A17,Persontåg!LF:LF) -> 3168.742157 | R17: =+SUMIF(Persontåg!$A:$A,'BANAVG RESULTAT'!$A17,Persontåg!AJ:AJ)+'BANAVG RESULTAT'!R8 -> 3731.164224 | S17: =+SUMIF(Persontåg!$A:$A,'BANAVG RESULTAT'!$A17,Persontåg!AK:AK)+'BANAVG RESULTAT'!S8 -> 10790.60775 | T17: =+SUMIF(Persontåg!$A:$A,'BANAVG RESULTAT'!$A17,Persontåg!AL:AL)+'BANAVG RESULTAT'!T8 -> 4685.031153 | U17: =+SUMIF(Persontåg!$A:$A,'BANAVG RESULTAT'!$A17,Persontåg!AM:AM)+'BANAVG RESULTAT'!U8 -> 4479.995658 | V17: =+SUMIF(Persontåg!$A:$A,'BANAVG RESULTAT'!$A17,Persontåg!AN:AN)+'BANAVG RESULTAT'!V8 -> 21881.52063 | W17: =+SUMIF(Persontåg!$A:$A,'BANAVG RESULTAT'!$A17,Persontåg!AO:AO)+'BANAVG RESULTAT'!W8 -> 15213.25105 | X17: =+SUMIF(Persontåg!$A:$A,'BANAVG RESULTAT'!$A17,Persontåg!LZ:LZ)/60 -> 181766.4065 | Y17: =+SUMIF(Persontåg!$A:$A,'BANAVG RESULTAT'!$A17,Persontåg!MA:MA)/60 -> 579883.2897 | Z17: =+SUMIF(Persontåg!$A:$A,'BANAVG RESULTAT'!$A17,Persontåg!MB:MB)/60 -> 208079.1011 | AA17: =+SUMIF(Persontåg!$A:$A,'BANAVG RESULTAT'!$A17,Persontåg!MC:MC)/60 -> 133520.5743 | AB17: =+SUMIF(Persontåg!$A:$A,'BANAVG RESULTAT'!$A17,Persontåg!MD:MD)/60 -> 735544.3185 | AC17: =+SUMIF(Persontåg!$A:$A,'BANAVG RESULTAT'!$A17,Persontåg!ME:ME)/60 -> 544983.3376
A18: 2 | B18: Snabbtåg | C18: =+SUMIF(Persontåg!A:A,'BANAVG RESULTAT'!A18,Persontåg!FM:FM) -> 24.73664414 | D18: =+SUMIF(Persontåg!$A:$A,'BANAVG RESULTAT'!$A18,Persontåg!FP:FP)/60*1000000 -> 203195.9279 | E18: =+SUMIF(Persontåg!$A:$A,'BANAVG RESULTAT'!$A18,Persontåg!H:H) -> 168 | F18: =+SUMIF(Persontåg!$A:$A,'BANAVG RESULTAT'!$A18,Persontåg!LB:LB) -> 4958.487675 | G18: =+SUMIF(Persontåg!$A:$A,'BANAVG RESULTAT'!$A18,Persontåg!FL:FL) -> 4014.15687 | H18: =+SUM(R18:W18) -> 13798.12137 | I18: =+IF(C18=0,"-",G18/C18) -> 162.2757253 | J18: =+IF(E18=0,"-",F18*60/(E18*320)) -> 5.534026423 | K18: =+SUM(X18:AC18)*60/(SUM(R18:W18)*1000) -> 4.819295157 | L18: =+C18*1000000/D18 -> 121.7378931 | M18: =+SUMIF(Persontåg!$A:$A,'BANAVG RESULTAT'!$A18,Persontåg!HC:HC) -> 6383.389786 | N18: =+SUMIF(Persontåg!$A:$A,'BANAVG RESULTAT'!$A18,Persontåg!HG:HG) -> 49.04559076 | O18: =+SUMIF(Persontåg!$A:$A,'BANAVG RESULTAT'!$A18,Persontåg!HI:HI) -> 128.4258615 | P18: =+SUMIF(Persontåg!$A:$A,'BANAVG RESULTAT'!$A18,Persontåg!LF:LF) -> 2553.879311 | R18: =+SUMIF(Persontåg!$A:$A,'BANAVG RESULTAT'!$A18,Persontåg!AJ:AJ)+'BANAVG RESULTAT'!R9 -> 2679.447814 | S18: =+SUMIF(Persontåg!$A:$A,'BANAVG RESULTAT'!$A18,Persontåg!AK:AK)+'BANAVG RESULTAT'!S9 -> 8922.489142 | T18: =+SUMIF(Persontåg!$A:$A,'BANAVG RESULTAT'!$A18,Persontåg!AL:AL)+'BANAVG RESULTAT'!T9 -> 2196.184419 | U18: =+SUMIF(Persontåg!$A:$A,'BANAVG RESULTAT'!$A18,Persontåg!AM:AM)+'BANAVG RESULTAT'!U9 -> 0 | V18: =+SUMIF(Persontåg!$A:$A,'BANAVG RESULTAT'!$A18,Persontåg!AN:AN)+'BANAVG RESULTAT'!V9 -> 0 | W18: =+SUMIF(Persontåg!$A:$A,'BANAVG RESULTAT'!$A18,Persontåg!AO:AO)+'BANAVG RESULTAT'!W9 -> 0 | X18: =+SUMIF(Persontåg!$A:$A,'BANAVG RESULTAT'!$A18,Persontåg!LZ:LZ)/60 -> 199379.7711 | Y18: =+SUMIF(Persontåg!$A:$A,'BANAVG RESULTAT'!$A18,Persontåg!MA:MA)/60 -> 748810.8434 | Z18: =+SUMIF(Persontåg!$A:$A,'BANAVG RESULTAT'!$A18,Persontåg!MB:MB)/60 -> 160096.3774 | AA18: =+SUMIF(Persontåg!$A:$A,'BANAVG RESULTAT'!$A18,Persontåg!MC:MC)/60 -> 0 | AB18: =+SUMIF(Persontåg!$A:$A,'BANAVG RESULTAT'!$A18,Persontåg!MD:MD)/60 -> 0 | AC18: =+SUMIF(Persontåg!$A:$A,'BANAVG RESULTAT'!$A18,Persontåg!ME:ME)/60 -> 0
A19: 3 | B19: Regionaltåg | C19: =+SUMIF(Persontåg!A:A,'BANAVG RESULTAT'!A19,Persontåg!FM:FM) -> 29.66116273 | D19: =+SUMIF(Persontåg!$A:$A,'BANAVG RESULTAT'!$A19,Persontåg!FP:FP)/60*1000000 -> 461137.8708 | E19: =+SUMIF(Persontåg!$A:$A,'BANAVG RESULTAT'!$A19,Persontåg!H:H) -> 1288 | F19: =+SUMIF(Persontåg!$A:$A,'BANAVG RESULTAT'!$A19,Persontåg!LB:LB) -> 10739.791 | G19: =+SUMIF(Persontåg!$A:$A,'BANAVG RESULTAT'!$A19,Persontåg!FL:FL) -> 3249.902131 | H19: =+SUM(R19:W19) -> 146461.2635 | I19: =+IF(C19=0,"-",G19/C19) -> 109.5675905 | J19: =+IF(E19=0,"-",F19*60/(E19*320)) -> 1.563440072 | K19: =+SUM(X19:AC19)*60/(SUM(R19:W19)*1000) -> 1.237969081 | L19: =+C19*1000000/D19 -> 64.32168036 | M19: =+SUMIF(Persontåg!$A:$A,'BANAVG RESULTAT'!$A19,Persontåg!HC:HC) -> 6055.833947 | N19: =+SUMIF(Persontåg!$A:$A,'BANAVG RESULTAT'!$A19,Persontåg!HG:HG) -> 46.52887627 | O19: =+SUMIF(Persontåg!$A:$A,'BANAVG RESULTAT'!$A19,Persontåg!HI:HI) -> 153.9926093 | P19: =+SUMIF(Persontåg!$A:$A,'BANAVG RESULTAT'!$A19,Persontåg!LF:LF) -> 2490.977401 | R19: =+SUMIF(Persontåg!$A:$A,'BANAVG RESULTAT'!$A19,Persontåg!AJ:AJ)+'BANAVG RESULTAT'!R10 -> 2451.971947 | S19: =+SUMIF(Persontåg!$A:$A,'BANAVG RESULTAT'!$A19,Persontåg!AK:AK)+'BANAVG RESULTAT'!S10 -> 7405.692913 | T19: =+SUMIF(Persontåg!$A:$A,'BANAVG RESULTAT'!$A19,Persontåg!AL:AL)+'BANAVG RESULTAT'!T10 -> 2709.670783 | U19: =+SUMIF(Persontåg!$A:$A,'BANAVG RESULTAT'!$A19,Persontåg!AM:AM)+'BANAVG RESULTAT'!U10 -> 5646.246038 | V19: =+SUMIF(Persontåg!$A:$A,'BANAVG RESULTAT'!$A19,Persontåg!AN:AN)+'BANAVG RESULTAT'!V10 -> 69434.44468 | W19: =+SUMIF(Persontåg!$A:$A,'BANAVG RESULTAT'!$A19,Persontåg!AO:AO)+'BANAVG RESULTAT'!W10 -> 58813.23713 | X19: =+SUMIF(Persontåg!$A:$A,'BANAVG RESULTAT'!$A19,Persontåg!LZ:LZ)/60 -> 59376.36634 | Y19: =+SUMIF(Persontåg!$A:$A,'BANAVG RESULTAT'!$A19,Persontåg!MA:MA)/60 -> 185769.5341 | Z19: =+SUMIF(Persontåg!$A:$A,'BANAVG RESULTAT'!$A19,Persontåg!MB:MB)/60 -> 62508.51445 | AA19: =+SUMIF(Persontåg!$A:$A,'BANAVG RESULTAT'!$A19,Persontåg!MC:MC)/60 -> 114838.8054 | AB19: =+SUMIF(Persontåg!$A:$A,'BANAVG RESULTAT'!$A19,Persontåg!MD:MD)/60 -> 1425955.129 | AC19: =+SUMIF(Persontåg!$A:$A,'BANAVG RESULTAT'!$A19,Persontåg!ME:ME)/60 -> 1173460.247
A20: 4 | B20: Pendeltåg | C20: =+SUMIF(Persontåg!A:A,'BANAVG RESULTAT'!A20,Persontåg!FM:FM) -> 34.98086732 | D20: =+SUMIF(Persontåg!$A:$A,'BANAVG RESULTAT'!$A20,Persontåg!FP:FP)/60*1000000 -> 429940.3646 | E20: =+SUMIF(Persontåg!$A:$A,'BANAVG RESULTAT'!$A20,Persontåg!H:H) -> 812 | F20: =+SUMIF(Persontåg!$A:$A,'BANAVG RESULTAT'!$A20,Persontåg!LB:LB) -> 9896.843796 | G20: =+SUMIF(Persontåg!$A:$A,'BANAVG RESULTAT'!$A20,Persontåg!FL:FL) -> 2338.680418 | H20: =+SUM(R20:W20) -> 40016.59829 | I20: =+IF(C20=0,"-",G20/C20) -> 66.85598721 | J20: =+IF(E20=0,"-",F20*60/(E20*320)) -> 2.285293364 | K20: =+SUM(X20:AC20)*60/(SUM(R20:W20)*1000) -> 2.142201338 | L20: =+C20*1000000/D20 -> 81.3621381 | M20: =+SUMIF(Persontåg!$A:$A,'BANAVG RESULTAT'!$A20,Persontåg!HC:HC) -> 4898.673237 | N20: =+SUMIF(Persontåg!$A:$A,'BANAVG RESULTAT'!$A20,Persontåg!HG:HG) -> 37.6380467 | O20: =+SUMIF(Persontåg!$A:$A,'BANAVG RESULTAT'!$A20,Persontåg!HI:HI) -> 181.6110543 | P20: =+SUMIF(Persontåg!$A:$A,'BANAVG RESULTAT'!$A20,Persontåg!LF:LF) -> 2378.21851 | R20: =+SUMIF(Persontåg!$A:$A,'BANAVG RESULTAT'!$A20,Persontåg!AJ:AJ)+'BANAVG RESULTAT'!R11 -> 2048.848622 | S20: =+SUMIF(Persontåg!$A:$A,'BANAVG RESULTAT'!$A20,Persontåg!AK:AK)+'BANAVG RESULTAT'!S11 -> 6724.801886 | T20: =+SUMIF(Persontåg!$A:$A,'BANAVG RESULTAT'!$A20,Persontåg!AL:AL)+'BANAVG RESULTAT'!T11 -> 2406.752256 | U20: =+SUMIF(Persontåg!$A:$A,'BANAVG RESULTAT'!$A20,Persontåg!AM:AM)+'BANAVG RESULTAT'!U11 -> 1767.19 | V20: =+SUMIF(Persontåg!$A:$A,'BANAVG RESULTAT'!$A20,Persontåg!AN:AN)+'BANAVG RESULTAT'!V11 -> 15295.3681 | W20: =+SUMIF(Persontåg!$A:$A,'BANAVG RESULTAT'!$A20,Persontåg!AO:AO)+'BANAVG RESULTAT'!W11 -> 11773.63743 | X20: =+SUMIF(Persontåg!$A:$A,'BANAVG RESULTAT'!$A20,Persontåg!LZ:LZ)/60 -> 92351.55537 | Y20: =+SUMIF(Persontåg!$A:$A,'BANAVG RESULTAT'!$A20,Persontåg!MA:MA)/60 -> 303309.3875 | Z20: =+SUMIF(Persontåg!$A:$A,'BANAVG RESULTAT'!$A20,Persontåg!MB:MB)/60 -> 104118.5694 | AA20: =+SUMIF(Persontåg!$A:$A,'BANAVG RESULTAT'!$A20,Persontåg!MC:MC)/60 -> 62356.0437 | AB20: =+SUMIF(Persontåg!$A:$A,'BANAVG RESULTAT'!$A20,Persontåg!MD:MD)/60 -> 494427.631 | AC20: =+SUMIF(Persontåg!$A:$A,'BANAVG RESULTAT'!$A20,Persontåg!ME:ME)/60 -> 372163.6531
B21: SUMMA | C21: =+SUM(C17:C20) -> 127.785689 | D21: 1534724.008 | E21: 3022 | F21: 35431.42062 | G21: 13966.06683 | H21: 261057.5536 | I21: =+IF(C21=0,"-",G21/C21) -> 109.2928867 | J21: =+IF(E21=0,"-",F21*60/(E21*320)) -> 2.198342609 | K21: =+SUM(X21:AC21)*60/(SUM(R21:W21)*1000) -> 1.825505375 | L21: =+C21*1000000/D21 -> 83.26297651 | M21: =+SUM(M17:M20) -> 25277.28875 | N21: =+SUM(N17:N20) -> 194.213357 | O21: =+SUM(O17:O20) -> 663.4281963 | P21: =+SUM(P17:P20) -> 10591.81738 | Q21: =+O21/P21 -> 0.06263591719 | R21: =+SUM(R17:R20) -> 10911.43261 | S21: 33843.59169 | T21: 11997.63861 | U21: 11893.4317 | V21: 106611.3334 | W21: 85800.12562 | X21: 532874.0994 | Y21: 1817773.055 | Z21: 534802.5624 | AA21: 310715.4234 | AB21: 2655927.078 | AC21: 2090607.238
P23: =+P12-P21 -> 0
A26: JA | B26: Tågkm | C26: Btkm | D26: Personkm | E26: Resande per tåg | F26: banavgift | G26: foko exkl avg'
A27: Långväga persontåg | B27: =+C8 -> 38.40701484 | C27: =+M8 -> 7939.391777 | D27: =+G8 -> 4363.327414 | E27: =+I8 -> 113.6075644 | F27: =+O8 -> 199.3986711 | G27: =+P8 -> 3168.742157 | H27: =+F27/G27 -> 0.06292675807
A28: Snabbtåg | B28: =+C9 -> 24.73664414 | C28: =+M9 -> 6383.389786 | D28: =+G9 -> 4014.15687 | E28: =+I9 -> 162.2757253 | F28: =+O9 -> 128.4258615 | G28: 2553.879311 | H28: =+F28/G28 -> 0.05028658206
A29: Regionaltåg | B29: =+C10 -> 29.66116273 | C29: =+M10 -> 6055.833947 | D29: =+G10 -> 3249.902131 | E29: =+I10 -> 109.5675905 | F29: 153.9926093 | G29: =+P10 -> 2490.977401 | H29: =+F29/G29 -> 0.06182015511
A30: Pendeltåg | B30: =+C11 -> 34.98086732 | C30: =+M11 -> 4898.673237 | D30: =+G11 -> 2338.680418 | E30: =+I11 -> 66.85598721 | F30: 181.6110543 | G30: 2378.21851 | H30: =+F30/G30 -> 0.07636432631
A31: SUMMA | B31: =+C12 -> 127.785689 | C31: =+M12 -> 25277.28875 | D31: =+G12 -> 13966.06683 | E31: =+I12 -> 109.2928867 | F31: 663.4281963 | G31: =+P12 -> 10591.81738 | H31: =+F31/G31 -> 0.06263591719
A33: UA | B33: Tågkm | C33: Btkm | D33: Personkm | E33: Resande per tåg | F33: banavgift
A34: Långväga persontåg | B34: =+C17 -> 38.40701484 | C34: =+M17 -> 7939.391777 | D34: =+G17 -> 4363.327414 | E34: =+I17 -> 113.6075644 | F34: =+O17 -> 199.3986711 | G34: 3168.742157 | H34: =+F34/G34 -> 0.06292675807
A35: Snabbtåg | B35: =+C18 -> 24.73664414 | C35: =+M18 -> 6383.389786 | D35: =+G18 -> 4014.15687 | E35: =+I18 -> 162.2757253 | F35: 128.4258615 | G35: 2553.879311 | H35: =+F35/G35 -> 0.05028658206
A36: Regionaltåg | B36: =+C19 -> 29.66116273 | C36: =+M19 -> 6055.833947 | D36: =+G19 -> 3249.902131 | E36: =+I19 -> 109.5675905 | F36: 153.9926093 | G36: 2490.977401 | H36: =+F36/G36 -> 0.06182015511
A37: Pendeltåg | B37: =+C20 -> 34.98086732 | C37: =+M20 -> 4898.673237 | D37: =+G20 -> 2338.680418 | E37: =+I20 -> 66.85598721 | F37: 181.6110543 | G37: 2378.21851 | H37: =+F37/G37 -> 0.07636432631
A38: SUMMA | B38: =+C21 -> 127.785689 | C38: =+M21 -> 25277.28875 | D38: =+G21 -> 13966.06683 | E38: =+I21 -> 109.2928867 | F38: 663.4281963 | G38: 10591.81738 | H38: =+F38/G38 -> 0.06263591719
F39: =+F38-F31 -> 0
A40: UA-JA | B40: Tågkm | C40: Btkm | D40: Personkm | E40: Resande per tåg | F40: banavgift | G40: foko exkl avg'
A41: Långväga persontåg | B41: =+B34-B27 -> 0 | C41: 0 | D41: 0 | E41: 0 | F41: 0 | G41: 0
A42: Snabbtåg | B42: 0 | C42: 0 | D42: 0 | E42: 0 | F42: 0 | G42: 0
A43: Regionaltåg | B43: 0 | C43: 0 | D43: 0 | E43: 0 | F43: 0 | G43: 0
A44: Pendeltåg | B44: 0 | C44: 0 | D44: 0 | E44: 0 | F44: 0 | G44: 0
B45: 0 | C45: 0 | D45: 0 | E45: 0 | F45: 0 | G45: =+G38-G31 -> 0
A47: (UA-JA)/JA | B47: Tågkm | C47: Btkm | D47: Personkm | E47: Resande per tåg | F47: banavgift
A48: Långväga persontåg | C48: =+C41/C27 -> 0 | D48: 0 | E48: 0 | F48: 0
A49: Snabbtåg | B49: =+B42-B35 -> -24.73664414 | C49: 0 | D49: 0 | E49: 0 | F49: 0
A50: Regionaltåg | B50: =+B43-B36 -> -29.66116273 | C50: 0 | D50: 0 | E50: 0 | F50: 0
A51: Pendeltåg | B51: =+B44-B37 -> -34.98086732 | C51: 0 | D51: 0 | E51: 0 | F51: 0
... 51 more rows

Sheet Beskrivning av åtgärd
A1: Förutsättningar
A2: Resandeprognos | B2: BAS 20200615
A3: Prognosår resandeprognos | B3: 2019
A4: Godsprognos | B4: BAS 20200615
A5: Prognosår godsprognos | B5: 2019
A6: Byggstart | B6: =C46 -> 2019
A7: Diskonteringsår | B7: =+B6 -> 2019
A11: INNEHÅLL
A12: 1. Beskriv aktuell åtgärd och effekter i kalkylen
A13: 2. Korrigering av prognosindata
A14: 3. Byggtid och kalkylperiod
A15: 4. Kalkylspecifika tillväxttal
A16: 5. Om åtgärden innebär förändringar i kapacitetsberäkningens linjedelar
A17: 6. Om åtgärden innebär andra förändringar i kapacitetsberäkningen:
A18: 7. Om effekterna beräknas utanför modellen - med tidtabellsanalys/simulering
A19: 8. Åtgärd som påverkar drivmedelstyp, exempelvis elektrifiering
A21: Separat Bansek Gods? | C21: nej
A22: DATUM FÖR SAMHÄLLSEKONOMISK KALKYL | D22: ange datum åååå-mm-dd
A23: Val av effektredovisning | C23: Totalt
A24: 1. Beskriv aktuell åtgärd och effekter i kalkylen
A25: Allmän beskrivning av åtgärden
A27: Beräkningsbara effekter | C27: Beskriv kortfattat om åtgärden innebär en förändring,
A28: Gångtider
A29: Avstånd
A30: Turtäthet/antal tåg
A31: Kapacitetsutnyttjande
A32: Ändring drivmedel/byte av tågtyp
A33: Banavgifter
A34: Kostnader för DoU (ange beräkningsmetod)
A35: Bromsar godståg (anges flik 4 rad 3 och 4) | C35: -
A38: 2. Korrigering av prognosindata
A39: har korrigering av personprognosindata genomförts?
A40: Har korrigering av godsprognosindata genomförts?
A41: I så fall; ange sträckor och omräkningsfaktor
A45: 3. Byggtid och kalkylperiod
A46: Byggstart | C46: 2019
A47: Byggtid | C47: 0
A48: Kalkylperiod, år | C48: 1
A51: 4. Kalkylspecifika tillväxttal | C51: Kalkylspecifik | D51: standard | H51: Trafiktillväxt KA
A52: Trafiktillväxt 1 godstrafik | B52: Basår-prognosår 1 | C52: =+IF(Kalkylsammanställning!G$2=1,"",'Beskrivning av åtgärd'!H52) ->  | D52: 0.009654342314 | E52: per år | G52: =+(1+D52)^(2045-2019) -> 1.283780141 | H52: =+((G52*Kalkylsammanställning!G2))^(1/(2045-2019))-1 -> 0.009654342314
A53: Trafiktillväxt 2 godstrafik | B53: Proggnosår 1-prognosår 2 | C53: =+D53 -> 0.0054 | D53: 0.0054 | E53: per år
A54: Trafiktillväxt 1 persontrafik | B54: Basår-prognosår 1 | C54: =+IF(Kalkylsammanställning!G$2=1,"",'Beskrivning av åtgärd'!H54) ->  | D54: 0.0149 | E54: per år | G54: =+(1+D54)^(2045-2019) -> 1.468941719 | H54: =+((G54*Kalkylsammanställning!G$2))^(1/(2045-2019))-1 -> 0.0149
A55: Trafiktillväxt 2 persontrafik | B55: Proggnosår 1-prognosår 2 | C55: =+D55 -> 0.014 | D55: 0.014 | E55: per år
A57: 5. Om åtgärden innebär förändringar i kapacitetsberäkningens linjedelar
A58: Beskriv vilka ändringar som görs i linjedelsindelningen. Ändringarna genomförs så som beskrivs i "Handledning"
A60: Åtgärdad linjedel i JA | F60: Nya linjedelar i UA med godstrafik
A61: Sträcka | C61: Linjedelsnr JA | D61: Enkelspår/-dubbelspår | E61: Avstånd, km | F61: Sträcka | H61: Linjedelsnr UA | I61: Ersätter linjedel i JA | J61: Enkelspår/-dubbelspår | K61: Avstånd, km
D62: =+VLOOKUP(C62,'Kap.ber JA'!B:H,7,FALSE) -> 0
... 34 more rows

Sheet Länkar
A1: från | B1: till | C1: LÄNK | D1: Från station | E1: Till station | F1: Bandel | G1: stråk | H1: stråknr | I1: Linjedel JA | J1: Linjedel UA | K1: Gångtidsdiff. IR-tåg (1) | L1: Gångtidsdiff. Snabbtåg (2) | M1: Gångtidsdiff. Snabbtåg stambanor (5) | N1: Gångtidsiff. Pendel/Reg-tåg (15) | O1: Gångtidsdiff. Nattåg (16) | P1: Gångtidsidff. Dieselmotor-vagn (17) | Q1: Gångtidsiff. Pendeltåg storstäder (18) | R1: Gångtidsdiff. HH-tåg (3) | S1: Gångtidsiff. Snabba reg.tåg (4) | T1: Prognoskorr.-faktor | U1: EL JA | V1: EL UA | W1: Fyrspår JA | X1: Fyrspår UA | Y1: Avstånd km persontåg JA | Z1: Avstånd km persontåg UA | AJ1: EMME-länk | AL1: S | AM1: Ö | AN1: L | AO1: S | AP1: Ö | AQ1: L | AX1: tkm per år | AY1: Längd linjedel | AZ1: Fordonskm, godståg, JA | BA1: Fordonskm, persontåg, JA | BB1: Fordonskm, totalt, JA | BC1: Fordonskm, godståg, UA | BD1: Fordonskm, persontåg, UA | BE1: Fordonskm, totalt, UA | BF1: Fordonskm JA | BG1: Fordonskm UA | BK1: ANVÄNDS EJ Kapacitetsavgift alla tåg | BM1: s | BN1: Ö | BO1: L
A2: =Länkar_TTA!A2 -> 1140 | B2: =Länkar_TTA!B2 -> 1501 | C2: =TEXT(Länkar_TTA!C2,0) -> 11401501 | D2: =Länkar_TTA!D2 -> Hölö | E2: =Länkar_TTA!E2 -> Vagnhärad | F2: =Länkar_TTA!F2 -> 421 | G2: =Länkar_TTA!G2 -> Södra stambanan | H2: =Länkar_TTA!H2 -> 2 | I2: =Länkar_TTA!I2 -> L4800 | J2: =+I2 -> L4800 | T2: =+Kalkylsammanställning!G$2 -> 1 | U2: =Länkar_TTA!M2 -> Ja | V2: =+U2 -> Ja | W2: =IFERROR(VLOOKUP(C2,Länkar_TTA!C:K,9,FALSE),0) -> 0 | X2: =+W2 -> 0 | Y2: =+IFERROR(VLOOKUP(C2,LinjeLänk_Data!F:G,2,FALSE),"-") -> 10.30000019 | Z2: =+Y2 -> 10.30000019 | AB2: =+G2 -> Södra stambanan | AD2: =+F2 -> 421 | AF2: =+VLOOKUP(C2,Länkar_TTA!N:P,2,FALSE) -> 421 | AG2: =+AD2-AF2 -> 0 | AI2: - | AJ2: =+CONCATENATE(D2,AI2,E2) -> Hölö-Vagnhärad | AL2: =+SUMIF('Linjelänk JA_KAP'!$H:$H,$C2,'Linjelänk JA_KAP'!CZ:CZ) -> 0 | AM2: =+SUMIF('Linjelänk JA_KAP'!$H:$H,$C2,'Linjelänk JA_KAP'!DA:DA) -> 19 | AN2: =+SUMIF('Linjelänk JA_KAP'!$H:$H,$C2,'Linjelänk JA_KAP'!DB:DB) -> 0 | AO2: =+SUMIF('Linjelänk UA_KAP'!$H:$H,$C2,'Linjelänk UA_KAP'!CZ:CZ) -> 0 | AP2: =+SUMIF('Linjelänk UA_KAP'!$H:$H,$C2,'Linjelänk UA_KAP'!DA:DA) -> 19 | AQ2: =+SUMIF('Linjelänk UA_KAP'!$H:$H,$C2,'Linjelänk UA_KAP'!DB:DB) -> 0 | AS2: =+VLOOKUP($AJ2,Länkar_TTA!$Q:$T,2,FALSE) -> 0 | AT2: =+VLOOKUP($AJ2,Länkar_TTA!$Q:$T,3,FALSE) -> 19 | AU2: =+VLOOKUP($AJ2,Länkar_TTA!$Q:$T,4,FALSE) -> 0 | AX2: =+Y2*(AL2+AM2+AN2)*320 -> 62624.00116 | AY2: =VLOOKUP(I2,Bangods_linjedel!B:F,5,FALSE) -> 57.96 | AZ2: =VLOOKUP(I2,'Kap.ber JA'!DK:DN,2,FALSE)*AY2 -> 37239.3 | BA2: =VLOOKUP(I2,'Kap.ber JA'!$DK:$DN,3,FALSE)*AY2 -> 704793.6 | BB2: =VLOOKUP(I2,'Kap.ber JA'!$DK:$DN,4,FALSE)*AY2 -> 742032.9 | BC2: =VLOOKUP(J2,'Kap.ber UA'!$DJ:$DM,2,FALSE)*AY2 -> 37239.3 | BD2: =VLOOKUP(J2,'Kap.ber UA'!$DJ:$DM,3,FALSE)*AY2 -> 704793.6 | BE2: =VLOOKUP(J2,'Kap.ber UA'!$DJ:$DM,4,FALSE)*AY2 -> 742032.9 | BF2: =IF('Beskrivning av åtgärd'!C$23="Persontrafik",BA2,IF('Beskrivning av åtgärd'!$C$23="Godstrafik",AZ2,BB2)) -> 742032.9 | BG2: =IF('Beskrivning av åtgärd'!$C$23="Persontrafik",BD2,IF('Beskrivning av åtgärd'!$C$23="Godstrafik",BC2,BE2)) -> 742032.9
A3: =Länkar_TTA!A3 -> 1140 | B3: =Länkar_TTA!B3 -> 681131 | C3: =TEXT(Länkar_TTA!C3,0) -> 1140681131 | D3: =Länkar_TTA!D3 -> Hölö | E3: =Länkar_TTA!E3 -> Järna | F3: =Länkar_TTA!F3 -> 421 | G3: =Länkar_TTA!G3 -> Södra stambanan | H3: =Länkar_TTA!H3 -> 2 | I3: =Länkar_TTA!I3 -> L4800 | J3: L4800 | T3: =+Kalkylsammanställning!G$2 -> 1 | U3: =Länkar_TTA!M3 -> Ja | V3: Ja | W3: =IFERROR(VLOOKUP(C3,Länkar_TTA!C:K,9,FALSE),0) -> 0 | X3: 0 | Y3: =+IFERROR(VLOOKUP(C3,LinjeLänk_Data!F:G,2,FALSE),"-") -> 8.199999809 | Z3: 8.199999809 | AB3: Södra stambanan | AD3: =+F3 -> 421 | AF3: =+VLOOKUP(C3,Länkar_TTA!N:P,2,FALSE) -> 421 | AG3: 0 | AI3: - | AJ3: Hölö-Järna | AL3: =+SUMIF('Linjelänk JA_KAP'!$H:$H,$C3,'Linjelänk JA_KAP'!CZ:CZ) -> 0 | AM3: =+SUMIF('Linjelänk JA_KAP'!$H:$H,$C3,'Linjelänk JA_KAP'!DA:DA) -> 19 | AN3: =+SUMIF('Linjelänk JA_KAP'!$H:$H,$C3,'Linjelänk JA_KAP'!DB:DB) -> 0 | AO3: =+SUMIF('Linjelänk UA_KAP'!$H:$H,$C3,'Linjelänk UA_KAP'!CZ:CZ) -> 0 | AP3: =+SUMIF('Linjelänk UA_KAP'!$H:$H,$C3,'Linjelänk UA_KAP'!DA:DA) -> 19 | AQ3: =+SUMIF('Linjelänk UA_KAP'!$H:$H,$C3,'Linjelänk UA_KAP'!DB:DB) -> 0 | AS3: =+VLOOKUP($AJ3,Länkar_TTA!$Q:$T,2,FALSE) -> 0 | AT3: =+VLOOKUP($AJ3,Länkar_TTA!$Q:$T,3,FALSE) -> 19 | AU3: =+VLOOKUP($AJ3,Länkar_TTA!$Q:$T,4,FALSE) -> 0 | AX3: =+Y3*(AL3+AM3+AN3)*320 -> 49855.99884 | AY3: =VLOOKUP(I3,Bangods_linjedel!B:F,5,FALSE) -> 57.96 | AZ3: =VLOOKUP(I3,'Kap.ber JA'!DK:DN,2,FALSE)*AY3 -> 37239.3 | BA3: =VLOOKUP(I3,'Kap.ber JA'!$DK:$DN,3,FALSE)*AY3 -> 704793.6 | BB3: =VLOOKUP(I3,'Kap.ber JA'!$DK:$DN,4,FALSE)*AY3 -> 742032.9 | BC3: =VLOOKUP(J3,'Kap.ber UA'!$DJ:$DM,2,FALSE)*AY3 -> 37239.3 | BD3: =VLOOKUP(J3,'Kap.ber UA'!$DJ:$DM,3,FALSE)*AY3 -> 704793.6 | BE3: =VLOOKUP(J3,'Kap.ber UA'!$DJ:$DM,4,FALSE)*AY3 -> 742032.9 | BF3: =IF('Beskrivning av åtgärd'!C$23="Persontrafik",BA3,IF('Beskrivning av åtgärd'!$C$23="Godstrafik",AZ3,BB3)) -> 742032.9 | BG3: =IF('Beskrivning av åtgärd'!$C$23="Persontrafik",BD3,IF('Beskrivning av åtgärd'!$C$23="Godstrafik",BC3,BE3)) -> 742032.9
A4: =Länkar_TTA!A4 -> 1142 | B4: =Länkar_TTA!B4 -> 1806 | C4: =TEXT(Länkar_TTA!C4,0) -> 11421806 | D4: =Länkar_TTA!D4 -> Sjögestad södra | E4: =Länkar_TTA!E4 -> Mantorp | F4: =Länkar_TTA!F4 -> 505 | G4: =Länkar_TTA!G4 -> Södra stambanan | H4: =Länkar_TTA!H4 -> 2 | I4: =Länkar_TTA!I4 -> L4804 | J4: L4804 | T4: =+Kalkylsammanställning!G$2 -> 1 | U4: =Länkar_TTA!M4 -> Ja | V4: Ja | W4: =IFERROR(VLOOKUP(C4,Länkar_TTA!C:K,9,FALSE),0) -> 0 | X4: 0 | Y4: =+IFERROR(VLOOKUP(C4,LinjeLänk_Data!F:G,2,FALSE),"-") -> 3.756920099 | Z4: 3.756920099 | AB4: Södra stambanan | AD4: 505 | AF4: =+VLOOKUP(C4,Länkar_TTA!N:P,2,FALSE) -> 505 | AG4: 0 | AI4: - | AJ4: Sjögestad södra-Mantorp | AL4: =+SUMIF('Linjelänk JA_KAP'!$H:$H,$C4,'Linjelänk JA_KAP'!CZ:CZ) -> 19 | AM4: =+SUMIF('Linjelänk JA_KAP'!$H:$H,$C4,'Linjelänk JA_KAP'!DA:DA) -> 1 | AN4: =+SUMIF('Linjelänk JA_KAP'!$H:$H,$C4,'Linjelänk JA_KAP'!DB:DB) -> 47 | AO4: =+SUMIF('Linjelänk UA_KAP'!$H:$H,$C4,'Linjelänk UA_KAP'!CZ:CZ) -> 19 | AP4: =+SUMIF('Linjelänk UA_KAP'!$H:$H,$C4,'Linjelänk UA_KAP'!DA:DA) -> 1 | AQ4: =+SUMIF('Linjelänk UA_KAP'!$H:$H,$C4,'Linjelänk UA_KAP'!DB:DB) -> 47 | AS4: =+VLOOKUP($AJ4,Länkar_TTA!$Q:$T,2,FALSE) -> 19 | AT4: =+VLOOKUP($AJ4,Länkar_TTA!$Q:$T,3,FALSE) -> 1 | AU4: =+VLOOKUP($AJ4,Länkar_TTA!$Q:$T,4,FALSE) -> 47 | AX4: 80548.36693 | AY4: =VLOOKUP(I4,Bangods_linjedel!B:F,5,FALSE) -> 31.92 | AZ4: =VLOOKUP(I4,'Kap.ber JA'!DK:DN,2,FALSE)*AY4 -> 123690 | BA4: =VLOOKUP(I4,'Kap.ber JA'!$DK:$DN,3,FALSE)*AY4 -> 1368729.6 | BB4: =VLOOKUP(I4,'Kap.ber JA'!$DK:$DN,4,FALSE)*AY4 -> 1492419.6 | BC4: =VLOOKUP(J4,'Kap.ber UA'!$DJ:$DM,2,FALSE)*AY4 -> 123690 | BD4: =VLOOKUP(J4,'Kap.ber UA'!$DJ:$DM,3,FALSE)*AY4 -> 1368729.6 | BE4: =VLOOKUP(J4,'Kap.ber UA'!$DJ:$DM,4,FALSE)*AY4 -> 1492419.6 | BF4: =IF('Beskrivning av åtgärd'!C$23="Persontrafik",BA4,IF('Beskrivning av åtgärd'!$C$23="Godstrafik",AZ4,BB4)) -> 1492419.6 | BG4: =IF('Beskrivning av åtgärd'!$C$23="Persontrafik",BD4,IF('Beskrivning av åtgärd'!$C$23="Godstrafik",BC4,BE4)) -> 1492419.6
A5: =Länkar_TTA!A5 -> 1142 | B5: =Länkar_TTA!B5 -> 1906 | C5: =TEXT(Länkar_TTA!C5,0) -> 11421906 | D5: =Länkar_TTA!D5 -> Sjögestad södra | E5: =Länkar_TTA!E5 -> Vikingstad | F5: =Länkar_TTA!F5 -> 505 | G5: =Länkar_TTA!G5 -> Södra stambanan | H5: =Länkar_TTA!H5 -> 2 | I5: =Länkar_TTA!I5 -> L4804 | J5: L4804 | T5: =+Kalkylsammanställning!G$2 -> 1 | U5: =Länkar_TTA!M5 -> Ja | V5: Ja | W5: =IFERROR(VLOOKUP(C5,Länkar_TTA!C:K,9,FALSE),0) -> 0 | X5: 0 | Y5: =+IFERROR(VLOOKUP(C5,LinjeLänk_Data!F:G,2,FALSE),"-") -> 5.613070011 | Z5: 5.613070011 | AB5: Södra stambanan | AD5: 505 | AF5: =+VLOOKUP(C5,Länkar_TTA!N:P,2,FALSE) -> 505 | AG5: 0 | AI5: - | AJ5: Sjögestad södra-Vikingstad | AL5: =+SUMIF('Linjelänk JA_KAP'!$H:$H,$C5,'Linjelänk JA_KAP'!CZ:CZ) -> 19 | AM5: =+SUMIF('Linjelänk JA_KAP'!$H:$H,$C5,'Linjelänk JA_KAP'!DA:DA) -> 1 | AN5: =+SUMIF('Linjelänk JA_KAP'!$H:$H,$C5,'Linjelänk JA_KAP'!DB:DB) -> 47 | AO5: =+SUMIF('Linjelänk UA_KAP'!$H:$H,$C5,'Linjelänk UA_KAP'!CZ:CZ) -> 19 | AP5: =+SUMIF('Linjelänk UA_KAP'!$H:$H,$C5,'Linjelänk UA_KAP'!DA:DA) -> 1 | AQ5: =+SUMIF('Linjelänk UA_KAP'!$H:$H,$C5,'Linjelänk UA_KAP'!DB:DB) -> 47 | AS5: =+VLOOKUP($AJ5,Länkar_TTA!$Q:$T,2,FALSE) -> 19 | AT5: =+VLOOKUP($AJ5,Länkar_TTA!$Q:$T,3,FALSE) -> 1 | AU5: =+VLOOKUP($AJ5,Länkar_TTA!$Q:$T,4,FALSE) -> 47 | AX5: 120344.221 | AY5: =VLOOKUP(I5,Bangods_linjedel!B:F,5,FALSE) -> 31.92 | AZ5: =VLOOKUP(I5,'Kap.ber JA'!DK:DN,2,FALSE)*AY5 -> 123690 | BA5: =VLOOKUP(I5,'Kap.ber JA'!$DK:$DN,3,FALSE)*AY5 -> 1368729.6 | BB5: =VLOOKUP(I5,'Kap.ber JA'!$DK:$DN,4,FALSE)*AY5 -> 1492419.6 | BC5: =VLOOKUP(J5,'Kap.ber UA'!$DJ:$DM,2,FALSE)*AY5 -> 123690 | BD5: =VLOOKUP(J5,'Kap.ber UA'!$DJ:$DM,3,FALSE)*AY5 -> 1368729.6 | BE5: =VLOOKUP(J5,'Kap.ber UA'!$DJ:$DM,4,FALSE)*AY5 -> 1492419.6 | BF5: =IF('Beskrivning av åtgärd'!C$23="Persontrafik",BA5,IF('Beskrivning av åtgärd'!$C$23="Godstrafik",AZ5,BB5)) -> 1492419.6 | BG5: =IF('Beskrivning av åtgärd'!$C$23="Persontrafik",BD5,IF('Beskrivning av åtgärd'!$C$23="Godstrafik",BC5,BE5)) -> 1492419.6
A6: =Länkar_TTA!A6 -> 1300 | B6: =Länkar_TTA!B6 -> 1305 | C6: =TEXT(Länkar_TTA!C6,0) -> 13001305 | D6: =Länkar_TTA!D6 -> Enköping | E6: =Länkar_TTA!E6 -> Grillby | F6: =Länkar_TTA!F6 -> 444 | G6: =Länkar_TTA!G6 -> Mälarbanan | H6: =Länkar_TTA!H6 -> 16 | I6: =Länkar_TTA!I6 -> L2704 | J6: L2704 | T6: =+Kalkylsammanställning!G$2 -> 1 | U6: =Länkar_TTA!M6 -> Ja | V6: Ja | W6: =IFERROR(VLOOKUP(C6,Länkar_TTA!C:K,9,FALSE),0) -> 0 | X6: 0 | Y6: =+IFERROR(VLOOKUP(C6,LinjeLänk_Data!F:G,2,FALSE),"-") -> 8.380000114 | Z6: 8.380000114 | AB6: Mälarbanan | AD6: 444 | AF6: =+VLOOKUP(C6,Länkar_TTA!N:P,2,FALSE) -> 444 | AG6: 0 | AI6: - | AJ6: Enköping-Grillby | AL6: =+SUMIF('Linjelänk JA_KAP'!$H:$H,$C6,'Linjelänk JA_KAP'!CZ:CZ) -> 0 | AM6: =+SUMIF('Linjelänk JA_KAP'!$H:$H,$C6,'Linjelänk JA_KAP'!DA:DA) -> 29 | AN6: =+SUMIF('Linjelänk JA_KAP'!$H:$H,$C6,'Linjelänk JA_KAP'!DB:DB) -> 0 | AO6: =+SUMIF('Linjelänk UA_KAP'!$H:$H,$C6,'Linjelänk UA_KAP'!CZ:CZ) -> 0 | AP6: =+SUMIF('Linjelänk UA_KAP'!$H:$H,$C6,'Linjelänk UA_KAP'!DA:DA) -> 29 | AQ6: =+SUMIF('Linjelänk UA_KAP'!$H:$H,$C6,'Linjelänk UA_KAP'!DB:DB) -> 0 | AS6: =+VLOOKUP($AJ6,Länkar_TTA!$Q:$T,2,FALSE) -> 0 | AT6: =+VLOOKUP($AJ6,Länkar_TTA!$Q:$T,3,FALSE) -> 29 | AU6: =+VLOOKUP($AJ6,Länkar_TTA!$Q:$T,4,FALSE) -> 0 | AX6: 77766.40106 | AY6: =VLOOKUP(I6,Bangods_linjedel!B:F,5,FALSE) -> 56.56 | AZ6: =VLOOKUP(I6,'Kap.ber JA'!DK:DN,2,FALSE)*AY6 -> 63347.2 | BA6: =VLOOKUP(I6,'Kap.ber JA'!$DK:$DN,3,FALSE)*AY6 -> 1049753.6 | BB6: =VLOOKUP(I6,'Kap.ber JA'!$DK:$DN,4,FALSE)*AY6 -> 1113100.8 | BC6: =VLOOKUP(J6,'Kap.ber UA'!$DJ:$DM,2,FALSE)*AY6 -> 63347.2 | BD6: =VLOOKUP(J6,'Kap.ber UA'!$DJ:$DM,3,FALSE)*AY6 -> 1049753.6 | BE6: =VLOOKUP(J6,'Kap.ber UA'!$DJ:$DM,4,FALSE)*AY6 -> 1113100.8 | BF6: =IF('Beskrivning av åtgärd'!C$23="Persontrafik",BA6,IF('Beskrivning av åtgärd'!$C$23="Godstrafik",AZ6,BB6)) -> 1113100.8 | BG6: =IF('Beskrivning av åtgärd'!$C$23="Persontrafik",BD6,IF('Beskrivning av åtgärd'!$C$23="Godstrafik",BC6,BE6)) -> 1113100.8
A7: =Länkar_TTA!A7 -> 1300 | B7: =Länkar_TTA!B7 -> 5804 | C7: =TEXT(Länkar_TTA!C7,0) -> 13005804 | D7: =Länkar_TTA!D7 -> Enköping | E7: =Länkar_TTA!E7 -> Västerås Norra | F7: =Länkar_TTA!F7 -> 444 | G7: =Länkar_TTA!G7 -> Mälarbanan | H7: =Länkar_TTA!H7 -> 16 | I7: =Länkar_TTA!I7 -> L2704 | J7: L2704 | T7: =+Kalkylsammanställning!G$2 -> 1 | U7: =Länkar_TTA!M7 -> Ja | V7: Ja | W7: =IFERROR(VLOOKUP(C7,Länkar_TTA!C:K,9,FALSE),0) -> 0 | X7: 0 | Y7: =+IFERROR(VLOOKUP(C7,LinjeLänk_Data!F:G,2,FALSE),"-") -> 29.69000053 | Z7: 29.69000053 | AB7: Mälarbanan | AD7: 444 | AF7: =+VLOOKUP(C7,Länkar_TTA!N:P,2,FALSE) -> 444 | AG7: 0 | AI7: - | AJ7: Enköping-Västerås Norra | AL7: =+SUMIF('Linjelänk JA_KAP'!$H:$H,$C7,'Linjelänk JA_KAP'!CZ:CZ) -> 0 | AM7: =+SUMIF('Linjelänk JA_KAP'!$H:$H,$C7,'Linjelänk JA_KAP'!DA:DA) -> 29 | AN7: =+SUMIF('Linjelänk JA_KAP'!$H:$H,$C7,'Linjelänk JA_KAP'!DB:DB) -> 0 | AO7: =+SUMIF('Linjelänk UA_KAP'!$H:$H,$C7,'Linjelänk UA_KAP'!CZ:CZ) -> 0 | AP7: =+SUMIF('Linjelänk UA_KAP'!$H:$H,$C7,'Linjelänk UA_KAP'!DA:DA) -> 29 | AQ7: =+SUMIF('Linjelänk UA_KAP'!$H:$H,$C7,'Linjelänk UA_KAP'!DB:DB) -> 0 | AS7: =+VLOOKUP($AJ7,Länkar_TTA!$Q:$T,2,FALSE) -> 0 | AT7: =+VLOOKUP($AJ7,Länkar_TTA!$Q:$T,3,FALSE) -> 29 | AU7: =+VLOOKUP($AJ7,Länkar_TTA!$Q:$T,4,FALSE) -> 0 | AX7: 275523.205 | AY7: =VLOOKUP(I7,Bangods_linjedel!B:F,5,FALSE) -> 56.56 | AZ7: =VLOOKUP(I7,'Kap.ber JA'!DK:DN,2,FALSE)*AY7 -> 63347.2 | BA7: =VLOOKUP(I7,'Kap.ber JA'!$DK:$DN,3,FALSE)*AY7 -> 1049753.6 | BB7: =VLOOKUP(I7,'Kap.ber JA'!$DK:$DN,4,FALSE)*AY7 -> 1113100.8 | BC7: =VLOOKUP(J7,'Kap.ber UA'!$DJ:$DM,2,FALSE)*AY7 -> 63347.2 | BD7: =VLOOKUP(J7,'Kap.ber UA'!$DJ:$DM,3,FALSE)*AY7 -> 1049753.6 | BE7: =VLOOKUP(J7,'Kap.ber UA'!$DJ:$DM,4,FALSE)*AY7 -> 1113100.8 | BF7: =IF('Beskrivning av åtgärd'!C$23="Persontrafik",BA7,IF('Beskrivning av åtgärd'!$C$23="Godstrafik",AZ7,BB7)) -> 1113100.8 | BG7: =IF('Beskrivning av åtgärd'!$C$23="Persontrafik",BD7,IF('Beskrivning av åtgärd'!$C$23="Godstrafik",BC7,BE7)) -> 1113100.8
A8: =Länkar_TTA!A8 -> 1301 | B8: =Länkar_TTA!B8 -> 1305 | C8: =TEXT(Länkar_TTA!C8,0) -> 13011305 | D8: =Länkar_TTA!D8 -> Bålsta | E8: =Länkar_TTA!E8 -> Grillby | F8: =Länkar_TTA!F8 -> 444 | G8: =Länkar_TTA!G8 -> Mälarbanan | H8: =Länkar_TTA!H8 -> 16 | I8: =Länkar_TTA!I8 -> L2704 | J8: L2704 | T8: =+Kalkylsammanställning!G$2 -> 1 | U8: =Länkar_TTA!M8 -> Ja | V8: Ja | W8: =IFERROR(VLOOKUP(C8,Länkar_TTA!C:K,9,FALSE),0) -> 0 | X8: 0 | Y8: =+IFERROR(VLOOKUP(C8,LinjeLänk_Data!F:G,2,FALSE),"-") -> 18.48999977 | Z8: 18.48999977 | AB8: Mälarbanan | AD8: 444 | AF8: =+VLOOKUP(C8,Länkar_TTA!N:P,2,FALSE) -> 444 | AG8: 0 | AI8: - | AJ8: Bålsta-Grillby | AL8: =+SUMIF('Linjelänk JA_KAP'!$H:$H,$C8,'Linjelänk JA_KAP'!CZ:CZ) -> 0 | AM8: =+SUMIF('Linjelänk JA_KAP'!$H:$H,$C8,'Linjelänk JA_KAP'!DA:DA) -> 29 | AN8: =+SUMIF('Linjelänk JA_KAP'!$H:$H,$C8,'Linjelänk JA_KAP'!DB:DB) -> 0 | AO8: =+SUMIF('Linjelänk UA_KAP'!$H:$H,$C8,'Linjelänk UA_KAP'!CZ:CZ) -> 0 | AP8: =+SUMIF('Linjelänk UA_KAP'!$H:$H,$C8,'Linjelänk UA_KAP'!DA:DA) -> 29 | AQ8: =+SUMIF('Linjelänk UA_KAP'!$H:$H,$C8,'Linjelänk UA_KAP'!DB:DB) -> 0 | AS8: =+VLOOKUP($AJ8,Länkar_TTA!$Q:$T,2,FALSE) -> 0 | AT8: =+VLOOKUP($AJ8,Länkar_TTA!$Q:$T,3,FALSE) -> 29 | AU8: =+VLOOKUP($AJ8,Länkar_TTA!$Q:$T,4,FALSE) -> 0 | AX8: 171587.1979 | AY8: =VLOOKUP(I8,Bangods_linjedel!B:F,5,FALSE) -> 56.56 | AZ8: =VLOOKUP(I8,'Kap.ber JA'!DK:DN,2,FALSE)*AY8 -> 63347.2 | BA8: =VLOOKUP(I8,'Kap.ber JA'!$DK:$DN,3,FALSE)*AY8 -> 1049753.6 | BB8: =VLOOKUP(I8,'Kap.ber JA'!$DK:$DN,4,FALSE)*AY8 -> 1113100.8 | BC8: =VLOOKUP(J8,'Kap.ber UA'!$DJ:$DM,2,FALSE)*AY8 -> 63347.2 | BD8: =VLOOKUP(J8,'Kap.ber UA'!$DJ:$DM,3,FALSE)*AY8 -> 1049753.6 | BE8: =VLOOKUP(J8,'Kap.ber UA'!$DJ:$DM,4,FALSE)*AY8 -> 1113100.8 | BF8: =IF('Beskrivning av åtgärd'!C$23="Persontrafik",BA8,IF('Beskrivning av åtgärd'!$C$23="Godstrafik",AZ8,BB8)) -> 1113100.8 | BG8: =IF('Beskrivning av åtgärd'!$C$23="Persontrafik",BD8,IF('Beskrivning av åtgärd'!$C$23="Godstrafik",BC8,BE8)) -> 1113100.8
A9: =Länkar_TTA!A9 -> 1301 | B9: =Länkar_TTA!B9 -> 639071 | C9: =TEXT(Länkar_TTA!C9,0) -> 1301639071 | D9: =Länkar_TTA!D9 -> Bålsta | E9: =Länkar_TTA!E9 -> Bro | F9: =Länkar_TTA!F9 -> 444 | G9: =Länkar_TTA!G9 -> Mälarbanan | H9: =Länkar_TTA!H9 -> 16 | I9: =Länkar_TTA!I9 -> L2703 | J9: L2703 | T9: =+Kalkylsammanställning!G$2 -> 1 | U9: =Länkar_TTA!M9 -> Ja | V9: Ja | W9: =IFERROR(VLOOKUP(C9,Länkar_TTA!C:K,9,FALSE),0) -> 0 | X9: 0 | Y9: =+IFERROR(VLOOKUP(C9,LinjeLänk_Data!F:G,2,FALSE),"-") -> 8.869999886 | Z9: 8.869999886 | AB9: Mälarbanan | AD9: 444 | AF9: =+VLOOKUP(C9,Länkar_TTA!N:P,2,FALSE) -> 444 | AG9: 0 | AI9: - | AJ9: Bålsta-Bro | AL9: =+SUMIF('Linjelänk JA_KAP'!$H:$H,$C9,'Linjelänk JA_KAP'!CZ:CZ) -> 0 | AM9: =+SUMIF('Linjelänk JA_KAP'!$H:$H,$C9,'Linjelänk JA_KAP'!DA:DA) -> 29 | AN9: =+SUMIF('Linjelänk JA_KAP'!$H:$H,$C9,'Linjelänk JA_KAP'!DB:DB) -> 42 | AO9: =+SUMIF('Linjelänk UA_KAP'!$H:$H,$C9,'Linjelänk UA_KAP'!CZ:CZ) -> 0 | AP9: =+SUMIF('Linjelänk UA_KAP'!$H:$H,$C9,'Linjelänk UA_KAP'!DA:DA) -> 29 | AQ9: =+SUMIF('Linjelänk UA_KAP'!$H:$H,$C9,'Linjelänk UA_KAP'!DB:DB) -> 42 | AS9: =+VLOOKUP($AJ9,Länkar_TTA!$Q:$T,2,FALSE) -> 0 | AT9: =+VLOOKUP($AJ9,Länkar_TTA!$Q:$T,3,FALSE) -> 29 | AU9: =+VLOOKUP($AJ9,Länkar_TTA!$Q:$T,4,FALSE) -> 42 | AX9: 201526.3974 | AY9: =VLOOKUP(I9,Bangods_linjedel!B:F,5,FALSE) -> 17.2 | AZ9: =VLOOKUP(I9,'Kap.ber JA'!DK:DN,2,FALSE)*AY9 -> 1290 | BA9: =VLOOKUP(I9,'Kap.ber JA'!$DK:$DN,3,FALSE)*AY9 -> 781568 | BB9: =VLOOKUP(I9,'Kap.ber JA'!$DK:$DN,4,FALSE)*AY9 -> 782858 | BC9: =VLOOKUP(J9,'Kap.ber UA'!$DJ:$DM,2,FALSE)*AY9 -> 1290 | BD9: =VLOOKUP(J9,'Kap.ber UA'!$DJ:$DM,3,FALSE)*AY9 -> 781568 | BE9: =VLOOKUP(J9,'Kap.ber UA'!$DJ:$DM,4,FALSE)*AY9 -> 782858 | BF9: =IF('Beskrivning av åtgärd'!C$23="Persontrafik",BA9,IF('Beskrivning av åtgärd'!$C$23="Godstrafik",AZ9,BB9)) -> 782858 | BG9: =IF('Beskrivning av åtgärd'!$C$23="Persontrafik",BD9,IF('Beskrivning av åtgärd'!$C$23="Godstrafik",BC9,BE9)) -> 782858
A10: =Länkar_TTA!A10 -> 1305 | B10: =Länkar_TTA!B10 -> 1300 | C10: =TEXT(Länkar_TTA!C10,0) -> 13051300 | D10: =Länkar_TTA!D10 -> Grillby | E10: =Länkar_TTA!E10 -> Enköping | F10: =Länkar_TTA!F10 -> 444 | G10: =Länkar_TTA!G10 -> Mälarbanan | H10: =Länkar_TTA!H10 -> 16 | I10: =Länkar_TTA!I10 -> L2704 | J10: L2704 | T10: =+Kalkylsammanställning!G$2 -> 1 | U10: =Länkar_TTA!M10 -> Ja | V10: Ja | W10: =IFERROR(VLOOKUP(C10,Länkar_TTA!C:K,9,FALSE),0) -> 0 | X10: 0 | Y10: =+IFERROR(VLOOKUP(C10,LinjeLänk_Data!F:G,2,FALSE),"-") -> 8.380000114 | Z10: 8.380000114 | AB10: Mälarbanan | AD10: 444 | AF10: =+VLOOKUP(C10,Länkar_TTA!N:P,2,FALSE) -> 444 | AG10: 0 | AI10: - | AJ10: Grillby-Enköping | AL10: =+SUMIF('Linjelänk JA_KAP'!$H:$H,$C10,'Linjelänk JA_KAP'!CZ:CZ) -> 0 | AM10: =+SUMIF('Linjelänk JA_KAP'!$H:$H,$C10,'Linjelänk JA_KAP'!DA:DA) -> 29 | AN10: =+SUMIF('Linjelänk JA_KAP'!$H:$H,$C10,'Linjelänk JA_KAP'!DB:DB) -> 0 | AO10: =+SUMIF('Linjelänk UA_KAP'!$H:$H,$C10,'Linjelänk UA_KAP'!CZ:CZ) -> 0 | AP10: =+SUMIF('Linjelänk UA_KAP'!$H:$H,$C10,'Linjelänk UA_KAP'!DA:DA) -> 29 | AQ10: =+SUMIF('Linjelänk UA_KAP'!$H:$H,$C10,'Linjelänk UA_KAP'!DB:DB) -> 0 | AS10: =+VLOOKUP($AJ10,Länkar_TTA!$Q:$T,2,FALSE) -> 0 | AT10: =+VLOOKUP($AJ10,Länkar_TTA!$Q:$T,3,FALSE) -> 29 | AU10: =+VLOOKUP($AJ10,Länkar_TTA!$Q:$T,4,FALSE) -> 0 | AX10: 77766.40106 | AY10: =VLOOKUP(I10,Bangods_linjedel!B:F,5,FALSE) -> 56.56 | AZ10: =VLOOKUP(I10,'Kap.ber JA'!DK:DN,2,FALSE)*AY10 -> 63347.2 | BA10: =VLOOKUP(I10,'Kap.ber JA'!$DK:$DN,3,FALSE)*AY10 -> 1049753.6 | BB10: =VLOOKUP(I10,'Kap.ber JA'!$DK:$DN,4,FALSE)*AY10 -> 1113100.8 | BC10: =VLOOKUP(J10,'Kap.ber UA'!$DJ:$DM,2,FALSE)*AY10 -> 63347.2 | BD10: =VLOOKUP(J10,'Kap.ber UA'!$DJ:$DM,3,FALSE)*AY10 -> 1049753.6 | BE10: =VLOOKUP(J10,'Kap.ber UA'!$DJ:$DM,4,FALSE)*AY10 -> 1113100.8 | BF10: =IF('Beskrivning av åtgärd'!C$23="Persontrafik",BA10,IF('Beskrivning av åtgärd'!$C$23="Godstrafik",AZ10,BB10)) -> 1113100.8 | BG10: =IF('Beskrivning av åtgärd'!$C$23="Persontrafik",BD10,IF('Beskrivning av åtgärd'!$C$23="Godstrafik",BC10,BE10)) -> 1113100.8
A11: =Länkar_TTA!A11 -> 1305 | B11: =Länkar_TTA!B11 -> 1301 | C11: =TEXT(Länkar_TTA!C11,0) -> 13051301 | D11: =Länkar_TTA!D11 -> Grillby | E11: =Länkar_TTA!E11 -> Bålsta | F11: =Länkar_TTA!F11 -> 444 | G11: =Länkar_TTA!G11 -> Mälarbanan | H11: =Länkar_TTA!H11 -> 16 | I11: =Länkar_TTA!I11 -> L2704 | J11: L2704 | T11: =+Kalkylsammanställning!G$2 -> 1 | U11: =Länkar_TTA!M11 -> Ja | V11: Ja | W11: =IFERROR(VLOOKUP(C11,Länkar_TTA!C:K,9,FALSE),0) -> 0 | X11: 0 | Y11: =+IFERROR(VLOOKUP(C11,LinjeLänk_Data!F:G,2,FALSE),"-") -> 18.48999977 | Z11: 18.48999977 | AB11: Mälarbanan | AD11: 444 | AF11: =+VLOOKUP(C11,Länkar_TTA!N:P,2,FALSE) -> 444 | AG11: 0 | AI11: - | AJ11: Grillby-Bålsta | AL11: =+SUMIF('Linjelänk JA_KAP'!$H:$H,$C11,'Linjelänk JA_KAP'!CZ:CZ) -> 0 | AM11: =+SUMIF('Linjelänk JA_KAP'!$H:$H,$C11,'Linjelänk JA_KAP'!DA:DA) -> 29 | AN11: =+SUMIF('Linjelänk JA_KAP'!$H:$H,$C11,'Linjelänk JA_KAP'!DB:DB) -> 0 | AO11: =+SUMIF('Linjelänk UA_KAP'!$H:$H,$C11,'Linjelänk UA_KAP'!CZ:CZ) -> 0 | AP11: =+SUMIF('Linjelänk UA_KAP'!$H:$H,$C11,'Linjelänk UA_KAP'!DA:DA) -> 29 | AQ11: =+SUMIF('Linjelänk UA_KAP'!$H:$H,$C11,'Linjelänk UA_KAP'!DB:DB) -> 0 | AS11: =+VLOOKUP($AJ11,Länkar_TTA!$Q:$T,2,FALSE) -> 0 | AT11: =+VLOOKUP($AJ11,Länkar_TTA!$Q:$T,3,FALSE) -> 29 | AU11: =+VLOOKUP($AJ11,Länkar_TTA!$Q:$T,4,FALSE) -> 0 | AX11: 171587.1979 | AY11: =VLOOKUP(I11,Bangods_linjedel!B:F,5,FALSE) -> 56.56 | AZ11: =VLOOKUP(I11,'Kap.ber JA'!DK:DN,2,FALSE)*AY11 -> 63347.2 | BA11: =VLOOKUP(I11,'Kap.ber JA'!$DK:$DN,3,FALSE)*AY11 -> 1049753.6 | BB11: =VLOOKUP(I11,'Kap.ber JA'!$DK:$DN,4,FALSE)*AY11 -> 1113100.8 | BC11: =VLOOKUP(J11,'Kap.ber UA'!$DJ:$DM,2,FALSE)*AY11 -> 63347.2 | BD11: =VLOOKUP(J11,'Kap.ber UA'!$DJ:$DM,3,FALSE)*AY11 -> 1049753.6 | BE11: =VLOOKUP(J11,'Kap.ber UA'!$DJ:$DM,4,FALSE)*AY11 -> 1113100.8 | BF11: =IF('Beskrivning av åtgärd'!C$23="Persontrafik",BA11,IF('Beskrivning av åtgärd'!$C$23="Godstrafik",AZ11,BB11)) -> 1113100.8 | BG11: =IF('Beskrivning av åtgärd'!$C$23="Persontrafik",BD11,IF('Beskrivning av åtgärd'!$C$23="Godstrafik",BC11,BE11)) -> 1113100.8
A12: =Länkar_TTA!A12 -> 1400 | B12: =Länkar_TTA!B12 -> 1402 | C12: =TEXT(Länkar_TTA!C12,0) -> 14001402 | D12: =Länkar_TTA!D12 -> Uppsala Central | E12: =Länkar_TTA!E12 -> Uppsala norra utfarten | F12: =Länkar_TTA!F12 -> 434 | G12: =Länkar_TTA!G12 -> Ostkustbanan | H12: =Länkar_TTA!H12 -> 5 | I12: =Länkar_TTA!I12 -> L1412 | J12: L1412 | T12: =+Kalkylsammanställning!G$2 -> 1 | U12: =Länkar_TTA!M12 -> Ja | V12: Ja | W12: =IFERROR(VLOOKUP(C12,Länkar_TTA!C:K,9,FALSE),0) -> 0 | X12: 0 | Y12: =+IFERROR(VLOOKUP(C12,LinjeLänk_Data!F:G,2,FALSE),"-") -> 0.9512490034 | Z12: 0.9512490034 | AB12: Ostkustbanan | AD12: 434 | AF12: =+VLOOKUP(C12,Länkar_TTA!N:P,2,FALSE) -> 434 | AG12: 0 | AI12: - | AJ12: Uppsala Central-Uppsala norra utfarten | AL12: =+SUMIF('Linjelänk JA_KAP'!$H:$H,$C12,'Linjelänk JA_KAP'!CZ:CZ) -> 22 | AM12: =+SUMIF('Linjelänk JA_KAP'!$H:$H,$C12,'Linjelänk JA_KAP'!DA:DA) -> 30 | AN12: =+SUMIF('Linjelänk JA_KAP'!$H:$H,$C12,'Linjelänk JA_KAP'!DB:DB) -> 39 | AO12: =+SUMIF('Linjelänk UA_KAP'!$H:$H,$C12,'Linjelänk UA_KAP'!CZ:CZ) -> 22 | AP12: =+SUMIF('Linjelänk UA_KAP'!$H:$H,$C12,'Linjelänk UA_KAP'!DA:DA) -> 30 | AQ12: =+SUMIF('Linjelänk UA_KAP'!$H:$H,$C12,'Linjelänk UA_KAP'!DB:DB) -> 39 | AS12: =+VLOOKUP($AJ12,Länkar_TTA!$Q:$T,2,FALSE) -> 22 | AT12: =+VLOOKUP($AJ12,Länkar_TTA!$Q:$T,3,FALSE) -> 30 | AU12: =+VLOOKUP($AJ12,Länkar_TTA!$Q:$T,4,FALSE) -> 39 | AX12: 27700.37098 | AY12: =VLOOKUP(I12,Bangods_linjedel!B:F,5,FALSE) -> 0.95 | AZ12: =VLOOKUP(I12,'Kap.ber JA'!DK:DN,2,FALSE)*AY12 -> 2712.25 | BA12: =VLOOKUP(I12,'Kap.ber JA'!$DK:$DN,3,FALSE)*AY12 -> 55328 | BB12: =VLOOKUP(I12,'Kap.ber JA'!$DK:$DN,4,FALSE)*AY12 -> 58040.25 | BC12: =VLOOKUP(J12,'Kap.ber UA'!$DJ:$DM,2,FALSE)*AY12 -> 2712.25 | BD12: =VLOOKUP(J12,'Kap.ber UA'!$DJ:$DM,3,FALSE)*AY12 -> 55328 | BE12: =VLOOKUP(J12,'Kap.ber UA'!$DJ:$DM,4,FALSE)*AY12 -> 58040.25 | BF12: =IF('Beskrivning av åtgärd'!C$23="Persontrafik",BA12,IF('Beskrivning av åtgärd'!$C$23="Godstrafik",AZ12,BB12)) -> 58040.25 | BG12: =IF('Beskrivning av åtgärd'!$C$23="Persontrafik",BD12,IF('Beskrivning av åtgärd'!$C$23="Godstrafik",BC12,BE12)) -> 58040.25
A13: =Länkar_TTA!A13 -> 1400 | B13: =Länkar_TTA!B13 -> 1408 | C13: =TEXT(Länkar_TTA!C13,0) -> 14001408 | D13: =Länkar_TTA!D13 -> Uppsala Central | E13: =Länkar_TTA!E13 -> Säby | F13: =Länkar_TTA!F13 -> 430 | G13: =Länkar_TTA!G13 -> Ostkustbanan | H13: =Länkar_TTA!H13 -> 5 | I13: =Länkar_TTA!I13 -> L1411 | J13: L1411 | T13: =+Kalkylsammanställning!G$2 -> 1 | U13: =Länkar_TTA!M13 -> Ja | V13: Ja | W13: =IFERROR(VLOOKUP(C13,Länkar_TTA!C:K,9,FALSE),0) -> 0 | X13: 0 | Y13: =+IFERROR(VLOOKUP(C13,LinjeLänk_Data!F:G,2,FALSE),"-") -> 4.420119762 | Z13: 4.420119762 | AB13: Ostkustbanan | AD13: 430 | AF13: =+VLOOKUP(C13,Länkar_TTA!N:P,2,FALSE) -> 430 | AG13: 0 | AI13: - | AJ13: Uppsala Central-Säby | AL13: =+SUMIF('Linjelänk JA_KAP'!$H:$H,$C13,'Linjelänk JA_KAP'!CZ:CZ) -> 22 | AM13: =+SUMIF('Linjelänk JA_KAP'!$H:$H,$C13,'Linjelänk JA_KAP'!DA:DA) -> 54 | AN13: =+SUMIF('Linjelänk JA_KAP'!$H:$H,$C13,'Linjelänk JA_KAP'!DB:DB) -> 41 | AO13: =+SUMIF('Linjelänk UA_KAP'!$H:$H,$C13,'Linjelänk UA_KAP'!CZ:CZ) -> 22 | AP13: =+SUMIF('Linjelänk UA_KAP'!$H:$H,$C13,'Linjelänk UA_KAP'!DA:DA) -> 54 | AQ13: =+SUMIF('Linjelänk UA_KAP'!$H:$H,$C13,'Linjelänk UA_KAP'!DB:DB) -> 41 | AS13: =+VLOOKUP($AJ13,Länkar_TTA!$Q:$T,2,FALSE) -> 22 | AT13: =+VLOOKUP($AJ13,Länkar_TTA!$Q:$T,3,FALSE) -> 54 | AU13: =+VLOOKUP($AJ13,Länkar_TTA!$Q:$T,4,FALSE) -> 41 | AX13: 165489.2839 | AY13: =VLOOKUP(I13,Bangods_linjedel!B:F,5,FALSE) -> 20.79 | AZ13: =VLOOKUP(I13,'Kap.ber JA'!DK:DN,2,FALSE)*AY13 -> 59355.45 | BA13: =VLOOKUP(I13,'Kap.ber JA'!$DK:$DN,3,FALSE)*AY13 -> 1556755.2 | BB13: =VLOOKUP(I13,'Kap.ber JA'!$DK:$DN,4,FALSE)*AY13 -> 1616110.65 | BC13: =VLOOKUP(J13,'Kap.ber UA'!$DJ:$DM,2,FALSE)*AY13 -> 59355.45 | BD13: =VLOOKUP(J13,'Kap.ber UA'!$DJ:$DM,3,FALSE)*AY13 -> 1556755.2 | BE13: =VLOOKUP(J13,'Kap.ber UA'!$DJ:$DM,4,FALSE)*AY13 -> 1616110.65 | BF13: =IF('Beskrivning av åtgärd'!C$23="Persontrafik",BA13,IF('Beskrivning av åtgärd'!$C$23="Godstrafik",AZ13,BB13)) -> 1616110.65 | BG13: =IF('Beskrivning av åtgärd'!$C$23="Persontrafik",BD13,IF('Beskrivning av åtgärd'!$C$23="Godstrafik",BC13,BE13)) -> 1616110.65
A14: =Länkar_TTA!A14 -> 1401 | B14: =Länkar_TTA!B14 -> 1409 | C14: =TEXT(Länkar_TTA!C14,0) -> 14011409 | D14: =Länkar_TTA!D14 -> Knivsta | E14: =Länkar_TTA!E14 -> Alsike | F14: =Länkar_TTA!F14 -> 430 | G14: =Länkar_TTA!G14 -> Ostkustbanan | H14: =Länkar_TTA!H14 -> 5 | I14: =Länkar_TTA!I14 -> L1411 | J14: L1411 | T14: =+Kalkylsammanställning!G$2 -> 1 | U14: =Länkar_TTA!M14 -> Ja | V14: Ja | W14: =IFERROR(VLOOKUP(C14,Länkar_TTA!C:K,9,FALSE),0) -> 0 | X14: 0 | Y14: =+IFERROR(VLOOKUP(C14,LinjeLänk_Data!F:G,2,FALSE),"-") -> 4.196800232 | Z14: 4.196800232 | AB14: Ostkustbanan | AD14: 430 | AF14: =+VLOOKUP(C14,Länkar_TTA!N:P,2,FALSE) -> 430 | AG14: 0 | AI14: - | AJ14: Knivsta-Alsike | AL14: =+SUMIF('Linjelänk JA_KAP'!$H:$H,$C14,'Linjelänk JA_KAP'!CZ:CZ) -> 22 | AM14: =+SUMIF('Linjelänk JA_KAP'!$H:$H,$C14,'Linjelänk JA_KAP'!DA:DA) -> 54 | AN14: =+SUMIF('Linjelänk JA_KAP'!$H:$H,$C14,'Linjelänk JA_KAP'!DB:DB) -> 41 | AO14: =+SUMIF('Linjelänk UA_KAP'!$H:$H,$C14,'Linjelänk UA_KAP'!CZ:CZ) -> 22 | AP14: =+SUMIF('Linjelänk UA_KAP'!$H:$H,$C14,'Linjelänk UA_KAP'!DA:DA) -> 54 | AQ14: =+SUMIF('Linjelänk UA_KAP'!$H:$H,$C14,'Linjelänk UA_KAP'!DB:DB) -> 41 | AS14: =+VLOOKUP($AJ14,Länkar_TTA!$Q:$T,2,FALSE) -> 22 | AT14: =+VLOOKUP($AJ14,Länkar_TTA!$Q:$T,3,FALSE) -> 54 | AU14: =+VLOOKUP($AJ14,Länkar_TTA!$Q:$T,4,FALSE) -> 41 | AX14: 157128.2007 | AY14: =VLOOKUP(I14,Bangods_linjedel!B:F,5,FALSE) -> 20.79 | AZ14: =VLOOKUP(I14,'Kap.ber JA'!DK:DN,2,FALSE)*AY14 -> 59355.45 | BA14: =VLOOKUP(I14,'Kap.ber JA'!$DK:$DN,3,FALSE)*AY14 -> 1556755.2 | BB14: =VLOOKUP(I14,'Kap.ber JA'!$DK:$DN,4,FALSE)*AY14 -> 1616110.65 | BC14: =VLOOKUP(J14,'Kap.ber UA'!$DJ:$DM,2,FALSE)*AY14 -> 59355.45 | BD14: =VLOOKUP(J14,'Kap.ber UA'!$DJ:$DM,3,FALSE)*AY14 -> 1556755.2 | BE14: =VLOOKUP(J14,'Kap.ber UA'!$DJ:$DM,4,FALSE)*AY14 -> 1616110.65 | BF14: =IF('Beskrivning av åtgärd'!C$23="Persontrafik",BA14,IF('Beskrivning av åtgärd'!$C$23="Godstrafik",AZ14,BB14)) -> 1616110.65 | BG14: =IF('Beskrivning av åtgärd'!$C$23="Persontrafik",BD14,IF('Beskrivning av åtgärd'!$C$23="Godstrafik",BC14,BE14)) -> 1616110.65
A15: =Länkar_TTA!A15 -> 1401 | B15: =Länkar_TTA!B15 -> 9372 | C15: =TEXT(Länkar_TTA!C15,0) -> 14019372 | D15: =Länkar_TTA!D15 -> Knivsta | E15: =Länkar_TTA!E15 -> Myrbacken | F15: =Länkar_TTA!F15 -> 430 | G15: =Länkar_TTA!G15 -> Ostkustbanan | H15: =Länkar_TTA!H15 -> 5 | I15: =Länkar_TTA!I15 -> L1411 | J15: L1411 | T15: =+Kalkylsammanställning!G$2 -> 1 | U15: =Länkar_TTA!M15 -> Ja | V15: Ja | W15: =IFERROR(VLOOKUP(C15,Länkar_TTA!C:K,9,FALSE),0) -> 0 | X15: 0 | Y15: =+IFERROR(VLOOKUP(C15,LinjeLänk_Data!F:G,2,FALSE),"-") -> 3.700000048 | Z15: 3.700000048 | AB15: Ostkustbanan | AD15: 430 | AF15: =+VLOOKUP(C15,Länkar_TTA!N:P,2,FALSE) -> 430 | AG15: 0 | AI15: - | AJ15: Knivsta-Myrbacken | AL15: =+SUMIF('Linjelänk JA_KAP'!$H:$H,$C15,'Linjelänk JA_KAP'!CZ:CZ) -> 22 | AM15: =+SUMIF('Linjelänk JA_KAP'!$H:$H,$C15,'Linjelänk JA_KAP'!DA:DA) -> 54 | AN15: =+SUMIF('Linjelänk JA_KAP'!$H:$H,$C15,'Linjelänk JA_KAP'!DB:DB) -> 41 | AO15: =+SUMIF('Linjelänk UA_KAP'!$H:$H,$C15,'Linjelänk UA_KAP'!CZ:CZ) -> 22 | AP15: =+SUMIF('Linjelänk UA_KAP'!$H:$H,$C15,'Linjelänk UA_KAP'!DA:DA) -> 54 | AQ15: =+SUMIF('Linjelänk UA_KAP'!$H:$H,$C15,'Linjelänk UA_KAP'!DB:DB) -> 41 | AS15: =+VLOOKUP($AJ15,Länkar_TTA!$Q:$T,2,FALSE) -> 22 | AT15: =+VLOOKUP($AJ15,Länkar_TTA!$Q:$T,3,FALSE) -> 54 | AU15: =+VLOOKUP($AJ15,Länkar_TTA!$Q:$T,4,FALSE) -> 41 | AX15: 138528.0018 | AY15: =VLOOKUP(I15,Bangods_linjedel!B:F,5,FALSE) -> 20.79 | AZ15: =VLOOKUP(I15,'Kap.ber JA'!DK:DN,2,FALSE)*AY15 -> 59355.45 | BA15: =VLOOKUP(I15,'Kap.ber JA'!$DK:$DN,3,FALSE)*AY15 -> 1556755.2 | BB15: =VLOOKUP(I15,'Kap.ber JA'!$DK:$DN,4,FALSE)*AY15 -> 1616110.65 | BC15: =VLOOKUP(J15,'Kap.ber UA'!$DJ:$DM,2,FALSE)*AY15 -> 59355.45 | BD15: =VLOOKUP(J15,'Kap.ber UA'!$DJ:$DM,3,FALSE)*AY15 -> 1556755.2 | BE15: =VLOOKUP(J15,'Kap.ber UA'!$DJ:$DM,4,FALSE)*AY15 -> 1616110.65 | BF15: =IF('Beskrivning av åtgärd'!C$23="Persontrafik",BA15,IF('Beskrivning av åtgärd'!$C$23="Godstrafik",AZ15,BB15)) -> 1616110.65 | BG15: =IF('Beskrivning av åtgärd'!$C$23="Persontrafik",BD15,IF('Beskrivning av åtgärd'!$C$23="Godstrafik",BC15,BE15)) -> 1616110.65
A16: =Länkar_TTA!A16 -> 1402 | B16: =Länkar_TTA!B16 -> 1400 | C16: =TEXT(Länkar_TTA!C16,0) -> 14021400 | D16: =Länkar_TTA!D16 -> Uppsala norra utfarten | E16: =Länkar_TTA!E16 -> Uppsala Central | F16: =Länkar_TTA!F16 -> 434 | G16: =Länkar_TTA!G16 -> Ostkustbanan | H16: =Länkar_TTA!H16 -> 5 | I16: =Länkar_TTA!I16 -> L1412 | J16: L1412 | T16: =+Kalkylsammanställning!G$2 -> 1 | U16: =Länkar_TTA!M16 -> Ja | V16: Ja | W16: =IFERROR(VLOOKUP(C16,Länkar_TTA!C:K,9,FALSE),0) -> 0 | X16: 0 | Y16: =+IFERROR(VLOOKUP(C16,LinjeLänk_Data!F:G,2,FALSE),"-") -> 0.9512490034 | Z16: 0.9512490034 | AB16: Ostkustbanan | AD16: 434 | AF16: =+VLOOKUP(C16,Länkar_TTA!N:P,2,FALSE) -> 434 | AG16: 0 | AI16: - | AJ16: Uppsala norra utfarten-Uppsala Central | AL16: =+SUMIF('Linjelänk JA_KAP'!$H:$H,$C16,'Linjelänk JA_KAP'!CZ:CZ) -> 22 | AM16: =+SUMIF('Linjelänk JA_KAP'!$H:$H,$C16,'Linjelänk JA_KAP'!DA:DA) -> 30 | AN16: =+SUMIF('Linjelänk JA_KAP'!$H:$H,$C16,'Linjelänk JA_KAP'!DB:DB) -> 39 | AO16: =+SUMIF('Linjelänk UA_KAP'!$H:$H,$C16,'Linjelänk UA_KAP'!CZ:CZ) -> 22 | AP16: =+SUMIF('Linjelänk UA_KAP'!$H:$H,$C16,'Linjelänk UA_KAP'!DA:DA) -> 30 | AQ16: =+SUMIF('Linjelänk UA_KAP'!$H:$H,$C16,'Linjelänk UA_KAP'!DB:DB) -> 39 | AS16: =+VLOOKUP($AJ16,Länkar_TTA!$Q:$T,2,FALSE) -> 22 | AT16: =+VLOOKUP($AJ16,Länkar_TTA!$Q:$T,3,FALSE) -> 30 | AU16: =+VLOOKUP($AJ16,Länkar_TTA!$Q:$T,4,FALSE) -> 39 | AX16: 27700.37098 | AY16: =VLOOKUP(I16,Bangods_linjedel!B:F,5,FALSE) -> 0.95 | AZ16: =VLOOKUP(I16,'Kap.ber JA'!DK:DN,2,FALSE)*AY16 -> 2712.25 | BA16: =VLOOKUP(I16,'Kap.ber JA'!$DK:$DN,3,FALSE)*AY16 -> 55328 | BB16: =VLOOKUP(I16,'Kap.ber JA'!$DK:$DN,4,FALSE)*AY16 -> 58040.25 | BC16: =VLOOKUP(J16,'Kap.ber UA'!$DJ:$DM,2,FALSE)*AY16 -> 2712.25 | BD16: =VLOOKUP(J16,'Kap.ber UA'!$DJ:$DM,3,FALSE)*AY16 -> 55328 | BE16: =VLOOKUP(J16,'Kap.ber UA'!$DJ:$DM,4,FALSE)*AY16 -> 58040.25 | BF16: =IF('Beskrivning av åtgärd'!C$23="Persontrafik",BA16,IF('Beskrivning av åtgärd'!$C$23="Godstrafik",AZ16,BB16)) -> 58040.25 | BG16: =IF('Beskrivning av åtgärd'!$C$23="Persontrafik",BD16,IF('Beskrivning av åtgärd'!$C$23="Godstrafik",BC16,BE16)) -> 58040.25
A17: =Länkar_TTA!A17 -> 1402 | B17: =Länkar_TTA!B17 -> 1406 | C17: =TEXT(Länkar_TTA!C17,0) -> 14021406 | D17: =Länkar_TTA!D17 -> Uppsala norra utfarten | E17: =Länkar_TTA!E17 -> Uppsala Norra | F17: =Länkar_TTA!F17 -> 431 | G17: =Länkar_TTA!G17 -> Dalabanan | H17: =Länkar_TTA!H17 -> 6 | I17: =Länkar_TTA!I17 -> L2000 | J17: L2000 | T17: =+Kalkylsammanställning!G$2 -> 1 | U17: =Länkar_TTA!M17 -> Ja | V17: Ja | W17: =IFERROR(VLOOKUP(C17,Länkar_TTA!C:K,9,FALSE),0) -> 0 | X17: 0 | Y17: =+IFERROR(VLOOKUP(C17,LinjeLänk_Data!F:G,2,FALSE),"-") -> 1.435119987 | Z17: 1.435119987 | AB17: Dalabanan | AD17: 431 | AF17: =+VLOOKUP(C17,Länkar_TTA!N:P,2,FALSE) -> 431 | AG17: 0 | AI17: - | AJ17: Uppsala norra utfarten-Uppsala Norra | AL17: =+SUMIF('Linjelänk JA_KAP'!$H:$H,$C17,'Linjelänk JA_KAP'!CZ:CZ) -> 8 | AM17: =+SUMIF('Linjelänk JA_KAP'!$H:$H,$C17,'Linjelänk JA_KAP'!DA:DA) -> 16 | AN17: =+SUMIF('Linjelänk JA_KAP'!$H:$H,$C17,'Linjelänk JA_KAP'!DB:DB) -> 0 | AO17: =+SUMIF('Linjelänk UA_KAP'!$H:$H,$C17,'Linjelänk UA_KAP'!CZ:CZ) -> 8 | AP17: =+SUMIF('Linjelänk UA_KAP'!$H:$H,$C17,'Linjelänk UA_KAP'!DA:DA) -> 16 | AQ17: =+SUMIF('Linjelänk UA_KAP'!$H:$H,$C17,'Linjelänk UA_KAP'!DB:DB) -> 0 | AS17: =+VLOOKUP($AJ17,Länkar_TTA!$Q:$T,2,FALSE) -> 8 | AT17: =+VLOOKUP($AJ17,Länkar_TTA!$Q:$T,3,FALSE) -> 16 | AU17: =+VLOOKUP($AJ17,Länkar_TTA!$Q:$T,4,FALSE) -> 0 | AX17: 11021.7215 | AY17: =VLOOKUP(I17,Bangods_linjedel!B:F,5,FALSE) -> 61.35 | AZ17: =VLOOKUP(I17,'Kap.ber JA'!DK:DN,2,FALSE)*AY17 -> 6288.375 | BA17: =VLOOKUP(I17,'Kap.ber JA'!$DK:$DN,3,FALSE)*AY17 -> 942336 | BB17: =VLOOKUP(I17,'Kap.ber JA'!$DK:$DN,4,FALSE)*AY17 -> 948624.375 | BC17: =VLOOKUP(J17,'Kap.ber UA'!$DJ:$DM,2,FALSE)*AY17 -> 6288.375 | BD17: =VLOOKUP(J17,'Kap.ber UA'!$DJ:$DM,3,FALSE)*AY17 -> 942336 | BE17: =VLOOKUP(J17,'Kap.ber UA'!$DJ:$DM,4,FALSE)*AY17 -> 948624.375 | BF17: =IF('Beskrivning av åtgärd'!C$23="Persontrafik",BA17,IF('Beskrivning av åtgärd'!$C$23="Godstrafik",AZ17,BB17)) -> 948624.375 | BG17: =IF('Beskrivning av åtgärd'!$C$23="Persontrafik",BD17,IF('Beskrivning av åtgärd'!$C$23="Godstrafik",BC17,BE17)) -> 948624.375
A18: =Länkar_TTA!A18 -> 1402 | B18: =Länkar_TTA!B18 -> 9331 | C18: =TEXT(Länkar_TTA!C18,0) -> 14029331 | D18: =Länkar_TTA!D18 -> Uppsala norra utfarten | E18: =Länkar_TTA!E18 -> Löten | F18: =Länkar_TTA!F18 -> 434 | G18: =Länkar_TTA!G18 -> Ostkustbanan | H18: =Länkar_TTA!H18 -> 5 | I18: =Länkar_TTA!I18 -> L1413 | J18: L1413 | T18: =+Kalkylsammanställning!G$2 -> 1 | U18: =Länkar_TTA!M18 -> Ja | V18: Ja | W18: =IFERROR(VLOOKUP(C18,Länkar_TTA!C:K,9,FALSE),0) -> 0 | X18: 0 | Y18: =+IFERROR(VLOOKUP(C18,LinjeLänk_Data!F:G,2,FALSE),"-") -> 1.518169999 | Z18: 1.518169999 | AB18: Ostkustbanan | AD18: 434 | AF18: =+VLOOKUP(C18,Länkar_TTA!N:P,2,FALSE) -> 434 | AG18: 0 | AI18: - | AJ18: Uppsala norra utfarten-Löten | AL18: =+SUMIF('Linjelänk JA_KAP'!$H:$H,$C18,'Linjelänk JA_KAP'!CZ:CZ) -> 14 | AM18: =+SUMIF('Linjelänk JA_KAP'!$H:$H,$C18,'Linjelänk JA_KAP'!DA:DA) -> 14 | AN18: =+SUMIF('Linjelänk JA_KAP'!$H:$H,$C18,'Linjelänk JA_KAP'!DB:DB) -> 39 | AO18: =+SUMIF('Linjelänk UA_KAP'!$H:$H,$C18,'Linjelänk UA_KAP'!CZ:CZ) -> 14 | AP18: =+SUMIF('Linjelänk UA_KAP'!$H:$H,$C18,'Linjelänk UA_KAP'!DA:DA) -> 14 | AQ18: =+SUMIF('Linjelänk UA_KAP'!$H:$H,$C18,'Linjelänk UA_KAP'!DB:DB) -> 39 | AS18: =+VLOOKUP($AJ18,Länkar_TTA!$Q:$T,2,FALSE) -> 14 | AT18: =+VLOOKUP($AJ18,Länkar_TTA!$Q:$T,3,FALSE) -> 14 | AU18: =+VLOOKUP($AJ18,Länkar_TTA!$Q:$T,4,FALSE) -> 39 | AX18: 32549.56478 | AY18: =VLOOKUP(I18,Bangods_linjedel!B:F,5,FALSE) -> 60.01 | AZ18: =VLOOKUP(I18,'Kap.ber JA'!DK:DN,2,FALSE)*AY18 -> 165027.5 | BA18: =VLOOKUP(I18,'Kap.ber JA'!$DK:$DN,3,FALSE)*AY18 -> 2573228.8 | BB18: =VLOOKUP(I18,'Kap.ber JA'!$DK:$DN,4,FALSE)*AY18 -> 2738256.3 | BC18: =VLOOKUP(J18,'Kap.ber UA'!$DJ:$DM,2,FALSE)*AY18 -> 165027.5 | BD18: =VLOOKUP(J18,'Kap.ber UA'!$DJ:$DM,3,FALSE)*AY18 -> 2573228.8 | BE18: =VLOOKUP(J18,'Kap.ber UA'!$DJ:$DM,4,FALSE)*AY18 -> 2738256.3 | BF18: =IF('Beskrivning av åtgärd'!C$23="Persontrafik",BA18,IF('Beskrivning av åtgärd'!$C$23="Godstrafik",AZ18,BB18)) -> 2738256.3 | BG18: =IF('Beskrivning av åtgärd'!$C$23="Persontrafik",BD18,IF('Beskrivning av åtgärd'!$C$23="Godstrafik",BC18,BE18)) -> 2738256.3
A19: =Länkar_TTA!A19 -> 1403 | B19: =Länkar_TTA!B19 -> 1408 | C19: =TEXT(Länkar_TTA!C19,0) -> 14031408 | D19: =Länkar_TTA!D19 -> Bergsbrunna | E19: =Länkar_TTA!E19 -> Säby | F19: =Länkar_TTA!F19 -> 430 | G19: =Länkar_TTA!G19 -> Ostkustbanan | H19: =Länkar_TTA!H19 -> 5 | I19: =Länkar_TTA!I19 -> L1411 | J19: L1411 | T19: =+Kalkylsammanställning!G$2 -> 1 | U19: =Länkar_TTA!M19 -> Ja | V19: Ja | W19: =IFERROR(VLOOKUP(C19,Länkar_TTA!C:K,9,FALSE),0) -> 0 | X19: 0 | Y19: =+IFERROR(VLOOKUP(C19,LinjeLänk_Data!F:G,2,FALSE),"-") -> 1.279880047 | Z19: 1.279880047 | AB19: Ostkustbanan | AD19: 430 | AF19: =+VLOOKUP(C19,Länkar_TTA!N:P,2,FALSE) -> 430 | AG19: 0 | AI19: - | AJ19: Bergsbrunna-Säby | AL19: =+SUMIF('Linjelänk JA_KAP'!$H:$H,$C19,'Linjelänk JA_KAP'!CZ:CZ) -> 22 | AM19: =+SUMIF('Linjelänk JA_KAP'!$H:$H,$C19,'Linjelänk JA_KAP'!DA:DA) -> 54 | AN19: =+SUMIF('Linjelänk JA_KAP'!$H:$H,$C19,'Linjelänk JA_KAP'!DB:DB) -> 41 | AO19: =+SUMIF('Linjelänk UA_KAP'!$H:$H,$C19,'Linjelänk UA_KAP'!CZ:CZ) -> 22 | AP19: =+SUMIF('Linjelänk UA_KAP'!$H:$H,$C19,'Linjelänk UA_KAP'!DA:DA) -> 54 | AQ19: =+SUMIF('Linjelänk UA_KAP'!$H:$H,$C19,'Linjelänk UA_KAP'!DB:DB) -> 41 | AS19: =+VLOOKUP($AJ19,Länkar_TTA!$Q:$T,2,FALSE) -> 22 | AT19: =+VLOOKUP($AJ19,Länkar_TTA!$Q:$T,3,FALSE) -> 54 | AU19: =+VLOOKUP($AJ19,Länkar_TTA!$Q:$T,4,FALSE) -> 41 | AX19: 47918.70895 | AY19: =VLOOKUP(I19,Bangods_linjedel!B:F,5,FALSE) -> 20.79 | AZ19: =VLOOKUP(I19,'Kap.ber JA'!DK:DN,2,FALSE)*AY19 -> 59355.45 | BA19: =VLOOKUP(I19,'Kap.ber JA'!$DK:$DN,3,FALSE)*AY19 -> 1556755.2 | BB19: =VLOOKUP(I19,'Kap.ber JA'!$DK:$DN,4,FALSE)*AY19 -> 1616110.65 | BC19: =VLOOKUP(J19,'Kap.ber UA'!$DJ:$DM,2,FALSE)*AY19 -> 59355.45 | BD19: =VLOOKUP(J19,'Kap.ber UA'!$DJ:$DM,3,FALSE)*AY19 -> 1556755.2 | BE19: =VLOOKUP(J19,'Kap.ber UA'!$DJ:$DM,4,FALSE)*AY19 -> 1616110.65 | BF19: =IF('Beskrivning av åtgärd'!C$23="Persontrafik",BA19,IF('Beskrivning av åtgärd'!$C$23="Godstrafik",AZ19,BB19)) -> 1616110.65 | BG19: =IF('Beskrivning av åtgärd'!$C$23="Persontrafik",BD19,IF('Beskrivning av åtgärd'!$C$23="Godstrafik",BC19,BE19)) -> 1616110.65
A20: =Länkar_TTA!A20 -> 1403 | B20: =Länkar_TTA!B20 -> 1409 | C20: =TEXT(Länkar_TTA!C20,0) -> 14031409 | D20: =Länkar_TTA!D20 -> Bergsbrunna | E20: =Länkar_TTA!E20 -> Alsike | F20: =Länkar_TTA!F20 -> 430 | G20: =Länkar_TTA!G20 -> Ostkustbanan | H20: =Länkar_TTA!H20 -> 5 | I20: =Länkar_TTA!I20 -> L1411 | J20: L1411 | T20: =+Kalkylsammanställning!G$2 -> 1 | U20: =Länkar_TTA!M20 -> Ja | V20: Ja | W20: =IFERROR(VLOOKUP(C20,Länkar_TTA!C:K,9,FALSE),0) -> 0 | X20: 0 | Y20: =+IFERROR(VLOOKUP(C20,LinjeLänk_Data!F:G,2,FALSE),"-") -> 7.190000057 | Z20: 7.190000057 | AB20: Ostkustbanan | AD20: 430 | AF20: =+VLOOKUP(C20,Länkar_TTA!N:P,2,FALSE) -> 430 | AG20: 0 | AI20: - | AJ20: Bergsbrunna-Alsike | AL20: =+SUMIF('Linjelänk JA_KAP'!$H:$H,$C20,'Linjelänk JA_KAP'!CZ:CZ) -> 22 | AM20: =+SUMIF('Linjelänk JA_KAP'!$H:$H,$C20,'Linjelänk JA_KAP'!DA:DA) -> 54 | AN20: =+SUMIF('Linjelänk JA_KAP'!$H:$H,$C20,'Linjelänk JA_KAP'!DB:DB) -> 41 | AO20: =+SUMIF('Linjelänk UA_KAP'!$H:$H,$C20,'Linjelänk UA_KAP'!CZ:CZ) -> 22 | AP20: =+SUMIF('Linjelänk UA_KAP'!$H:$H,$C20,'Linjelänk UA_KAP'!DA:DA) -> 54 | AQ20: =+SUMIF('Linjelänk UA_KAP'!$H:$H,$C20,'Linjelänk UA_KAP'!DB:DB) -> 41 | AS20: =+VLOOKUP($AJ20,Länkar_TTA!$Q:$T,2,FALSE) -> 22 | AT20: =+VLOOKUP($AJ20,Länkar_TTA!$Q:$T,3,FALSE) -> 54 | AU20: =+VLOOKUP($AJ20,Länkar_TTA!$Q:$T,4,FALSE) -> 41 | AX20: 269193.6021 | AY20: =VLOOKUP(I20,Bangods_linjedel!B:F,5,FALSE) -> 20.79 | AZ20: =VLOOKUP(I20,'Kap.ber JA'!DK:DN,2,FALSE)*AY20 -> 59355.45 | BA20: =VLOOKUP(I20,'Kap.ber JA'!$DK:$DN,3,FALSE)*AY20 -> 1556755.2 | BB20: =VLOOKUP(I20,'Kap.ber JA'!$DK:$DN,4,FALSE)*AY20 -> 1616110.65 | BC20: =VLOOKUP(J20,'Kap.ber UA'!$DJ:$DM,2,FALSE)*AY20 -> 59355.45 | BD20: =VLOOKUP(J20,'Kap.ber UA'!$DJ:$DM,3,FALSE)*AY20 -> 1556755.2 | BE20: =VLOOKUP(J20,'Kap.ber UA'!$DJ:$DM,4,FALSE)*AY20 -> 1616110.65 | BF20: =IF('Beskrivning av åtgärd'!C$23="Persontrafik",BA20,IF('Beskrivning av åtgärd'!$C$23="Godstrafik",AZ20,BB20)) -> 1616110.65 | BG20: =IF('Beskrivning av åtgärd'!$C$23="Persontrafik",BD20,IF('Beskrivning av åtgärd'!$C$23="Godstrafik",BC20,BE20)) -> 1616110.65
A21: =Länkar_TTA!A21 -> 1404 | B21: =Länkar_TTA!B21 -> 1410 | C21: =TEXT(Länkar_TTA!C21,0) -> 14041410 | D21: =Länkar_TTA!D21 -> Storvreta | E21: =Länkar_TTA!E21 -> Vattholma | F21: =Länkar_TTA!F21 -> 434 | G21: =Länkar_TTA!G21 -> Ostkustbanan | H21: =Länkar_TTA!H21 -> 5 | I21: =Länkar_TTA!I21 -> L1413 | J21: L1413 | T21: =+Kalkylsammanställning!G$2 -> 1 | U21: =Länkar_TTA!M21 -> Ja | V21: Ja | W21: =IFERROR(VLOOKUP(C21,Länkar_TTA!C:K,9,FALSE),0) -> 0 | X21: 0 | Y21: =+IFERROR(VLOOKUP(C21,LinjeLänk_Data!F:G,2,FALSE),"-") -> 7.889999866 | Z21: 7.889999866 | AB21: Ostkustbanan | AD21: 434 | AF21: =+VLOOKUP(C21,Länkar_TTA!N:P,2,FALSE) -> 434 | AG21: 0 | AI21: - | AJ21: Storvreta-Vattholma | AL21: =+SUMIF('Linjelänk JA_KAP'!$H:$H,$C21,'Linjelänk JA_KAP'!CZ:CZ) -> 14 | AM21: =+SUMIF('Linjelänk JA_KAP'!$H:$H,$C21,'Linjelänk JA_KAP'!DA:DA) -> 14 | AN21: =+SUMIF('Linjelänk JA_KAP'!$H:$H,$C21,'Linjelänk JA_KAP'!DB:DB) -> 39 | AO21: =+SUMIF('Linjelänk UA_KAP'!$H:$H,$C21,'Linjelänk UA_KAP'!CZ:CZ) -> 14 | AP21: =+SUMIF('Linjelänk UA_KAP'!$H:$H,$C21,'Linjelänk UA_KAP'!DA:DA) -> 14 | AQ21: =+SUMIF('Linjelänk UA_KAP'!$H:$H,$C21,'Linjelänk UA_KAP'!DB:DB) -> 39 | AS21: =+VLOOKUP($AJ21,Länkar_TTA!$Q:$T,2,FALSE) -> 14 | AT21: =+VLOOKUP($AJ21,Länkar_TTA!$Q:$T,3,FALSE) -> 14 | AU21: =+VLOOKUP($AJ21,Länkar_TTA!$Q:$T,4,FALSE) -> 39 | AX21: 169161.5971 | AY21: =VLOOKUP(I21,Bangods_linjedel!B:F,5,FALSE) -> 60.01 | AZ21: =VLOOKUP(I21,'Kap.ber JA'!DK:DN,2,FALSE)*AY21 -> 165027.5 | BA21: =VLOOKUP(I21,'Kap.ber JA'!$DK:$DN,3,FALSE)*AY21 -> 2573228.8 | BB21: =VLOOKUP(I21,'Kap.ber JA'!$DK:$DN,4,FALSE)*AY21 -> 2738256.3 | BC21: =VLOOKUP(J21,'Kap.ber UA'!$DJ:$DM,2,FALSE)*AY21 -> 165027.5 | BD21: =VLOOKUP(J21,'Kap.ber UA'!$DJ:$DM,3,FALSE)*AY21 -> 2573228.8 | BE21: =VLOOKUP(J21,'Kap.ber UA'!$DJ:$DM,4,FALSE)*AY21 -> 2738256.3 | BF21: =IF('Beskrivning av åtgärd'!C$23="Persontrafik",BA21,IF('Beskrivning av åtgärd'!$C$23="Godstrafik",AZ21,BB21)) -> 2738256.3 | BG21: =IF('Beskrivning av åtgärd'!$C$23="Persontrafik",BD21,IF('Beskrivning av åtgärd'!$C$23="Godstrafik",BC21,BE21)) -> 2738256.3
A22: =Länkar_TTA!A22 -> 1404 | B22: =Länkar_TTA!B22 -> 9331 | C22: =TEXT(Länkar_TTA!C22,0) -> 14049331 | D22: =Länkar_TTA!D22 -> Storvreta | E22: =Länkar_TTA!E22 -> Löten | F22: =Länkar_TTA!F22 -> 434 | G22: =Länkar_TTA!G22 -> Ostkustbanan | H22: =Länkar_TTA!H22 -> 5 | I22: =Länkar_TTA!I22 -> L1413 | J22: L1413 | T22: =+Kalkylsammanställning!G$2 -> 1 | U22: =Länkar_TTA!M22 -> Ja | V22: Ja | W22: =IFERROR(VLOOKUP(C22,Länkar_TTA!C:K,9,FALSE),0) -> 0 | X22: 0 | Y22: =+IFERROR(VLOOKUP(C22,LinjeLänk_Data!F:G,2,FALSE),"-") -> 9.970000267 | Z22: 9.970000267 | AB22: Ostkustbanan | AD22: 434 | AF22: =+VLOOKUP(C22,Länkar_TTA!N:P,2,FALSE) -> 434 | AG22: 0 | AI22: - | AJ22: Storvreta-Löten | AL22: =+SUMIF('Linjelänk JA_KAP'!$H:$H,$C22,'Linjelänk JA_KAP'!CZ:CZ) -> 14 | AM22: =+SUMIF('Linjelänk JA_KAP'!$H:$H,$C22,'Linjelänk JA_KAP'!DA:DA) -> 14 | AN22: =+SUMIF('Linjelänk JA_KAP'!$H:$H,$C22,'Linjelänk JA_KAP'!DB:DB) -> 39 | AO22: =+SUMIF('Linjelänk UA_KAP'!$H:$H,$C22,'Linjelänk UA_KAP'!CZ:CZ) -> 14 | AP22: =+SUMIF('Linjelänk UA_KAP'!$H:$H,$C22,'Linjelänk UA_KAP'!DA:DA) -> 14 | AQ22: =+SUMIF('Linjelänk UA_KAP'!$H:$H,$C22,'Linjelänk UA_KAP'!DB:DB) -> 39 | AS22: =+VLOOKUP($AJ22,Länkar_TTA!$Q:$T,2,FALSE) -> 14 | AT22: =+VLOOKUP($AJ22,Länkar_TTA!$Q:$T,3,FALSE) -> 14 | AU22: =+VLOOKUP($AJ22,Länkar_TTA!$Q:$T,4,FALSE) -> 39 | AX22: 213756.8057 | AY22: =VLOOKUP(I22,Bangods_linjedel!B:F,5,FALSE) -> 60.01 | AZ22: =VLOOKUP(I22,'Kap.ber JA'!DK:DN,2,FALSE)*AY22 -> 165027.5 | BA22: =VLOOKUP(I22,'Kap.ber JA'!$DK:$DN,3,FALSE)*AY22 -> 2573228.8 | BB22: =VLOOKUP(I22,'Kap.ber JA'!$DK:$DN,4,FALSE)*AY22 -> 2738256.3 | BC22: =VLOOKUP(J22,'Kap.ber UA'!$DJ:$DM,2,FALSE)*AY22 -> 165027.5 | BD22: =VLOOKUP(J22,'Kap.ber UA'!$DJ:$DM,3,FALSE)*AY22 -> 2573228.8 | BE22: =VLOOKUP(J22,'Kap.ber UA'!$DJ:$DM,4,FALSE)*AY22 -> 2738256.3 | BF22: =IF('Beskrivning av åtgärd'!C$23="Persontrafik",BA22,IF('Beskrivning av åtgärd'!$C$23="Godstrafik",AZ22,BB22)) -> 2738256.3 | BG22: =IF('Beskrivning av åtgärd'!$C$23="Persontrafik",BD22,IF('Beskrivning av åtgärd'!$C$23="Godstrafik",BC22,BE22)) -> 2738256.3
A23: =Länkar_TTA!A23 -> 1405 | B23: =Länkar_TTA!B23 -> 1419 | C23: =TEXT(Länkar_TTA!C23,0) -> 14051419 | D23: =Länkar_TTA!D23 -> Gimo | E23: =Länkar_TTA!E23 -> Hargshamn | F23: =Länkar_TTA!F23 -> 435 | G23: =Länkar_TTA!G23 -> Hargshamnsbanan | H23: =Länkar_TTA!H23 -> 55 | I23: =Länkar_TTA!I23 -> L1600 | J23: L1600 | T23: =+Kalkylsammanställning!G$2 -> 1 | U23: =Länkar_TTA!M23 -> Nej | V23: Nej | W23: =IFERROR(VLOOKUP(C23,Länkar_TTA!C:K,9,FALSE),0) -> 0 | X23: 0 | Y23: =+IFERROR(VLOOKUP(C23,LinjeLänk_Data!F:G,2,FALSE),"-") -> - | Z23: - | AB23: Hargshamnsbanan | AD23: 435 | AF23: =+VLOOKUP(C23,Länkar_TTA!N:P,2,FALSE) -> 435 | AG23: 0 | AI23: - | AJ23: Gimo-Hargshamn | AL23: =+SUMIF('Linjelänk JA_KAP'!$H:$H,$C23,'Linjelänk JA_KAP'!CZ:CZ) -> 0 | AM23: =+SUMIF('Linjelänk JA_KAP'!$H:$H,$C23,'Linjelänk JA_KAP'!DA:DA) -> 0 | AN23: =+SUMIF('Linjelänk JA_KAP'!$H:$H,$C23,'Linjelänk JA_KAP'!DB:DB) -> 0 | AO23: =+SUMIF('Linjelänk UA_KAP'!$H:$H,$C23,'Linjelänk UA_KAP'!CZ:CZ) -> 0 | AP23: =+SUMIF('Linjelänk UA_KAP'!$H:$H,$C23,'Linjelänk UA_KAP'!DA:DA) -> 0 | AQ23: =+SUMIF('Linjelänk UA_KAP'!$H:$H,$C23,'Linjelänk UA_KAP'!DB:DB) -> 0 | AS23: =+VLOOKUP($AJ23,Länkar_TTA!$Q:$T,2,FALSE) -> 0 | AT23: =+VLOOKUP($AJ23,Länkar_TTA!$Q:$T,3,FALSE) -> 0 | AU23: =+VLOOKUP($AJ23,Länkar_TTA!$Q:$T,4,FALSE) -> 0 | AY23: =VLOOKUP(I23,Bangods_linjedel!B:F,5,FALSE) -> 62.99 | AZ23: =VLOOKUP(I23,'Kap.ber JA'!DK:DN,2,FALSE)*AY23 -> 0 | BA23: =VLOOKUP(I23,'Kap.ber JA'!$DK:$DN,3,FALSE)*AY23 -> 0 | BB23: =VLOOKUP(I23,'Kap.ber JA'!$DK:$DN,4,FALSE)*AY23 -> 0 | BC23: =VLOOKUP(J23,'Kap.ber UA'!$DJ:$DM,2,FALSE)*AY23 -> 0 | BD23: =VLOOKUP(J23,'Kap.ber UA'!$DJ:$DM,3,FALSE)*AY23 -> 0 | BE23: =VLOOKUP(J23,'Kap.ber UA'!$DJ:$DM,4,FALSE)*AY23 -> 0 | BF23: =IF('Beskrivning av åtgärd'!C$23="Persontrafik",BA23,IF('Beskrivning av åtgärd'!$C$23="Godstrafik",AZ23,BB23)) -> 0 | BG23: =IF('Beskrivning av åtgärd'!$C$23="Persontrafik",BD23,IF('Beskrivning av åtgärd'!$C$23="Godstrafik",BC23,BE23)) -> 0
A24: =Länkar_TTA!A24 -> 1406 | B24: =Länkar_TTA!B24 -> 1402 | C24: =TEXT(Länkar_TTA!C24,0) -> 14061402 | D24: =Länkar_TTA!D24 -> Uppsala Norra | E24: =Länkar_TTA!E24 -> Uppsala norra utfarten | F24: =Länkar_TTA!F24 -> 431 | G24: =Länkar_TTA!G24 -> Dalabanan | H24: =Länkar_TTA!H24 -> 6 | I24: =Länkar_TTA!I24 -> L2000 | J24: L2000 | T24: =+Kalkylsammanställning!G$2 -> 1 | U24: =Länkar_TTA!M24 -> Ja | V24: Ja | W24: =IFERROR(VLOOKUP(C24,Länkar_TTA!C:K,9,FALSE),0) -> 0 | X24: 0 | Y24: =+IFERROR(VLOOKUP(C24,LinjeLänk_Data!F:G,2,FALSE),"-") -> 1.435119987 | Z24: 1.435119987 | AB24: Dalabanan | AD24: 431 | AF24: =+VLOOKUP(C24,Länkar_TTA!N:P,2,FALSE) -> 431 | AG24: 0 | AI24: - | AJ24: Uppsala Norra-Uppsala norra utfarten | AL24: =+SUMIF('Linjelänk JA_KAP'!$H:$H,$C24,'Linjelänk JA_KAP'!CZ:CZ) -> 8 | AM24: =+SUMIF('Linjelänk JA_KAP'!$H:$H,$C24,'Linjelänk JA_KAP'!DA:DA) -> 16 | AN24: =+SUMIF('Linjelänk JA_KAP'!$H:$H,$C24,'Linjelänk JA_KAP'!DB:DB) -> 0 | AO24: =+SUMIF('Linjelänk UA_KAP'!$H:$H,$C24,'Linjelänk UA_KAP'!CZ:CZ) -> 8 | AP24: =+SUMIF('Linjelänk UA_KAP'!$H:$H,$C24,'Linjelänk UA_KAP'!DA:DA) -> 16 | AQ24: =+SUMIF('Linjelänk UA_KAP'!$H:$H,$C24,'Linjelänk UA_KAP'!DB:DB) -> 0 | AS24: =+VLOOKUP($AJ24,Länkar_TTA!$Q:$T,2,FALSE) -> 8 | AT24: =+VLOOKUP($AJ24,Länkar_TTA!$Q:$T,3,FALSE) -> 16 | AU24: =+VLOOKUP($AJ24,Länkar_TTA!$Q:$T,4,FALSE) -> 0 | AX24: 11021.7215 | AY24: =VLOOKUP(I24,Bangods_linjedel!B:F,5,FALSE) -> 61.35 | AZ24: =VLOOKUP(I24,'Kap.ber JA'!DK:DN,2,FALSE)*AY24 -> 6288.375 | BA24: =VLOOKUP(I24,'Kap.ber JA'!$DK:$DN,3,FALSE)*AY24 -> 942336 | BB24: =VLOOKUP(I24,'Kap.ber JA'!$DK:$DN,4,FALSE)*AY24 -> 948624.375 | BC24: =VLOOKUP(J24,'Kap.ber UA'!$DJ:$DM,2,FALSE)*AY24 -> 6288.375 | BD24: =VLOOKUP(J24,'Kap.ber UA'!$DJ:$DM,3,FALSE)*AY24 -> 942336 | BE24: =VLOOKUP(J24,'Kap.ber UA'!$DJ:$DM,4,FALSE)*AY24 -> 948624.375 | BF24: =IF('Beskrivning av åtgärd'!C$23="Persontrafik",BA24,IF('Beskrivning av åtgärd'!$C$23="Godstrafik",AZ24,BB24)) -> 948624.375 | BG24: =IF('Beskrivning av åtgärd'!$C$23="Persontrafik",BD24,IF('Beskrivning av åtgärd'!$C$23="Godstrafik",BC24,BE24)) -> 948624.375
A25: =Länkar_TTA!A25 -> 1406 | B25: =Länkar_TTA!B25 -> 1421 | C25: =TEXT(Länkar_TTA!C25,0) -> 14061421 | D25: =Länkar_TTA!D25 -> Uppsala Norra | E25: =Länkar_TTA!E25 -> Vänge | F25: =Länkar_TTA!F25 -> 431 | G25: =Länkar_TTA!G25 -> Dalabanan | H25: =Länkar_TTA!H25 -> 6 | I25: =Länkar_TTA!I25 -> L2000 | J25: L2000 | T25: =+Kalkylsammanställning!G$2 -> 1 | U25: =Länkar_TTA!M25 -> Ja | V25: Ja | W25: =IFERROR(VLOOKUP(C25,Länkar_TTA!C:K,9,FALSE),0) -> 0 | X25: 0 | Y25: =+IFERROR(VLOOKUP(C25,LinjeLänk_Data!F:G,2,FALSE),"-") -> 9.659999847 | Z25: 9.659999847 | AB25: Dalabanan | AD25: 431 | AF25: =+VLOOKUP(C25,Länkar_TTA!N:P,2,FALSE) -> 431 | AG25: 0 | AI25: - | AJ25: Uppsala Norra-Vänge | AL25: =+SUMIF('Linjelänk JA_KAP'!$H:$H,$C25,'Linjelänk JA_KAP'!CZ:CZ) -> 8 | AM25: =+SUMIF('Linjelänk JA_KAP'!$H:$H,$C25,'Linjelänk JA_KAP'!DA:DA) -> 16 | AN25: =+SUMIF('Linjelänk JA_KAP'!$H:$H,$C25,'Linjelänk JA_KAP'!DB:DB) -> 0 | AO25: =+SUMIF('Linjelänk UA_KAP'!$H:$H,$C25,'Linjelänk UA_KAP'!CZ:CZ) -> 8 | AP25: =+SUMIF('Linjelänk UA_KAP'!$H:$H,$C25,'Linjelänk UA_KAP'!DA:DA) -> 16 | AQ25: =+SUMIF('Linjelänk UA_KAP'!$H:$H,$C25,'Linjelänk UA_KAP'!DB:DB) -> 0 | AS25: =+VLOOKUP($AJ25,Länkar_TTA!$Q:$T,2,FALSE) -> 8 | AT25: =+VLOOKUP($AJ25,Länkar_TTA!$Q:$T,3,FALSE) -> 16 | AU25: =+VLOOKUP($AJ25,Länkar_TTA!$Q:$T,4,FALSE) -> 0 | AX25: 74188.79883 | AY25: =VLOOKUP(I25,Bangods_linjedel!B:F,5,FALSE) -> 61.35 | AZ25: =VLOOKUP(I25,'Kap.ber JA'!DK:DN,2,FALSE)*AY25 -> 6288.375 | BA25: =VLOOKUP(I25,'Kap.ber JA'!$DK:$DN,3,FALSE)*AY25 -> 942336 | BB25: =VLOOKUP(I25,'Kap.ber JA'!$DK:$DN,4,FALSE)*AY25 -> 948624.375 | BC25: =VLOOKUP(J25,'Kap.ber UA'!$DJ:$DM,2,FALSE)*AY25 -> 6288.375 | BD25: =VLOOKUP(J25,'Kap.ber UA'!$DJ:$DM,3,FALSE)*AY25 -> 942336 | BE25: =VLOOKUP(J25,'Kap.ber UA'!$DJ:$DM,4,FALSE)*AY25 -> 948624.375 | BF25: =IF('Beskrivning av åtgärd'!C$23="Persontrafik",BA25,IF('Beskrivning av åtgärd'!$C$23="Godstrafik",AZ25,BB25)) -> 948624.375 | BG25: =IF('Beskrivning av åtgärd'!$C$23="Persontrafik",BD25,IF('Beskrivning av åtgärd'!$C$23="Godstrafik",BC25,BE25)) -> 948624.375
A26: =Länkar_TTA!A26 -> 1407 | B26: =Länkar_TTA!B26 -> 1418 | C26: =TEXT(Länkar_TTA!C26,0) -> 14071418 | D26: =Länkar_TTA!D26 -> Brunna | E26: =Länkar_TTA!E26 -> Järlåsa | F26: =Länkar_TTA!F26 -> 431 | G26: =Länkar_TTA!G26 -> Dalabanan | H26: =Länkar_TTA!H26 -> 6 | I26: =Länkar_TTA!I26 -> L2000 | J26: L2000 | T26: =+Kalkylsammanställning!G$2 -> 1 | U26: =Länkar_TTA!M26 -> Ja | V26: Ja | W26: =IFERROR(VLOOKUP(C26,Länkar_TTA!C:K,9,FALSE),0) -> 0 | X26: 0 | Y26: =+IFERROR(VLOOKUP(C26,LinjeLänk_Data!F:G,2,FALSE),"-") -> 13.18000031 | Z26: 13.18000031 | AB26: Dalabanan | AD26: 431 | AF26: =+VLOOKUP(C26,Länkar_TTA!N:P,2,FALSE) -> 431 | AG26: 0 | AI26: - | AJ26: Brunna-Järlåsa | AL26: =+SUMIF('Linjelänk JA_KAP'!$H:$H,$C26,'Linjelänk JA_KAP'!CZ:CZ) -> 8 | AM26: =+SUMIF('Linjelänk JA_KAP'!$H:$H,$C26,'Linjelänk JA_KAP'!DA:DA) -> 16 | AN26: =+SUMIF('Linjelänk JA_KAP'!$H:$H,$C26,'Linjelänk JA_KAP'!DB:DB) -> 0 | AO26: =+SUMIF('Linjelänk UA_KAP'!$H:$H,$C26,'Linjelänk UA_KAP'!CZ:CZ) -> 8 | AP26: =+SUMIF('Linjelänk UA_KAP'!$H:$H,$C26,'Linjelänk UA_KAP'!DA:DA) -> 16 | AQ26: =+SUMIF('Linjelänk UA_KAP'!$H:$H,$C26,'Linjelänk UA_KAP'!DB:DB) -> 0 | AS26: =+VLOOKUP($AJ26,Länkar_TTA!$Q:$T,2,FALSE) -> 8 | AT26: =+VLOOKUP($AJ26,Länkar_TTA!$Q:$T,3,FALSE) -> 16 | AU26: =+VLOOKUP($AJ26,Länkar_TTA!$Q:$T,4,FALSE) -> 0 | AX26: 101222.4023 | AY26: =VLOOKUP(I26,Bangods_linjedel!B:F,5,FALSE) -> 61.35 | AZ26: =VLOOKUP(I26,'Kap.ber JA'!DK:DN,2,FALSE)*AY26 -> 6288.375 | BA26: =VLOOKUP(I26,'Kap.ber JA'!$DK:$DN,3,FALSE)*AY26 -> 942336 | BB26: =VLOOKUP(I26,'Kap.ber JA'!$DK:$DN,4,FALSE)*AY26 -> 948624.375 | BC26: =VLOOKUP(J26,'Kap.ber UA'!$DJ:$DM,2,FALSE)*AY26 -> 6288.375 | BD26: =VLOOKUP(J26,'Kap.ber UA'!$DJ:$DM,3,FALSE)*AY26 -> 942336 | BE26: =VLOOKUP(J26,'Kap.ber UA'!$DJ:$DM,4,FALSE)*AY26 -> 948624.375 | BF26: =IF('Beskrivning av åtgärd'!C$23="Persontrafik",BA26,IF('Beskrivning av åtgärd'!$C$23="Godstrafik",AZ26,BB26)) -> 948624.375 | BG26: =IF('Beskrivning av åtgärd'!$C$23="Persontrafik",BD26,IF('Beskrivning av åtgärd'!$C$23="Godstrafik",BC26,BE26)) -> 948624.375
A27: =Länkar_TTA!A27 -> 1407 | B27: =Länkar_TTA!B27 -> 1421 | C27: =TEXT(Länkar_TTA!C27,0) -> 14071421 | D27: =Länkar_TTA!D27 -> Brunna | E27: =Länkar_TTA!E27 -> Vänge | F27: =Länkar_TTA!F27 -> 431 | G27: =Länkar_TTA!G27 -> Dalabanan | H27: =Länkar_TTA!H27 -> 6 | I27: =Länkar_TTA!I27 -> L2000 | J27: L2000 | T27: =+Kalkylsammanställning!G$2 -> 1 | U27: =Länkar_TTA!M27 -> Ja | V27: Ja | W27: =IFERROR(VLOOKUP(C27,Länkar_TTA!C:K,9,FALSE),0) -> 0 | X27: 0 | Y27: =+IFERROR(VLOOKUP(C27,LinjeLänk_Data!F:G,2,FALSE),"-") -> 0.8500000238 | Z27: 0.8500000238 | AB27: Dalabanan | AD27: 431 | AF27: =+VLOOKUP(C27,Länkar_TTA!N:P,2,FALSE) -> 431 | AG27: 0 | AI27: - | AJ27: Brunna-Vänge | AL27: =+SUMIF('Linjelänk JA_KAP'!$H:$H,$C27,'Linjelänk JA_KAP'!CZ:CZ) -> 8 | AM27: =+SUMIF('Linjelänk JA_KAP'!$H:$H,$C27,'Linjelänk JA_KAP'!DA:DA) -> 16 | AN27: =+SUMIF('Linjelänk JA_KAP'!$H:$H,$C27,'Linjelänk JA_KAP'!DB:DB) -> 0 | AO27: =+SUMIF('Linjelänk UA_KAP'!$H:$H,$C27,'Linjelänk UA_KAP'!CZ:CZ) -> 8 | AP27: =+SUMIF('Linjelänk UA_KAP'!$H:$H,$C27,'Linjelänk UA_KAP'!DA:DA) -> 16 | AQ27: =+SUMIF('Linjelänk UA_KAP'!$H:$H,$C27,'Linjelänk UA_KAP'!DB:DB) -> 0 | AS27: =+VLOOKUP($AJ27,Länkar_TTA!$Q:$T,2,FALSE) -> 8 | AT27: =+VLOOKUP($AJ27,Länkar_TTA!$Q:$T,3,FALSE) -> 16 | AU27: =+VLOOKUP($AJ27,Länkar_TTA!$Q:$T,4,FALSE) -> 0 | AX27: 6528.000183 | AY27: =VLOOKUP(I27,Bangods_linjedel!B:F,5,FALSE) -> 61.35 | AZ27: =VLOOKUP(I27,'Kap.ber JA'!DK:DN,2,FALSE)*AY27 -> 6288.375 | BA27: =VLOOKUP(I27,'Kap.ber JA'!$DK:$DN,3,FALSE)*AY27 -> 942336 | BB27: =VLOOKUP(I27,'Kap.ber JA'!$DK:$DN,4,FALSE)*AY27 -> 948624.375 | BC27: =VLOOKUP(J27,'Kap.ber UA'!$DJ:$DM,2,FALSE)*AY27 -> 6288.375 | BD27: =VLOOKUP(J27,'Kap.ber UA'!$DJ:$DM,3,FALSE)*AY27 -> 942336 | BE27: =VLOOKUP(J27,'Kap.ber UA'!$DJ:$DM,4,FALSE)*AY27 -> 948624.375 | BF27: =IF('Beskrivning av åtgärd'!C$23="Persontrafik",BA27,IF('Beskrivning av åtgärd'!$C$23="Godstrafik",AZ27,BB27)) -> 948624.375 | BG27: =IF('Beskrivning av åtgärd'!$C$23="Persontrafik",BD27,IF('Beskrivning av åtgärd'!$C$23="Godstrafik",BC27,BE27)) -> 948624.375
A28: =Länkar_TTA!A28 -> 1408 | B28: =Länkar_TTA!B28 -> 1400 | C28: =TEXT(Länkar_TTA!C28,0) -> 14081400 | D28: =Länkar_TTA!D28 -> Säby | E28: =Länkar_TTA!E28 -> Uppsala Central | F28: =Länkar_TTA!F28 -> 430 | G28: =Länkar_TTA!G28 -> Ostkustbanan | H28: =Länkar_TTA!H28 -> 5 | I28: =Länkar_TTA!I28 -> L1411 | J28: L1411 | T28: =+Kalkylsammanställning!G$2 -> 1 | U28: =Länkar_TTA!M28 -> Ja | V28: Ja | W28: =IFERROR(VLOOKUP(C28,Länkar_TTA!C:K,9,FALSE),0) -> 0 | X28: 0 | Y28: =+IFERROR(VLOOKUP(C28,LinjeLänk_Data!F:G,2,FALSE),"-") -> 4.420119762 | Z28: 4.420119762 | AB28: Ostkustbanan | AD28: 430 | AF28: =+VLOOKUP(C28,Länkar_TTA!N:P,2,FALSE) -> 430 | AG28: 0 | AI28: - | AJ28: Säby-Uppsala Central | AL28: =+SUMIF('Linjelänk JA_KAP'!$H:$H,$C28,'Linjelänk JA_KAP'!CZ:CZ) -> 22 | AM28: =+SUMIF('Linjelänk JA_KAP'!$H:$H,$C28,'Linjelänk JA_KAP'!DA:DA) -> 54 | AN28: =+SUMIF('Linjelänk JA_KAP'!$H:$H,$C28,'Linjelänk JA_KAP'!DB:DB) -> 41 | AO28: =+SUMIF('Linjelänk UA_KAP'!$H:$H,$C28,'Linjelänk UA_KAP'!CZ:CZ) -> 22 | AP28: =+SUMIF('Linjelänk UA_KAP'!$H:$H,$C28,'Linjelänk UA_KAP'!DA:DA) -> 54 | AQ28: =+SUMIF('Linjelänk UA_KAP'!$H:$H,$C28,'Linjelänk UA_KAP'!DB:DB) -> 41 | AS28: =+VLOOKUP($AJ28,Länkar_TTA!$Q:$T,2,FALSE) -> 22 | AT28: =+VLOOKUP($AJ28,Länkar_TTA!$Q:$T,3,FALSE) -> 54 | AU28: =+VLOOKUP($AJ28,Länkar_TTA!$Q:$T,4,FALSE) -> 41 | AX28: 165489.2839 | AY28: =VLOOKUP(I28,Bangods_linjedel!B:F,5,FALSE) -> 20.79 | AZ28: =VLOOKUP(I28,'Kap.ber JA'!DK:DN,2,FALSE)*AY28 -> 59355.45 | BA28: =VLOOKUP(I28,'Kap.ber JA'!$DK:$DN,3,FALSE)*AY28 -> 1556755.2 | BB28: =VLOOKUP(I28,'Kap.ber JA'!$DK:$DN,4,FALSE)*AY28 -> 1616110.65 | BC28: =VLOOKUP(J28,'Kap.ber UA'!$DJ:$DM,2,FALSE)*AY28 -> 59355.45 | BD28: =VLOOKUP(J28,'Kap.ber UA'!$DJ:$DM,3,FALSE)*AY28 -> 1556755.2 | BE28: =VLOOKUP(J28,'Kap.ber UA'!$DJ:$DM,4,FALSE)*AY28 -> 1616110.65 | BF28: =IF('Beskrivning av åtgärd'!C$23="Persontrafik",BA28,IF('Beskrivning av åtgärd'!$C$23="Godstrafik",AZ28,BB28)) -> 1616110.65 | BG28: =IF('Beskrivning av åtgärd'!$C$23="Persontrafik",BD28,IF('Beskrivning av åtgärd'!$C$23="Godstrafik",BC28,BE28)) -> 1616110.65
A29: =Länkar_TTA!A29 -> 1408 | B29: =Länkar_TTA!B29 -> 1403 | C29: =TEXT(Länkar_TTA!C29,0) -> 14081403 | D29: =Länkar_TTA!D29 -> Säby | E29: =Länkar_TTA!E29 -> Bergsbrunna | F29: =Länkar_TTA!F29 -> 430 | G29: =Länkar_TTA!G29 -> Ostkustbanan | H29: =Länkar_TTA!H29 -> 5 | I29: =Länkar_TTA!I29 -> L1411 | J29: L1411 | T29: =+Kalkylsammanställning!G$2 -> 1 | U29: =Länkar_TTA!M29 -> Ja | V29: Ja | W29: =IFERROR(VLOOKUP(C29,Länkar_TTA!C:K,9,FALSE),0) -> 0 | X29: 0 | Y29: =+IFERROR(VLOOKUP(C29,LinjeLänk_Data!F:G,2,FALSE),"-") -> 1.279880047 | Z29: 1.279880047 | AB29: Ostkustbanan | AD29: 430 | AF29: =+VLOOKUP(C29,Länkar_TTA!N:P,2,FALSE) -> 430 | AG29: 0 | AI29: - | AJ29: Säby-Bergsbrunna | AL29: =+SUMIF('Linjelänk JA_KAP'!$H:$H,$C29,'Linjelänk JA_KAP'!CZ:CZ) -> 22 | AM29: =+SUMIF('Linjelänk JA_KAP'!$H:$H,$C29,'Linjelänk JA_KAP'!DA:DA) -> 54 | AN29: =+SUMIF('Linjelänk JA_KAP'!$H:$H,$C29,'Linjelänk JA_KAP'!DB:DB) -> 41 | AO29: =+SUMIF('Linjelänk UA_KAP'!$H:$H,$C29,'Linjelänk UA_KAP'!CZ:CZ) -> 22 | AP29: =+SUMIF('Linjelänk UA_KAP'!$H:$H,$C29,'Linjelänk UA_KAP'!DA:DA) -> 54 | AQ29: =+SUMIF('Linjelänk UA_KAP'!$H:$H,$C29,'Linjelänk UA_KAP'!DB:DB) -> 41 | AS29: =+VLOOKUP($AJ29,Länkar_TTA!$Q:$T,2,FALSE) -> 22 | AT29: =+VLOOKUP($AJ29,Länkar_TTA!$Q:$T,3,FALSE) -> 54 | AU29: =+VLOOKUP($AJ29,Länkar_TTA!$Q:$T,4,FALSE) -> 41 | AX29: 47918.70895 | AY29: =VLOOKUP(I29,Bangods_linjedel!B:F,5,FALSE) -> 20.79 | AZ29: =VLOOKUP(I29,'Kap.ber JA'!DK:DN,2,FALSE)*AY29 -> 59355.45 | BA29: =VLOOKUP(I29,'Kap.ber JA'!$DK:$DN,3,FALSE)*AY29 -> 1556755.2 | BB29: =VLOOKUP(I29,'Kap.ber JA'!$DK:$DN,4,FALSE)*AY29 -> 1616110.65 | BC29: =VLOOKUP(J29,'Kap.ber UA'!$DJ:$DM,2,FALSE)*AY29 -> 59355.45 | BD29: =VLOOKUP(J29,'Kap.ber UA'!$DJ:$DM,3,FALSE)*AY29 -> 1556755.2 | BE29: =VLOOKUP(J29,'Kap.ber UA'!$DJ:$DM,4,FALSE)*AY29 -> 1616110.65 | BF29: =IF('Beskrivning av åtgärd'!C$23="Persontrafik",BA29,IF('Beskrivning av åtgärd'!$C$23="Godstrafik",AZ29,BB29)) -> 1616110.65 | BG29: =IF('Beskrivning av åtgärd'!$C$23="Persontrafik",BD29,IF('Beskrivning av åtgärd'!$C$23="Godstrafik",BC29,BE29)) -> 1616110.65
A30: =Länkar_TTA!A30 -> 1409 | B30: =Länkar_TTA!B30 -> 1401 | C30: =TEXT(Länkar_TTA!C30,0) -> 14091401 | D30: =Länkar_TTA!D30 -> Alsike | E30: =Länkar_TTA!E30 -> Knivsta | F30: =Länkar_TTA!F30 -> 430 | G30: =Länkar_TTA!G30 -> Ostkustbanan | H30: =Länkar_TTA!H30 -> 5 | I30: =Länkar_TTA!I30 -> L1411 | J30: L1411 | T30: =+Kalkylsammanställning!G$2 -> 1 | U30: =Länkar_TTA!M30 -> Ja | V30: Ja | W30: =IFERROR(VLOOKUP(C30,Länkar_TTA!C:K,9,FALSE),0) -> 0 | X30: 0 | Y30: =+IFERROR(VLOOKUP(C30,LinjeLänk_Data!F:G,2,FALSE),"-") -> 4.196800232 | Z30: 4.196800232 | AB30: Ostkustbanan | AD30: 430 | AF30: =+VLOOKUP(C30,Länkar_TTA!N:P,2,FALSE) -> 430 | AG30: 0 | AI30: - | AJ30: Alsike-Knivsta | AL30: =+SUMIF('Linjelänk JA_KAP'!$H:$H,$C30,'Linjelänk JA_KAP'!CZ:CZ) -> 22 | AM30: =+SUMIF('Linjelänk JA_KAP'!$H:$H,$C30,'Linjelänk JA_KAP'!DA:DA) -> 54 | AN30: =+SUMIF('Linjelänk JA_KAP'!$H:$H,$C30,'Linjelänk JA_KAP'!DB:DB) -> 41 | AO30: =+SUMIF('Linjelänk UA_KAP'!$H:$H,$C30,'Linjelänk UA_KAP'!CZ:CZ) -> 22 | AP30: =+SUMIF('Linjelänk UA_KAP'!$H:$H,$C30,'Linjelänk UA_KAP'!DA:DA) -> 54 | AQ30: =+SUMIF('Linjelänk UA_KAP'!$H:$H,$C30,'Linjelänk UA_KAP'!DB:DB) -> 41 | AS30: =+VLOOKUP($AJ30,Länkar_TTA!$Q:$T,2,FALSE) -> 22 | AT30: =+VLOOKUP($AJ30,Länkar_TTA!$Q:$T,3,FALSE) -> 54 | AU30: =+VLOOKUP($AJ30,Länkar_TTA!$Q:$T,4,FALSE) -> 41 | AX30: 157128.2007 | AY30: =VLOOKUP(I30,Bangods_linjedel!B:F,5,FALSE) -> 20.79 | AZ30: =VLOOKUP(I30,'Kap.ber JA'!DK:DN,2,FALSE)*AY30 -> 59355.45 | BA30: =VLOOKUP(I30,'Kap.ber JA'!$DK:$DN,3,FALSE)*AY30 -> 1556755.2 | BB30: =VLOOKUP(I30,'Kap.ber JA'!$DK:$DN,4,FALSE)*AY30 -> 1616110.65 | BC30: =VLOOKUP(J30,'Kap.ber UA'!$DJ:$DM,2,FALSE)*AY30 -> 59355.45 | BD30: =VLOOKUP(J30,'Kap.ber UA'!$DJ:$DM,3,FALSE)*AY30 -> 1556755.2 | BE30: =VLOOKUP(J30,'Kap.ber UA'!$DJ:$DM,4,FALSE)*AY30 -> 1616110.65 | BF30: =IF('Beskrivning av åtgärd'!C$23="Persontrafik",BA30,IF('Beskrivning av åtgärd'!$C$23="Godstrafik",AZ30,BB30)) -> 1616110.65 | BG30: =IF('Beskrivning av åtgärd'!$C$23="Persontrafik",BD30,IF('Beskrivning av åtgärd'!$C$23="Godstrafik",BC30,BE30)) -> 1616110.65
A31: =Länkar_TTA!A31 -> 1409 | B31: =Länkar_TTA!B31 -> 1403 | C31: =TEXT(Länkar_TTA!C31,0) -> 14091403 | D31: =Länkar_TTA!D31 -> Alsike | E31: =Länkar_TTA!E31 -> Bergsbrunna | F31: =Länkar_TTA!F31 -> 430 | G31: =Länkar_TTA!G31 -> Ostkustbanan | H31: =Länkar_TTA!H31 -> 5 | I31: =Länkar_TTA!I31 -> L1411 | J31: L1411 | T31: =+Kalkylsammanställning!G$2 -> 1 | U31: =Länkar_TTA!M31 -> Ja | V31: Ja | W31: =IFERROR(VLOOKUP(C31,Länkar_TTA!C:K,9,FALSE),0) -> 0 | X31: 0 | Y31: =+IFERROR(VLOOKUP(C31,LinjeLänk_Data!F:G,2,FALSE),"-") -> 7.190000057 | Z31: 7.190000057 | AB31: Ostkustbanan | AD31: 430 | AF31: =+VLOOKUP(C31,Länkar_TTA!N:P,2,FALSE) -> 430 | AG31: 0 | AI31: - | AJ31: Alsike-Bergsbrunna | AL31: =+SUMIF('Linjelänk JA_KAP'!$H:$H,$C31,'Linjelänk JA_KAP'!CZ:CZ) -> 22 | AM31: =+SUMIF('Linjelänk JA_KAP'!$H:$H,$C31,'Linjelänk JA_KAP'!DA:DA) -> 54 | AN31: =+SUMIF('Linjelänk JA_KAP'!$H:$H,$C31,'Linjelänk JA_KAP'!DB:DB) -> 41 | AO31: =+SUMIF('Linjelänk UA_KAP'!$H:$H,$C31,'Linjelänk UA_KAP'!CZ:CZ) -> 22 | AP31: =+SUMIF('Linjelänk UA_KAP'!$H:$H,$C31,'Linjelänk UA_KAP'!DA:DA) -> 54 | AQ31: =+SUMIF('Linjelänk UA_KAP'!$H:$H,$C31,'Linjelänk UA_KAP'!DB:DB) -> 41 | AS31: =+VLOOKUP($AJ31,Länkar_TTA!$Q:$T,2,FALSE) -> 22 | AT31: =+VLOOKUP($AJ31,Länkar_TTA!$Q:$T,3,FALSE) -> 54 | AU31: =+VLOOKUP($AJ31,Länkar_TTA!$Q:$T,4,FALSE) -> 41 | AX31: 269193.6021 | AY31: =VLOOKUP(I31,Bangods_linjedel!B:F,5,FALSE) -> 20.79 | AZ31: =VLOOKUP(I31,'Kap.ber JA'!DK:DN,2,FALSE)*AY31 -> 59355.45 | BA31: =VLOOKUP(I31,'Kap.ber JA'!$DK:$DN,3,FALSE)*AY31 -> 1556755.2 | BB31: =VLOOKUP(I31,'Kap.ber JA'!$DK:$DN,4,FALSE)*AY31 -> 1616110.65 | BC31: =VLOOKUP(J31,'Kap.ber UA'!$DJ:$DM,2,FALSE)*AY31 -> 59355.45 | BD31: =VLOOKUP(J31,'Kap.ber UA'!$DJ:$DM,3,FALSE)*AY31 -> 1556755.2 | BE31: =VLOOKUP(J31,'Kap.ber UA'!$DJ:$DM,4,FALSE)*AY31 -> 1616110.65 | BF31: =IF('Beskrivning av åtgärd'!C$23="Persontrafik",BA31,IF('Beskrivning av åtgärd'!$C$23="Godstrafik",AZ31,BB31)) -> 1616110.65 | BG31: =IF('Beskrivning av åtgärd'!$C$23="Persontrafik",BD31,IF('Beskrivning av åtgärd'!$C$23="Godstrafik",BC31,BE31)) -> 1616110.65
A32: =Länkar_TTA!A32 -> 1410 | B32: =Länkar_TTA!B32 -> 1404 | C32: =TEXT(Länkar_TTA!C32,0) -> 14101404 | D32: =Länkar_TTA!D32 -> Vattholma | E32: =Länkar_TTA!E32 -> Storvreta | F32: =Länkar_TTA!F32 -> 434 | G32: =Länkar_TTA!G32 -> Ostkustbanan | H32: =Länkar_TTA!H32 -> 5 | I32: =Länkar_TTA!I32 -> L1413 | J32: L1413 | T32: =+Kalkylsammanställning!G$2 -> 1 | U32: =Länkar_TTA!M32 -> Ja | V32: Ja | W32: =IFERROR(VLOOKUP(C32,Länkar_TTA!C:K,9,FALSE),0) -> 0 | X32: 0 | Y32: =+IFERROR(VLOOKUP(C32,LinjeLänk_Data!F:G,2,FALSE),"-") -> 7.889999866 | Z32: 7.889999866 | AB32: Ostkustbanan | AD32: 434 | AF32: =+VLOOKUP(C32,Länkar_TTA!N:P,2,FALSE) -> 434 | AG32: 0 | AI32: - | AJ32: Vattholma-Storvreta | AL32: =+SUMIF('Linjelänk JA_KAP'!$H:$H,$C32,'Linjelänk JA_KAP'!CZ:CZ) -> 14 | AM32: =+SUMIF('Linjelänk JA_KAP'!$H:$H,$C32,'Linjelänk JA_KAP'!DA:DA) -> 14 | AN32: =+SUMIF('Linjelänk JA_KAP'!$H:$H,$C32,'Linjelänk JA_KAP'!DB:DB) -> 39 | AO32: =+SUMIF('Linjelänk UA_KAP'!$H:$H,$C32,'Linjelänk UA_KAP'!CZ:CZ) -> 14 | AP32: =+SUMIF('Linjelänk UA_KAP'!$H:$H,$C32,'Linjelänk UA_KAP'!DA:DA) -> 14 | AQ32: =+SUMIF('Linjelänk UA_KAP'!$H:$H,$C32,'Linjelänk UA_KAP'!DB:DB) -> 39 | AS32: =+VLOOKUP($AJ32,Länkar_TTA!$Q:$T,2,FALSE) -> 14 | AT32: =+VLOOKUP($AJ32,Länkar_TTA!$Q:$T,3,FALSE) -> 14 | AU32: =+VLOOKUP($AJ32,Länkar_TTA!$Q:$T,4,FALSE) -> 39 | AX32: 169161.5971 | AY32: =VLOOKUP(I32,Bangods_linjedel!B:F,5,FALSE) -> 60.01 | AZ32: =VLOOKUP(I32,'Kap.ber JA'!DK:DN,2,FALSE)*AY32 -> 165027.5 | BA32: =VLOOKUP(I32,'Kap.ber JA'!$DK:$DN,3,FALSE)*AY32 -> 2573228.8 | BB32: =VLOOKUP(I32,'Kap.ber JA'!$DK:$DN,4,FALSE)*AY32 -> 2738256.3 | BC32: =VLOOKUP(J32,'Kap.ber UA'!$DJ:$DM,2,FALSE)*AY32 -> 165027.5 | BD32: =VLOOKUP(J32,'Kap.ber UA'!$DJ:$DM,3,FALSE)*AY32 -> 2573228.8 | BE32: =VLOOKUP(J32,'Kap.ber UA'!$DJ:$DM,4,FALSE)*AY32 -> 2738256.3 | BF32: =IF('Beskrivning av åtgärd'!C$23="Persontrafik",BA32,IF('Beskrivning av åtgärd'!$C$23="Godstrafik",AZ32,BB32)) -> 2738256.3 | BG32: =IF('Beskrivning av åtgärd'!$C$23="Persontrafik",BD32,IF('Beskrivning av åtgärd'!$C$23="Godstrafik",BC32,BE32)) -> 2738256.3
A33: =Länkar_TTA!A33 -> 1410 | B33: =Länkar_TTA!B33 -> 1415 | C33: =TEXT(Länkar_TTA!C33,0) -> 14101415 | D33: =Länkar_TTA!D33 -> Vattholma | E33: =Länkar_TTA!E33 -> Skyttorp | F33: =Länkar_TTA!F33 -> 434 | G33: =Länkar_TTA!G33 -> Ostkustbanan | H33: =Länkar_TTA!H33 -> 5 | I33: =Länkar_TTA!I33 -> L1413 | J33: L1413 | T33: =+Kalkylsammanställning!G$2 -> 1 | U33: =Länkar_TTA!M33 -> Ja | V33: Ja | W33: =IFERROR(VLOOKUP(C33,Länkar_TTA!C:K,9,FALSE),0) -> 0 | X33: 0 | Y33: =+IFERROR(VLOOKUP(C33,LinjeLänk_Data!F:G,2,FALSE),"-") -> 6.139999866 | Z33: 6.139999866 | AB33: Ostkustbanan | AD33: 434 | AF33: =+VLOOKUP(C33,Länkar_TTA!N:P,2,FALSE) -> 434 | AG33: 0 | AI33: - | AJ33: Vattholma-Skyttorp | AL33: =+SUMIF('Linjelänk JA_KAP'!$H:$H,$C33,'Linjelänk JA_KAP'!CZ:CZ) -> 14 | AM33: =+SUMIF('Linjelänk JA_KAP'!$H:$H,$C33,'Linjelänk JA_KAP'!DA:DA) -> 14 | AN33: =+SUMIF('Linjelänk JA_KAP'!$H:$H,$C33,'Linjelänk JA_KAP'!DB:DB) -> 39 | AO33: =+SUMIF('Linjelänk UA_KAP'!$H:$H,$C33,'Linjelänk UA_KAP'!CZ:CZ) -> 14 | AP33: =+SUMIF('Linjelänk UA_KAP'!$H:$H,$C33,'Linjelänk UA_KAP'!DA:DA) -> 14 | AQ33: =+SUMIF('Linjelänk UA_KAP'!$H:$H,$C33,'Linjelänk UA_KAP'!DB:DB) -> 39 | AS33: =+VLOOKUP($AJ33,Länkar_TTA!$Q:$T,2,FALSE) -> 14 | AT33: =+VLOOKUP($AJ33,Länkar_TTA!$Q:$T,3,FALSE) -> 14 | AU33: =+VLOOKUP($AJ33,Länkar_TTA!$Q:$T,4,FALSE) -> 39 | AX33: 131641.5971 | AY33: =VLOOKUP(I33,Bangods_linjedel!B:F,5,FALSE) -> 60.01 | AZ33: =VLOOKUP(I33,'Kap.ber JA'!DK:DN,2,FALSE)*AY33 -> 165027.5 | BA33: =VLOOKUP(I33,'Kap.ber JA'!$DK:$DN,3,FALSE)*AY33 -> 2573228.8 | BB33: =VLOOKUP(I33,'Kap.ber JA'!$DK:$DN,4,FALSE)*AY33 -> 2738256.3 | BC33: =VLOOKUP(J33,'Kap.ber UA'!$DJ:$DM,2,FALSE)*AY33 -> 165027.5 | BD33: =VLOOKUP(J33,'Kap.ber UA'!$DJ:$DM,3,FALSE)*AY33 -> 2573228.8 | BE33: =VLOOKUP(J33,'Kap.ber UA'!$DJ:$DM,4,FALSE)*AY33 -> 2738256.3 | BF33: =IF('Beskrivning av åtgärd'!C$23="Persontrafik",BA33,IF('Beskrivning av åtgärd'!$C$23="Godstrafik",AZ33,BB33)) -> 2738256.3 | BG33: =IF('Beskrivning av åtgärd'!$C$23="Persontrafik",BD33,IF('Beskrivning av åtgärd'!$C$23="Godstrafik",BC33,BE33)) -> 2738256.3
A34: =Länkar_TTA!A34 -> 1415 | B34: =Länkar_TTA!B34 -> 1410 | C34: =TEXT(Länkar_TTA!C34,0) -> 14151410 | D34: =Länkar_TTA!D34 -> Skyttorp | E34: =Länkar_TTA!E34 -> Vattholma | F34: =Länkar_TTA!F34 -> 434 | G34: =Länkar_TTA!G34 -> Ostkustbanan | H34: =Länkar_TTA!H34 -> 5 | I34: =Länkar_TTA!I34 -> L1413 | J34: L1413 | T34: =+Kalkylsammanställning!G$2 -> 1 | U34: =Länkar_TTA!M34 -> Ja | V34: Ja | W34: =IFERROR(VLOOKUP(C34,Länkar_TTA!C:K,9,FALSE),0) -> 0 | X34: 0 | Y34: =+IFERROR(VLOOKUP(C34,LinjeLänk_Data!F:G,2,FALSE),"-") -> 6.139999866 | Z34: 6.139999866 | AB34: Ostkustbanan | AD34: 434 | AF34: =+VLOOKUP(C34,Länkar_TTA!N:P,2,FALSE) -> 434 | AG34: 0 | AI34: - | AJ34: Skyttorp-Vattholma | AL34: =+SUMIF('Linjelänk JA_KAP'!$H:$H,$C34,'Linjelänk JA_KAP'!CZ:CZ) -> 14 | AM34: =+SUMIF('Linjelänk JA_KAP'!$H:$H,$C34,'Linjelänk JA_KAP'!DA:DA) -> 14 | AN34: =+SUMIF('Linjelänk JA_KAP'!$H:$H,$C34,'Linjelänk JA_KAP'!DB:DB) -> 39 | AO34: =+SUMIF('Linjelänk UA_KAP'!$H:$H,$C34,'Linjelänk UA_KAP'!CZ:CZ) -> 14 | AP34: =+SUMIF('Linjelänk UA_KAP'!$H:$H,$C34,'Linjelänk UA_KAP'!DA:DA) -> 14 | AQ34: =+SUMIF('Linjelänk UA_KAP'!$H:$H,$C34,'Linjelänk UA_KAP'!DB:DB) -> 39 | AS34: =+VLOOKUP($AJ34,Länkar_TTA!$Q:$T,2,FALSE) -> 14 | AT34: =+VLOOKUP($AJ34,Länkar_TTA!$Q:$T,3,FALSE) -> 14 | AU34: =+VLOOKUP($AJ34,Länkar_TTA!$Q:$T,4,FALSE) -> 39 | AX34: 131641.5971 | AY34: =VLOOKUP(I34,Bangods_linjedel!B:F,5,FALSE) -> 60.01 | AZ34: =VLOOKUP(I34,'Kap.ber JA'!DK:DN,2,FALSE)*AY34 -> 165027.5 | BA34: =VLOOKUP(I34,'Kap.ber JA'!$DK:$DN,3,FALSE)*AY34 -> 2573228.8 | BB34: =VLOOKUP(I34,'Kap.ber JA'!$DK:$DN,4,FALSE)*AY34 -> 2738256.3 | BC34: =VLOOKUP(J34,'Kap.ber UA'!$DJ:$DM,2,FALSE)*AY34 -> 165027.5 | BD34: =VLOOKUP(J34,'Kap.ber UA'!$DJ:$DM,3,FALSE)*AY34 -> 2573228.8 | BE34: =VLOOKUP(J34,'Kap.ber UA'!$DJ:$DM,4,FALSE)*AY34 -> 2738256.3 | BF34: =IF('Beskrivning av åtgärd'!C$23="Persontrafik",BA34,IF('Beskrivning av åtgärd'!$C$23="Godstrafik",AZ34,BB34)) -> 2738256.3 | BG34: =IF('Beskrivning av åtgärd'!$C$23="Persontrafik",BD34,IF('Beskrivning av åtgärd'!$C$23="Godstrafik",BC34,BE34)) -> 2738256.3
A35: =Länkar_TTA!A35 -> 1415 | B35: =Länkar_TTA!B35 -> 6610 | C35: =TEXT(Länkar_TTA!C35,0) -> 14156610 | D35: =Länkar_TTA!D35 -> Skyttorp | E35: =Länkar_TTA!E35 -> Örbyhus | F35: =Länkar_TTA!F35 -> 434 | G35: =Länkar_TTA!G35 -> Ostkustbanan | H35: =Länkar_TTA!H35 -> 5 | I35: =Länkar_TTA!I35 -> L1413 | J35: L1413 | T35: =+Kalkylsammanställning!G$2 -> 1 | U35: =Länkar_TTA!M35 -> Ja | V35: Ja | W35: =IFERROR(VLOOKUP(C35,Länkar_TTA!C:K,9,FALSE),0) -> 0 | X35: 0 | Y35: =+IFERROR(VLOOKUP(C35,LinjeLänk_Data!F:G,2,FALSE),"-") -> 17.22999954 | Z35: 17.22999954 | AB35: Ostkustbanan | AD35: 434 | AF35: =+VLOOKUP(C35,Länkar_TTA!N:P,2,FALSE) -> 434 | AG35: 0 | AI35: - | AJ35: Skyttorp-Örbyhus | AL35: =+SUMIF('Linjelänk JA_KAP'!$H:$H,$C35,'Linjelänk JA_KAP'!CZ:CZ) -> 14 | AM35: =+SUMIF('Linjelänk JA_KAP'!$H:$H,$C35,'Linjelänk JA_KAP'!DA:DA) -> 14 | AN35: =+SUMIF('Linjelänk JA_KAP'!$H:$H,$C35,'Linjelänk JA_KAP'!DB:DB) -> 39 | AO35: =+SUMIF('Linjelänk UA_KAP'!$H:$H,$C35,'Linjelänk UA_KAP'!CZ:CZ) -> 14 | AP35: =+SUMIF('Linjelänk UA_KAP'!$H:$H,$C35,'Linjelänk UA_KAP'!DA:DA) -> 14 | AQ35: =+SUMIF('Linjelänk UA_KAP'!$H:$H,$C35,'Linjelänk UA_KAP'!DB:DB) -> 39 | AS35: =+VLOOKUP($AJ35,Länkar_TTA!$Q:$T,2,FALSE) -> 14 | AT35: =+VLOOKUP($AJ35,Länkar_TTA!$Q:$T,3,FALSE) -> 14 | AU35: =+VLOOKUP($AJ35,Länkar_TTA!$Q:$T,4,FALSE) -> 39 | AX35: 369411.1902 | AY35: =VLOOKUP(I35,Bangods_linjedel!B:F,5,FALSE) -> 60.01 | AZ35: =VLOOKUP(I35,'Kap.ber JA'!DK:DN,2,FALSE)*AY35 -> 165027.5 | BA35: =VLOOKUP(I35,'Kap.ber JA'!$DK:$DN,3,FALSE)*AY35 -> 2573228.8 | BB35: =VLOOKUP(I35,'Kap.ber JA'!$DK:$DN,4,FALSE)*AY35 -> 2738256.3 | BC35: =VLOOKUP(J35,'Kap.ber UA'!$DJ:$DM,2,FALSE)*AY35 -> 165027.5 | BD35: =VLOOKUP(J35,'Kap.ber UA'!$DJ:$DM,3,FALSE)*AY35 -> 2573228.8 | BE35: =VLOOKUP(J35,'Kap.ber UA'!$DJ:$DM,4,FALSE)*AY35 -> 2738256.3 | BF35: =IF('Beskrivning av åtgärd'!C$23="Persontrafik",BA35,IF('Beskrivning av åtgärd'!$C$23="Godstrafik",AZ35,BB35)) -> 2738256.3 | BG35: =IF('Beskrivning av åtgärd'!$C$23="Persontrafik",BD35,IF('Beskrivning av åtgärd'!$C$23="Godstrafik",BC35,BE35)) -> 2738256.3
A36: =Länkar_TTA!A36 -> 1418 | B36: =Länkar_TTA!B36 -> 1407 | C36: =TEXT(Länkar_TTA!C36,0) -> 14181407 | D36: =Länkar_TTA!D36 -> Järlåsa | E36: =Länkar_TTA!E36 -> Brunna | F36: =Länkar_TTA!F36 -> 431 | G36: =Länkar_TTA!G36 -> Dalabanan | H36: =Länkar_TTA!H36 -> 6 | I36: =Länkar_TTA!I36 -> L2000 | J36: L2000 | T36: =+Kalkylsammanställning!G$2 -> 1 | U36: =Länkar_TTA!M36 -> Ja | V36: Ja | W36: =IFERROR(VLOOKUP(C36,Länkar_TTA!C:K,9,FALSE),0) -> 0 | X36: 0 | Y36: =+IFERROR(VLOOKUP(C36,LinjeLänk_Data!F:G,2,FALSE),"-") -> 13.18000031 | Z36: 13.18000031 | AB36: Dalabanan | AD36: 431 | AF36: =+VLOOKUP(C36,Länkar_TTA!N:P,2,FALSE) -> 431 | AG36: 0 | AI36: - | AJ36: Järlåsa-Brunna | AL36: =+SUMIF('Linjelänk JA_KAP'!$H:$H,$C36,'Linjelänk JA_KAP'!CZ:CZ) -> 8 | AM36: =+SUMIF('Linjelänk JA_KAP'!$H:$H,$C36,'Linjelänk JA_KAP'!DA:DA) -> 16 | AN36: =+SUMIF('Linjelänk JA_KAP'!$H:$H,$C36,'Linjelänk JA_KAP'!DB:DB) -> 0 | AO36: =+SUMIF('Linjelänk UA_KAP'!$H:$H,$C36,'Linjelänk UA_KAP'!CZ:CZ) -> 8 | AP36: =+SUMIF('Linjelänk UA_KAP'!$H:$H,$C36,'Linjelänk UA_KAP'!DA:DA) -> 16 | AQ36: =+SUMIF('Linjelänk UA_KAP'!$H:$H,$C36,'Linjelänk UA_KAP'!DB:DB) -> 0 | AS36: =+VLOOKUP($AJ36,Länkar_TTA!$Q:$T,2,FALSE) -> 8 | AT36: =+VLOOKUP($AJ36,Länkar_TTA!$Q:$T,3,FALSE) -> 16 | AU36: =+VLOOKUP($AJ36,Länkar_TTA!$Q:$T,4,FALSE) -> 0 | AX36: 101222.4023 | AY36: =VLOOKUP(I36,Bangods_linjedel!B:F,5,FALSE) -> 61.35 | AZ36: =VLOOKUP(I36,'Kap.ber JA'!DK:DN,2,FALSE)*AY36 -> 6288.375 | BA36: =VLOOKUP(I36,'Kap.ber JA'!$DK:$DN,3,FALSE)*AY36 -> 942336 | BB36: =VLOOKUP(I36,'Kap.ber JA'!$DK:$DN,4,FALSE)*AY36 -> 948624.375 | BC36: =VLOOKUP(J36,'Kap.ber UA'!$DJ:$DM,2,FALSE)*AY36 -> 6288.375 | BD36: =VLOOKUP(J36,'Kap.ber UA'!$DJ:$DM,3,FALSE)*AY36 -> 942336 | BE36: =VLOOKUP(J36,'Kap.ber UA'!$DJ:$DM,4,FALSE)*AY36 -> 948624.375 | BF36: =IF('Beskrivning av åtgärd'!C$23="Persontrafik",BA36,IF('Beskrivning av åtgärd'!$C$23="Godstrafik",AZ36,BB36)) -> 948624.375 | BG36: =IF('Beskrivning av åtgärd'!$C$23="Persontrafik",BD36,IF('Beskrivning av åtgärd'!$C$23="Godstrafik",BC36,BE36)) -> 948624.375
A37: =Länkar_TTA!A37 -> 1418 | B37: =Länkar_TTA!B37 -> 6103 | C37: =TEXT(Länkar_TTA!C37,0) -> 14186103 | D37: =Länkar_TTA!D37 -> Järlåsa | E37: =Länkar_TTA!E37 -> Morgongåva | F37: =Länkar_TTA!F37 -> 431 | G37: =Länkar_TTA!G37 -> Dalabanan | H37: =Länkar_TTA!H37 -> 6 | I37: =Länkar_TTA!I37 -> L2000 | J37: L2000 | T37: =+Kalkylsammanställning!G$2 -> 1 | U37: =Länkar_TTA!M37 -> Ja | V37: Ja | W37: =IFERROR(VLOOKUP(C37,Länkar_TTA!C:K,9,FALSE),0) -> 0 | X37: 0 | Y37: =+IFERROR(VLOOKUP(C37,LinjeLänk_Data!F:G,2,FALSE),"-") -> 14.78999996 | Z37: 14.78999996 | AB37: Dalabanan | AD37: 431 | AF37: =+VLOOKUP(C37,Länkar_TTA!N:P,2,FALSE) -> 431 | AG37: 0 | AI37: - | AJ37: Järlåsa-Morgongåva | AL37: =+SUMIF('Linjelänk JA_KAP'!$H:$H,$C37,'Linjelänk JA_KAP'!CZ:CZ) -> 8 | AM37: =+SUMIF('Linjelänk JA_KAP'!$H:$H,$C37,'Linjelänk JA_KAP'!DA:DA) -> 16 | AN37: =+SUMIF('Linjelänk JA_KAP'!$H:$H,$C37,'Linjelänk JA_KAP'!DB:DB) -> 0 | AO37: =+SUMIF('Linjelänk UA_KAP'!$H:$H,$C37,'Linjelänk UA_KAP'!CZ:CZ) -> 8 | AP37: =+SUMIF('Linjelänk UA_KAP'!$H:$H,$C37,'Linjelänk UA_KAP'!DA:DA) -> 16 | AQ37: =+SUMIF('Linjelänk UA_KAP'!$H:$H,$C37,'Linjelänk UA_KAP'!DB:DB) -> 0 | AS37: =+VLOOKUP($AJ37,Länkar_TTA!$Q:$T,2,FALSE) -> 8 | AT37: =+VLOOKUP($AJ37,Länkar_TTA!$Q:$T,3,FALSE) -> 16 | AU37: =+VLOOKUP($AJ37,Länkar_TTA!$Q:$T,4,FALSE) -> 0 | AX37: 113587.1997 | AY37: =VLOOKUP(I37,Bangods_linjedel!B:F,5,FALSE) -> 61.35 | AZ37: =VLOOKUP(I37,'Kap.ber JA'!DK:DN,2,FALSE)*AY37 -> 6288.375 | BA37: =VLOOKUP(I37,'Kap.ber JA'!$DK:$DN,3,FALSE)*AY37 -> 942336 | BB37: =VLOOKUP(I37,'Kap.ber JA'!$DK:$DN,4,FALSE)*AY37 -> 948624.375 | BC37: =VLOOKUP(J37,'Kap.ber UA'!$DJ:$DM,2,FALSE)*AY37 -> 6288.375 | BD37: =VLOOKUP(J37,'Kap.ber UA'!$DJ:$DM,3,FALSE)*AY37 -> 942336 | BE37: =VLOOKUP(J37,'Kap.ber UA'!$DJ:$DM,4,FALSE)*AY37 -> 948624.375 | BF37: =IF('Beskrivning av åtgärd'!C$23="Persontrafik",BA37,IF('Beskrivning av åtgärd'!$C$23="Godstrafik",AZ37,BB37)) -> 948624.375 | BG37: =IF('Beskrivning av åtgärd'!$C$23="Persontrafik",BD37,IF('Beskrivning av åtgärd'!$C$23="Godstrafik",BC37,BE37)) -> 948624.375
A38: =Länkar_TTA!A38 -> 1419 | B38: =Länkar_TTA!B38 -> 1201 | C38: =TEXT(Länkar_TTA!C38,0) -> 14191201 | D38: =Länkar_TTA!D38 -> Hargshamn | E38: =Länkar_TTA!E38 -> Hallstavik | F38: =Länkar_TTA!F38 -> 435 | G38: =Länkar_TTA!G38 -> Hargshamnsbanan | H38: =Länkar_TTA!H38 -> 55 | I38: =Länkar_TTA!I38 -> L1600 | J38: L1600 | T38: =+Kalkylsammanställning!G$2 -> 1 | U38: =Länkar_TTA!M38 -> Nej | V38: Nej | W38: =IFERROR(VLOOKUP(C38,Länkar_TTA!C:K,9,FALSE),0) -> 0 | X38: 0 | Y38: =+IFERROR(VLOOKUP(C38,LinjeLänk_Data!F:G,2,FALSE),"-") -> - | Z38: - | AB38: Hargshamnsbanan | AD38: 435 | AF38: =+VLOOKUP(C38,Länkar_TTA!N:P,2,FALSE) -> 435 | AG38: 0 | AI38: - | AJ38: Hargshamn-Hallstavik | AL38: =+SUMIF('Linjelänk JA_KAP'!$H:$H,$C38,'Linjelänk JA_KAP'!CZ:CZ) -> 0 | AM38: =+SUMIF('Linjelänk JA_KAP'!$H:$H,$C38,'Linjelänk JA_KAP'!DA:DA) -> 0 | AN38: =+SUMIF('Linjelänk JA_KAP'!$H:$H,$C38,'Linjelänk JA_KAP'!DB:DB) -> 0 | AO38: =+SUMIF('Linjelänk UA_KAP'!$H:$H,$C38,'Linjelänk UA_KAP'!CZ:CZ) -> 0 | AP38: =+SUMIF('Linjelänk UA_KAP'!$H:$H,$C38,'Linjelänk UA_KAP'!DA:DA) -> 0 | AQ38: =+SUMIF('Linjelänk UA_KAP'!$H:$H,$C38,'Linjelänk UA_KAP'!DB:DB) -> 0 | AS38: =+VLOOKUP($AJ38,Länkar_TTA!$Q:$T,2,FALSE) -> 0 | AT38: =+VLOOKUP($AJ38,Länkar_TTA!$Q:$T,3,FALSE) -> 0 | AU38: =+VLOOKUP($AJ38,Länkar_TTA!$Q:$T,4,FALSE) -> 0 | AY38: =VLOOKUP(I38,Bangods_linjedel!B:F,5,FALSE) -> 62.99 | AZ38: =VLOOKUP(I38,'Kap.ber JA'!DK:DN,2,FALSE)*AY38 -> 0 | BA38: =VLOOKUP(I38,'Kap.ber JA'!$DK:$DN,3,FALSE)*AY38 -> 0 | BB38: =VLOOKUP(I38,'Kap.ber JA'!$DK:$DN,4,FALSE)*AY38 -> 0 | BC38: =VLOOKUP(J38,'Kap.ber UA'!$DJ:$DM,2,FALSE)*AY38 -> 0 | BD38: =VLOOKUP(J38,'Kap.ber UA'!$DJ:$DM,3,FALSE)*AY38 -> 0 | BE38: =VLOOKUP(J38,'Kap.ber UA'!$DJ:$DM,4,FALSE)*AY38 -> 0 | BF38: =IF('Beskrivning av åtgärd'!C$23="Persontrafik",BA38,IF('Beskrivning av åtgärd'!$C$23="Godstrafik",AZ38,BB38)) -> 0 | BG38: =IF('Beskrivning av åtgärd'!$C$23="Persontrafik",BD38,IF('Beskrivning av åtgärd'!$C$23="Godstrafik",BC38,BE38)) -> 0
A39: =Länkar_TTA!A39 -> 1421 | B39: =Länkar_TTA!B39 -> 1406 | C39: =TEXT(Länkar_TTA!C39,0) -> 14211406 | D39: =Länkar_TTA!D39 -> Vänge | E39: =Länkar_TTA!E39 -> Uppsala Norra | F39: =Länkar_TTA!F39 -> 431 | G39: =Länkar_TTA!G39 -> Dalabanan | H39: =Länkar_TTA!H39 -> 6 | I39: =Länkar_TTA!I39 -> L2000 | J39: L2000 | T39: =+Kalkylsammanställning!G$2 -> 1 | U39: =Länkar_TTA!M39 -> Ja | V39: Ja | W39: =IFERROR(VLOOKUP(C39,Länkar_TTA!C:K,9,FALSE),0) -> 0 | X39: 0 | Y39: =+IFERROR(VLOOKUP(C39,LinjeLänk_Data!F:G,2,FALSE),"-") -> 9.659999847 | Z39: 9.659999847 | AB39: Dalabanan | AD39: 431 | AF39: =+VLOOKUP(C39,Länkar_TTA!N:P,2,FALSE) -> 431 | AG39: 0 | AI39: - | AJ39: Vänge-Uppsala Norra | AL39: =+SUMIF('Linjelänk JA_KAP'!$H:$H,$C39,'Linjelänk JA_KAP'!CZ:CZ) -> 8 | AM39: =+SUMIF('Linjelänk JA_KAP'!$H:$H,$C39,'Linjelänk JA_KAP'!DA:DA) -> 16 | AN39: =+SUMIF('Linjelänk JA_KAP'!$H:$H,$C39,'Linjelänk JA_KAP'!DB:DB) -> 0 | AO39: =+SUMIF('Linjelänk UA_KAP'!$H:$H,$C39,'Linjelänk UA_KAP'!CZ:CZ) -> 8 | AP39: =+SUMIF('Linjelänk UA_KAP'!$H:$H,$C39,'Linjelänk UA_KAP'!DA:DA) -> 16 | AQ39: =+SUMIF('Linjelänk UA_KAP'!$H:$H,$C39,'Linjelänk UA_KAP'!DB:DB) -> 0 | AS39: =+VLOOKUP($AJ39,Länkar_TTA!$Q:$T,2,FALSE) -> 8 | AT39: =+VLOOKUP($AJ39,Länkar_TTA!$Q:$T,3,FALSE) -> 16 | AU39: =+VLOOKUP($AJ39,Länkar_TTA!$Q:$T,4,FALSE) -> 0 | AX39: 74188.79883 | AY39: =VLOOKUP(I39,Bangods_linjedel!B:F,5,FALSE) -> 61.35 | AZ39: =VLOOKUP(I39,'Kap.ber JA'!DK:DN,2,FALSE)*AY39 -> 6288.375 | BA39: =VLOOKUP(I39,'Kap.ber JA'!$DK:$DN,3,FALSE)*AY39 -> 942336 | BB39: =VLOOKUP(I39,'Kap.ber JA'!$DK:$DN,4,FALSE)*AY39 -> 948624.375 | BC39: =VLOOKUP(J39,'Kap.ber UA'!$DJ:$DM,2,FALSE)*AY39 -> 6288.375 | BD39: =VLOOKUP(J39,'Kap.ber UA'!$DJ:$DM,3,FALSE)*AY39 -> 942336 | BE39: =VLOOKUP(J39,'Kap.ber UA'!$DJ:$DM,4,FALSE)*AY39 -> 948624.375 | BF39: =IF('Beskrivning av åtgärd'!C$23="Persontrafik",BA39,IF('Beskrivning av åtgärd'!$C$23="Godstrafik",AZ39,BB39)) -> 948624.375 | BG39: =IF('Beskrivning av åtgärd'!$C$23="Persontrafik",BD39,IF('Beskrivning av åtgärd'!$C$23="Godstrafik",BC39,BE39)) -> 948624.375
A40: =Länkar_TTA!A40 -> 1421 | B40: =Länkar_TTA!B40 -> 1407 | C40: =TEXT(Länkar_TTA!C40,0) -> 14211407 | D40: =Länkar_TTA!D40 -> Vänge | E40: =Länkar_TTA!E40 -> Brunna | F40: =Länkar_TTA!F40 -> 431 | G40: =Länkar_TTA!G40 -> Dalabanan | H40: =Länkar_TTA!H40 -> 6 | I40: =Länkar_TTA!I40 -> L2000 | J40: L2000 | T40: =+Kalkylsammanställning!G$2 -> 1 | U40: =Länkar_TTA!M40 -> Ja | V40: Ja | W40: =IFERROR(VLOOKUP(C40,Länkar_TTA!C:K,9,FALSE),0) -> 0 | X40: 0 | Y40: =+IFERROR(VLOOKUP(C40,LinjeLänk_Data!F:G,2,FALSE),"-") -> 0.8500000238 | Z40: 0.8500000238 | AB40: Dalabanan | AD40: 431 | AF40: =+VLOOKUP(C40,Länkar_TTA!N:P,2,FALSE) -> 431 | AG40: 0 | AI40: - | AJ40: Vänge-Brunna | AL40: =+SUMIF('Linjelänk JA_KAP'!$H:$H,$C40,'Linjelänk JA_KAP'!CZ:CZ) -> 8 | AM40: =+SUMIF('Linjelänk JA_KAP'!$H:$H,$C40,'Linjelänk JA_KAP'!DA:DA) -> 16 | AN40: =+SUMIF('Linjelänk JA_KAP'!$H:$H,$C40,'Linjelänk JA_KAP'!DB:DB) -> 0 | AO40: =+SUMIF('Linjelänk UA_KAP'!$H:$H,$C40,'Linjelänk UA_KAP'!CZ:CZ) -> 8 | AP40: =+SUMIF('Linjelänk UA_KAP'!$H:$H,$C40,'Linjelänk UA_KAP'!DA:DA) -> 16 | AQ40: =+SUMIF('Linjelänk UA_KAP'!$H:$H,$C40,'Linjelänk UA_KAP'!DB:DB) -> 0 | AS40: =+VLOOKUP($AJ40,Länkar_TTA!$Q:$T,2,FALSE) -> 8 | AT40: =+VLOOKUP($AJ40,Länkar_TTA!$Q:$T,3,FALSE) -> 16 | AU40: =+VLOOKUP($AJ40,Länkar_TTA!$Q:$T,4,FALSE) -> 0 | AX40: 6528.000183 | AY40: =VLOOKUP(I40,Bangods_linjedel!B:F,5,FALSE) -> 61.35 | AZ40: =VLOOKUP(I40,'Kap.ber JA'!DK:DN,2,FALSE)*AY40 -> 6288.375 | BA40: =VLOOKUP(I40,'Kap.ber JA'!$DK:$DN,3,FALSE)*AY40 -> 942336 | BB40: =VLOOKUP(I40,'Kap.ber JA'!$DK:$DN,4,FALSE)*AY40 -> 948624.375 | BC40: =VLOOKUP(J40,'Kap.ber UA'!$DJ:$DM,2,FALSE)*AY40 -> 6288.375 | BD40: =VLOOKUP(J40,'Kap.ber UA'!$DJ:$DM,3,FALSE)*AY40 -> 942336 | BE40: =VLOOKUP(J40,'Kap.ber UA'!$DJ:$DM,4,FALSE)*AY40 -> 948624.375 | BF40: =IF('Beskrivning av åtgärd'!C$23="Persontrafik",BA40,IF('Beskrivning av åtgärd'!$C$23="Godstrafik",AZ40,BB40)) -> 948624.375 | BG40: =IF('Beskrivning av åtgärd'!$C$23="Persontrafik",BD40,IF('Beskrivning av åtgärd'!$C$23="Godstrafik",BC40,BE40)) -> 948624.375
A41: =Länkar_TTA!A41 -> 1422 | B41: =Länkar_TTA!B41 -> 1405 | C41: =TEXT(Länkar_TTA!C41,0) -> 14221405 | D41: =Länkar_TTA!D41 -> Dannemora | E41: =Länkar_TTA!E41 -> Gimo | F41: =Länkar_TTA!F41 -> 435 | G41: =Länkar_TTA!G41 -> Hargshamnsbanan | H41: =Länkar_TTA!H41 -> 55 | I41: =Länkar_TTA!I41 -> L1600 | J41: L1600 | T41: =+Kalkylsammanställning!G$2 -> 1 | U41: =Länkar_TTA!M41 -> Nej | V41: Nej | W41: =IFERROR(VLOOKUP(C41,Länkar_TTA!C:K,9,FALSE),0) -> 0 | X41: 0 | Y41: =+IFERROR(VLOOKUP(C41,LinjeLänk_Data!F:G,2,FALSE),"-") -> - | Z41: - | AB41: Hargshamnsbanan | AD41: 435 | AF41: =+VLOOKUP(C41,Länkar_TTA!N:P,2,FALSE) -> 435 | AG41: 0 | AI41: - | AJ41: Dannemora-Gimo | AL41: =+SUMIF('Linjelänk JA_KAP'!$H:$H,$C41,'Linjelänk JA_KAP'!CZ:CZ) -> 0 | AM41: =+SUMIF('Linjelänk JA_KAP'!$H:$H,$C41,'Linjelänk JA_KAP'!DA:DA) -> 0 | AN41: =+SUMIF('Linjelänk JA_KAP'!$H:$H,$C41,'Linjelänk JA_KAP'!DB:DB) -> 0 | AO41: =+SUMIF('Linjelänk UA_KAP'!$H:$H,$C41,'Linjelänk UA_KAP'!CZ:CZ) -> 0 | AP41: =+SUMIF('Linjelänk UA_KAP'!$H:$H,$C41,'Linjelänk UA_KAP'!DA:DA) -> 0 | AQ41: =+SUMIF('Linjelänk UA_KAP'!$H:$H,$C41,'Linjelänk UA_KAP'!DB:DB) -> 0 | AS41: =+VLOOKUP($AJ41,Länkar_TTA!$Q:$T,2,FALSE) -> 0 | AT41: =+VLOOKUP($AJ41,Länkar_TTA!$Q:$T,3,FALSE) -> 0 | AU41: =+VLOOKUP($AJ41,Länkar_TTA!$Q:$T,4,FALSE) -> 0 | AY41: =VLOOKUP(I41,Bangods_linjedel!B:F,5,FALSE) -> 62.99 | AZ41: =VLOOKUP(I41,'Kap.ber JA'!DK:DN,2,FALSE)*AY41 -> 0 | BA41: =VLOOKUP(I41,'Kap.ber JA'!$DK:$DN,3,FALSE)*AY41 -> 0 | BB41: =VLOOKUP(I41,'Kap.ber JA'!$DK:$DN,4,FALSE)*AY41 -> 0 | BC41: =VLOOKUP(J41,'Kap.ber UA'!$DJ:$DM,2,FALSE)*AY41 -> 0 | BD41: =VLOOKUP(J41,'Kap.ber UA'!$DJ:$DM,3,FALSE)*AY41 -> 0 | BE41: =VLOOKUP(J41,'Kap.ber UA'!$DJ:$DM,4,FALSE)*AY41 -> 0 | BF41: =IF('Beskrivning av åtgärd'!C$23="Persontrafik",BA41,IF('Beskrivning av åtgärd'!$C$23="Godstrafik",AZ41,BB41)) -> 0 | BG41: =IF('Beskrivning av åtgärd'!$C$23="Persontrafik",BD41,IF('Beskrivning av åtgärd'!$C$23="Godstrafik",BC41,BE41)) -> 0
A42: =Länkar_TTA!A42 -> 1500 | B42: =Länkar_TTA!B42 -> 1518 | C42: =TEXT(Länkar_TTA!C42,0) -> 15001518 | D42: =Länkar_TTA!D42 -> Nyköpings Central | E42: =Länkar_TTA!E42 -> Sjösa | F42: =Länkar_TTA!F42 -> 421 | G42: =Länkar_TTA!G42 -> Södra stambanan | H42: =Länkar_TTA!H42 -> 2 | I42: =Länkar_TTA!I42 -> L4800 | J42: L4800 | T42: =+Kalkylsammanställning!G$2 -> 1 | U42: =Länkar_TTA!M42 -> Ja | V42: Ja | W42: =IFERROR(VLOOKUP(C42,Länkar_TTA!C:K,9,FALSE),0) -> 0 | X42: 0 | Y42: =+IFERROR(VLOOKUP(C42,LinjeLänk_Data!F:G,2,FALSE),"-") -> 8.164839745 | Z42: 8.164839745 | AB42: Södra stambanan | AD42: 421 | AF42: =+VLOOKUP(C42,Länkar_TTA!N:P,2,FALSE) -> 421 | AG42: 0 | AI42: - | AJ42: Nyköpings Central-Sjösa | AL42: =+SUMIF('Linjelänk JA_KAP'!$H:$H,$C42,'Linjelänk JA_KAP'!CZ:CZ) -> 0 | AM42: =+SUMIF('Linjelänk JA_KAP'!$H:$H,$C42,'Linjelänk JA_KAP'!DA:DA) -> 19 | AN42: =+SUMIF('Linjelänk JA_KAP'!$H:$H,$C42,'Linjelänk JA_KAP'!DB:DB) -> 0 | AO42: =+SUMIF('Linjelänk UA_KAP'!$H:$H,$C42,'Linjelänk UA_KAP'!CZ:CZ) -> 0 | AP42: =+SUMIF('Linjelänk UA_KAP'!$H:$H,$C42,'Linjelänk UA_KAP'!DA:DA) -> 19 | AQ42: =+SUMIF('Linjelänk UA_KAP'!$H:$H,$C42,'Linjelänk UA_KAP'!DB:DB) -> 0 | AS42: =+VLOOKUP($AJ42,Länkar_TTA!$Q:$T,2,FALSE) -> 0 | AT42: =+VLOOKUP($AJ42,Länkar_TTA!$Q:$T,3,FALSE) -> 19 | AU42: =+VLOOKUP($AJ42,Länkar_TTA!$Q:$T,4,FALSE) -> 0 | AX42: 49642.22565 | AY42: =VLOOKUP(I42,Bangods_linjedel!B:F,5,FALSE) -> 57.96 | AZ42: =VLOOKUP(I42,'Kap.ber JA'!DK:DN,2,FALSE)*AY42 -> 37239.3 | BA42: =VLOOKUP(I42,'Kap.ber JA'!$DK:$DN,3,FALSE)*AY42 -> 704793.6 | BB42: =VLOOKUP(I42,'Kap.ber JA'!$DK:$DN,4,FALSE)*AY42 -> 742032.9 | BC42: =VLOOKUP(J42,'Kap.ber UA'!$DJ:$DM,2,FALSE)*AY42 -> 37239.3 | BD42: =VLOOKUP(J42,'Kap.ber UA'!$DJ:$DM,3,FALSE)*AY42 -> 704793.6 | BE42: =VLOOKUP(J42,'Kap.ber UA'!$DJ:$DM,4,FALSE)*AY42 -> 742032.9 | BF42: =IF('Beskrivning av åtgärd'!C$23="Persontrafik",BA42,IF('Beskrivning av åtgärd'!$C$23="Godstrafik",AZ42,BB42)) -> 742032.9 | BG42: =IF('Beskrivning av åtgärd'!$C$23="Persontrafik",BD42,IF('Beskrivning av åtgärd'!$C$23="Godstrafik",BC42,BE42)) -> 742032.9
A43: =Länkar_TTA!A43 -> 1500 | B43: =Länkar_TTA!B43 -> 1519 | C43: =TEXT(Länkar_TTA!C43,0) -> 15001519 | D43: =Länkar_TTA!D43 -> Nyköpings Central | E43: =Länkar_TTA!E43 -> Enstaberga | F43: =Länkar_TTA!F43 -> 421 | G43: =Länkar_TTA!G43 -> Södra stambanan | H43: =Länkar_TTA!H43 -> 2 | I43: =Länkar_TTA!I43 -> L4815 | J43: L4815 | T43: =+Kalkylsammanställning!G$2 -> 1 | U43: =Länkar_TTA!M43 -> Ja | V43: Ja | W43: =IFERROR(VLOOKUP(C43,Länkar_TTA!C:K,9,FALSE),0) -> 0 | X43: 0 | Y43: =+IFERROR(VLOOKUP(C43,LinjeLänk_Data!F:G,2,FALSE),"-") -> 8.449999809 | Z43: 8.449999809 | AB43: Södra stambanan | AD43: 421 | AF43: =+VLOOKUP(C43,Länkar_TTA!N:P,2,FALSE) -> 421 | AG43: 0 | AI43: - | AJ43: Nyköpings Central-Enstaberga | AL43: =+SUMIF('Linjelänk JA_KAP'!$H:$H,$C43,'Linjelänk JA_KAP'!CZ:CZ) -> 0 | AM43: =+SUMIF('Linjelänk JA_KAP'!$H:$H,$C43,'Linjelänk JA_KAP'!DA:DA) -> 17 | AN43: =+SUMIF('Linjelänk JA_KAP'!$H:$H,$C43,'Linjelänk JA_KAP'!DB:DB) -> 0 | AO43: =+SUMIF('Linjelänk UA_KAP'!$H:$H,$C43,'Linjelänk UA_KAP'!CZ:CZ) -> 0 | AP43: =+SUMIF('Linjelänk UA_KAP'!$H:$H,$C43,'Linjelänk UA_KAP'!DA:DA) -> 17 | AQ43: =+SUMIF('Linjelänk UA_KAP'!$H:$H,$C43,'Linjelänk UA_KAP'!DB:DB) -> 0 | AS43: =+VLOOKUP($AJ43,Länkar_TTA!$Q:$T,2,FALSE) -> 0 | AT43: =+VLOOKUP($AJ43,Länkar_TTA!$Q:$T,3,FALSE) -> 17 | AU43: =+VLOOKUP($AJ43,Länkar_TTA!$Q:$T,4,FALSE) -> 0 | AX43: 45967.99896 | AY43: =VLOOKUP(I43,Bangods_linjedel!B:F,5,FALSE) -> 53.99 | AZ43: =VLOOKUP(I43,'Kap.ber JA'!DK:DN,2,FALSE)*AY43 -> 64113.125 | BA43: =VLOOKUP(I43,'Kap.ber JA'!$DK:$DN,3,FALSE)*AY43 -> 587411.2 | BB43: =VLOOKUP(I43,'Kap.ber JA'!$DK:$DN,4,FALSE)*AY43 -> 651524.325 | BC43: =VLOOKUP(J43,'Kap.ber UA'!$DJ:$DM,2,FALSE)*AY43 -> 64113.125 | BD43: =VLOOKUP(J43,'Kap.ber UA'!$DJ:$DM,3,FALSE)*AY43 -> 587411.2 | BE43: =VLOOKUP(J43,'Kap.ber UA'!$DJ:$DM,4,FALSE)*AY43 -> 651524.325 | BF43: =IF('Beskrivning av åtgärd'!C$23="Persontrafik",BA43,IF('Beskrivning av åtgärd'!$C$23="Godstrafik",AZ43,BB43)) -> 651524.325 | BG43: =IF('Beskrivning av åtgärd'!$C$23="Persontrafik",BD43,IF('Beskrivning av åtgärd'!$C$23="Godstrafik",BC43,BE43)) -> 651524.325
A44: =Länkar_TTA!A44 -> 1500 | B44: =Länkar_TTA!B44 -> 9386 | C44: =TEXT(Länkar_TTA!C44,0) -> 15009386 | D44: =Länkar_TTA!D44 -> Nyköpings Central | E44: =Länkar_TTA!E44 -> Nyköping Södra | F44: =Länkar_TTA!F44 -> 492 | G44: =Länkar_TTA!G44 -> (Sala)-Oxelösund(Sala)-Oxelösund | H44: =Länkar_TTA!H44 -> 18218 | I44: =Länkar_TTA!I44 -> 0 | J44: 0 | T44: =+Kalkylsammanställning!G$2 -> 1 | U44: =Länkar_TTA!M44 -> Ja | V44: Ja | W44: =IFERROR(VLOOKUP(C44,Länkar_TTA!C:K,9,FALSE),0) -> 0 | X44: 0 | Y44: =+IFERROR(VLOOKUP(C44,LinjeLänk_Data!F:G,2,FALSE),"-") -> - | Z44: - | AB44: (Sala)-Oxelösund(Sala)-Oxelösund | AD44: 492 | AF44: =+VLOOKUP(C44,Länkar_TTA!N:P,2,FALSE) -> 492 | AG44: 0 | AI44: - | AJ44: Nyköpings Central-Nyköping Södra | AL44: =+SUMIF('Linjelänk JA_KAP'!$H:$H,$C44,'Linjelänk JA_KAP'!CZ:CZ) -> 0 | AM44: =+SUMIF('Linjelänk JA_KAP'!$H:$H,$C44,'Linjelänk JA_KAP'!DA:DA) -> 0 | AN44: =+SUMIF('Linjelänk JA_KAP'!$H:$H,$C44,'Linjelänk JA_KAP'!DB:DB) -> 0 | AO44: =+SUMIF('Linjelänk UA_KAP'!$H:$H,$C44,'Linjelänk UA_KAP'!CZ:CZ) -> 0 | AP44: =+SUMIF('Linjelänk UA_KAP'!$H:$H,$C44,'Linjelänk UA_KAP'!DA:DA) -> 0 | AQ44: =+SUMIF('Linjelänk UA_KAP'!$H:$H,$C44,'Linjelänk UA_KAP'!DB:DB) -> 0 | AS44: =+VLOOKUP($AJ44,Länkar_TTA!$Q:$T,2,FALSE) -> 0 | AT44: =+VLOOKUP($AJ44,Länkar_TTA!$Q:$T,3,FALSE) -> 0 | AU44: =+VLOOKUP($AJ44,Länkar_TTA!$Q:$T,4,FALSE) -> 0 | AY44: =VLOOKUP(I44,Bangods_linjedel!B:F,5,FALSE) -> 0 | AZ44: =VLOOKUP(I44,'Kap.ber JA'!DK:DN,2,FALSE)*AY44 -> 0 | BA44: =VLOOKUP(I44,'Kap.ber JA'!$DK:$DN,3,FALSE)*AY44 -> 0 | BB44: =VLOOKUP(I44,'Kap.ber JA'!$DK:$DN,4,FALSE)*AY44 -> 0 | BC44: =VLOOKUP(J44,'Kap.ber UA'!$DJ:$DM,2,FALSE)*AY44 -> 0 | BD44: =VLOOKUP(J44,'Kap.ber UA'!$DJ:$DM,3,FALSE)*AY44 -> 0 | BE44: =VLOOKUP(J44,'Kap.ber UA'!$DJ:$DM,4,FALSE)*AY44 -> 0 | BF44: =IF('Beskrivning av åtgärd'!C$23="Persontrafik",BA44,IF('Beskrivning av åtgärd'!$C$23="Godstrafik",AZ44,BB44)) -> 0 | BG44: =IF('Beskrivning av åtgärd'!$C$23="Persontrafik",BD44,IF('Beskrivning av åtgärd'!$C$23="Godstrafik",BC44,BE44)) -> 0
A45: =Länkar_TTA!A45 -> 1501 | B45: =Länkar_TTA!B45 -> 1140 | C45: =TEXT(Länkar_TTA!C45,0) -> 15011140 | D45: =Länkar_TTA!D45 -> Vagnhärad | E45: =Länkar_TTA!E45 -> Hölö | F45: =Länkar_TTA!F45 -> 421 | G45: =Länkar_TTA!G45 -> Södra stambanan | H45: =Länkar_TTA!H45 -> 2 | I45: =Länkar_TTA!I45 -> L4800 | J45: L4800 | T45: =+Kalkylsammanställning!G$2 -> 1 | U45: =Länkar_TTA!M45 -> Ja | V45: Ja | W45: =IFERROR(VLOOKUP(C45,Länkar_TTA!C:K,9,FALSE),0) -> 0 | X45: 0 | Y45: =+IFERROR(VLOOKUP(C45,LinjeLänk_Data!F:G,2,FALSE),"-") -> 10.30000019 | Z45: 10.30000019 | AB45: Södra stambanan | AD45: 421 | AF45: =+VLOOKUP(C45,Länkar_TTA!N:P,2,FALSE) -> 421 | AG45: 0 | AI45: - | AJ45: Vagnhärad-Hölö | AL45: =+SUMIF('Linjelänk JA_KAP'!$H:$H,$C45,'Linjelänk JA_KAP'!CZ:CZ) -> 0 | AM45: =+SUMIF('Linjelänk JA_KAP'!$H:$H,$C45,'Linjelänk JA_KAP'!DA:DA) -> 19 | AN45: =+SUMIF('Linjelänk JA_KAP'!$H:$H,$C45,'Linjelänk JA_KAP'!DB:DB) -> 0 | AO45: =+SUMIF('Linjelänk UA_KAP'!$H:$H,$C45,'Linjelänk UA_KAP'!CZ:CZ) -> 0 | AP45: =+SUMIF('Linjelänk UA_KAP'!$H:$H,$C45,'Linjelänk UA_KAP'!DA:DA) -> 19 | AQ45: =+SUMIF('Linjelänk UA_KAP'!$H:$H,$C45,'Linjelänk UA_KAP'!DB:DB) -> 0 | AS45: =+VLOOKUP($AJ45,Länkar_TTA!$Q:$T,2,FALSE) -> 0 | AT45: =+VLOOKUP($AJ45,Länkar_TTA!$Q:$T,3,FALSE) -> 19 | AU45: =+VLOOKUP($AJ45,Länkar_TTA!$Q:$T,4,FALSE) -> 0 | AX45: 62624.00116 | AY45: =VLOOKUP(I45,Bangods_linjedel!B:F,5,FALSE) -> 57.96 | AZ45: =VLOOKUP(I45,'Kap.ber JA'!DK:DN,2,FALSE)*AY45 -> 37239.3 | BA45: =VLOOKUP(I45,'Kap.ber JA'!$DK:$DN,3,FALSE)*AY45 -> 704793.6 | BB45: =VLOOKUP(I45,'Kap.ber JA'!$DK:$DN,4,FALSE)*AY45 -> 742032.9 | BC45: =VLOOKUP(J45,'Kap.ber UA'!$DJ:$DM,2,FALSE)*AY45 -> 37239.3 | BD45: =VLOOKUP(J45,'Kap.ber UA'!$DJ:$DM,3,FALSE)*AY45 -> 704793.6 | BE45: =VLOOKUP(J45,'Kap.ber UA'!$DJ:$DM,4,FALSE)*AY45 -> 742032.9 | BF45: =IF('Beskrivning av åtgärd'!C$23="Persontrafik",BA45,IF('Beskrivning av åtgärd'!$C$23="Godstrafik",AZ45,BB45)) -> 742032.9 | BG45: =IF('Beskrivning av åtgärd'!$C$23="Persontrafik",BD45,IF('Beskrivning av åtgärd'!$C$23="Godstrafik",BC45,BE45)) -> 742032.9
A46: =Länkar_TTA!A46 -> 1501 | B46: =Länkar_TTA!B46 -> 9322 | C46: =TEXT(Länkar_TTA!C46,0) -> 15019322 | D46: =Länkar_TTA!D46 -> Vagnhärad | E46: =Länkar_TTA!E46 -> Lästringe | F46: =Länkar_TTA!F46 -> 421 | G46: =Länkar_TTA!G46 -> Södra stambanan | H46: =Länkar_TTA!H46 -> 2 | I46: =Länkar_TTA!I46 -> L4800 | J46: L4800 | T46: =+Kalkylsammanställning!G$2 -> 1 | U46: =Länkar_TTA!M46 -> Ja | V46: Ja | W46: =IFERROR(VLOOKUP(C46,Länkar_TTA!C:K,9,FALSE),0) -> 0 | X46: 0 | Y46: =+IFERROR(VLOOKUP(C46,LinjeLänk_Data!F:G,2,FALSE),"-") -> 13 | Z46: 13 | AB46: Södra stambanan | AD46: 421 | AF46: =+VLOOKUP(C46,Länkar_TTA!N:P,2,FALSE) -> 421 | AG46: 0 | AI46: - | AJ46: Vagnhärad-Lästringe | AL46: =+SUMIF('Linjelänk JA_KAP'!$H:$H,$C46,'Linjelänk JA_KAP'!CZ:CZ) -> 0 | AM46: =+SUMIF('Linjelänk JA_KAP'!$H:$H,$C46,'Linjelänk JA_KAP'!DA:DA) -> 19 | AN46: =+SUMIF('Linjelänk JA_KAP'!$H:$H,$C46,'Linjelänk JA_KAP'!DB:DB) -> 0 | AO46: =+SUMIF('Linjelänk UA_KAP'!$H:$H,$C46,'Linjelänk UA_KAP'!CZ:CZ) -> 0 | AP46: =+SUMIF('Linjelänk UA_KAP'!$H:$H,$C46,'Linjelänk UA_KAP'!DA:DA) -> 19 | AQ46: =+SUMIF('Linjelänk UA_KAP'!$H:$H,$C46,'Linjelänk UA_KAP'!DB:DB) -> 0 | AS46: =+VLOOKUP($AJ46,Länkar_TTA!$Q:$T,2,FALSE) -> 0 | AT46: =+VLOOKUP($AJ46,Länkar_TTA!$Q:$T,3,FALSE) -> 19 | AU46: =+VLOOKUP($AJ46,Länkar_TTA!$Q:$T,4,FALSE) -> 0 | AX46: 79040 | AY46: =VLOOKUP(I46,Bangods_linjedel!B:F,5,FALSE) -> 57.96 | AZ46: =VLOOKUP(I46,'Kap.ber JA'!DK:DN,2,FALSE)*AY46 -> 37239.3 | BA46: =VLOOKUP(I46,'Kap.ber JA'!$DK:$DN,3,FALSE)*AY46 -> 704793.6 | BB46: =VLOOKUP(I46,'Kap.ber JA'!$DK:$DN,4,FALSE)*AY46 -> 742032.9 | BC46: =VLOOKUP(J46,'Kap.ber UA'!$DJ:$DM,2,FALSE)*AY46 -> 37239.3 | BD46: =VLOOKUP(J46,'Kap.ber UA'!$DJ:$DM,3,FALSE)*AY46 -> 704793.6 | BE46: =VLOOKUP(J46,'Kap.ber UA'!$DJ:$DM,4,FALSE)*AY46 -> 742032.9 | BF46: =IF('Beskrivning av åtgärd'!C$23="Persontrafik",BA46,IF('Beskrivning av åtgärd'!$C$23="Godstrafik",AZ46,BB46)) -> 742032.9 | BG46: =IF('Beskrivning av åtgärd'!$C$23="Persontrafik",BD46,IF('Beskrivning av åtgärd'!$C$23="Godstrafik",BC46,BE46)) -> 742032.9
A47: =Länkar_TTA!A47 -> 1502 | B47: =Länkar_TTA!B47 -> 9271 | C47: =TEXT(Länkar_TTA!C47,0) -> 15029271 | D47: =Länkar_TTA!D47 -> Gnesta | E47: =Länkar_TTA!E47 -> Kolke | F47: =Länkar_TTA!F47 -> 414 | G47: =Länkar_TTA!G47 -> Västra stambanan | H47: =Länkar_TTA!H47 -> 1 | I47: =Länkar_TTA!I47 -> L2912 | J47: L2912 | T47: =+Kalkylsammanställning!G$2 -> 1 | U47: =Länkar_TTA!M47 -> Ja | V47: Ja | W47: =IFERROR(VLOOKUP(C47,Länkar_TTA!C:K,9,FALSE),0) -> 0 | X47: 0 | Y47: =+IFERROR(VLOOKUP(C47,LinjeLänk_Data!F:G,2,FALSE),"-") -> 5.889999866 | Z47: 5.889999866 | AB47: Västra stambanan | AD47: 414 | AF47: =+VLOOKUP(C47,Länkar_TTA!N:P,2,FALSE) -> 414 | AG47: 0 | AI47: - | AJ47: Gnesta-Kolke | AL47: =+SUMIF('Linjelänk JA_KAP'!$H:$H,$C47,'Linjelänk JA_KAP'!CZ:CZ) -> 57 | AM47: =+SUMIF('Linjelänk JA_KAP'!$H:$H,$C47,'Linjelänk JA_KAP'!DA:DA) -> 23 | AN47: =+SUMIF('Linjelänk JA_KAP'!$H:$H,$C47,'Linjelänk JA_KAP'!DB:DB) -> 0 | AO47: =+SUMIF('Linjelänk UA_KAP'!$H:$H,$C47,'Linjelänk UA_KAP'!CZ:CZ) -> 57 | AP47: =+SUMIF('Linjelänk UA_KAP'!$H:$H,$C47,'Linjelänk UA_KAP'!DA:DA) -> 23 | AQ47: =+SUMIF('Linjelänk UA_KAP'!$H:$H,$C47,'Linjelänk UA_KAP'!DB:DB) -> 0 | AS47: =+VLOOKUP($AJ47,Länkar_TTA!$Q:$T,2,FALSE) -> 57 | AT47: =+VLOOKUP($AJ47,Länkar_TTA!$Q:$T,3,FALSE) -> 23 | AU47: =+VLOOKUP($AJ47,Länkar_TTA!$Q:$T,4,FALSE) -> 0 | AX47: 150783.9966 | AY47: =VLOOKUP(I47,Bangods_linjedel!B:F,5,FALSE) -> 45.03 | AZ47: =VLOOKUP(I47,'Kap.ber JA'!DK:DN,2,FALSE)*AY47 -> 226275.75 | BA47: =VLOOKUP(I47,'Kap.ber JA'!$DK:$DN,3,FALSE)*AY47 -> 2305536 | BB47: =VLOOKUP(I47,'Kap.ber JA'!$DK:$DN,4,FALSE)*AY47 -> 2531811.75 | BC47: =VLOOKUP(J47,'Kap.ber UA'!$DJ:$DM,2,FALSE)*AY47 -> 226275.75 | BD47: =VLOOKUP(J47,'Kap.ber UA'!$DJ:$DM,3,FALSE)*AY47 -> 2305536 | BE47: =VLOOKUP(J47,'Kap.ber UA'!$DJ:$DM,4,FALSE)*AY47 -> 2531811.75 | BF47: =IF('Beskrivning av åtgärd'!C$23="Persontrafik",BA47,IF('Beskrivning av åtgärd'!$C$23="Godstrafik",AZ47,BB47)) -> 2531811.75 | BG47: =IF('Beskrivning av åtgärd'!$C$23="Persontrafik",BD47,IF('Beskrivning av åtgärd'!$C$23="Godstrafik",BC47,BE47)) -> 2531811.75
A48: =Länkar_TTA!A48 -> 1502 | B48: =Länkar_TTA!B48 -> 681121 | C48: =TEXT(Länkar_TTA!C48,0) -> 1502681121 | D48: =Länkar_TTA!D48 -> Gnesta | E48: =Länkar_TTA!E48 -> Mölnbo | F48: =Länkar_TTA!F48 -> 414 | G48: =Länkar_TTA!G48 -> Västra stambanan | H48: =Länkar_TTA!H48 -> 1 | I48: =Länkar_TTA!I48 -> L2911 | J48: L2911 | T48: =+Kalkylsammanställning!G$2 -> 1 | U48: =Länkar_TTA!M48 -> Ja | V48: Ja | W48: =IFERROR(VLOOKUP(C48,Länkar_TTA!C:K,9,FALSE),0) -> 0 | X48: 0 | Y48: =+IFERROR(VLOOKUP(C48,LinjeLänk_Data!F:G,2,FALSE),"-") -> 6.650000095 | Z48: 6.650000095 | AB48: Västra stambanan | AD48: 414 | AF48: =+VLOOKUP(C48,Länkar_TTA!N:P,2,FALSE) -> 414 | AG48: 0 | AI48: - | AJ48: Gnesta-Mölnbo | AL48: =+SUMIF('Linjelänk JA_KAP'!$H:$H,$C48,'Linjelänk JA_KAP'!CZ:CZ) -> 57 | AM48: =+SUMIF('Linjelänk JA_KAP'!$H:$H,$C48,'Linjelänk JA_KAP'!DA:DA) -> 23 | AN48: =+SUMIF('Linjelänk JA_KAP'!$H:$H,$C48,'Linjelänk JA_KAP'!DB:DB) -> 25 | AO48: =+SUMIF('Linjelänk UA_KAP'!$H:$H,$C48,'Linjelänk UA_KAP'!CZ:CZ) -> 57 | AP48: =+SUMIF('Linjelänk UA_KAP'!$H:$H,$C48,'Linjelänk UA_KAP'!DA:DA) -> 23 | AQ48: =+SUMIF('Linjelänk UA_KAP'!$H:$H,$C48,'Linjelänk UA_KAP'!DB:DB) -> 25 | AS48: =+VLOOKUP($AJ48,Länkar_TTA!$Q:$T,2,FALSE) -> 57 | AT48: =+VLOOKUP($AJ48,Länkar_TTA!$Q:$T,3,FALSE) -> 23 | AU48: =+VLOOKUP($AJ48,Länkar_TTA!$Q:$T,4,FALSE) -> 25 | AX48: 223440.0032 | AY48: =VLOOKUP(I48,Bangods_linjedel!B:F,5,FALSE) -> 17.37 | AZ48: =VLOOKUP(I48,'Kap.ber JA'!DK:DN,2,FALSE)*AY48 -> 87284.25 | BA48: =VLOOKUP(I48,'Kap.ber JA'!$DK:$DN,3,FALSE)*AY48 -> 1167264 | BB48: =VLOOKUP(I48,'Kap.ber JA'!$DK:$DN,4,FALSE)*AY48 -> 1254548.25 | BC48: =VLOOKUP(J48,'Kap.ber UA'!$DJ:$DM,2,FALSE)*AY48 -> 87284.25 | BD48: =VLOOKUP(J48,'Kap.ber UA'!$DJ:$DM,3,FALSE)*AY48 -> 1167264 | BE48: =VLOOKUP(J48,'Kap.ber UA'!$DJ:$DM,4,FALSE)*AY48 -> 1254548.25 | BF48: =IF('Beskrivning av åtgärd'!C$23="Persontrafik",BA48,IF('Beskrivning av åtgärd'!$C$23="Godstrafik",AZ48,BB48)) -> 1254548.25 | BG48: =IF('Beskrivning av åtgärd'!$C$23="Persontrafik",BD48,IF('Beskrivning av åtgärd'!$C$23="Godstrafik",BC48,BE48)) -> 1254548.25
A49: =Länkar_TTA!A49 -> 1505 | B49: =Länkar_TTA!B49 -> 9386 | C49: =TEXT(Länkar_TTA!C49,0) -> 15059386 | D49: =Länkar_TTA!D49 -> Oxelösund | E49: =Länkar_TTA!E49 -> Nyköping Södra | F49: =Länkar_TTA!F49 -> 492 | G49: =Länkar_TTA!G49 -> (Sala)-Oxelösund | H49: =Länkar_TTA!H49 -> 18 | I49: =Länkar_TTA!I49 -> L2203 | J49: L2203 | T49: =+Kalkylsammanställning!G$2 -> 1 | U49: =Länkar_TTA!M49 -> Ja | V49: Ja | W49: =IFERROR(VLOOKUP(C49,Länkar_TTA!C:K,9,FALSE),0) -> 0 | X49: 0 | Y49: =+IFERROR(VLOOKUP(C49,LinjeLänk_Data!F:G,2,FALSE),"-") -> - | Z49: - | AB49: (Sala)-Oxelösund | AD49: 492 | AF49: =+VLOOKUP(C49,Länkar_TTA!N:P,2,FALSE) -> 492 | AG49: 0 | AI49: - | AJ49: Oxelösund-Nyköping Södra | AL49: =+SUMIF('Linjelänk JA_KAP'!$H:$H,$C49,'Linjelänk JA_KAP'!CZ:CZ) -> 0 | AM49: =+SUMIF('Linjelänk JA_KAP'!$H:$H,$C49,'Linjelänk JA_KAP'!DA:DA) -> 0 | AN49: =+SUMIF('Linjelänk JA_KAP'!$H:$H,$C49,'Linjelänk JA_KAP'!DB:DB) -> 0 | AO49: =+SUMIF('Linjelänk UA_KAP'!$H:$H,$C49,'Linjelänk UA_KAP'!CZ:CZ) -> 0 | AP49: =+SUMIF('Linjelänk UA_KAP'!$H:$H,$C49,'Linjelänk UA_KAP'!DA:DA) -> 0 | AQ49: =+SUMIF('Linjelänk UA_KAP'!$H:$H,$C49,'Linjelänk UA_KAP'!DB:DB) -> 0 | AS49: =+VLOOKUP($AJ49,Länkar_TTA!$Q:$T,2,FALSE) -> 0 | AT49: =+VLOOKUP($AJ49,Länkar_TTA!$Q:$T,3,FALSE) -> 0 | AU49: =+VLOOKUP($AJ49,Länkar_TTA!$Q:$T,4,FALSE) -> 0 | AY49: =VLOOKUP(I49,Bangods_linjedel!B:F,5,FALSE) -> 58.92 | AZ49: =VLOOKUP(I49,'Kap.ber JA'!DK:DN,2,FALSE)*AY49 -> 81162.3 | BA49: =VLOOKUP(I49,'Kap.ber JA'!$DK:$DN,3,FALSE)*AY49 -> 0 | BB49: =VLOOKUP(I49,'Kap.ber JA'!$DK:$DN,4,FALSE)*AY49 -> 81162.3 | BC49: =VLOOKUP(J49,'Kap.ber UA'!$DJ:$DM,2,FALSE)*AY49 -> 81162.3 | BD49: =VLOOKUP(J49,'Kap.ber UA'!$DJ:$DM,3,FALSE)*AY49 -> 0 | BE49: =VLOOKUP(J49,'Kap.ber UA'!$DJ:$DM,4,FALSE)*AY49 -> 81162.3 | BF49: =IF('Beskrivning av åtgärd'!C$23="Persontrafik",BA49,IF('Beskrivning av åtgärd'!$C$23="Godstrafik",AZ49,BB49)) -> 81162.3 | BG49: =IF('Beskrivning av åtgärd'!$C$23="Persontrafik",BD49,IF('Beskrivning av åtgärd'!$C$23="Godstrafik",BC49,BE49)) -> 81162.3
A50: =Länkar_TTA!A50 -> 1506 | B50: =Länkar_TTA!B50 -> 1512 | C50: =TEXT(Länkar_TTA!C50,0) -> 15061512 | D50: =Länkar_TTA!D50 -> Nyköping kp västra | E50: =Länkar_TTA!E50 -> Vrena | F50: =Länkar_TTA!F50 -> 492 | G50: =Länkar_TTA!G50 -> (Sala)-Oxelösund | H50: =Länkar_TTA!H50 -> 18 | I50: =Länkar_TTA!I50 -> L2203 | J50: L2203 | T50: =+Kalkylsammanställning!G$2 -> 1 | U50: =Länkar_TTA!M50 -> Ja | V50: Ja | W50: =IFERROR(VLOOKUP(C50,Länkar_TTA!C:K,9,FALSE),0) -> 0 | X50: 0 | Y50: =+IFERROR(VLOOKUP(C50,LinjeLänk_Data!F:G,2,FALSE),"-") -> - | Z50: - | AB50: (Sala)-Oxelösund | AD50: 492 | AF50: =+VLOOKUP(C50,Länkar_TTA!N:P,2,FALSE) -> 492 | AG50: 0 | AI50: - | AJ50: Nyköping kp västra-Vrena | AL50: =+SUMIF('Linjelänk JA_KAP'!$H:$H,$C50,'Linjelänk JA_KAP'!CZ:CZ) -> 0 | AM50: =+SUMIF('Linjelänk JA_KAP'!$H:$H,$C50,'Linjelänk JA_KAP'!DA:DA) -> 0 | AN50: =+SUMIF('Linjelänk JA_KAP'!$H:$H,$C50,'Linjelänk JA_KAP'!DB:DB) -> 0 | AO50: =+SUMIF('Linjelänk UA_KAP'!$H:$H,$C50,'Linjelänk UA_KAP'!CZ:CZ) -> 0 | AP50: =+SUMIF('Linjelänk UA_KAP'!$H:$H,$C50,'Linjelänk UA_KAP'!DA:DA) -> 0 | AQ50: =+SUMIF('Linjelänk UA_KAP'!$H:$H,$C50,'Linjelänk UA_KAP'!DB:DB) -> 0 | AS50: =+VLOOKUP($AJ50,Länkar_TTA!$Q:$T,2,FALSE) -> 0 | AT50: =+VLOOKUP($AJ50,Länkar_TTA!$Q:$T,3,FALSE) -> 0 | AU50: =+VLOOKUP($AJ50,Länkar_TTA!$Q:$T,4,FALSE) -> 0 | AY50: =VLOOKUP(I50,Bangods_linjedel!B:F,5,FALSE) -> 58.92 | AZ50: =VLOOKUP(I50,'Kap.ber JA'!DK:DN,2,FALSE)*AY50 -> 81162.3 | BA50: =VLOOKUP(I50,'Kap.ber JA'!$DK:$DN,3,FALSE)*AY50 -> 0 | BB50: =VLOOKUP(I50,'Kap.ber JA'!$DK:$DN,4,FALSE)*AY50 -> 81162.3 | BC50: =VLOOKUP(J50,'Kap.ber UA'!$DJ:$DM,2,FALSE)*AY50 -> 81162.3 | BD50: =VLOOKUP(J50,'Kap.ber UA'!$DJ:$DM,3,FALSE)*AY50 -> 0 | BE50: =VLOOKUP(J50,'Kap.ber UA'!$DJ:$DM,4,FALSE)*AY50 -> 81162.3 | BF50: =IF('Beskrivning av åtgärd'!C$23="Persontrafik",BA50,IF('Beskrivning av åtgärd'!$C$23="Godstrafik",AZ50,BB50)) -> 81162.3 | BG50: =IF('Beskrivning av åtgärd'!$C$23="Persontrafik",BD50,IF('Beskrivning av åtgärd'!$C$23="Godstrafik",BC50,BE50)) -> 81162.3
A51: =Länkar_TTA!A51 -> 1506 | B51: =Länkar_TTA!B51 -> 9386 | C51: =TEXT(Länkar_TTA!C51,0) -> 15069386 | D51: =Länkar_TTA!D51 -> Nyköping kp västra | E51: =Länkar_TTA!E51 -> Nyköping Södra | F51: =Länkar_TTA!F51 -> 492 | G51: =Länkar_TTA!G51 -> (Sala)-Oxelösund | H51: =Länkar_TTA!H51 -> 18 | I51: =Länkar_TTA!I51 -> L2203 | J51: L2203 | T51: =+Kalkylsammanställning!G$2 -> 1 | U51: =Länkar_TTA!M51 -> Ja | V51: Ja | W51: =IFERROR(VLOOKUP(C51,Länkar_TTA!C:K,9,FALSE),0) -> 0 | X51: 0 | Y51: =+IFERROR(VLOOKUP(C51,LinjeLänk_Data!F:G,2,FALSE),"-") -> - | Z51: - | AB51: (Sala)-Oxelösund | AD51: 492 | AF51: =+VLOOKUP(C51,Länkar_TTA!N:P,2,FALSE) -> 492 | AG51: 0 | AI51: - | AJ51: Nyköping kp västra-Nyköping Södra | AL51: =+SUMIF('Linjelänk JA_KAP'!$H:$H,$C51,'Linjelänk JA_KAP'!CZ:CZ) -> 0 | AM51: =+SUMIF('Linjelänk JA_KAP'!$H:$H,$C51,'Linjelänk JA_KAP'!DA:DA) -> 0 | AN51: =+SUMIF('Linjelänk JA_KAP'!$H:$H,$C51,'Linjelänk JA_KAP'!DB:DB) -> 0 | AO51: =+SUMIF('Linjelänk UA_KAP'!$H:$H,$C51,'Linjelänk UA_KAP'!CZ:CZ) -> 0 | AP51: =+SUMIF('Linjelänk UA_KAP'!$H:$H,$C51,'Linjelänk UA_KAP'!DA:DA) -> 0 | AQ51: =+SUMIF('Linjelänk UA_KAP'!$H:$H,$C51,'Linjelänk UA_KAP'!DB:DB) -> 0 | AS51: =+VLOOKUP($AJ51,Länkar_TTA!$Q:$T,2,FALSE) -> 0 | AT51: =+VLOOKUP($AJ51,Länkar_TTA!$Q:$T,3,FALSE) -> 0 | AU51: =+VLOOKUP($AJ51,Länkar_TTA!$Q:$T,4,FALSE) -> 0 | AY51: =VLOOKUP(I51,Bangods_linjedel!B:F,5,FALSE) -> 58.92 | AZ51: =VLOOKUP(I51,'Kap.ber JA'!DK:DN,2,FALSE)*AY51 -> 81162.3 | BA51: =VLOOKUP(I51,'Kap.ber JA'!$DK:$DN,3,FALSE)*AY51 -> 0 | BB51: =VLOOKUP(I51,'Kap.ber JA'!$DK:$DN,4,FALSE)*AY51 -> 81162.3 | BC51: =VLOOKUP(J51,'Kap.ber UA'!$DJ:$DM,2,FALSE)*AY51 -> 81162.3 | BD51: =VLOOKUP(J51,'Kap.ber UA'!$DJ:$DM,3,FALSE)*AY51 -> 0 | BE51: =VLOOKUP(J51,'Kap.ber UA'!$DJ:$DM,4,FALSE)*AY51 -> 81162.3 | BF51: =IF('Beskrivning av åtgärd'!C$23="Persontrafik",BA51,IF('Beskrivning av åtgärd'!$C$23="Godstrafik",AZ51,BB51)) -> 81162.3 | BG51: =IF('Beskrivning av åtgärd'!$C$23="Persontrafik",BD51,IF('Beskrivning av åtgärd'!$C$23="Godstrafik",BC51,BE51)) -> 81162.3
A52: =Länkar_TTA!A52 -> 1509 | B52: =Länkar_TTA!B52 -> 1518 | C52: =TEXT(Länkar_TTA!C52,0) -> 15091518 | D52: =Länkar_TTA!D52 -> Tystberga | E52: =Länkar_TTA!E52 -> Sjösa | F52: =Länkar_TTA!F52 -> 421 | G52: =Länkar_TTA!G52 -> Södra stambanan | H52: =Länkar_TTA!H52 -> 2 | I52: =Länkar_TTA!I52 -> L4800 | J52: L4800 | T52: =+Kalkylsammanställning!G$2 -> 1 | U52: =Länkar_TTA!M52 -> Ja | V52: Ja | W52: =IFERROR(VLOOKUP(C52,Länkar_TTA!C:K,9,FALSE),0) -> 0 | X52: 0 | Y52: =+IFERROR(VLOOKUP(C52,LinjeLänk_Data!F:G,2,FALSE),"-") -> 12.10000038 | Z52: 12.10000038 | AB52: Södra stambanan | AD52: 421 | AF52: =+VLOOKUP(C52,Länkar_TTA!N:P,2,FALSE) -> 421 | AG52: 0 | AI52: - | AJ52: Tystberga-Sjösa | AL52: =+SUMIF('Linjelänk JA_KAP'!$H:$H,$C52,'Linjelänk JA_KAP'!CZ:CZ) -> 0 | AM52: =+SUMIF('Linjelänk JA_KAP'!$H:$H,$C52,'Linjelänk JA_KAP'!DA:DA) -> 19 | AN52: =+SUMIF('Linjelänk JA_KAP'!$H:$H,$C52,'Linjelänk JA_KAP'!DB:DB) -> 0 | AO52: =+SUMIF('Linjelänk UA_KAP'!$H:$H,$C52,'Linjelänk UA_KAP'!CZ:CZ) -> 0 | AP52: =+SUMIF('Linjelänk UA_KAP'!$H:$H,$C52,'Linjelänk UA_KAP'!DA:DA) -> 19 | AQ52: =+SUMIF('Linjelänk UA_KAP'!$H:$H,$C52,'Linjelänk UA_KAP'!DB:DB) -> 0 | AS52: =+VLOOKUP($AJ52,Länkar_TTA!$Q:$T,2,FALSE) -> 0 | AT52: =+VLOOKUP($AJ52,Länkar_TTA!$Q:$T,3,FALSE) -> 19 | AU52: =+VLOOKUP($AJ52,Länkar_TTA!$Q:$T,4,FALSE) -> 0 | AX52: 73568.00232 | AY52: =VLOOKUP(I52,Bangods_linjedel!B:F,5,FALSE) -> 57.96 | AZ52: =VLOOKUP(I52,'Kap.ber JA'!DK:DN,2,FALSE)*AY52 -> 37239.3 | BA52: =VLOOKUP(I52,'Kap.ber JA'!$DK:$DN,3,FALSE)*AY52 -> 704793.6 | BB52: =VLOOKUP(I52,'Kap.ber JA'!$DK:$DN,4,FALSE)*AY52 -> 742032.9 | BC52: =VLOOKUP(J52,'Kap.ber UA'!$DJ:$DM,2,FALSE)*AY52 -> 37239.3 | BD52: =VLOOKUP(J52,'Kap.ber UA'!$DJ:$DM,3,FALSE)*AY52 -> 704793.6 | BE52: =VLOOKUP(J52,'Kap.ber UA'!$DJ:$DM,4,FALSE)*AY52 -> 742032.9 | BF52: =IF('Beskrivning av åtgärd'!C$23="Persontrafik",BA52,IF('Beskrivning av åtgärd'!$C$23="Godstrafik",AZ52,BB52)) -> 742032.9 | BG52: =IF('Beskrivning av åtgärd'!$C$23="Persontrafik",BD52,IF('Beskrivning av åtgärd'!$C$23="Godstrafik",BC52,BE52)) -> 742032.9
A53: =Länkar_TTA!A53 -> 1509 | B53: =Länkar_TTA!B53 -> 7501 | C53: =TEXT(Länkar_TTA!C53,0) -> 15097501 | D53: =Länkar_TTA!D53 -> Tystberga | E53: =Länkar_TTA!E53 -> Mellannod Tba-Lre | F53: =Länkar_TTA!F53 -> 421 | G53: =Länkar_TTA!G53 -> Södra stambanan | H53: =Länkar_TTA!H53 -> 2 | I53: =Länkar_TTA!I53 -> L4800 | J53: L4800 | T53: =+Kalkylsammanställning!G$2 -> 1 | U53: =Länkar_TTA!M53 -> Ja | V53: Ja | W53: =IFERROR(VLOOKUP(C53,Länkar_TTA!C:K,9,FALSE),0) -> 0 | X53: 0 | Y53: =+IFERROR(VLOOKUP(C53,LinjeLänk_Data!F:G,2,FALSE),"-") -> 3.099999905 | Z53: 3.099999905 | AB53: Södra stambanan | AD53: 421 | AF53: =+VLOOKUP(C53,Länkar_TTA!N:P,2,FALSE) -> 421 | AG53: 0 | AI53: - | AJ53: Tystberga-Mellannod Tba-Lre | AL53: =+SUMIF('Linjelänk JA_KAP'!$H:$H,$C53,'Linjelänk JA_KAP'!CZ:CZ) -> 0 | AM53: =+SUMIF('Linjelänk JA_KAP'!$H:$H,$C53,'Linjelänk JA_KAP'!DA:DA) -> 19 | AN53: =+SUMIF('Linjelänk JA_KAP'!$H:$H,$C53,'Linjelänk JA_KAP'!DB:DB) -> 0 | AO53: =+SUMIF('Linjelänk UA_KAP'!$H:$H,$C53,'Linjelänk UA_KAP'!CZ:CZ) -> 0 | AP53: =+SUMIF('Linjelänk UA_KAP'!$H:$H,$C53,'Linjelänk UA_KAP'!DA:DA) -> 19 | AQ53: =+SUMIF('Linjelänk UA_KAP'!$H:$H,$C53,'Linjelänk UA_KAP'!DB:DB) -> 0 | AS53: =+VLOOKUP($AJ53,Länkar_TTA!$Q:$T,2,FALSE) -> 0 | AT53: =+VLOOKUP($AJ53,Länkar_TTA!$Q:$T,3,FALSE) -> 19 | AU53: =+VLOOKUP($AJ53,Länkar_TTA!$Q:$T,4,FALSE) -> 0 | AX53: 18847.99942 | AY53: =VLOOKUP(I53,Bangods_linjedel!B:F,5,FALSE) -> 57.96 | AZ53: =VLOOKUP(I53,'Kap.ber JA'!DK:DN,2,FALSE)*AY53 -> 37239.3 | BA53: =VLOOKUP(I53,'Kap.ber JA'!$DK:$DN,3,FALSE)*AY53 -> 704793.6 | BB53: =VLOOKUP(I53,'Kap.ber JA'!$DK:$DN,4,FALSE)*AY53 -> 742032.9 | BC53: =VLOOKUP(J53,'Kap.ber UA'!$DJ:$DM,2,FALSE)*AY53 -> 37239.3 | BD53: =VLOOKUP(J53,'Kap.ber UA'!$DJ:$DM,3,FALSE)*AY53 -> 704793.6 | BE53: =VLOOKUP(J53,'Kap.ber UA'!$DJ:$DM,4,FALSE)*AY53 -> 742032.9 | BF53: =IF('Beskrivning av åtgärd'!C$23="Persontrafik",BA53,IF('Beskrivning av åtgärd'!$C$23="Godstrafik",AZ53,BB53)) -> 742032.9 | BG53: =IF('Beskrivning av åtgärd'!$C$23="Persontrafik",BD53,IF('Beskrivning av åtgärd'!$C$23="Godstrafik",BC53,BE53)) -> 742032.9
A54: =Länkar_TTA!A54 -> 1510 | B54: =Länkar_TTA!B54 -> 1514 | C54: =TEXT(Länkar_TTA!C54,0) -> 15101514 | D54: =Länkar_TTA!D54 -> Björnlunda | E54: =Länkar_TTA!E54 -> Stjärnhov | F54: =Länkar_TTA!F54 -> 414 | G54: =Länkar_TTA!G54 -> Västra stambanan | H54: =Länkar_TTA!H54 -> 1 | I54: =Länkar_TTA!I54 -> L2912 | J54: L2912 | T54: =+Kalkylsammanställning!G$2 -> 1 | U54: =Länkar_TTA!M54 -> Ja | V54: Ja | W54: =IFERROR(VLOOKUP(C54,Länkar_TTA!C:K,9,FALSE),0) -> 0 | X54: 0 | Y54: =+IFERROR(VLOOKUP(C54,LinjeLänk_Data!F:G,2,FALSE),"-") -> 9.729999542 | Z54: 9.729999542 | AB54: Västra stambanan | AD54: 414 | AF54: =+VLOOKUP(C54,Länkar_TTA!N:P,2,FALSE) -> 414 | AG54: 0 | AI54: - | AJ54: Björnlunda-Stjärnhov | AL54: =+SUMIF('Linjelänk JA_KAP'!$H:$H,$C54,'Linjelänk JA_KAP'!CZ:CZ) -> 57 | AM54: =+SUMIF('Linjelänk JA_KAP'!$H:$H,$C54,'Linjelänk JA_KAP'!DA:DA) -> 23 | AN54: =+SUMIF('Linjelänk JA_KAP'!$H:$H,$C54,'Linjelänk JA_KAP'!DB:DB) -> 0 | AO54: =+SUMIF('Linjelänk UA_KAP'!$H:$H,$C54,'Linjelänk UA_KAP'!CZ:CZ) -> 57 | AP54: =+SUMIF('Linjelänk UA_KAP'!$H:$H,$C54,'Linjelänk UA_KAP'!DA:DA) -> 23 | AQ54: =+SUMIF('Linjelänk UA_KAP'!$H:$H,$C54,'Linjelänk UA_KAP'!DB:DB) -> 0 | AS54: =+VLOOKUP($AJ54,Länkar_TTA!$Q:$T,2,FALSE) -> 57 | AT54: =+VLOOKUP($AJ54,Länkar_TTA!$Q:$T,3,FALSE) -> 23 | AU54: =+VLOOKUP($AJ54,Länkar_TTA!$Q:$T,4,FALSE) -> 0 | AX54: 249087.9883 | AY54: =VLOOKUP(I54,Bangods_linjedel!B:F,5,FALSE) -> 45.03 | AZ54: =VLOOKUP(I54,'Kap.ber JA'!DK:DN,2,FALSE)*AY54 -> 226275.75 | BA54: =VLOOKUP(I54,'Kap.ber JA'!$DK:$DN,3,FALSE)*AY54 -> 2305536 | BB54: =VLOOKUP(I54,'Kap.ber JA'!$DK:$DN,4,FALSE)*AY54 -> 2531811.75 | BC54: =VLOOKUP(J54,'Kap.ber UA'!$DJ:$DM,2,FALSE)*AY54 -> 226275.75 | BD54: =VLOOKUP(J54,'Kap.ber UA'!$DJ:$DM,3,FALSE)*AY54 -> 2305536 | BE54: =VLOOKUP(J54,'Kap.ber UA'!$DJ:$DM,4,FALSE)*AY54 -> 2531811.75 | BF54: =IF('Beskrivning av åtgärd'!C$23="Persontrafik",BA54,IF('Beskrivning av åtgärd'!$C$23="Godstrafik",AZ54,BB54)) -> 2531811.75 | BG54: =IF('Beskrivning av åtgärd'!$C$23="Persontrafik",BD54,IF('Beskrivning av åtgärd'!$C$23="Godstrafik",BC54,BE54)) -> 2531811.75
A55: =Länkar_TTA!A55 -> 1510 | B55: =Länkar_TTA!B55 -> 9271 | C55: =TEXT(Länkar_TTA!C55,0) -> 15109271 | D55: =Länkar_TTA!D55 -> Björnlunda | E55: =Länkar_TTA!E55 -> Kolke | F55: =Länkar_TTA!F55 -> 414 | G55: =Länkar_TTA!G55 -> Västra stambanan | H55: =Länkar_TTA!H55 -> 1 | I55: =Länkar_TTA!I55 -> L2912 | J55: L2912 | T55: =+Kalkylsammanställning!G$2 -> 1 | U55: =Länkar_TTA!M55 -> Ja | V55: Ja | W55: =IFERROR(VLOOKUP(C55,Länkar_TTA!C:K,9,FALSE),0) -> 0 | X55: 0 | Y55: =+IFERROR(VLOOKUP(C55,LinjeLänk_Data!F:G,2,FALSE),"-") -> 3.670000076 | Z55: 3.670000076 | AB55: Västra stambanan | AD55: 414 | AF55: =+VLOOKUP(C55,Länkar_TTA!N:P,2,FALSE) -> 414 | AG55: 0 | AI55: - | AJ55: Björnlunda-Kolke | AL55: =+SUMIF('Linjelänk JA_KAP'!$H:$H,$C55,'Linjelänk JA_KAP'!CZ:CZ) -> 57 | AM55: =+SUMIF('Linjelänk JA_KAP'!$H:$H,$C55,'Linjelänk JA_KAP'!DA:DA) -> 23 | AN55: =+SUMIF('Linjelänk JA_KAP'!$H:$H,$C55,'Linjelänk JA_KAP'!DB:DB) -> 0 | AO55: =+SUMIF('Linjelänk UA_KAP'!$H:$H,$C55,'Linjelänk UA_KAP'!CZ:CZ) -> 57 | AP55: =+SUMIF('Linjelänk UA_KAP'!$H:$H,$C55,'Linjelänk UA_KAP'!DA:DA) -> 23 | AQ55: =+SUMIF('Linjelänk UA_KAP'!$H:$H,$C55,'Linjelänk UA_KAP'!DB:DB) -> 0 | AS55: =+VLOOKUP($AJ55,Länkar_TTA!$Q:$T,2,FALSE) -> 57 | AT55: =+VLOOKUP($AJ55,Länkar_TTA!$Q:$T,3,FALSE) -> 23 | AU55: =+VLOOKUP($AJ55,Länkar_TTA!$Q:$T,4,FALSE) -> 0 | AX55: 93952.00195 | AY55: =VLOOKUP(I55,Bangods_linjedel!B:F,5,FALSE) -> 45.03 | AZ55: =VLOOKUP(I55,'Kap.ber JA'!DK:DN,2,FALSE)*AY55 -> 226275.75 | BA55: =VLOOKUP(I55,'Kap.ber JA'!$DK:$DN,3,FALSE)*AY55 -> 2305536 | BB55: =VLOOKUP(I55,'Kap.ber JA'!$DK:$DN,4,FALSE)*AY55 -> 2531811.75 | BC55: =VLOOKUP(J55,'Kap.ber UA'!$DJ:$DM,2,FALSE)*AY55 -> 226275.75 | BD55: =VLOOKUP(J55,'Kap.ber UA'!$DJ:$DM,3,FALSE)*AY55 -> 2305536 | BE55: =VLOOKUP(J55,'Kap.ber UA'!$DJ:$DM,4,FALSE)*AY55 -> 2531811.75 | BF55: =IF('Beskrivning av åtgärd'!C$23="Persontrafik",BA55,IF('Beskrivning av åtgärd'!$C$23="Godstrafik",AZ55,BB55)) -> 2531811.75 | BG55: =IF('Beskrivning av åtgärd'!$C$23="Persontrafik",BD55,IF('Beskrivning av åtgärd'!$C$23="Godstrafik",BC55,BE55)) -> 2531811.75
A56: =Länkar_TTA!A56 -> 1512 | B56: =Länkar_TTA!B56 -> 1506 | C56: =TEXT(Länkar_TTA!C56,0) -> 15121506 | D56: =Länkar_TTA!D56 -> Vrena | E56: =Länkar_TTA!E56 -> Nyköping kp västra | F56: =Länkar_TTA!F56 -> 492 | G56: =Länkar_TTA!G56 -> (Sala)-Oxelösund | H56: =Länkar_TTA!H56 -> 18 | I56: =Länkar_TTA!I56 -> L2203 | J56: L2203 | T56: =+Kalkylsammanställning!G$2 -> 1 | U56: =Länkar_TTA!M56 -> Ja | V56: Ja | W56: =IFERROR(VLOOKUP(C56,Länkar_TTA!C:K,9,FALSE),0) -> 0 | X56: 0 | Y56: =+IFERROR(VLOOKUP(C56,LinjeLänk_Data!F:G,2,FALSE),"-") -> - | Z56: - | AB56: (Sala)-Oxelösund | AD56: 492 | AF56: =+VLOOKUP(C56,Länkar_TTA!N:P,2,FALSE) -> 492 | AG56: 0 | AI56: - | AJ56: Vrena-Nyköping kp västra | AL56: =+SUMIF('Linjelänk JA_KAP'!$H:$H,$C56,'Linjelänk JA_KAP'!CZ:CZ) -> 0 | AM56: =+SUMIF('Linjelänk JA_KAP'!$H:$H,$C56,'Linjelänk JA_KAP'!DA:DA) -> 0 | AN56: =+SUMIF('Linjelänk JA_KAP'!$H:$H,$C56,'Linjelänk JA_KAP'!DB:DB) -> 0 | AO56: =+SUMIF('Linjelänk UA_KAP'!$H:$H,$C56,'Linjelänk UA_KAP'!CZ:CZ) -> 0 | AP56: =+SUMIF('Linjelänk UA_KAP'!$H:$H,$C56,'Linjelänk UA_KAP'!DA:DA) -> 0 | AQ56: =+SUMIF('Linjelänk UA_KAP'!$H:$H,$C56,'Linjelänk UA_KAP'!DB:DB) -> 0 | AS56: =+VLOOKUP($AJ56,Länkar_TTA!$Q:$T,2,FALSE) -> 0 | AT56: =+VLOOKUP($AJ56,Länkar_TTA!$Q:$T,3,FALSE) -> 0 | AU56: =+VLOOKUP($AJ56,Länkar_TTA!$Q:$T,4,FALSE) -> 0 | AY56: =VLOOKUP(I56,Bangods_linjedel!B:F,5,FALSE) -> 58.92 | AZ56: =VLOOKUP(I56,'Kap.ber JA'!DK:DN,2,FALSE)*AY56 -> 81162.3 | BA56: =VLOOKUP(I56,'Kap.ber JA'!$DK:$DN,3,FALSE)*AY56 -> 0 | BB56: =VLOOKUP(I56,'Kap.ber JA'!$DK:$DN,4,FALSE)*AY56 -> 81162.3 | BC56: =VLOOKUP(J56,'Kap.ber UA'!$DJ:$DM,2,FALSE)*AY56 -> 81162.3 | BD56: =VLOOKUP(J56,'Kap.ber UA'!$DJ:$DM,3,FALSE)*AY56 -> 0 | BE56: =VLOOKUP(J56,'Kap.ber UA'!$DJ:$DM,4,FALSE)*AY56 -> 81162.3 | BF56: =IF('Beskrivning av åtgärd'!C$23="Persontrafik",BA56,IF('Beskrivning av åtgärd'!$C$23="Godstrafik",AZ56,BB56)) -> 81162.3 | BG56: =IF('Beskrivning av åtgärd'!$C$23="Persontrafik",BD56,IF('Beskrivning av åtgärd'!$C$23="Godstrafik",BC56,BE56)) -> 81162.3
A57: =Länkar_TTA!A57 -> 1512 | B57: =Länkar_TTA!B57 -> 9461 | C57: =TEXT(Länkar_TTA!C57,0) -> 15129461 | D57: =Länkar_TTA!D57 -> Vrena | E57: =Länkar_TTA!E57 -> Silinge | F57: =Länkar_TTA!F57 -> 492 | G57: =Länkar_TTA!G57 -> (Sala)-Oxelösund | H57: =Länkar_TTA!H57 -> 18 | I57: =Länkar_TTA!I57 -> L2203 | J57: L2203 | T57: =+Kalkylsammanställning!G$2 -> 1 | U57: =Länkar_TTA!M57 -> Ja | V57: Ja | W57: =IFERROR(VLOOKUP(C57,Länkar_TTA!C:K,9,FALSE),0) -> 0 | X57: 0 | Y57: =+IFERROR(VLOOKUP(C57,LinjeLänk_Data!F:G,2,FALSE),"-") -> - | Z57: - | AB57: (Sala)-Oxelösund | AD57: 492 | AF57: =+VLOOKUP(C57,Länkar_TTA!N:P,2,FALSE) -> 492 | AG57: 0 | AI57: - | AJ57: Vrena-Silinge | AL57: =+SUMIF('Linjelänk JA_KAP'!$H:$H,$C57,'Linjelänk JA_KAP'!CZ:CZ) -> 0 | AM57: =+SUMIF('Linjelänk JA_KAP'!$H:$H,$C57,'Linjelänk JA_KAP'!DA:DA) -> 0 | AN57: =+SUMIF('Linjelänk JA_KAP'!$H:$H,$C57,'Linjelänk JA_KAP'!DB:DB) -> 0 | AO57: =+SUMIF('Linjelänk UA_KAP'!$H:$H,$C57,'Linjelänk UA_KAP'!CZ:CZ) -> 0 | AP57: =+SUMIF('Linjelänk UA_KAP'!$H:$H,$C57,'Linjelänk UA_KAP'!DA:DA) -> 0 | AQ57: =+SUMIF('Linjelänk UA_KAP'!$H:$H,$C57,'Linjelänk UA_KAP'!DB:DB) -> 0 | AS57: =+VLOOKUP($AJ57,Länkar_TTA!$Q:$T,2,FALSE) -> 0 | AT57: =+VLOOKUP($AJ57,Länkar_TTA!$Q:$T,3,FALSE) -> 0 | AU57: =+VLOOKUP($AJ57,Länkar_TTA!$Q:$T,4,FALSE) -> 0 | AY57: =VLOOKUP(I57,Bangods_linjedel!B:F,5,FALSE) -> 58.92 | AZ57: =VLOOKUP(I57,'Kap.ber JA'!DK:DN,2,FALSE)*AY57 -> 81162.3 | BA57: =VLOOKUP(I57,'Kap.ber JA'!$DK:$DN,3,FALSE)*AY57 -> 0 | BB57: =VLOOKUP(I57,'Kap.ber JA'!$DK:$DN,4,FALSE)*AY57 -> 81162.3 | BC57: =VLOOKUP(J57,'Kap.ber UA'!$DJ:$DM,2,FALSE)*AY57 -> 81162.3 | BD57: =VLOOKUP(J57,'Kap.ber UA'!$DJ:$DM,3,FALSE)*AY57 -> 0 | BE57: =VLOOKUP(J57,'Kap.ber UA'!$DJ:$DM,4,FALSE)*AY57 -> 81162.3 | BF57: =IF('Beskrivning av åtgärd'!C$23="Persontrafik",BA57,IF('Beskrivning av åtgärd'!$C$23="Godstrafik",AZ57,BB57)) -> 81162.3 | BG57: =IF('Beskrivning av åtgärd'!$C$23="Persontrafik",BD57,IF('Beskrivning av åtgärd'!$C$23="Godstrafik",BC57,BE57)) -> 81162.3
A58: =Länkar_TTA!A58 -> 1514 | B58: =Länkar_TTA!B58 -> 1510 | C58: =TEXT(Länkar_TTA!C58,0) -> 15141510 | D58: =Länkar_TTA!D58 -> Stjärnhov | E58: =Länkar_TTA!E58 -> Björnlunda | F58: =Länkar_TTA!F58 -> 414 | G58: =Länkar_TTA!G58 -> Västra stambanan | H58: =Länkar_TTA!H58 -> 1 | I58: =Länkar_TTA!I58 -> L2912 | J58: L2912 | T58: =+Kalkylsammanställning!G$2 -> 1 | U58: =Länkar_TTA!M58 -> Ja | V58: Ja | W58: =IFERROR(VLOOKUP(C58,Länkar_TTA!C:K,9,FALSE),0) -> 0 | X58: 0 | Y58: =+IFERROR(VLOOKUP(C58,LinjeLänk_Data!F:G,2,FALSE),"-") -> 9.729999542 | Z58: 9.729999542 | AB58: Västra stambanan | AD58: 414 | AF58: =+VLOOKUP(C58,Länkar_TTA!N:P,2,FALSE) -> 414 | AG58: 0 | AI58: - | AJ58: Stjärnhov-Björnlunda | AL58: =+SUMIF('Linjelänk JA_KAP'!$H:$H,$C58,'Linjelänk JA_KAP'!CZ:CZ) -> 57 | AM58: =+SUMIF('Linjelänk JA_KAP'!$H:$H,$C58,'Linjelänk JA_KAP'!DA:DA) -> 23 | AN58: =+SUMIF('Linjelänk JA_KAP'!$H:$H,$C58,'Linjelänk JA_KAP'!DB:DB) -> 0 | AO58: =+SUMIF('Linjelänk UA_KAP'!$H:$H,$C58,'Linjelänk UA_KAP'!CZ:CZ) -> 57 | AP58: =+SUMIF('Linjelänk UA_KAP'!$H:$H,$C58,'Linjelänk UA_KAP'!DA:DA) -> 23 | AQ58: =+SUMIF('Linjelänk UA_KAP'!$H:$H,$C58,'Linjelänk UA_KAP'!DB:DB) -> 0 | AS58: =+VLOOKUP($AJ58,Länkar_TTA!$Q:$T,2,FALSE) -> 57 | AT58: =+VLOOKUP($AJ58,Länkar_TTA!$Q:$T,3,FALSE) -> 23 | AU58: =+VLOOKUP($AJ58,Länkar_TTA!$Q:$T,4,FALSE) -> 0 | AX58: 249087.9883 | AY58: =VLOOKUP(I58,Bangods_linjedel!B:F,5,FALSE) -> 45.03 | AZ58: =VLOOKUP(I58,'Kap.ber JA'!DK:DN,2,FALSE)*AY58 -> 226275.75 | BA58: =VLOOKUP(I58,'Kap.ber JA'!$DK:$DN,3,FALSE)*AY58 -> 2305536 | BB58: =VLOOKUP(I58,'Kap.ber JA'!$DK:$DN,4,FALSE)*AY58 -> 2531811.75 | BC58: =VLOOKUP(J58,'Kap.ber UA'!$DJ:$DM,2,FALSE)*AY58 -> 226275.75 | BD58: =VLOOKUP(J58,'Kap.ber UA'!$DJ:$DM,3,FALSE)*AY58 -> 2305536 | BE58: =VLOOKUP(J58,'Kap.ber UA'!$DJ:$DM,4,FALSE)*AY58 -> 2531811.75 | BF58: =IF('Beskrivning av åtgärd'!C$23="Persontrafik",BA58,IF('Beskrivning av åtgärd'!$C$23="Godstrafik",AZ58,BB58)) -> 2531811.75 | BG58: =IF('Beskrivning av åtgärd'!$C$23="Persontrafik",BD58,IF('Beskrivning av åtgärd'!$C$23="Godstrafik",BC58,BE58)) -> 2531811.75
A59: =Länkar_TTA!A59 -> 1514 | B59: =Länkar_TTA!B59 -> 9395 | C59: =TEXT(Länkar_TTA!C59,0) -> 15149395 | D59: =Länkar_TTA!D59 -> Stjärnhov | E59: =Länkar_TTA!E59 -> Nyckelsjön | F59: =Länkar_TTA!F59 -> 414 | G59: =Länkar_TTA!G59 -> Västra stambanan | H59: =Länkar_TTA!H59 -> 1 | I59: =Länkar_TTA!I59 -> L2912 | J59: L2912 | T59: =+Kalkylsammanställning!G$2 -> 1 | U59: =Länkar_TTA!M59 -> Ja | V59: Ja | W59: =IFERROR(VLOOKUP(C59,Länkar_TTA!C:K,9,FALSE),0) -> 0 | X59: 0 | Y59: =+IFERROR(VLOOKUP(C59,LinjeLänk_Data!F:G,2,FALSE),"-") -> 8.180000305 | Z59: 8.180000305 | AB59: Västra stambanan | AD59: 414 | AF59: =+VLOOKUP(C59,Länkar_TTA!N:P,2,FALSE) -> 414 | AG59: 0 | AI59: - | AJ59: Stjärnhov-Nyckelsjön | AL59: =+SUMIF('Linjelänk JA_KAP'!$H:$H,$C59,'Linjelänk JA_KAP'!CZ:CZ) -> 57 | AM59: =+SUMIF('Linjelänk JA_KAP'!$H:$H,$C59,'Linjelänk JA_KAP'!DA:DA) -> 23 | AN59: =+SUMIF('Linjelänk JA_KAP'!$H:$H,$C59,'Linjelänk JA_KAP'!DB:DB) -> 0 | AO59: =+SUMIF('Linjelänk UA_KAP'!$H:$H,$C59,'Linjelänk UA_KAP'!CZ:CZ) -> 57 | AP59: =+SUMIF('Linjelänk UA_KAP'!$H:$H,$C59,'Linjelänk UA_KAP'!DA:DA) -> 23 | AQ59: =+SUMIF('Linjelänk UA_KAP'!$H:$H,$C59,'Linjelänk UA_KAP'!DB:DB) -> 0 | AS59: =+VLOOKUP($AJ59,Länkar_TTA!$Q:$T,2,FALSE) -> 57 | AT59: =+VLOOKUP($AJ59,Länkar_TTA!$Q:$T,3,FALSE) -> 23 | AU59: =+VLOOKUP($AJ59,Länkar_TTA!$Q:$T,4,FALSE) -> 0 | AX59: 209408.0078 | AY59: =VLOOKUP(I59,Bangods_linjedel!B:F,5,FALSE) -> 45.03 | AZ59: =VLOOKUP(I59,'Kap.ber JA'!DK:DN,2,FALSE)*AY59 -> 226275.75 | BA59: =VLOOKUP(I59,'Kap.ber JA'!$DK:$DN,3,FALSE)*AY59 -> 2305536 | BB59: =VLOOKUP(I59,'Kap.ber JA'!$DK:$DN,4,FALSE)*AY59 -> 2531811.75 | BC59: =VLOOKUP(J59,'Kap.ber UA'!$DJ:$DM,2,FALSE)*AY59 -> 226275.75 | BD59: =VLOOKUP(J59,'Kap.ber UA'!$DJ:$DM,3,FALSE)*AY59 -> 2305536 | BE59: =VLOOKUP(J59,'Kap.ber UA'!$DJ:$DM,4,FALSE)*AY59 -> 2531811.75 | BF59: =IF('Beskrivning av åtgärd'!C$23="Persontrafik",BA59,IF('Beskrivning av åtgärd'!$C$23="Godstrafik",AZ59,BB59)) -> 2531811.75 | BG59: =IF('Beskrivning av åtgärd'!$C$23="Persontrafik",BD59,IF('Beskrivning av åtgärd'!$C$23="Godstrafik",BC59,BE59)) -> 2531811.75
A60: =Länkar_TTA!A60 -> 1516 | B60: =Länkar_TTA!B60 -> 1517 | C60: =TEXT(Länkar_TTA!C60,0) -> 15161517 | D60: =Länkar_TTA!D60 -> Jönåker | E60: =Länkar_TTA!E60 -> Ålberga | F60: =Länkar_TTA!F60 -> 421 | G60: =Länkar_TTA!G60 -> Södra stambanan | H60: =Länkar_TTA!H60 -> 2 | I60: =Länkar_TTA!I60 -> L4815 | J60: L4815 | T60: =+Kalkylsammanställning!G$2 -> 1 | U60: =Länkar_TTA!M60 -> Ja | V60: Ja | W60: =IFERROR(VLOOKUP(C60,Länkar_TTA!C:K,9,FALSE),0) -> 0 | X60: 0 | Y60: =+IFERROR(VLOOKUP(C60,LinjeLänk_Data!F:G,2,FALSE),"-") -> 9.199999809 | Z60: 9.199999809 | AB60: Södra stambanan | AD60: 421 | AF60: =+VLOOKUP(C60,Länkar_TTA!N:P,2,FALSE) -> 421 | AG60: 0 | AI60: - | AJ60: Jönåker-Ålberga | AL60: =+SUMIF('Linjelänk JA_KAP'!$H:$H,$C60,'Linjelänk JA_KAP'!CZ:CZ) -> 0 | AM60: =+SUMIF('Linjelänk JA_KAP'!$H:$H,$C60,'Linjelänk JA_KAP'!DA:DA) -> 17 | AN60: =+SUMIF('Linjelänk JA_KAP'!$H:$H,$C60,'Linjelänk JA_KAP'!DB:DB) -> 0 | AO60: =+SUMIF('Linjelänk UA_KAP'!$H:$H,$C60,'Linjelänk UA_KAP'!CZ:CZ) -> 0 | AP60: =+SUMIF('Linjelänk UA_KAP'!$H:$H,$C60,'Linjelänk UA_KAP'!DA:DA) -> 17 | AQ60: =+SUMIF('Linjelänk UA_KAP'!$H:$H,$C60,'Linjelänk UA_KAP'!DB:DB) -> 0 | AS60: =+VLOOKUP($AJ60,Länkar_TTA!$Q:$T,2,FALSE) -> 0 | AT60: =+VLOOKUP($AJ60,Länkar_TTA!$Q:$T,3,FALSE) -> 17 | AU60: =+VLOOKUP($AJ60,Länkar_TTA!$Q:$T,4,FALSE) -> 0 | AX60: 50047.99896 | AY60: =VLOOKUP(I60,Bangods_linjedel!B:F,5,FALSE) -> 53.99 | AZ60: =VLOOKUP(I60,'Kap.ber JA'!DK:DN,2,FALSE)*AY60 -> 64113.125 | BA60: =VLOOKUP(I60,'Kap.ber JA'!$DK:$DN,3,FALSE)*AY60 -> 587411.2 | BB60: =VLOOKUP(I60,'Kap.ber JA'!$DK:$DN,4,FALSE)*AY60 -> 651524.325 | BC60: =VLOOKUP(J60,'Kap.ber UA'!$DJ:$DM,2,FALSE)*AY60 -> 64113.125 | BD60: =VLOOKUP(J60,'Kap.ber UA'!$DJ:$DM,3,FALSE)*AY60 -> 587411.2 | BE60: =VLOOKUP(J60,'Kap.ber UA'!$DJ:$DM,4,FALSE)*AY60 -> 651524.325 | BF60: =IF('Beskrivning av åtgärd'!C$23="Persontrafik",BA60,IF('Beskrivning av åtgärd'!$C$23="Godstrafik",AZ60,BB60)) -> 651524.325 | BG60: =IF('Beskrivning av åtgärd'!$C$23="Persontrafik",BD60,IF('Beskrivning av åtgärd'!$C$23="Godstrafik",BC60,BE60)) -> 651524.325
A61: =Länkar_TTA!A61 -> 1516 | B61: =Länkar_TTA!B61 -> 1519 | C61: =TEXT(Länkar_TTA!C61,0) -> 15161519 | D61: =Länkar_TTA!D61 -> Jönåker | E61: =Länkar_TTA!E61 -> Enstaberga | F61: =Länkar_TTA!F61 -> 421 | G61: =Länkar_TTA!G61 -> Södra stambanan | H61: =Länkar_TTA!H61 -> 2 | I61: =Länkar_TTA!I61 -> L4815 | J61: L4815 | T61: =+Kalkylsammanställning!G$2 -> 1 | U61: =Länkar_TTA!M61 -> Ja | V61: Ja | W61: =IFERROR(VLOOKUP(C61,Länkar_TTA!C:K,9,FALSE),0) -> 0 | X61: 0 | Y61: =+IFERROR(VLOOKUP(C61,LinjeLänk_Data!F:G,2,FALSE),"-") -> 9.567230225 | Z61: 9.567230225 | AB61: Södra stambanan | AD61: 421 | AF61: =+VLOOKUP(C61,Länkar_TTA!N:P,2,FALSE) -> 421 | AG61: 0 | AI61: - | AJ61: Jönåker-Enstaberga | AL61: =+SUMIF('Linjelänk JA_KAP'!$H:$H,$C61,'Linjelänk JA_KAP'!CZ:CZ) -> 0 | AM61: =+SUMIF('Linjelänk JA_KAP'!$H:$H,$C61,'Linjelänk JA_KAP'!DA:DA) -> 17 | AN61: =+SUMIF('Linjelänk JA_KAP'!$H:$H,$C61,'Linjelänk JA_KAP'!DB:DB) -> 0 | AO61: =+SUMIF('Linjelänk UA_KAP'!$H:$H,$C61,'Linjelänk UA_KAP'!CZ:CZ) -> 0 | AP61: =+SUMIF('Linjelänk UA_KAP'!$H:$H,$C61,'Linjelänk UA_KAP'!DA:DA) -> 17 | AQ61: =+SUMIF('Linjelänk UA_KAP'!$H:$H,$C61,'Linjelänk UA_KAP'!DB:DB) -> 0 | AS61: =+VLOOKUP($AJ61,Länkar_TTA!$Q:$T,2,FALSE) -> 0 | AT61: =+VLOOKUP($AJ61,Länkar_TTA!$Q:$T,3,FALSE) -> 17 | AU61: =+VLOOKUP($AJ61,Länkar_TTA!$Q:$T,4,FALSE) -> 0 | AX61: 52045.73242 | AY61: =VLOOKUP(I61,Bangods_linjedel!B:F,5,FALSE) -> 53.99 | AZ61: =VLOOKUP(I61,'Kap.ber JA'!DK:DN,2,FALSE)*AY61 -> 64113.125 | BA61: =VLOOKUP(I61,'Kap.ber JA'!$DK:$DN,3,FALSE)*AY61 -> 587411.2 | BB61: =VLOOKUP(I61,'Kap.ber JA'!$DK:$DN,4,FALSE)*AY61 -> 651524.325 | BC61: =VLOOKUP(J61,'Kap.ber UA'!$DJ:$DM,2,FALSE)*AY61 -> 64113.125 | BD61: =VLOOKUP(J61,'Kap.ber UA'!$DJ:$DM,3,FALSE)*AY61 -> 587411.2 | BE61: =VLOOKUP(J61,'Kap.ber UA'!$DJ:$DM,4,FALSE)*AY61 -> 651524.325 | BF61: =IF('Beskrivning av åtgärd'!C$23="Persontrafik",BA61,IF('Beskrivning av åtgärd'!$C$23="Godstrafik",AZ61,BB61)) -> 651524.325 | BG61: =IF('Beskrivning av åtgärd'!$C$23="Persontrafik",BD61,IF('Beskrivning av åtgärd'!$C$23="Godstrafik",BC61,BE61)) -> 651524.325
A62: =Länkar_TTA!A62 -> 1517 | B62: =Länkar_TTA!B62 -> 1516 | C62: =TEXT(Länkar_TTA!C62,0) -> 15171516 | D62: =Länkar_TTA!D62 -> Ålberga | E62: =Länkar_TTA!E62 -> Jönåker | F62: =Länkar_TTA!F62 -> 421 | G62: =Länkar_TTA!G62 -> Södra stambanan | H62: =Länkar_TTA!H62 -> 2 | I62: =Länkar_TTA!I62 -> L4815 | J62: L4815 | T62: =+Kalkylsammanställning!G$2 -> 1 | U62: =Länkar_TTA!M62 -> Ja | V62: Ja | W62: =IFERROR(VLOOKUP(C62,Länkar_TTA!C:K,9,FALSE),0) -> 0 | X62: 0 | Y62: =+IFERROR(VLOOKUP(C62,LinjeLänk_Data!F:G,2,FALSE),"-") -> 9.199999809 | Z62: 9.199999809 | AB62: Södra stambanan | AD62: 421 | AF62: =+VLOOKUP(C62,Länkar_TTA!N:P,2,FALSE) -> 421 | AG62: 0 | AI62: - | AJ62: Ålberga-Jönåker | AL62: =+SUMIF('Linjelänk JA_KAP'!$H:$H,$C62,'Linjelänk JA_KAP'!CZ:CZ) -> 0 | AM62: =+SUMIF('Linjelänk JA_KAP'!$H:$H,$C62,'Linjelänk JA_KAP'!DA:DA) -> 17 | AN62: =+SUMIF('Linjelänk JA_KAP'!$H:$H,$C62,'Linjelänk JA_KAP'!DB:DB) -> 0 | AO62: =+SUMIF('Linjelänk UA_KAP'!$H:$H,$C62,'Linjelänk UA_KAP'!CZ:CZ) -> 0 | AP62: =+SUMIF('Linjelänk UA_KAP'!$H:$H,$C62,'Linjelänk UA_KAP'!DA:DA) -> 17 | AQ62: =+SUMIF('Linjelänk UA_KAP'!$H:$H,$C62,'Linjelänk UA_KAP'!DB:DB) -> 0 | AS62: =+VLOOKUP($AJ62,Länkar_TTA!$Q:$T,2,FALSE) -> 0 | AT62: =+VLOOKUP($AJ62,Länkar_TTA!$Q:$T,3,FALSE) -> 17 | AU62: =+VLOOKUP($AJ62,Länkar_TTA!$Q:$T,4,FALSE) -> 0 | AX62: 50047.99896 | AY62: =VLOOKUP(I62,Bangods_linjedel!B:F,5,FALSE) -> 53.99 | AZ62: =VLOOKUP(I62,'Kap.ber JA'!DK:DN,2,FALSE)*AY62 -> 64113.125 | BA62: =VLOOKUP(I62,'Kap.ber JA'!$DK:$DN,3,FALSE)*AY62 -> 587411.2 | BB62: =VLOOKUP(I62,'Kap.ber JA'!$DK:$DN,4,FALSE)*AY62 -> 651524.325 | BC62: =VLOOKUP(J62,'Kap.ber UA'!$DJ:$DM,2,FALSE)*AY62 -> 64113.125 | BD62: =VLOOKUP(J62,'Kap.ber UA'!$DJ:$DM,3,FALSE)*AY62 -> 587411.2 | BE62: =VLOOKUP(J62,'Kap.ber UA'!$DJ:$DM,4,FALSE)*AY62 -> 651524.325 | BF62: =IF('Beskrivning av åtgärd'!C$23="Persontrafik",BA62,IF('Beskrivning av åtgärd'!$C$23="Godstrafik",AZ62,BB62)) -> 651524.325 | BG62: =IF('Beskrivning av åtgärd'!$C$23="Persontrafik",BD62,IF('Beskrivning av åtgärd'!$C$23="Godstrafik",BC62,BE62)) -> 651524.325
... 77 more rows

Sheet Tidtabellsanalys Person
A1: Linjenr | B1: Tågtyp kalkyl | C1: Linjesträckning | D1: Från nod | E1: Till nod | F1: Nodnr | G1: Km | H1: Dubbelturer/dag | I1: Tåguppehåll = 1 | J1: DIFF Tidtabellstid minuter | K1: DIFF Förseningstid minuter | L1: Slutstation
A3: =+LinjeLänk_Data!A3 -> 10001 | B3: =+VLOOKUP($A3,LINJE_DATA!$A:$C,3,FALSE) -> 2 | C3: =+VLOOKUP($A3,LINJE_DATA!$A:$C,2,FALSE) -> Göteborg Central-Malmö central | D3: =+'Linjelänk JA_KAP'!J4 -> Göteborg Central | E3: =IFERROR('Linjelänk JA_KAP'!K4,"") -> Gubbero | F3: =+LinjeLänk_Data!B3 -> 4300 | G3: =+LinjeLänk_Data!G3 -> 1.929999948 | H3: =+VLOOKUP($A3,LINJE_DATA!$A:$H,7,FALSE) -> 8 | I3: =+'Linjelänk JA_KAP'!AQ4 -> 0 | L3: =IF(AND(I3=1,A3<>A5),"Slutstation","") -> 
A4: =+LinjeLänk_Data!A4 -> 10001 | B4: =+VLOOKUP($A4,LINJE_DATA!$A:$C,3,FALSE) -> 2 | C4: =+VLOOKUP($A4,LINJE_DATA!$A:$C,2,FALSE) -> Göteborg Central-Malmö central | D4: =+'Linjelänk JA_KAP'!J5 -> Gubbero | E4: =IFERROR('Linjelänk JA_KAP'!K5,"") -> Liseberg | F4: =+LinjeLänk_Data!B4 -> 9155 | G4: =+LinjeLänk_Data!G4 -> 1.090000033 | H4: =+VLOOKUP($A4,LINJE_DATA!$A:$H,7,FALSE) -> 8 | I4: =+'Linjelänk JA_KAP'!AQ5 -> 0 | L4: =IF(AND(I4=1,A4<>A6),"Slutstation","") -> 
A5: =+LinjeLänk_Data!A5 -> 10001 | B5: =+VLOOKUP($A5,LINJE_DATA!$A:$C,3,FALSE) -> 2 | C5: =+VLOOKUP($A5,LINJE_DATA!$A:$C,2,FALSE) -> Göteborg Central-Malmö central | D5: =+'Linjelänk JA_KAP'!J6 -> Liseberg | E5: =IFERROR('Linjelänk JA_KAP'!K6,"") -> Almedal | F5: =+LinjeLänk_Data!B5 -> 4385 | G5: =+LinjeLänk_Data!G5 -> 1.779999971 | H5: =+VLOOKUP($A5,LINJE_DATA!$A:$H,7,FALSE) -> 8 | I5: =+'Linjelänk JA_KAP'!AQ6 -> 0
A6: =+LinjeLänk_Data!A6 -> 10001 | B6: =+VLOOKUP($A6,LINJE_DATA!$A:$C,3,FALSE) -> 2 | C6: =+VLOOKUP($A6,LINJE_DATA!$A:$C,2,FALSE) -> Göteborg Central-Malmö central | D6: =+'Linjelänk JA_KAP'!J7 -> Almedal | E6: =IFERROR('Linjelänk JA_KAP'!K7,"") -> Mölndals Nedre | F6: =+LinjeLänk_Data!B6 -> 9008 | G6: =+LinjeLänk_Data!G6 -> 3.210000038 | H6: =+VLOOKUP($A6,LINJE_DATA!$A:$H,7,FALSE) -> 8 | I6: =+'Linjelänk JA_KAP'!AQ7 -> 0
A7: =+LinjeLänk_Data!A7 -> 10001 | B7: =+VLOOKUP($A7,LINJE_DATA!$A:$C,3,FALSE) -> 2 | C7: =+VLOOKUP($A7,LINJE_DATA!$A:$C,2,FALSE) -> Göteborg Central-Malmö central | D7: =+'Linjelänk JA_KAP'!J8 -> Mölndals Nedre | E7: =IFERROR('Linjelänk JA_KAP'!K8,"") -> Kållered | F7: =+LinjeLänk_Data!B7 -> 4386 | G7: =+LinjeLänk_Data!G7 -> 5.46999979 | H7: =+VLOOKUP($A7,LINJE_DATA!$A:$H,7,FALSE) -> 8 | I7: =+'Linjelänk JA_KAP'!AQ8 -> 0
A8: =+LinjeLänk_Data!A8 -> 10001 | B8: =+VLOOKUP($A8,LINJE_DATA!$A:$C,3,FALSE) -> 2 | C8: =+VLOOKUP($A8,LINJE_DATA!$A:$C,2,FALSE) -> Göteborg Central-Malmö central | D8: =+'Linjelänk JA_KAP'!J9 -> Kållered | E8: =IFERROR('Linjelänk JA_KAP'!K9,"") -> Lindome | F8: =+LinjeLänk_Data!B8 -> 4310 | G8: =+LinjeLänk_Data!G8 -> 4.269999981 | H8: =+VLOOKUP($A8,LINJE_DATA!$A:$H,7,FALSE) -> 8 | I8: =+'Linjelänk JA_KAP'!AQ9 -> 0
A9: =+LinjeLänk_Data!A9 -> 10001 | B9: =+VLOOKUP($A9,LINJE_DATA!$A:$C,3,FALSE) -> 2 | C9: =+VLOOKUP($A9,LINJE_DATA!$A:$C,2,FALSE) -> Göteborg Central-Malmö central | D9: =+'Linjelänk JA_KAP'!J10 -> Lindome | E9: =IFERROR('Linjelänk JA_KAP'!K10,"") -> Anneberg | F9: =+LinjeLänk_Data!B9 -> 4308 | G9: =+LinjeLänk_Data!G9 -> 4.420000076 | H9: =+VLOOKUP($A9,LINJE_DATA!$A:$H,7,FALSE) -> 8 | I9: =+'Linjelänk JA_KAP'!AQ10 -> 0
A10: =+LinjeLänk_Data!A10 -> 10001 | B10: =+VLOOKUP($A10,LINJE_DATA!$A:$C,3,FALSE) -> 2 | C10: =+VLOOKUP($A10,LINJE_DATA!$A:$C,2,FALSE) -> Göteborg Central-Malmö central | D10: =+'Linjelänk JA_KAP'!J11 -> Anneberg | E10: =IFERROR('Linjelänk JA_KAP'!K11,"") -> Ledsgård | F10: =+LinjeLänk_Data!B10 -> 4360 | G10: =+LinjeLänk_Data!G10 -> 1.549999952 | H10: =+VLOOKUP($A10,LINJE_DATA!$A:$H,7,FALSE) -> 8 | I10: =+'Linjelänk JA_KAP'!AQ11 -> 0
A11: =+LinjeLänk_Data!A11 -> 10001 | B11: =+VLOOKUP($A11,LINJE_DATA!$A:$C,3,FALSE) -> 2 | C11: =+VLOOKUP($A11,LINJE_DATA!$A:$C,2,FALSE) -> Göteborg Central-Malmö central | D11: =+'Linjelänk JA_KAP'!J12 -> Ledsgård | E11: =IFERROR('Linjelänk JA_KAP'!K12,"") -> Kungsbacka Hede | F11: =+LinjeLänk_Data!B11 -> 9304 | G11: =+LinjeLänk_Data!G11 -> 1.470000029 | H11: =+VLOOKUP($A11,LINJE_DATA!$A:$H,7,FALSE) -> 8 | I11: =+'Linjelänk JA_KAP'!AQ12 -> 0
A12: =+LinjeLänk_Data!A12 -> 10001 | B12: =+VLOOKUP($A12,LINJE_DATA!$A:$C,3,FALSE) -> 2 | C12: =+VLOOKUP($A12,LINJE_DATA!$A:$C,2,FALSE) -> Göteborg Central-Malmö central | D12: =+'Linjelänk JA_KAP'!J13 -> Kungsbacka Hede | E12: =IFERROR('Linjelänk JA_KAP'!K13,"") -> Kungsbacka | F12: =+LinjeLänk_Data!B12 -> 4387 | G12: =+LinjeLänk_Data!G12 -> 2.549999952 | H12: =+VLOOKUP($A12,LINJE_DATA!$A:$H,7,FALSE) -> 8 | I12: =+'Linjelänk JA_KAP'!AQ13 -> 0
A13: =+LinjeLänk_Data!A13 -> 10001 | B13: =+VLOOKUP($A13,LINJE_DATA!$A:$C,3,FALSE) -> 2 | C13: =+VLOOKUP($A13,LINJE_DATA!$A:$C,2,FALSE) -> Göteborg Central-Malmö central | D13: =+'Linjelänk JA_KAP'!J14 -> Kungsbacka | E13: =IFERROR('Linjelänk JA_KAP'!K14,"") -> Lekarekulle | F13: =+LinjeLänk_Data!B13 -> 4304 | G13: =+LinjeLänk_Data!G13 -> 12.67000008 | H13: =+VLOOKUP($A13,LINJE_DATA!$A:$H,7,FALSE) -> 8 | I13: =+'Linjelänk JA_KAP'!AQ14 -> 0
A14: =+LinjeLänk_Data!A14 -> 10001 | B14: =+VLOOKUP($A14,LINJE_DATA!$A:$C,3,FALSE) -> 2 | C14: =+VLOOKUP($A14,LINJE_DATA!$A:$C,2,FALSE) -> Göteborg Central-Malmö central | D14: =+'Linjelänk JA_KAP'!J15 -> Lekarekulle | E14: =IFERROR('Linjelänk JA_KAP'!K15,"") -> Åsa | F14: =+LinjeLänk_Data!B14 -> 9300 | G14: =+LinjeLänk_Data!G14 -> 4.440000057 | H14: =+VLOOKUP($A14,LINJE_DATA!$A:$H,7,FALSE) -> 8 | I14: =+'Linjelänk JA_KAP'!AQ15 -> 0
A15: =+LinjeLänk_Data!A15 -> 10001 | B15: =+VLOOKUP($A15,LINJE_DATA!$A:$C,3,FALSE) -> 2 | C15: =+VLOOKUP($A15,LINJE_DATA!$A:$C,2,FALSE) -> Göteborg Central-Malmö central | D15: =+'Linjelänk JA_KAP'!J16 -> Åsa | E15: =IFERROR('Linjelänk JA_KAP'!K16,"") -> Frillesås | F15: =+LinjeLänk_Data!B15 -> 4341 | G15: =+LinjeLänk_Data!G15 -> 5.659999847 | H15: =+VLOOKUP($A15,LINJE_DATA!$A:$H,7,FALSE) -> 8 | I15: =+'Linjelänk JA_KAP'!AQ16 -> 0
A16: =+LinjeLänk_Data!A16 -> 10001 | B16: =+VLOOKUP($A16,LINJE_DATA!$A:$C,3,FALSE) -> 2 | C16: =+VLOOKUP($A16,LINJE_DATA!$A:$C,2,FALSE) -> Göteborg Central-Malmö central | D16: =+'Linjelänk JA_KAP'!J17 -> Frillesås | E16: =IFERROR('Linjelänk JA_KAP'!K17,"") -> Väröbacka | F16: =+LinjeLänk_Data!B16 -> 4342 | G16: =+LinjeLänk_Data!G16 -> 7.409999847 | H16: =+VLOOKUP($A16,LINJE_DATA!$A:$H,7,FALSE) -> 8 | I16: =+'Linjelänk JA_KAP'!AQ17 -> 0
A17: =+LinjeLänk_Data!A17 -> 10001 | B17: =+VLOOKUP($A17,LINJE_DATA!$A:$C,3,FALSE) -> 2 | C17: =+VLOOKUP($A17,LINJE_DATA!$A:$C,2,FALSE) -> Göteborg Central-Malmö central | D17: =+'Linjelänk JA_KAP'!J18 -> Väröbacka | E17: =IFERROR('Linjelänk JA_KAP'!K18,"") -> Värö | F17: =+LinjeLänk_Data!B17 -> 4336 | G17: =+LinjeLänk_Data!G17 -> 2 | H17: =+VLOOKUP($A17,LINJE_DATA!$A:$H,7,FALSE) -> 8 | I17: =+'Linjelänk JA_KAP'!AQ18 -> 0
A18: =+LinjeLänk_Data!A18 -> 10001 | B18: =+VLOOKUP($A18,LINJE_DATA!$A:$C,3,FALSE) -> 2 | C18: =+VLOOKUP($A18,LINJE_DATA!$A:$C,2,FALSE) -> Göteborg Central-Malmö central | D18: =+'Linjelänk JA_KAP'!J19 -> Värö | E18: =IFERROR('Linjelänk JA_KAP'!K19,"") -> Varberg | F18: =+LinjeLänk_Data!B18 -> 9572 | G18: =+LinjeLänk_Data!G18 -> 15.43999958 | H18: =+VLOOKUP($A18,LINJE_DATA!$A:$H,7,FALSE) -> 8 | I18: =+'Linjelänk JA_KAP'!AQ19 -> 0
A19: =+LinjeLänk_Data!A19 -> 10001 | B19: =+VLOOKUP($A19,LINJE_DATA!$A:$C,3,FALSE) -> 2 | C19: =+VLOOKUP($A19,LINJE_DATA!$A:$C,2,FALSE) -> Göteborg Central-Malmö central | D19: =+'Linjelänk JA_KAP'!J20 -> Varberg | E19: =IFERROR('Linjelänk JA_KAP'!K20,"") -> Hamra | F19: =+LinjeLänk_Data!B19 -> 4200 | G19: =+LinjeLänk_Data!G19 -> 6.769999981 | H19: =+VLOOKUP($A19,LINJE_DATA!$A:$H,7,FALSE) -> 8 | I19: =+'Linjelänk JA_KAP'!AQ20 -> 0
A20: =+LinjeLänk_Data!A20 -> 10001 | B20: =+VLOOKUP($A20,LINJE_DATA!$A:$C,3,FALSE) -> 2 | C20: =+VLOOKUP($A20,LINJE_DATA!$A:$C,2,FALSE) -> Göteborg Central-Malmö central | D20: =+'Linjelänk JA_KAP'!J21 -> Hamra | E20: =IFERROR('Linjelänk JA_KAP'!K21,"") -> Tyllered | F20: =+LinjeLänk_Data!B20 -> 9179 | G20: =+LinjeLänk_Data!G20 -> 8.81000042 | H20: =+VLOOKUP($A20,LINJE_DATA!$A:$H,7,FALSE) -> 8 | I20: =+'Linjelänk JA_KAP'!AQ21 -> 0
A21: =+LinjeLänk_Data!A21 -> 10001 | B21: =+VLOOKUP($A21,LINJE_DATA!$A:$C,3,FALSE) -> 2 | C21: =+VLOOKUP($A21,LINJE_DATA!$A:$C,2,FALSE) -> Göteborg Central-Malmö central | D21: =+'Linjelänk JA_KAP'!J22 -> Tyllered | E21: =IFERROR('Linjelänk JA_KAP'!K22,"") -> Torebo | F21: =+LinjeLänk_Data!B21 -> 9538 | G21: =+LinjeLänk_Data!G21 -> 8.529999733 | H21: =+VLOOKUP($A21,LINJE_DATA!$A:$H,7,FALSE) -> 8 | I21: =+'Linjelänk JA_KAP'!AQ22 -> 0
A22: =+LinjeLänk_Data!A22 -> 10001 | B22: =+VLOOKUP($A22,LINJE_DATA!$A:$C,3,FALSE) -> 2 | C22: =+VLOOKUP($A22,LINJE_DATA!$A:$C,2,FALSE) -> Göteborg Central-Malmö central | D22: =+'Linjelänk JA_KAP'!J23 -> Torebo | E22: =IFERROR('Linjelänk JA_KAP'!K23,"") -> Falkenberg Personstation | F22: =+LinjeLänk_Data!B22 -> 9521 | G22: =+LinjeLänk_Data!G22 -> 5.010000229 | H22: =+VLOOKUP($A22,LINJE_DATA!$A:$H,7,FALSE) -> 8 | I22: =+'Linjelänk JA_KAP'!AQ23 -> 0
A23: =+LinjeLänk_Data!A23 -> 10001 | B23: =+VLOOKUP($A23,LINJE_DATA!$A:$C,3,FALSE) -> 2 | C23: =+VLOOKUP($A23,LINJE_DATA!$A:$C,2,FALSE) -> Göteborg Central-Malmö central | D23: =+'Linjelänk JA_KAP'!J24 -> Falkenberg Personstation | E23: =IFERROR('Linjelänk JA_KAP'!K24,"") -> Heberg | F23: =+LinjeLänk_Data!B23 -> 4201 | G23: =+LinjeLänk_Data!G23 -> 10.38000011 | H23: =+VLOOKUP($A23,LINJE_DATA!$A:$H,7,FALSE) -> 8 | I23: =+'Linjelänk JA_KAP'!AQ24 -> 0
A24: =+LinjeLänk_Data!A24 -> 10001 | B24: =+VLOOKUP($A24,LINJE_DATA!$A:$C,3,FALSE) -> 2 | C24: =+VLOOKUP($A24,LINJE_DATA!$A:$C,2,FALSE) -> Göteborg Central-Malmö central | D24: =+'Linjelänk JA_KAP'!J25 -> Heberg | E24: =IFERROR('Linjelänk JA_KAP'!K25,"") -> Brännarp | F24: =+LinjeLänk_Data!B24 -> 4220 | G24: =+LinjeLänk_Data!G24 -> 11.53999996 | H24: =+VLOOKUP($A24,LINJE_DATA!$A:$H,7,FALSE) -> 8 | I24: =+'Linjelänk JA_KAP'!AQ25 -> 0
A25: =+LinjeLänk_Data!A25 -> 10001 | B25: =+VLOOKUP($A25,LINJE_DATA!$A:$C,3,FALSE) -> 2 | C25: =+VLOOKUP($A25,LINJE_DATA!$A:$C,2,FALSE) -> Göteborg Central-Malmö central | D25: =+'Linjelänk JA_KAP'!J26 -> Brännarp | E25: =IFERROR('Linjelänk JA_KAP'!K26,"") -> Biskopstorp | F25: =+LinjeLänk_Data!B25 -> 9048 | G25: =+LinjeLänk_Data!G25 -> 10.36999989 | H25: =+VLOOKUP($A25,LINJE_DATA!$A:$H,7,FALSE) -> 8 | I25: =+'Linjelänk JA_KAP'!AQ26 -> 0
A26: =+LinjeLänk_Data!A26 -> 10001 | B26: =+VLOOKUP($A26,LINJE_DATA!$A:$C,3,FALSE) -> 2 | C26: =+VLOOKUP($A26,LINJE_DATA!$A:$C,2,FALSE) -> Göteborg Central-Malmö central | D26: =+'Linjelänk JA_KAP'!J27 -> Biskopstorp | E26: =IFERROR('Linjelänk JA_KAP'!K27,"") -> Furet | F26: =+LinjeLänk_Data!B26 -> 9062 | G26: =+LinjeLänk_Data!G26 -> 7.909999847 | H26: =+VLOOKUP($A26,LINJE_DATA!$A:$H,7,FALSE) -> 8 | I26: =+'Linjelänk JA_KAP'!AQ27 -> 0
A27: =+LinjeLänk_Data!A27 -> 10001 | B27: =+VLOOKUP($A27,LINJE_DATA!$A:$C,3,FALSE) -> 2 | C27: =+VLOOKUP($A27,LINJE_DATA!$A:$C,2,FALSE) -> Göteborg Central-Malmö central | D27: =+'Linjelänk JA_KAP'!J28 -> Furet | E27: =IFERROR('Linjelänk JA_KAP'!K28,"") -> Halmstads Central | F27: =+LinjeLänk_Data!B27 -> 9129 | G27: =+LinjeLänk_Data!G27 -> 2.309999943 | H27: =+VLOOKUP($A27,LINJE_DATA!$A:$H,7,FALSE) -> 8 | I27: =+'Linjelänk JA_KAP'!AQ28 -> 1
A28: =+LinjeLänk_Data!A28 -> 10001 | B28: =+VLOOKUP($A28,LINJE_DATA!$A:$C,3,FALSE) -> 2 | C28: =+VLOOKUP($A28,LINJE_DATA!$A:$C,2,FALSE) -> Göteborg Central-Malmö central | D28: =+'Linjelänk JA_KAP'!J29 -> Halmstads Central | E28: =IFERROR('Linjelänk JA_KAP'!K29,"") -> Halmstads Rangerbangård | F28: =+LinjeLänk_Data!B28 -> 4100 | G28: =+LinjeLänk_Data!G28 -> 1.090000033 | H28: =+VLOOKUP($A28,LINJE_DATA!$A:$H,7,FALSE) -> 8 | I28: =+'Linjelänk JA_KAP'!AQ29 -> 0
A29: =+LinjeLänk_Data!A29 -> 10001 | B29: =+VLOOKUP($A29,LINJE_DATA!$A:$C,3,FALSE) -> 2 | C29: =+VLOOKUP($A29,LINJE_DATA!$A:$C,2,FALSE) -> Göteborg Central-Malmö central | D29: =+'Linjelänk JA_KAP'!J30 -> Halmstads Rangerbangård | E29: =IFERROR('Linjelänk JA_KAP'!K30,"") -> Kistinge | F29: =+LinjeLänk_Data!B29 -> 9183 | G29: =+LinjeLänk_Data!G29 -> 3.599999905 | H29: =+VLOOKUP($A29,LINJE_DATA!$A:$H,7,FALSE) -> 8 | I29: =+'Linjelänk JA_KAP'!AQ30 -> 0
A30: =+LinjeLänk_Data!A30 -> 10001 | B30: =+VLOOKUP($A30,LINJE_DATA!$A:$C,3,FALSE) -> 2 | C30: =+VLOOKUP($A30,LINJE_DATA!$A:$C,2,FALSE) -> Göteborg Central-Malmö central | D30: =+'Linjelänk JA_KAP'!J31 -> Kistinge | E30: =IFERROR('Linjelänk JA_KAP'!K31,"") -> Eldsberga | F30: =+LinjeLänk_Data!B30 -> 9282 | G30: =+LinjeLänk_Data!G30 -> 7.409999847 | H30: =+VLOOKUP($A30,LINJE_DATA!$A:$H,7,FALSE) -> 8 | I30: =+'Linjelänk JA_KAP'!AQ31 -> 0
A31: =+LinjeLänk_Data!A31 -> 10001 | B31: =+VLOOKUP($A31,LINJE_DATA!$A:$C,3,FALSE) -> 2 | C31: =+VLOOKUP($A31,LINJE_DATA!$A:$C,2,FALSE) -> Göteborg Central-Malmö central | D31: =+'Linjelänk JA_KAP'!J32 -> Eldsberga | E31: =IFERROR('Linjelänk JA_KAP'!K32,"") -> Laholm Västra | F31: =+LinjeLänk_Data!B31 -> 9100 | G31: =+LinjeLänk_Data!G31 -> 10.27000046 | H31: =+VLOOKUP($A31,LINJE_DATA!$A:$H,7,FALSE) -> 8 | I31: =+'Linjelänk JA_KAP'!AQ32 -> 0
A32: =+LinjeLänk_Data!A32 -> 10001 | B32: =+VLOOKUP($A32,LINJE_DATA!$A:$C,3,FALSE) -> 2 | C32: =+VLOOKUP($A32,LINJE_DATA!$A:$C,2,FALSE) -> Göteborg Central-Malmö central | D32: =+'Linjelänk JA_KAP'!J33 -> Laholm Västra | E32: =IFERROR('Linjelänk JA_KAP'!K33,"") -> Båstad Norra | F32: =+LinjeLänk_Data!B32 -> 4101 | G32: =+LinjeLänk_Data!G32 -> 10.27000046 | H32: =+VLOOKUP($A32,LINJE_DATA!$A:$H,7,FALSE) -> 8 | I32: =+'Linjelänk JA_KAP'!AQ33 -> 0
A33: =+LinjeLänk_Data!A33 -> 10001 | B33: =+VLOOKUP($A33,LINJE_DATA!$A:$C,3,FALSE) -> 2 | C33: =+VLOOKUP($A33,LINJE_DATA!$A:$C,2,FALSE) -> Göteborg Central-Malmö central | D33: =+'Linjelänk JA_KAP'!J34 -> Båstad Norra | E33: =IFERROR('Linjelänk JA_KAP'!K34,"") -> Förslöv | F33: =+LinjeLänk_Data!B33 -> 3602 | G33: =+LinjeLänk_Data!G33 -> 10.64999962 | H33: =+VLOOKUP($A33,LINJE_DATA!$A:$H,7,FALSE) -> 8 | I33: =+'Linjelänk JA_KAP'!AQ34 -> 0
A34: =+LinjeLänk_Data!A34 -> 10001 | B34: =+VLOOKUP($A34,LINJE_DATA!$A:$C,3,FALSE) -> 2 | C34: =+VLOOKUP($A34,LINJE_DATA!$A:$C,2,FALSE) -> Göteborg Central-Malmö central | D34: =+'Linjelänk JA_KAP'!J35 -> Förslöv | E34: =IFERROR('Linjelänk JA_KAP'!K35,"") -> Vejbyslätt | F34: =+LinjeLänk_Data!B34 -> 3604 | G34: =+LinjeLänk_Data!G34 -> 4.5 | H34: =+VLOOKUP($A34,LINJE_DATA!$A:$H,7,FALSE) -> 8 | I34: =+'Linjelänk JA_KAP'!AQ35 -> 0
A35: =+LinjeLänk_Data!A35 -> 10001 | B35: =+VLOOKUP($A35,LINJE_DATA!$A:$C,3,FALSE) -> 2 | C35: =+VLOOKUP($A35,LINJE_DATA!$A:$C,2,FALSE) -> Göteborg Central-Malmö central | D35: =+'Linjelänk JA_KAP'!J36 -> Vejbyslätt | E35: =IFERROR('Linjelänk JA_KAP'!K36,"") -> Barkåkra | F35: =+LinjeLänk_Data!B35 -> 9549 | G35: =+LinjeLänk_Data!G35 -> 2.369999886 | H35: =+VLOOKUP($A35,LINJE_DATA!$A:$H,7,FALSE) -> 8 | I35: =+'Linjelänk JA_KAP'!AQ36 -> 0
A36: =+LinjeLänk_Data!A36 -> 10001 | B36: =+VLOOKUP($A36,LINJE_DATA!$A:$C,3,FALSE) -> 2 | C36: =+VLOOKUP($A36,LINJE_DATA!$A:$C,2,FALSE) -> Göteborg Central-Malmö central | D36: =+'Linjelänk JA_KAP'!J37 -> Barkåkra | E36: =IFERROR('Linjelänk JA_KAP'!K37,"") -> Ängelholm | F36: =+LinjeLänk_Data!B36 -> 3603 | G36: =+LinjeLänk_Data!G36 -> 5.789999962 | H36: =+VLOOKUP($A36,LINJE_DATA!$A:$H,7,FALSE) -> 8 | I36: =+'Linjelänk JA_KAP'!AQ37 -> 0
A37: =+LinjeLänk_Data!A37 -> 10001 | B37: =+VLOOKUP($A37,LINJE_DATA!$A:$C,3,FALSE) -> 2 | C37: =+VLOOKUP($A37,LINJE_DATA!$A:$C,2,FALSE) -> Göteborg Central-Malmö central | D37: =+'Linjelänk JA_KAP'!J38 -> Ängelholm | E37: =IFERROR('Linjelänk JA_KAP'!K38,"") -> Vegeholm | F37: =+LinjeLänk_Data!B37 -> 3600 | G37: =+LinjeLänk_Data!G37 -> 5.730000019 | H37: =+VLOOKUP($A37,LINJE_DATA!$A:$H,7,FALSE) -> 8 | I37: =+'Linjelänk JA_KAP'!AQ38 -> 0
A38: =+LinjeLänk_Data!A38 -> 10001 | B38: =+VLOOKUP($A38,LINJE_DATA!$A:$C,3,FALSE) -> 2 | C38: =+VLOOKUP($A38,LINJE_DATA!$A:$C,2,FALSE) -> Göteborg Central-Malmö central | D38: =+'Linjelänk JA_KAP'!J39 -> Vegeholm | E38: =IFERROR('Linjelänk JA_KAP'!K39,"") -> Kattarp | F38: =+LinjeLänk_Data!B38 -> 9551 | G38: =+LinjeLänk_Data!G38 -> 7.369999886 | H38: =+VLOOKUP($A38,LINJE_DATA!$A:$H,7,FALSE) -> 8 | I38: =+'Linjelänk JA_KAP'!AQ39 -> 0
A39: =+LinjeLänk_Data!A39 -> 10001 | B39: =+VLOOKUP($A39,LINJE_DATA!$A:$C,3,FALSE) -> 2 | C39: =+VLOOKUP($A39,LINJE_DATA!$A:$C,2,FALSE) -> Göteborg Central-Malmö central | D39: =+'Linjelänk JA_KAP'!J40 -> Kattarp | E39: =IFERROR('Linjelänk JA_KAP'!K40,"") -> Ödåkra | F39: =+LinjeLänk_Data!B39 -> 3732 | G39: =+LinjeLänk_Data!G39 -> 4.949999809 | H39: =+VLOOKUP($A39,LINJE_DATA!$A:$H,7,FALSE) -> 8 | I39: =+'Linjelänk JA_KAP'!AQ40 -> 0
A40: =+LinjeLänk_Data!A40 -> 10001 | B40: =+VLOOKUP($A40,LINJE_DATA!$A:$C,3,FALSE) -> 2 | C40: =+VLOOKUP($A40,LINJE_DATA!$A:$C,2,FALSE) -> Göteborg Central-Malmö central | D40: =+'Linjelänk JA_KAP'!J41 -> Ödåkra | E40: =IFERROR('Linjelänk JA_KAP'!K41,"") -> Maria | F40: =+LinjeLänk_Data!B40 -> 3709 | G40: =+LinjeLänk_Data!G40 -> 3.890000105 | H40: =+VLOOKUP($A40,LINJE_DATA!$A:$H,7,FALSE) -> 8 | I40: =+'Linjelänk JA_KAP'!AQ41 -> 0
A41: =+LinjeLänk_Data!A41 -> 10001 | B41: =+VLOOKUP($A41,LINJE_DATA!$A:$C,3,FALSE) -> 2 | C41: =+VLOOKUP($A41,LINJE_DATA!$A:$C,2,FALSE) -> Göteborg Central-Malmö central | D41: =+'Linjelänk JA_KAP'!J42 -> Maria | E41: =IFERROR('Linjelänk JA_KAP'!K42,"") -> Helsingborgs Central | F41: =+LinjeLänk_Data!B41 -> 3699 | G41: =+LinjeLänk_Data!G41 -> 4.889999866 | H41: =+VLOOKUP($A41,LINJE_DATA!$A:$H,7,FALSE) -> 8 | I41: =+'Linjelänk JA_KAP'!AQ42 -> 1
A42: =+LinjeLänk_Data!A42 -> 10001 | B42: =+VLOOKUP($A42,LINJE_DATA!$A:$C,3,FALSE) -> 2 | C42: =+VLOOKUP($A42,LINJE_DATA!$A:$C,2,FALSE) -> Göteborg Central-Malmö central | D42: =+'Linjelänk JA_KAP'!J43 -> Helsingborgs Central | E42: =IFERROR('Linjelänk JA_KAP'!K43,"") -> Helsingborgs Godsbangård | F42: =+LinjeLänk_Data!B42 -> 3700 | G42: =+LinjeLänk_Data!G42 -> 3 | H42: =+VLOOKUP($A42,LINJE_DATA!$A:$H,7,FALSE) -> 8 | I42: =+'Linjelänk JA_KAP'!AQ43 -> 0
A43: =+LinjeLänk_Data!A43 -> 10001 | B43: =+VLOOKUP($A43,LINJE_DATA!$A:$C,3,FALSE) -> 2 | C43: =+VLOOKUP($A43,LINJE_DATA!$A:$C,2,FALSE) -> Göteborg Central-Malmö central | D43: =+'Linjelänk JA_KAP'!J44 -> Helsingborgs Godsbangård | E43: =IFERROR('Linjelänk JA_KAP'!K44,"") -> Rydebäck | F43: =+LinjeLänk_Data!B43 -> 3942 | G43: =+LinjeLänk_Data!G43 -> 7.3677001 | H43: =+VLOOKUP($A43,LINJE_DATA!$A:$H,7,FALSE) -> 8 | I43: =+'Linjelänk JA_KAP'!AQ44 -> 0
A44: =+LinjeLänk_Data!A44 -> 10001 | B44: =+VLOOKUP($A44,LINJE_DATA!$A:$C,3,FALSE) -> 2 | C44: =+VLOOKUP($A44,LINJE_DATA!$A:$C,2,FALSE) -> Göteborg Central-Malmö central | D44: =+'Linjelänk JA_KAP'!J45 -> Rydebäck | E44: =IFERROR('Linjelänk JA_KAP'!K45,"") -> Glumslöv | F44: =+LinjeLänk_Data!B44 -> 3706 | G44: =+LinjeLänk_Data!G44 -> 3.140000105 | H44: =+VLOOKUP($A44,LINJE_DATA!$A:$H,7,FALSE) -> 8 | I44: =+'Linjelänk JA_KAP'!AQ45 -> 0
A45: =+LinjeLänk_Data!A45 -> 10001 | B45: =+VLOOKUP($A45,LINJE_DATA!$A:$C,3,FALSE) -> 2 | C45: =+VLOOKUP($A45,LINJE_DATA!$A:$C,2,FALSE) -> Göteborg Central-Malmö central | D45: =+'Linjelänk JA_KAP'!J46 -> Glumslöv | E45: =IFERROR('Linjelänk JA_KAP'!K46,"") -> Landskrona Östra | F45: =+LinjeLänk_Data!B45 -> 3718 | G45: =+LinjeLänk_Data!G45 -> 7.840000153 | H45: =+VLOOKUP($A45,LINJE_DATA!$A:$H,7,FALSE) -> 8 | I45: =+'Linjelänk JA_KAP'!AQ46 -> 0
A46: =+LinjeLänk_Data!A46 -> 10001 | B46: =+VLOOKUP($A46,LINJE_DATA!$A:$C,3,FALSE) -> 2 | C46: =+VLOOKUP($A46,LINJE_DATA!$A:$C,2,FALSE) -> Göteborg Central-Malmö central | D46: =+'Linjelänk JA_KAP'!J47 -> Landskrona Östra | E46: =IFERROR('Linjelänk JA_KAP'!K47,"") -> Häljarp | F46: =+LinjeLänk_Data!B46 -> 3701 | G46: =+LinjeLänk_Data!G46 -> 4.260000229 | H46: =+VLOOKUP($A46,LINJE_DATA!$A:$H,7,FALSE) -> 8 | I46: =+'Linjelänk JA_KAP'!AQ47 -> 0
A47: =+LinjeLänk_Data!A47 -> 10001 | B47: =+VLOOKUP($A47,LINJE_DATA!$A:$C,3,FALSE) -> 2 | C47: =+VLOOKUP($A47,LINJE_DATA!$A:$C,2,FALSE) -> Göteborg Central-Malmö central | D47: =+'Linjelänk JA_KAP'!J48 -> Häljarp | E47: =IFERROR('Linjelänk JA_KAP'!K48,"") -> Dösjebro | F47: =+LinjeLänk_Data!B47 -> 3713 | G47: =+LinjeLänk_Data!G47 -> 8.909999847 | H47: =+VLOOKUP($A47,LINJE_DATA!$A:$H,7,FALSE) -> 8 | I47: =+'Linjelänk JA_KAP'!AQ48 -> 0
A48: =+LinjeLänk_Data!A48 -> 10001 | B48: =+VLOOKUP($A48,LINJE_DATA!$A:$C,3,FALSE) -> 2 | C48: =+VLOOKUP($A48,LINJE_DATA!$A:$C,2,FALSE) -> Göteborg Central-Malmö central | D48: =+'Linjelänk JA_KAP'!J49 -> Dösjebro | E48: =IFERROR('Linjelänk JA_KAP'!K49,"") -> Kävlinge | F48: =+LinjeLänk_Data!B48 -> 3831 | G48: =+LinjeLänk_Data!G48 -> 6.769999981 | H48: =+VLOOKUP($A48,LINJE_DATA!$A:$H,7,FALSE) -> 8 | I48: =+'Linjelänk JA_KAP'!AQ49 -> 0
A49: =+LinjeLänk_Data!A49 -> 10001 | B49: =+VLOOKUP($A49,LINJE_DATA!$A:$C,3,FALSE) -> 2 | C49: =+VLOOKUP($A49,LINJE_DATA!$A:$C,2,FALSE) -> Göteborg Central-Malmö central | D49: =+'Linjelänk JA_KAP'!J50 -> Kävlinge | E49: =IFERROR('Linjelänk JA_KAP'!K50,"") -> Gunnesbo | F49: =+LinjeLänk_Data!B49 -> 3810 | G49: =+LinjeLänk_Data!G49 -> 8.529999733 | H49: =+VLOOKUP($A49,LINJE_DATA!$A:$H,7,FALSE) -> 8 | I49: =+'Linjelänk JA_KAP'!AQ50 -> 0
A50: =+LinjeLänk_Data!A50 -> 10001 | B50: =+VLOOKUP($A50,LINJE_DATA!$A:$C,3,FALSE) -> 2 | C50: =+VLOOKUP($A50,LINJE_DATA!$A:$C,2,FALSE) -> Göteborg Central-Malmö central | D50: =+'Linjelänk JA_KAP'!J51 -> Gunnesbo | E50: =IFERROR('Linjelänk JA_KAP'!K51,"") -> Lund C | F50: =+LinjeLänk_Data!B50 -> 3865 | G50: =+LinjeLänk_Data!G50 -> 2.420000076 | H50: =+VLOOKUP($A50,LINJE_DATA!$A:$H,7,FALSE) -> 8 | I50: =+'Linjelänk JA_KAP'!AQ51 -> 1
A51: =+LinjeLänk_Data!A51 -> 10001 | B51: =+VLOOKUP($A51,LINJE_DATA!$A:$C,3,FALSE) -> 2 | C51: =+VLOOKUP($A51,LINJE_DATA!$A:$C,2,FALSE) -> Göteborg Central-Malmö central | D51: =+'Linjelänk JA_KAP'!J52 -> Lund C | E51: =IFERROR('Linjelänk JA_KAP'!K52,"") -> Klostergården | F51: =+LinjeLänk_Data!B51 -> 3801 | G51: =+LinjeLänk_Data!G51 -> 2.029999971 | H51: =+VLOOKUP($A51,LINJE_DATA!$A:$H,7,FALSE) -> 8 | I51: =+'Linjelänk JA_KAP'!AQ52 -> 0
A52: =+LinjeLänk_Data!A52 -> 10001 | B52: =+VLOOKUP($A52,LINJE_DATA!$A:$C,3,FALSE) -> 2 | C52: =+VLOOKUP($A52,LINJE_DATA!$A:$C,2,FALSE) -> Göteborg Central-Malmö central | D52: =+'Linjelänk JA_KAP'!J53 -> Klostergården | E52: =IFERROR('Linjelänk JA_KAP'!K53,"") -> Flackarp | F52: =+LinjeLänk_Data!B52 -> 3804 | G52: =+LinjeLänk_Data!G52 -> 1.039999962 | H52: =+VLOOKUP($A52,LINJE_DATA!$A:$H,7,FALSE) -> 8 | I52: =+'Linjelänk JA_KAP'!AQ53 -> 0
A53: =+LinjeLänk_Data!A53 -> 10001 | B53: =+VLOOKUP($A53,LINJE_DATA!$A:$C,3,FALSE) -> 2 | C53: =+VLOOKUP($A53,LINJE_DATA!$A:$C,2,FALSE) -> Göteborg Central-Malmö central | D53: =+'Linjelänk JA_KAP'!J54 -> Flackarp | E53: =IFERROR('Linjelänk JA_KAP'!K54,"") -> Hjärup | F53: =+LinjeLänk_Data!B53 -> 9120 | G53: =+LinjeLänk_Data!G53 -> 1.99000001 | H53: =+VLOOKUP($A53,LINJE_DATA!$A:$H,7,FALSE) -> 8 | I53: =+'Linjelänk JA_KAP'!AQ54 -> 0
A54: =+LinjeLänk_Data!A54 -> 10001 | B54: =+VLOOKUP($A54,LINJE_DATA!$A:$C,3,FALSE) -> 2 | C54: =+VLOOKUP($A54,LINJE_DATA!$A:$C,2,FALSE) -> Göteborg Central-Malmö central | D54: =+'Linjelänk JA_KAP'!J55 -> Hjärup | E54: =IFERROR('Linjelänk JA_KAP'!K55,"") -> Åkarps norra | F54: =+LinjeLänk_Data!B54 -> 3821 | G54: =+LinjeLänk_Data!G54 -> 2.029999971 | H54: =+VLOOKUP($A54,LINJE_DATA!$A:$H,7,FALSE) -> 8 | I54: =+'Linjelänk JA_KAP'!AQ55 -> 0
A55: =+LinjeLänk_Data!A55 -> 10001 | B55: =+VLOOKUP($A55,LINJE_DATA!$A:$C,3,FALSE) -> 2 | C55: =+VLOOKUP($A55,LINJE_DATA!$A:$C,2,FALSE) -> Göteborg Central-Malmö central | D55: =+'Linjelänk JA_KAP'!J56 -> Åkarps norra | E55: =IFERROR('Linjelänk JA_KAP'!K56,"") -> Åkarp | F55: =+LinjeLänk_Data!B55 -> 3812 | G55: =+LinjeLänk_Data!G55 -> 0.5199999809 | H55: =+VLOOKUP($A55,LINJE_DATA!$A:$H,7,FALSE) -> 8 | I55: =+'Linjelänk JA_KAP'!AQ56 -> 0
A56: =+LinjeLänk_Data!A56 -> 10001 | B56: =+VLOOKUP($A56,LINJE_DATA!$A:$C,3,FALSE) -> 2 | C56: =+VLOOKUP($A56,LINJE_DATA!$A:$C,2,FALSE) -> Göteborg Central-Malmö central | D56: =+'Linjelänk JA_KAP'!J57 -> Åkarp | E56: =IFERROR('Linjelänk JA_KAP'!K57,"") -> Burlöv | F56: =+LinjeLänk_Data!B56 -> 9588 | G56: =+LinjeLänk_Data!G56 -> 2.519999981 | H56: =+VLOOKUP($A56,LINJE_DATA!$A:$H,7,FALSE) -> 8 | I56: =+'Linjelänk JA_KAP'!AQ57 -> 0
A57: =+LinjeLänk_Data!A57 -> 10001 | B57: =+VLOOKUP($A57,LINJE_DATA!$A:$C,3,FALSE) -> 2 | C57: =+VLOOKUP($A57,LINJE_DATA!$A:$C,2,FALSE) -> Göteborg Central-Malmö central | D57: =+'Linjelänk JA_KAP'!J58 -> Burlöv | E57: =IFERROR('Linjelänk JA_KAP'!K58,"") -> Arlöv | F57: =+LinjeLänk_Data!B57 -> 3853 | G57: =+LinjeLänk_Data!G57 -> 1.100000024 | H57: =+VLOOKUP($A57,LINJE_DATA!$A:$H,7,FALSE) -> 8 | I57: =+'Linjelänk JA_KAP'!AQ58 -> 0
A58: =+LinjeLänk_Data!A58 -> 10001 | B58: =+VLOOKUP($A58,LINJE_DATA!$A:$C,3,FALSE) -> 2 | C58: =+VLOOKUP($A58,LINJE_DATA!$A:$C,2,FALSE) -> Göteborg Central-Malmö central | D58: =+'Linjelänk JA_KAP'!J59 -> Arlöv | E58: =IFERROR('Linjelänk JA_KAP'!K59,"") -> Malmö godsbangård, persontåg mot Malmö C | F58: =+LinjeLänk_Data!B58 -> 3852 | G58: =+LinjeLänk_Data!G58 -> 2.118040085 | H58: =+VLOOKUP($A58,LINJE_DATA!$A:$H,7,FALSE) -> 8 | I58: =+'Linjelänk JA_KAP'!AQ59 -> 0
A59: =+LinjeLänk_Data!A59 -> 10001 | B59: =+VLOOKUP($A59,LINJE_DATA!$A:$C,3,FALSE) -> 2 | C59: =+VLOOKUP($A59,LINJE_DATA!$A:$C,2,FALSE) -> Göteborg Central-Malmö central | D59: =+'Linjelänk JA_KAP'!J60 -> Malmö godsbangård, persontåg mot Malmö C | E59: =IFERROR('Linjelänk JA_KAP'!K60,"") -> Malmö central | F59: =+LinjeLänk_Data!B59 -> 3005 | G59: =+LinjeLänk_Data!G59 -> 3.160480022 | H59: =+VLOOKUP($A59,LINJE_DATA!$A:$H,7,FALSE) -> 8 | I59: =+'Linjelänk JA_KAP'!AQ60 -> 1 | L59: Slutstation
A60: =+LinjeLänk_Data!A60 -> 10001 | B60: =+VLOOKUP($A60,LINJE_DATA!$A:$C,3,FALSE) -> 2 | C60: =+VLOOKUP($A60,LINJE_DATA!$A:$C,2,FALSE) -> Göteborg Central-Malmö central | D60: =+'Linjelänk JA_KAP'!J61 -> Malmö central | E60: =IFERROR('Linjelänk JA_KAP'!K61,"") ->  | F60: =+LinjeLänk_Data!B60 -> 3800 | G60: =+LinjeLänk_Data!G60 -> 0 | H60: =+VLOOKUP($A60,LINJE_DATA!$A:$H,7,FALSE) -> 8 | I60: =+'Linjelänk JA_KAP'!AQ61 -> 0
A61: =+LinjeLänk_Data!A61 -> 10001R | B61: =+VLOOKUP($A61,LINJE_DATA!$A:$C,3,FALSE) -> 2 | C61: =+VLOOKUP($A61,LINJE_DATA!$A:$C,2,FALSE) -> Malmö central-Göteborg Central | D61: =+'Linjelänk JA_KAP'!J62 -> Malmö central | E61: =IFERROR('Linjelänk JA_KAP'!K62,"") -> Malmö godsbangård, persontåg mot Malmö C | F61: =+LinjeLänk_Data!B61 -> 3800 | G61: =+LinjeLänk_Data!G61 -> 3.160480022 | H61: =+VLOOKUP($A61,LINJE_DATA!$A:$H,7,FALSE) -> 8 | I61: =+'Linjelänk JA_KAP'!AQ62 -> 0
A62: =+LinjeLänk_Data!A62 -> 10001R | B62: =+VLOOKUP($A62,LINJE_DATA!$A:$C,3,FALSE) -> 2 | C62: =+VLOOKUP($A62,LINJE_DATA!$A:$C,2,FALSE) -> Malmö central-Göteborg Central | D62: =+'Linjelänk JA_KAP'!J63 -> Malmö godsbangård, persontåg mot Malmö C | E62: =IFERROR('Linjelänk JA_KAP'!K63,"") -> Arlöv | F62: =+LinjeLänk_Data!B62 -> 3005 | G62: =+LinjeLänk_Data!G62 -> 2.118040085 | H62: =+VLOOKUP($A62,LINJE_DATA!$A:$H,7,FALSE) -> 8 | I62: =+'Linjelänk JA_KAP'!AQ63 -> 0
... 77 more rows

Sheet Persontågslinjer
A1: Linjenr | B1: Linjesträckning | C1: Tågtyp kalkyl | D1: Tågtyp kapacitet | E1: Tågtyp Gångtid | F1: turer JA | G1: turer UA | H1: Ange Diff turer | K1: TÅGBYTE UA: Tågtyp kalkyl UA | L1: Diff tågtid minuter t.o.r | M1: Diff förseningstid tåg | N1: Diff PÖ | O1: Diff KÖ | Q1: tkm | R1: buller | S1: kr/tkm
A2: =+LINJE_DATA!A3 -> 10001 | B2: =+LINJE_DATA!B3 -> Göteborg Central-Malmö central | C2: =+LINJE_DATA!C3 -> 2 | D2: =+LINJE_DATA!D3 -> s | E2: =++IF(LINJE_DATA!E3="",0,LINJE_DATA!E3) -> PX550020 | F2: =+LINJE_DATA!G3 -> 8 | G2: =+F2+H2 -> 8 | L2: =+Persontåg!P5 -> 0 | M2: =+Persontåg!L5 -> 0 | N2: =+Persontåg!U5+Persontåg!V5 -> 0 | O2: =+Persontåg!W5+Persontåg!X5 -> 0 | Q2: =+Persontåg!FM5 -> 0.7642015216 | R2: =+Persontåg!HR5 -> 1.645226005 | S2: =+R2/Q2 -> 2.152869313
A3: =+LINJE_DATA!A4 -> 10001R | B3: =+LINJE_DATA!B4 -> Malmö central-Göteborg Central | C3: =+LINJE_DATA!C4 -> 2 | D3: =+LINJE_DATA!D4 -> s | E3: =++IF(LINJE_DATA!E4="",0,LINJE_DATA!E4) -> PX550020 | F3: =+LINJE_DATA!G4 -> 8 | G3: =+F3+H3 -> 8 | L3: =+Persontåg!P6 -> 0 | M3: =+Persontåg!L6 -> 0 | N3: =+Persontåg!U6+Persontåg!V6 -> 0 | O3: =+Persontåg!W6+Persontåg!X6 -> 0 | Q3: =+Persontåg!FM6 -> 0.7642015216 | R3: =+Persontåg!HR6 -> 1.645226005 | S3: =+R3/Q3 -> 2.152869313
A4: =+LINJE_DATA!A5 -> 10003 | B4: =+LINJE_DATA!B5 -> Oslo-Göteborg Central | C4: =+LINJE_DATA!C5 -> 1 | D4: =+LINJE_DATA!D5 -> Ö | E4: =++IF(LINJE_DATA!E5="",0,LINJE_DATA!E5) -> PBM73021 | F4: =+LINJE_DATA!G5 -> 3 | G4: 3 | L4: =+Persontåg!P7 -> 0 | M4: =+Persontåg!L7 -> 0 | N4: =+Persontåg!U7+Persontåg!V7 -> 0 | O4: =+Persontåg!W7+Persontåg!X7 -> 0 | Q4: =+Persontåg!FM7 -> 0.3140345028 | R4: =+Persontåg!HR7 -> 0.04912607433 | S4: 0.1564352767
A5: =+LINJE_DATA!A6 -> 10003R | B5: =+LINJE_DATA!B6 -> Göteborg Central-Oslo | C5: =+LINJE_DATA!C6 -> 1 | D5: =+LINJE_DATA!D6 -> Ö | E5: =++IF(LINJE_DATA!E6="",0,LINJE_DATA!E6) -> PBM73021 | F5: =+LINJE_DATA!G6 -> 3 | G5: 3 | L5: =+Persontåg!P8 -> 0 | M5: =+Persontåg!L8 -> 0 | N5: =+Persontåg!U8+Persontåg!V8 -> 0 | O5: =+Persontåg!W8+Persontåg!X8 -> 0 | Q5: =+Persontåg!FM8 -> 0.3140345028 | R5: =+Persontåg!HR8 -> 0.04912607433 | S5: 0.1564352767
A6: =+LINJE_DATA!A7 -> 10004 | B6: =+LINJE_DATA!B7 -> Göteborg Central-Österport | C6: =+LINJE_DATA!C7 -> 1 | D6: =+LINJE_DATA!D7 -> Ö | E6: =++IF(LINJE_DATA!E7="",0,LINJE_DATA!E7) -> PX310218 | F6: =+LINJE_DATA!G7 -> 18 | G6: 18 | L6: =+Persontåg!P9 -> 0 | M6: =+Persontåg!L9 -> 0 | N6: =+Persontåg!U9+Persontåg!V9 -> 0 | O6: =+Persontåg!W9+Persontåg!X9 -> 0 | Q6: =+Persontåg!FM9 -> 1.977386222 | R6: =+Persontåg!HR9 -> 5.125779128 | S6: 2.592199273
A7: =+LINJE_DATA!A8 -> 10004R | B7: =+LINJE_DATA!B8 -> Österport-Göteborg Central | C7: =+LINJE_DATA!C8 -> 1 | D7: =+LINJE_DATA!D8 -> Ö | E7: =++IF(LINJE_DATA!E8="",0,LINJE_DATA!E8) -> PX310218 | F7: =+LINJE_DATA!G8 -> 18 | G7: 18 | L7: =+Persontåg!P10 -> 0 | M7: =+Persontåg!L10 -> 0 | N7: =+Persontåg!U10+Persontåg!V10 -> 0 | O7: =+Persontåg!W10+Persontåg!X10 -> 0 | Q7: =+Persontåg!FM10 -> 1.977386222 | R7: =+Persontåg!HR10 -> 5.203227972 | S7: 2.631366555
A8: =+LINJE_DATA!A9 -> 10401 | B8: =+LINJE_DATA!B9 -> Kristianstads Central-Hyllie | C8: =+LINJE_DATA!C9 -> 15 | D8: =+LINJE_DATA!D9 -> L | E8: =++IF(LINJE_DATA!E9="",0,LINJE_DATA!E9) -> PX610016 | F8: =+LINJE_DATA!G9 -> 20 | G8: 20 | L8: =+Persontåg!P11 -> 0 | M8: =+Persontåg!L11 -> 0 | N8: =+Persontåg!U11+Persontåg!V11 -> 0 | O8: =+Persontåg!W11+Persontåg!X11 -> 0 | Q8: =+Persontåg!FM11 -> 0.7609564178 | R8: =+Persontåg!HR11 -> 0.405483626 | S8: 0.5328605114
A9: =+LINJE_DATA!A10 -> 10401R | B9: =+LINJE_DATA!B10 -> Hyllie-Kristianstads Central | C9: =+LINJE_DATA!C10 -> 15 | D9: =+LINJE_DATA!D10 -> L | E9: =++IF(LINJE_DATA!E10="",0,LINJE_DATA!E10) -> PX610016 | F9: =+LINJE_DATA!G10 -> 20 | G9: 20 | L9: =+Persontåg!P12 -> 0 | M9: =+Persontåg!L12 -> 0 | N9: =+Persontåg!U12+Persontåg!V12 -> 0 | O9: =+Persontåg!W12+Persontåg!X12 -> 0 | Q9: =+Persontåg!FM12 -> 0.7609564178 | R9: =+Persontåg!HR12 -> 0.405483626 | S9: 0.5328605114
A10: =+LINJE_DATA!A11 -> 10402 | B10: =+LINJE_DATA!B11 -> Höör-Simrishamn | C10: =+LINJE_DATA!C11 -> 15 | D10: =+LINJE_DATA!D11 -> L | E10: =++IF(LINJE_DATA!E11="",0,LINJE_DATA!E11) -> PX610216 | F10: =+LINJE_DATA!G11 -> 15 | G10: 15 | L10: =+Persontåg!P13 -> 0 | M10: =+Persontåg!L13 -> 0 | N10: =+Persontåg!U13+Persontåg!V13 -> 0 | O10: =+Persontåg!W13+Persontåg!X13 -> 0 | Q10: =+Persontåg!FM13 -> 0.8073529129 | R10: =+Persontåg!HR13 -> 0.3094164013 | S10: 0.383248015
A11: =+LINJE_DATA!A12 -> 10402R | B11: =+LINJE_DATA!B12 -> Simrishamn-Höör | C11: =+LINJE_DATA!C12 -> 15 | D11: =+LINJE_DATA!D12 -> L | E11: =++IF(LINJE_DATA!E12="",0,LINJE_DATA!E12) -> PX610216 | F11: =+LINJE_DATA!G12 -> 15 | G11: 15 | L11: =+Persontåg!P14 -> 0 | M11: =+Persontåg!L14 -> 0 | N11: =+Persontåg!U14+Persontåg!V14 -> 0 | O11: =+Persontåg!W14+Persontåg!X14 -> 0 | Q11: =+Persontåg!FM14 -> 0.8073529129 | R11: =+Persontåg!HR14 -> 0.3094164013 | S11: 0.383248015
A12: =+LINJE_DATA!A13 -> 10403 | B12: =+LINJE_DATA!B13 -> Lund C-Simrishamn | C12: =+LINJE_DATA!C13 -> 15 | D12: =+LINJE_DATA!D13 -> L | E12: =++IF(LINJE_DATA!E13="",0,LINJE_DATA!E13) -> PX610016 | F12: =+LINJE_DATA!G13 -> 5 | G12: 5 | L12: =+Persontåg!P15 -> 0 | M12: =+Persontåg!L15 -> 0 | N12: =+Persontåg!U15+Persontåg!V15 -> 0 | O12: =+Persontåg!W15+Persontåg!X15 -> 0 | Q12: =+Persontåg!FM15 -> 0.2097256376 | R12: =+Persontåg!HR15 -> 0.05862463519 | S12: 0.2795301321
A13: =+LINJE_DATA!A14 -> 10403R | B13: =+LINJE_DATA!B14 -> Simrishamn-Lund C | C13: =+LINJE_DATA!C14 -> 15 | D13: =+LINJE_DATA!D14 -> L | E13: =++IF(LINJE_DATA!E14="",0,LINJE_DATA!E14) -> PX610016 | F13: =+LINJE_DATA!G14 -> 5 | G13: 5 | L13: =+Persontåg!P16 -> 0 | M13: =+Persontåg!L16 -> 0 | N13: =+Persontåg!U16+Persontåg!V16 -> 0 | O13: =+Persontåg!W16+Persontåg!X16 -> 0 | Q13: =+Persontåg!FM16 -> 0.2097256376 | R13: =+Persontåg!HR16 -> 0.05862463519 | S13: 0.2795301321
A14: =+LINJE_DATA!A15 -> 10404 | B14: =+LINJE_DATA!B15 -> Halmstads Central-Helsingborgs Central | C14: =+LINJE_DATA!C15 -> 15 | D14: =+LINJE_DATA!D15 -> L | E14: =++IF(LINJE_DATA!E15="",0,LINJE_DATA!E15) -> PX610016 | F14: =+LINJE_DATA!G15 -> 7 | G14: 7 | L14: =+Persontåg!P17 -> 0 | M14: =+Persontåg!L17 -> 0 | N14: =+Persontåg!U17+Persontåg!V17 -> 0 | O14: =+Persontåg!W17+Persontåg!X17 -> 0 | Q14: =+Persontåg!FM17 -> 0.1854271997 | R14: =+Persontåg!HR17 -> 0.0214316112 | S14: 0.1155796519
A15: =+LINJE_DATA!A16 -> 10404R | B15: =+LINJE_DATA!B16 -> Helsingborgs Central-Halmstads Central | C15: =+LINJE_DATA!C16 -> 15 | D15: =+LINJE_DATA!D16 -> L | E15: =++IF(LINJE_DATA!E16="",0,LINJE_DATA!E16) -> PX610016 | F15: =+LINJE_DATA!G16 -> 7 | G15: 7 | L15: =+Persontåg!P18 -> 0 | M15: =+Persontåg!L18 -> 0 | N15: =+Persontåg!U18+Persontåg!V18 -> 0 | O15: =+Persontåg!W18+Persontåg!X18 -> 0 | Q15: =+Persontåg!FM18 -> 0.1854271997 | R15: =+Persontåg!HR18 -> 0.0214316112 | S15: 0.1155796519
A16: =+LINJE_DATA!A17 -> 10405 | B16: =+LINJE_DATA!B17 -> Helsingborgs Central-Ystad | C16: =+LINJE_DATA!C17 -> 15 | D16: =+LINJE_DATA!D17 -> L | E16: =++IF(LINJE_DATA!E17="",0,LINJE_DATA!E17) -> PX610216 | F16: =+LINJE_DATA!G17 -> 19 | G16: 19 | L16: =+Persontåg!P19 -> 0 | M16: =+Persontåg!L19 -> 0 | N16: =+Persontåg!U19+Persontåg!V19 -> 0 | O16: =+Persontåg!W19+Persontåg!X19 -> 0 | Q16: =+Persontåg!FM19 -> 0.9213039407 | R16: =+Persontåg!HR19 -> 0.3130621437 | S16: 0.3398033264
A17: =+LINJE_DATA!A18 -> 10405R | B17: =+LINJE_DATA!B18 -> Ystad-Helsingborgs Central | C17: =+LINJE_DATA!C18 -> 15 | D17: =+LINJE_DATA!D18 -> L | E17: =++IF(LINJE_DATA!E18="",0,LINJE_DATA!E18) -> PX610216 | F17: =+LINJE_DATA!G18 -> 19 | G17: 19 | L17: =+Persontåg!P20 -> 0 | M17: =+Persontåg!L20 -> 0 | N17: =+Persontåg!U20+Persontåg!V20 -> 0 | O17: =+Persontåg!W20+Persontåg!X20 -> 0 | Q17: =+Persontåg!FM20 -> 0.9213039407 | R17: =+Persontåg!HR20 -> 0.3130621437 | S17: 0.3398033264
A18: =+LINJE_DATA!A19 -> 10501 | B18: =+LINJE_DATA!B19 -> Malmö central-Malmö central övre | C18: =+LINJE_DATA!C19 -> 15 | D18: =+LINJE_DATA!D19 -> L | E18: =++IF(LINJE_DATA!E19="",0,LINJE_DATA!E19) -> PX610016 | F18: =+LINJE_DATA!G19 -> 18 | G18: 18 | L18: =+Persontåg!P21 -> 0 | M18: =+Persontåg!L21 -> 0 | N18: =+Persontåg!U21+Persontåg!V21 -> 0 | O18: =+Persontåg!W21+Persontåg!X21 -> 0 | Q18: =+Persontåg!FM21 -> 0.1256768052 | R18: =+Persontåg!HR21 -> 0.07050016573 | S18: 0.5609640188
A19: =+LINJE_DATA!A20 -> 10501R | B19: =+LINJE_DATA!B20 -> Malmö central övre-Malmö central | C19: =+LINJE_DATA!C20 -> 15 | D19: =+LINJE_DATA!D20 -> L | E19: =++IF(LINJE_DATA!E20="",0,LINJE_DATA!E20) -> PX610016 | F19: =+LINJE_DATA!G20 -> 18 | G19: 18 | L19: =+Persontåg!P22 -> 0 | M19: =+Persontåg!L22 -> 0 | N19: =+Persontåg!U22+Persontåg!V22 -> 0 | O19: =+Persontåg!W22+Persontåg!X22 -> 0 | Q19: =+Persontåg!FM22 -> 0.1256768052 | R19: =+Persontåg!HR22 -> 0.07050016573 | S19: 0.5609640188
A20: =+LINJE_DATA!A21 -> 10601 | B20: =+LINJE_DATA!B21 -> Markaryd-Hässleholm | C20: =+LINJE_DATA!C21 -> 15 | D20: =+LINJE_DATA!D21 -> L | E20: =++IF(LINJE_DATA!E21="",0,LINJE_DATA!E21) -> PX610016 | F20: =+LINJE_DATA!G21 -> 13 | G20: 13 | L20: =+Persontåg!P23 -> 0 | M20: =+Persontåg!L23 -> 0 | N20: =+Persontåg!U23+Persontåg!V23 -> 0 | O20: =+Persontåg!W23+Persontåg!X23 -> 0 | Q20: =+Persontåg!FM23 -> 0.152879998 | R20: =+Persontåg!HR23 -> 0.01015465086 | S20: 0.06642236392
A21: =+LINJE_DATA!A22 -> 10601R | B21: =+LINJE_DATA!B22 -> Hässleholm-Markaryd | C21: =+LINJE_DATA!C22 -> 15 | D21: =+LINJE_DATA!D22 -> L | E21: =++IF(LINJE_DATA!E22="",0,LINJE_DATA!E22) -> PX610016 | F21: =+LINJE_DATA!G22 -> 13 | G21: 13 | L21: =+Persontåg!P24 -> 0 | M21: =+Persontåg!L24 -> 0 | N21: =+Persontåg!U24+Persontåg!V24 -> 0 | O21: =+Persontåg!W24+Persontåg!X24 -> 0 | Q21: =+Persontåg!FM24 -> 0.152879998 | R21: =+Persontåg!HR24 -> 0.01015465086 | S21: 0.06642236392
A22: =+LINJE_DATA!A23 -> 10602 | B22: =+LINJE_DATA!B23 -> Förslöv-Helsingborgs Central | C22: =+LINJE_DATA!C23 -> 15 | D22: =+LINJE_DATA!D23 -> L | E22: =++IF(LINJE_DATA!E23="",0,LINJE_DATA!E23) -> PX610016 | F22: =+LINJE_DATA!G23 -> 21 | G22: 21 | L22: =+Persontåg!P25 -> 0 | M22: =+Persontåg!L25 -> 0 | N22: =+Persontåg!U25+Persontåg!V25 -> 0 | O22: =+Persontåg!W25+Persontåg!X25 -> 0 | Q22: =+Persontåg!FM25 -> 0.2653727969 | R22: =+Persontåg!HR25 -> 0.05197089778 | S22: 0.1958410899
A23: =+LINJE_DATA!A24 -> 10602R | B23: =+LINJE_DATA!B24 -> Helsingborgs Central-Förslöv | C23: =+LINJE_DATA!C24 -> 15 | D23: =+LINJE_DATA!D24 -> L | E23: =++IF(LINJE_DATA!E24="",0,LINJE_DATA!E24) -> PX610016 | F23: =+LINJE_DATA!G24 -> 21 | G23: 21 | L23: =+Persontåg!P26 -> 0 | M23: =+Persontåg!L26 -> 0 | N23: =+Persontåg!U26+Persontåg!V26 -> 0 | O23: =+Persontåg!W26+Persontåg!X26 -> 0 | Q23: =+Persontåg!FM26 -> 0.2653727969 | R23: =+Persontåg!HR26 -> 0.05197089778 | S23: 0.1958410899
A24: =+LINJE_DATA!A25 -> 10701 | B24: =+LINJE_DATA!B25 -> Malmö central övre-Ystad | C24: =+LINJE_DATA!C25 -> 15 | D24: =+LINJE_DATA!D25 -> L | E24: =++IF(LINJE_DATA!E25="",0,LINJE_DATA!E25) -> PX610016 | F24: =+LINJE_DATA!G25 -> 2 | G24: 2 | L24: =+Persontåg!P27 -> 0 | M24: =+Persontåg!L27 -> 0 | N24: =+Persontåg!U27+Persontåg!V27 -> 0 | O24: =+Persontåg!W27+Persontåg!X27 -> 0 | Q24: =+Persontåg!FM27 -> 0.04120249149 | R24: =+Persontåg!HR27 -> 0.01880631722 | S24: 0.456436408
A25: =+LINJE_DATA!A26 -> 10701R | B25: =+LINJE_DATA!B26 -> Ystad-Malmö central övre | C25: =+LINJE_DATA!C26 -> 15 | D25: =+LINJE_DATA!D26 -> L | E25: =++IF(LINJE_DATA!E26="",0,LINJE_DATA!E26) -> PX610016 | F25: =+LINJE_DATA!G26 -> 2 | G25: 2 | L25: =+Persontåg!P28 -> 0 | M25: =+Persontåg!L28 -> 0 | N25: =+Persontåg!U28+Persontåg!V28 -> 0 | O25: =+Persontåg!W28+Persontåg!X28 -> 0 | Q25: =+Persontåg!FM28 -> 0.04120249149 | R25: =+Persontåg!HR28 -> 0.02034815452 | S25: 0.4938573804
A26: =+LINJE_DATA!A27 -> 10801 | B26: =+LINJE_DATA!B27 -> Helsingborgs Central-Trelleborg | C26: =+LINJE_DATA!C27 -> 15 | D26: =+LINJE_DATA!D27 -> L | E26: =++IF(LINJE_DATA!E27="",0,LINJE_DATA!E27) -> PX610216 | F26: =+LINJE_DATA!G27 -> 35 | G26: 35 | L26: =+Persontåg!P29 -> 0 | M26: =+Persontåg!L29 -> 0 | N26: =+Persontåg!U29+Persontåg!V29 -> 0 | O26: =+Persontåg!W29+Persontåg!X29 -> 0 | Q26: =+Persontåg!FM29 -> 1.204629664 | R26: =+Persontåg!HR29 -> 0.7392672488 | S26: 0.6136883983
A27: =+LINJE_DATA!A28 -> 10801R | B27: =+LINJE_DATA!B28 -> Trelleborg-Helsingborgs Central | C27: =+LINJE_DATA!C28 -> 15 | D27: =+LINJE_DATA!D28 -> L | E27: =++IF(LINJE_DATA!E28="",0,LINJE_DATA!E28) -> PX610216 | F27: =+LINJE_DATA!G28 -> 35 | G27: 35 | L27: =+Persontåg!P30 -> 0 | M27: =+Persontåg!L30 -> 0 | N27: =+Persontåg!U30+Persontåg!V30 -> 0 | O27: =+Persontåg!W30+Persontåg!X30 -> 0 | Q27: =+Persontåg!FM30 -> 1.204629664 | R27: =+Persontåg!HR30 -> 0.7050273736 | S27: 0.5852648286
A28: =+LINJE_DATA!A29 -> 10802 | B28: =+LINJE_DATA!B29 -> Kävlinge-Trelleborg | C28: =+LINJE_DATA!C29 -> 15 | D28: =+LINJE_DATA!D29 -> L | E28: =++IF(LINJE_DATA!E29="",0,LINJE_DATA!E29) -> PX610016 | F28: =+LINJE_DATA!G29 -> 6 | G28: 6 | L28: =+Persontåg!P31 -> 0 | M28: =+Persontåg!L31 -> 0 | N28: =+Persontåg!U31+Persontåg!V31 -> 0 | O28: =+Persontåg!W31+Persontåg!X31 -> 0 | Q28: =+Persontåg!FM31 -> 0.1272355575 | R28: =+Persontåg!HR31 -> 0.06479547129 | S28: 0.5092560016
A29: =+LINJE_DATA!A30 -> 10802R | B29: =+LINJE_DATA!B30 -> Trelleborg-Kävlinge | C29: =+LINJE_DATA!C30 -> 15 | D29: =+LINJE_DATA!D30 -> L | E29: =++IF(LINJE_DATA!E30="",0,LINJE_DATA!E30) -> PX610016 | F29: =+LINJE_DATA!G30 -> 6 | G29: 6 | L29: =+Persontåg!P32 -> 0 | M29: =+Persontåg!L32 -> 0 | N29: =+Persontåg!U32+Persontåg!V32 -> 0 | O29: =+Persontåg!W32+Persontåg!X32 -> 0 | Q29: =+Persontåg!FM32 -> 0.1272355575 | R29: =+Persontåg!HR32 -> 0.06479547129 | S29: 0.5092560016
A30: =+LINJE_DATA!A31 -> 10901 | B30: =+LINJE_DATA!B31 -> Karlshamn-Kristianstads Central | C30: =+LINJE_DATA!C31 -> 15 | D30: =+LINJE_DATA!D31 -> L | E30: =++IF(LINJE_DATA!E31="",0,LINJE_DATA!E31) -> PX610016 | F30: =+LINJE_DATA!G31 -> 6 | G30: 6 | L30: =+Persontåg!P33 -> 0 | M30: =+Persontåg!L33 -> 0 | N30: =+Persontåg!U33+Persontåg!V33 -> 0 | O30: =+Persontåg!W33+Persontåg!X33 -> 0 | Q30: =+Persontåg!FM33 -> 0.1181375995 | R30: =+Persontåg!HR33 -> 0.01347988455 | S30: 0.1141032543
A31: =+LINJE_DATA!A32 -> 10901R | B31: =+LINJE_DATA!B32 -> Kristianstads Central-Karlshamn | C31: =+LINJE_DATA!C32 -> 15 | D31: =+LINJE_DATA!D32 -> L | E31: =++IF(LINJE_DATA!E32="",0,LINJE_DATA!E32) -> PX610016 | F31: =+LINJE_DATA!G32 -> 6 | G31: 6 | L31: =+Persontåg!P34 -> 0 | M31: =+Persontåg!L34 -> 0 | N31: =+Persontåg!U34+Persontåg!V34 -> 0 | O31: =+Persontåg!W34+Persontåg!X34 -> 0 | Q31: =+Persontåg!FM34 -> 0.1181375995 | R31: =+Persontåg!HR34 -> 0.01347988455 | S31: 0.1141032543
A32: =+LINJE_DATA!A33 -> 10902 | B32: =+LINJE_DATA!B33 -> Kristianstads Central-Helsingborgs Central | C32: =+LINJE_DATA!C33 -> 15 | D32: =+LINJE_DATA!D33 -> L | E32: =++IF(LINJE_DATA!E33="",0,LINJE_DATA!E33) -> PX610016 | F32: =+LINJE_DATA!G33 -> 14 | G32: 14 | L32: =+Persontåg!P35 -> 0 | M32: =+Persontåg!L35 -> 0 | N32: =+Persontåg!U35+Persontåg!V35 -> 0 | O32: =+Persontåg!W35+Persontåg!X35 -> 0 | Q32: =+Persontåg!FM35 -> 0.4778368015 | R32: =+Persontåg!HR35 -> 0.07848379675 | S32: 0.1642481209
A33: =+LINJE_DATA!A34 -> 10902R | B33: =+LINJE_DATA!B34 -> Helsingborgs Central-Kristianstads Central | C33: =+LINJE_DATA!C34 -> 15 | D33: =+LINJE_DATA!D34 -> L | E33: =++IF(LINJE_DATA!E34="",0,LINJE_DATA!E34) -> PX610016 | F33: =+LINJE_DATA!G34 -> 14 | G33: 14 | L33: =+Persontåg!P36 -> 0 | M33: =+Persontåg!L36 -> 0 | N33: =+Persontåg!U36+Persontåg!V36 -> 0 | O33: =+Persontåg!W36+Persontåg!X36 -> 0 | Q33: =+Persontåg!FM36 -> 0.4778368015 | R33: =+Persontåg!HR36 -> 0.07848379675 | S33: 0.1642481209
A34: =+LINJE_DATA!A35 -> 10903 | B34: =+LINJE_DATA!B35 -> Helsingborgs Central-Hässleholm | C34: =+LINJE_DATA!C35 -> 15 | D34: =+LINJE_DATA!D35 -> L | E34: =++IF(LINJE_DATA!E35="",0,LINJE_DATA!E35) -> PX610016 | F34: =+LINJE_DATA!G35 -> 13 | G34: 13 | L34: =+Persontåg!P37 -> 0 | M34: =+Persontåg!L37 -> 0 | N34: =+Persontåg!U37+Persontåg!V37 -> 0 | O34: =+Persontåg!W37+Persontåg!X37 -> 0 | Q34: =+Persontåg!FM37 -> 0.3212768001 | R34: =+Persontåg!HR37 -> 0.04875906519 | S34: 0.1517665302
A35: =+LINJE_DATA!A36 -> 10903R | B35: =+LINJE_DATA!B36 -> Hässleholm-Helsingborgs Central | C35: =+LINJE_DATA!C36 -> 15 | D35: =+LINJE_DATA!D36 -> L | E35: =++IF(LINJE_DATA!E36="",0,LINJE_DATA!E36) -> PX610016 | F35: =+LINJE_DATA!G36 -> 13 | G35: 13 | L35: =+Persontåg!P38 -> 0 | M35: =+Persontåg!L38 -> 0 | N35: =+Persontåg!U38+Persontåg!V38 -> 0 | O35: =+Persontåg!W38+Persontåg!X38 -> 0 | Q35: =+Persontåg!FM38 -> 0.3212768001 | R35: =+Persontåg!HR38 -> 0.04875906519 | S35: 0.1517665302
A36: =+LINJE_DATA!A37 -> 10904 | B36: =+LINJE_DATA!B37 -> Helsingborgs Central-Åstorp | C36: =+LINJE_DATA!C37 -> 15 | D36: =+LINJE_DATA!D37 -> L | E36: =++IF(LINJE_DATA!E37="",0,LINJE_DATA!E37) -> PX610016 | F36: =+LINJE_DATA!G37 -> 8 | G36: 8 | L36: =+Persontåg!P39 -> 0 | M36: =+Persontåg!L39 -> 0 | N36: =+Persontåg!U39+Persontåg!V39 -> 0 | O36: =+Persontåg!W39+Persontåg!X39 -> 0 | Q36: =+Persontåg!FM39 -> 0.06192639954 | R36: =+Persontåg!HR39 -> 0.01445109178 | S36: 0.2333591472
A37: =+LINJE_DATA!A38 -> 10904R | B37: =+LINJE_DATA!B38 -> Åstorp-Helsingborgs Central | C37: =+LINJE_DATA!C38 -> 15 | D37: =+LINJE_DATA!D38 -> L | E37: =++IF(LINJE_DATA!E38="",0,LINJE_DATA!E38) -> PX610016 | F37: =+LINJE_DATA!G38 -> 8 | G37: 8 | L37: =+Persontåg!P40 -> 0 | M37: =+Persontåg!L40 -> 0 | N37: =+Persontåg!U40+Persontåg!V40 -> 0 | O37: =+Persontåg!W40+Persontåg!X40 -> 0 | Q37: =+Persontåg!FM40 -> 0.06192639954 | R37: =+Persontåg!HR40 -> 0.01445109178 | S37: 0.2333591472
A38: =+LINJE_DATA!A39 -> 10905 | B38: =+LINJE_DATA!B39 -> Bromölla-Kristianstads Central | C38: =+LINJE_DATA!C39 -> 15 | D38: =+LINJE_DATA!D39 -> L | E38: =++IF(LINJE_DATA!E39="",0,LINJE_DATA!E39) -> PX610016 | F38: =+LINJE_DATA!G39 -> 6 | G38: 6 | L38: =+Persontåg!P41 -> 0 | M38: =+Persontåg!L41 -> 0 | N38: =+Persontåg!U41+Persontåg!V41 -> 0 | O38: =+Persontåg!W41+Persontåg!X41 -> 0 | Q38: =+Persontåg!FM41 -> 0.04368000046 | R38: =+Persontåg!HR41 -> 0.005357937146 | S38: 0.1226633949
A39: =+LINJE_DATA!A40 -> 10905R | B39: =+LINJE_DATA!B40 -> Kristianstads Central-Bromölla | C39: =+LINJE_DATA!C40 -> 15 | D39: =+LINJE_DATA!D40 -> L | E39: =++IF(LINJE_DATA!E40="",0,LINJE_DATA!E40) -> PX610016 | F39: =+LINJE_DATA!G40 -> 6 | G39: 6 | L39: =+Persontåg!P42 -> 0 | M39: =+Persontåg!L42 -> 0 | N39: =+Persontåg!U42+Persontåg!V42 -> 0 | O39: =+Persontåg!W42+Persontåg!X42 -> 0 | Q39: =+Persontåg!FM42 -> 0.04368000046 | R39: =+Persontåg!HR42 -> 0.005357937146 | S39: 0.1226633949
A40: =+LINJE_DATA!A41 -> 11001 | B40: =+LINJE_DATA!B41 -> Märsta-Södertälje Centrum | C40: =+LINJE_DATA!C41 -> 18 | D40: =+LINJE_DATA!D41 -> L | E40: =++IF(LINJE_DATA!E41="",0,LINJE_DATA!E41) -> PX600216 | F40: =+LINJE_DATA!G41 -> 70 | G40: 70 | L40: =+Persontåg!P43 -> 0 | M40: =+Persontåg!L43 -> 0 | N40: =+Persontåg!U43+Persontåg!V43 -> 0 | O40: =+Persontåg!W43+Persontåg!X43 -> 0 | Q40: =+Persontåg!FM43 -> 1.648892894 | R40: =+Persontåg!HR43 -> 3.14981805 | S40: 1.910262371
A41: =+LINJE_DATA!A42 -> 11001R | B41: =+LINJE_DATA!B42 -> Södertälje Centrum-Märsta | C41: =+LINJE_DATA!C42 -> 18 | D41: =+LINJE_DATA!D42 -> L | E41: =++IF(LINJE_DATA!E42="",0,LINJE_DATA!E42) -> PX600216 | F41: =+LINJE_DATA!G42 -> 70 | G41: 70 | L41: =+Persontåg!P44 -> 0 | M41: =+Persontåg!L44 -> 0 | N41: =+Persontåg!U44+Persontåg!V44 -> 0 | O41: =+Persontåg!W44+Persontåg!X44 -> 0 | Q41: =+Persontåg!FM44 -> 1.648892894 | R41: =+Persontåg!HR44 -> 3.083800862 | S41: 1.87022509
A42: =+LINJE_DATA!A43 -> 11002 | B42: =+LINJE_DATA!B43 -> Upplands Väsby-Södertälje Centrum | C42: =+LINJE_DATA!C43 -> 18 | D42: =+LINJE_DATA!D43 -> L | E42: =++IF(LINJE_DATA!E43="",0,LINJE_DATA!E43) -> PX600216 | F42: =+LINJE_DATA!G43 -> 11 | G42: 11 | L42: =+Persontåg!P45 -> 0 | M42: =+Persontåg!L45 -> 0 | N42: =+Persontåg!U45+Persontåg!V45 -> 0 | O42: =+Persontåg!W45+Persontåg!X45 -> 0 | Q42: =+Persontåg!FM45 -> 0.2159857207 | R42: =+Persontåg!HR45 -> 0.3696441488 | S42: 1.711428642
A43: =+LINJE_DATA!A44 -> 11002R | B43: =+LINJE_DATA!B44 -> Södertälje Centrum-Upplands Väsby | C43: =+LINJE_DATA!C44 -> 18 | D43: =+LINJE_DATA!D44 -> L | E43: =++IF(LINJE_DATA!E44="",0,LINJE_DATA!E44) -> PX600216 | F43: =+LINJE_DATA!G44 -> 11 | G43: 11 | L43: =+Persontåg!P46 -> 0 | M43: =+Persontåg!L46 -> 0 | N43: =+Persontåg!U46+Persontåg!V46 -> 0 | O43: =+Persontåg!W46+Persontåg!X46 -> 0 | Q43: =+Persontåg!FM46 -> 0.2159857207 | R43: =+Persontåg!HR46 -> 0.345067244 | S43: 1.597639154
A44: =+LINJE_DATA!A45 -> 11003 | B44: =+LINJE_DATA!B45 -> Uppsala Central-Tumba | C44: =+LINJE_DATA!C45 -> 18 | D44: =+LINJE_DATA!D45 -> L | E44: =++IF(LINJE_DATA!E45="",0,LINJE_DATA!E45) -> PX600216 | F44: =+LINJE_DATA!G45 -> 41 | G44: 41 | L44: =+Persontåg!P47 -> 0 | M44: =+Persontåg!L47 -> 0 | N44: =+Persontåg!U47+Persontåg!V47 -> 0 | O44: =+Persontåg!W47+Persontåg!X47 -> 0 | Q44: =+Persontåg!FM47 -> 1.212109298 | R44: =+Persontåg!HR47 -> 1.670249793 | S44: 1.377969624
A45: =+LINJE_DATA!A46 -> 11003R | B45: =+LINJE_DATA!B46 -> Tumba-Uppsala Central | C45: =+LINJE_DATA!C46 -> 18 | D45: =+LINJE_DATA!D46 -> L | E45: =++IF(LINJE_DATA!E46="",0,LINJE_DATA!E46) -> PX600216 | F45: =+LINJE_DATA!G46 -> 41 | G45: 41 | L45: =+Persontåg!P48 -> 0 | M45: =+Persontåg!L48 -> 0 | N45: =+Persontåg!U48+Persontåg!V48 -> 0 | O45: =+Persontåg!W48+Persontåg!X48 -> 0 | Q45: =+Persontåg!FM48 -> 1.212109298 | R45: =+Persontåg!HR48 -> 1.403748451 | S45: 1.158103855
A46: =+LINJE_DATA!A47 -> 11101 | B46: =+LINJE_DATA!B47 -> Kungsängen-Nynäshamn | C46: =+LINJE_DATA!C47 -> 18 | D46: =+LINJE_DATA!D47 -> L | E46: =++IF(LINJE_DATA!E47="",0,LINJE_DATA!E47) -> PX600216 | F46: =+LINJE_DATA!G47 -> 38 | G46: 38 | L46: =+Persontåg!P49 -> 0 | M46: =+Persontåg!L49 -> 0 | N46: =+Persontåg!U49+Persontåg!V49 -> 0 | O46: =+Persontåg!W49+Persontåg!X49 -> 0 | Q46: =+Persontåg!FM49 -> 1.082549596 | R46: =+Persontåg!HR49 -> 1.730951755 | S46: 1.598958387
A47: =+LINJE_DATA!A48 -> 11101R | B47: =+LINJE_DATA!B48 -> Nynäshamn-Kungsängen | C47: =+LINJE_DATA!C48 -> 18 | D47: =+LINJE_DATA!D48 -> L | E47: =++IF(LINJE_DATA!E48="",0,LINJE_DATA!E48) -> PX600216 | F47: =+LINJE_DATA!G48 -> 38 | G47: 38 | L47: =+Persontåg!P50 -> 0 | M47: =+Persontåg!L50 -> 0 | N47: =+Persontåg!U50+Persontåg!V50 -> 0 | O47: =+Persontåg!W50+Persontåg!X50 -> 0 | Q47: =+Persontåg!FM50 -> 1.082549596 | R47: =+Persontåg!HR50 -> 1.747679305 | S47: 1.61441038
A48: =+LINJE_DATA!A49 -> 11102 | B48: =+LINJE_DATA!B49 -> Bålsta-Västerhaninge | C48: =+LINJE_DATA!C49 -> 18 | D48: =+LINJE_DATA!D49 -> L | E48: =++IF(LINJE_DATA!E49="",0,LINJE_DATA!E49) -> PX600216 | F48: =+LINJE_DATA!G49 -> 42 | G48: 42 | L48: =+Persontåg!P51 -> 0 | M48: =+Persontåg!L51 -> 0 | N48: =+Persontåg!U51+Persontåg!V51 -> 0 | O48: =+Persontåg!W51+Persontåg!X51 -> 0 | Q48: =+Persontåg!FM51 -> 0.9947130772 | R48: =+Persontåg!HR51 -> 1.945984559 | S48: 1.956327511
A49: =+LINJE_DATA!A50 -> 11102R | B49: =+LINJE_DATA!B50 -> Västerhaninge-Bålsta | C49: =+LINJE_DATA!C50 -> 18 | D49: =+LINJE_DATA!D50 -> L | E49: =++IF(LINJE_DATA!E50="",0,LINJE_DATA!E50) -> PX600216 | F49: =+LINJE_DATA!G50 -> 42 | G49: 42 | L49: =+Persontåg!P52 -> 0 | M49: =+Persontåg!L52 -> 0 | N49: =+Persontåg!U52+Persontåg!V52 -> 0 | O49: =+Persontåg!W52+Persontåg!X52 -> 0 | Q49: =+Persontåg!FM52 -> 0.9947130772 | R49: =+Persontåg!HR52 -> 2.104287705 | S49: 2.115472042
A50: =+LINJE_DATA!A51 -> 11104 | B50: =+LINJE_DATA!B51 -> Kallhäll-Västerhaninge | C50: =+LINJE_DATA!C51 -> 18 | D50: =+LINJE_DATA!D51 -> L | E50: =++IF(LINJE_DATA!E51="",0,LINJE_DATA!E51) -> PX600216 | F50: =+LINJE_DATA!G51 -> 25 | G50: 25 | L50: =+Persontåg!P53 -> 0 | M50: =+Persontåg!L53 -> 0 | N50: =+Persontåg!U53+Persontåg!V53 -> 0 | O50: =+Persontåg!W53+Persontåg!X53 -> 0 | Q50: =+Persontåg!FM53 -> 0.4132111201 | R50: =+Persontåg!HR53 -> 0.8992730134 | S50: 2.176304
A51: =+LINJE_DATA!A52 -> 11104R | B51: =+LINJE_DATA!B52 -> Västerhaninge-Kallhäll | C51: =+LINJE_DATA!C52 -> 18 | D51: =+LINJE_DATA!D52 -> L | E51: =++IF(LINJE_DATA!E52="",0,LINJE_DATA!E52) -> PX600216 | F51: =+LINJE_DATA!G52 -> 25 | G51: 25 | L51: =+Persontåg!P54 -> 0 | M51: =+Persontåg!L54 -> 0 | N51: =+Persontåg!U54+Persontåg!V54 -> 0 | O51: =+Persontåg!W54+Persontåg!X54 -> 0 | Q51: =+Persontåg!FM54 -> 0.4132111201 | R51: =+Persontåg!HR54 -> 0.9617146326 | S51: 2.327417114
A52: =+LINJE_DATA!A53 -> 11501 | B52: =+LINJE_DATA!B53 -> Södertälje Centrum-Gnesta | C52: =+LINJE_DATA!C53 -> 18 | D52: =+LINJE_DATA!D53 -> L | E52: =++IF(LINJE_DATA!E53="",0,LINJE_DATA!E53) -> PX600216 | F52: =+LINJE_DATA!G53 -> 25 | G52: 25 | L52: =+Persontåg!P55 -> 0 | M52: =+Persontåg!L55 -> 0 | N52: =+Persontåg!U55+Persontåg!V55 -> 0 | O52: =+Persontåg!W55+Persontåg!X55 -> 0 | Q52: =+Persontåg!FM55 -> 0.2447200022 | R52: =+Persontåg!HR55 -> 0.05407477188 | S52: 0.2209658851
A53: =+LINJE_DATA!A54 -> 11501R | B53: =+LINJE_DATA!B54 -> Gnesta-Södertälje Centrum | C53: =+LINJE_DATA!C54 -> 18 | D53: =+LINJE_DATA!D54 -> L | E53: =++IF(LINJE_DATA!E54="",0,LINJE_DATA!E54) -> PX600216 | F53: =+LINJE_DATA!G54 -> 25 | G53: 25 | L53: =+Persontåg!P56 -> 0 | M53: =+Persontåg!L56 -> 0 | N53: =+Persontåg!U56+Persontåg!V56 -> 0 | O53: =+Persontåg!W56+Persontåg!X56 -> 0 | Q53: =+Persontåg!FM56 -> 0.2447200022 | R53: =+Persontåg!HR56 -> 0.05407477188 | S53: 0.2209658851
A54: =+LINJE_DATA!A55 -> 13001 | B54: =+LINJE_DATA!B55 -> Göteborg Central-Strömstad | C54: =+LINJE_DATA!C55 -> 15 | D54: =+LINJE_DATA!D55 -> L | E54: =++IF(LINJE_DATA!E55="",0,LINJE_DATA!E55) -> PX503020 | F54: =+LINJE_DATA!G55 -> 6 | G54: 6 | L54: =+Persontåg!P57 -> 0 | M54: =+Persontåg!L57 -> 0 | N54: =+Persontåg!U57+Persontåg!V57 -> 0 | O54: =+Persontåg!W57+Persontåg!X57 -> 0 | Q54: =+Persontåg!FM57 -> 0.3446591018 | R54: =+Persontåg!HR57 -> 0.01368966831 | S54: 0.03971944521
A55: =+LINJE_DATA!A56 -> 13001R | B55: =+LINJE_DATA!B56 -> Strömstad-Göteborg Central | C55: =+LINJE_DATA!C56 -> 15 | D55: =+LINJE_DATA!D56 -> L | E55: =++IF(LINJE_DATA!E56="",0,LINJE_DATA!E56) -> PX503020 | F55: =+LINJE_DATA!G56 -> 6 | G55: 6 | L55: =+Persontåg!P58 -> 0 | M55: =+Persontåg!L58 -> 0 | N55: =+Persontåg!U58+Persontåg!V58 -> 0 | O55: =+Persontåg!W58+Persontåg!X58 -> 0 | Q55: =+Persontåg!FM58 -> 0.3446591018 | R55: =+Persontåg!HR58 -> 0.01368966831 | S55: 0.03971944521
A56: =+LINJE_DATA!A57 -> 13002 | B56: =+LINJE_DATA!B57 -> Göteborg Central-Uddevalla Central | C56: =+LINJE_DATA!C57 -> 15 | D56: =+LINJE_DATA!D57 -> L | E56: =++IF(LINJE_DATA!E57="",0,LINJE_DATA!E57) -> PX503020 | F56: =+LINJE_DATA!G57 -> 13 | G56: 13 | L56: =+Persontåg!P59 -> 0 | M56: =+Persontåg!L59 -> 0 | N56: =+Persontåg!U59+Persontåg!V59 -> 0 | O56: =+Persontåg!W59+Persontåg!X59 -> 0 | Q56: =+Persontåg!FM59 -> 0.3677021936 | R56: =+Persontåg!HR59 -> 0.02873112877 | S56: 0.07813695231
A57: =+LINJE_DATA!A58 -> 13002R | B57: =+LINJE_DATA!B58 -> Uddevalla Central-Göteborg Central | C57: =+LINJE_DATA!C58 -> 15 | D57: =+LINJE_DATA!D58 -> L | E57: =++IF(LINJE_DATA!E58="",0,LINJE_DATA!E58) -> PX503020 | F57: =+LINJE_DATA!G58 -> 13 | G57: 13 | L57: =+Persontåg!P60 -> 0 | M57: =+Persontåg!L60 -> 0 | N57: =+Persontåg!U60+Persontåg!V60 -> 0 | O57: =+Persontåg!W60+Persontåg!X60 -> 0 | Q57: =+Persontåg!FM60 -> 0.3677021936 | R57: =+Persontåg!HR60 -> 0.02873112877 | S57: 0.07813695231
A58: =+LINJE_DATA!A59 -> 13003 | B58: =+LINJE_DATA!B59 -> Göteborg Central-Stenungsund | C58: =+LINJE_DATA!C59 -> 15 | D58: =+LINJE_DATA!D59 -> L | E58: =++IF(LINJE_DATA!E59="",0,LINJE_DATA!E59) -> PX120216 | F58: =+LINJE_DATA!G59 -> 12 | G58: 12 | L58: =+Persontåg!P61 -> 0 | M58: =+Persontåg!L61 -> 0 | N58: =+Persontåg!U61+Persontåg!V61 -> 0 | O58: =+Persontåg!W61+Persontåg!X61 -> 0 | Q58: =+Persontåg!FM61 -> 0.1826687988 | R58: =+Persontåg!HR61 -> 0.008031393993 | S58: 0.04396697216
A59: =+LINJE_DATA!A60 -> 13003R | B59: =+LINJE_DATA!B60 -> Stenungsund-Göteborg Central | C59: =+LINJE_DATA!C60 -> 15 | D59: =+LINJE_DATA!D60 -> L | E59: =++IF(LINJE_DATA!E60="",0,LINJE_DATA!E60) -> PX120216 | F59: =+LINJE_DATA!G60 -> 12 | G59: 12 | L59: =+Persontåg!P62 -> 0 | M59: =+Persontåg!L62 -> 0 | N59: =+Persontåg!U62+Persontåg!V62 -> 0 | O59: =+Persontåg!W62+Persontåg!X62 -> 0 | Q59: =+Persontåg!FM62 -> 0.1826687988 | R59: =+Persontåg!HR62 -> 0.008031393993 | S59: 0.04396697216
A60: =+LINJE_DATA!A61 -> 13101 | B60: =+LINJE_DATA!B61 -> Göteborg Central-Alingsås | C60: =+LINJE_DATA!C61 -> 15 | D60: =+LINJE_DATA!D61 -> L | E60: =++IF(LINJE_DATA!E61="",0,LINJE_DATA!E61) -> PX610216 | F60: =+LINJE_DATA!G61 -> 40 | G60: 40 | L60: =+Persontåg!P63 -> 0 | M60: =+Persontåg!L63 -> 0 | N60: =+Persontåg!U63+Persontåg!V63 -> 0 | O60: =+Persontåg!W63+Persontåg!X63 -> 0 | Q60: =+Persontåg!FM63 -> 0.5743447186 | R60: =+Persontåg!HR63 -> 0.2383906324 | S60: 0.415065421
A61: =+LINJE_DATA!A62 -> 13101R | B61: =+LINJE_DATA!B62 -> Alingsås-Göteborg Central | C61: =+LINJE_DATA!C62 -> 15 | D61: =+LINJE_DATA!D62 -> L | E61: =++IF(LINJE_DATA!E62="",0,LINJE_DATA!E62) -> PX610216 | F61: =+LINJE_DATA!G62 -> 40 | G61: 40 | L61: =+Persontåg!P64 -> 0 | M61: =+Persontåg!L64 -> 0 | N61: =+Persontåg!U64+Persontåg!V64 -> 0 | O61: =+Persontåg!W64+Persontåg!X64 -> 0 | Q61: =+Persontåg!FM64 -> 0.5743447186 | R61: =+Persontåg!HR64 -> 0.2375580929 | S61: 0.4136158743
A62: =+LINJE_DATA!A63 -> 13102 | B62: =+LINJE_DATA!B63 -> Göteborg Central-Floda | C62: =+LINJE_DATA!C63 -> 15 | D62: =+LINJE_DATA!D63 -> L | E62: =++IF(LINJE_DATA!E63="",0,LINJE_DATA!E63) -> PX120216 | F62: =+LINJE_DATA!G63 -> 2 | G62: 2 | L62: =+Persontåg!P65 -> 0 | M62: =+Persontåg!L65 -> 0 | N62: =+Persontåg!U65+Persontåg!V65 -> 0 | O62: =+Persontåg!W65+Persontåg!X65 -> 0 | Q62: =+Persontåg!FM65 -> 0.01716523579 | R62: =+Persontåg!HR65 -> 0.007073384925 | S62: 0.4120761878
... 77 more rows

Sheet Bangods_linjedel
H1: Ange | I1: Ange | J1: Ange | K1: Ange | L1: Ange | M1: Ange | BL1: FÖRE VOLYMFÖRÄNDRINGAR | CC1: Tillkommande/försvinnande volymer = KÖ | CJ1: före volymför | CU1: EFTER VOLYMFÖRÄNDRINGAR | DI1: före volymförändring | DS1: Beräknade genomsnitt per sträcka | DY1: Effekter | DZ1: Förändring MSEK, UA-JA (transportköpare KÖ) | EG1: Förändring Banavgifter Budgeteffekt | EM1: ENJA | ET1: ENJA | EU1: ENJA | EV1: ENJA | EW1: ENJA
B2: Linjedel | C2: Beskrivning | E2: Dimesionerande sträcka | F2: Avstånd (km) | G2: bandel | H2: Gångtidsför-ändring, min | I2: Avståndsför-ändring, km | J2: Förändrad förseningstid, minuter | K2: Förändring antal godståg/dygn | L2: Exogent beräknad förändrad tåglängd meter | M2: Externt beräknad kostnadsförändring, totalt kronor | N2: Tågperår | O2: Volym per år | P2: Fjärrtåg | Q2: Lokaltåg | R2: Systemtåg | S2: Malmtåg | T2: Kombitåg | U2: TÅG/DYGN JA | V2: TÅG/DYGN UA | W2: Malm tåg/dygn | X2: Övriga | Y2: dieseldrift | Z2: Medel-hastighet | AA2: Medeltrpsträcka, km | AB2: Drivmedels-kostnad kr/tkm | AC2: Passage Öresund | AD2: Kr per minut lok+förare | AE2: KR/MINUT VAGnAR | AF2: KR/TÅGKM BANAVGIFT | AG2: TRPTID KR/TONH | AH2: FÖRS.TID KR/H | AI2: FOKO exkl BA hela trp | AJ2: BA hela trp | AK2: Totalkostnad (FOKO+BA)/trp | AL2: Elastictet | AM2: El JA | AN2: El UA | AO2: Bruttoton/nettoton | AP2: SPÅR JA | AQ2: SPÅR UA | AR2: KAPAC JA | AS2: KAPAC UA | AT2: a (JA) | AU2: b (JA) | AV2: a (UA) | AW2: b (UA) | AX2: g | AY2: Kap.tillägg JA | AZ2: tdt.tillägg JA | BA2: Kap.tillägg UA | BB2: tdt.tillägg UA | BC2: Kap.tillägg UA nya linjedelar | BD2: tdt.tillägg UA nya linjedelar | BE2: Diff gångtid minuter enkel | BF2: Diff avstånd km enkel | BG2: Total tidsdiff, minuter | BH2: Diff tåg/dygn | BI2: Förseningstid | BJ2: Byte EL-DIESEL | BL2: FÖRÄNDRAD FOKO KR INKL BA | BM2: FÖRÄNDRAD FOKO tid | BN2: FÖRÄNDRAD FOKO DRIVMEDEL | BO2: FÖRÄNDRAD BANAVG | BP2: TRPTID KR | BQ2: FÖRSEN. KR | BR2: Spår JA | BS2: Spår UA | BT2: Tågläge JA kr/tågkm | BU2: Tågläge UA, kr/tågkm | BV2: Trafikdagar Godståg | BW2: Trafikdagar Malmtåg | BY2: Förändring tkm | BZ2: Förändring ton | CA2: Tonkm | CB2: Bruttotonkm | CC2: FOKO tid | CD2: foko drivmedel | CE2: foko banavg | CF2: Transporttid | CG2: Försenings-tid | CI2: Liter diesel JA | CJ2: Liter diesel UA fv | CK2: Liter diesel UA ev | CM2: KWH JA | CN2: KWH UA FV | CO2: KWH UA EV | CP2: JA AVG Tågläge | CQ2: JA AVG Spår | CR2: JA EXT Infra | CT2: JA EXT buller | CU2: UA AVG Tågläge | CV2: UA AVG spår | CW2: UA EXT infra | CY2: UA Ext buller | CZ2: UA-JA BAVG TOT | DA2: UA-JA AVG Tågläge | DB2: UA-JA AVG spår | DC2: UA-JA EXT infra | DD2: UA-JA EXT olyckor | DE2: UA-JA Ext buller | DF2: BTK JA | DG2: BTK UA före volymdiff | DH2: BTK UA | DI2: UA AVG Tågläge | DJ2: UA AVG spår | DK2: UA-JA AVG FÖRE VOLDIFF | DL2: Ton medeltåg | DM2: Ton Bangods | DN2: Bangods/ASEK | DO2: Meter per ton | DP2: diff meter UA | DQ2: meter JA | DR2: meter UA | DS2: Medel-hastighet | DT2: Drivmedel kr/tkm | DU2: Banavgift kr/tkm | DV2: Fokor kr/tågminut | DW2: TRPTID KR/TONH | DX2: FÖRS.TID KR/H | DY2: Total tidsdiff, minuter | DZ2: Fordons-kostnad | EA2: Banavgift | EB2: Transport-tid | EC2: Försenings-tid | ED2: Extern kostnad INFRA | EE2: Extern kostnad OLYCKOR | EF2: Extern kostnad BULLER | EG2: Tågläge | EH2: Spår | EJ2: Genomsnittlig längd, meter JA | EK2: Genomsnittlig längd, meter UA | EL2: Kapacitetstidsvinst | ET2: trpkostnad kr/km | EU2: trpkostn kr/minut | EV2: trptid gods kr/h | EW2: förs,tid gods kr/h | EX2: tot foko ja | EY2: JA buller basår k-block prisnivå prognosår | EZ2: TKM JA | FB2: Banavgifter, kr/tkm JA | FH2: DIESEL | FK2: ntkm JA | FL2: NTKM UA | FO2: TOT FOKO | FR2: lokkostnad km | FS2: lokkostnad minut | FT2: tot lok
A3: =IFERROR(VLOOKUP(B3,' Fyrspår JA'!B:Z,25,FALSE),+VLOOKUP(B3,Länkar!I:AD,20,FALSE)) -> Malmbanan | B3: =+BANGODSINDATA!B2 -> L100 | C3: =+BANGODSINDATA!C2 -> Buddbyn-Murjek | E3: =+BANGODSINDATA!D2 -> Lakaträsk-Näsberg | F3: =+IFERROR(BANGODSINDATA!F2,FF3) -> 82.85 | G3: =IFERROR((+VLOOKUP(B3,Länkar!I:AD,22,FALSE)),VLOOKUP(B3,' Fyrspår JA'!B:Z,25,FALSE)) -> 118 | N3: =+IFERROR(BANGODSINDATA!G2,0) -> 5746.43 | O3: =+BANGODSINDATA!H2*Kalkylsammanställning!G$2 -> 9130549 | P3: =+IFERROR(BANGODSINDATA!I2,0) -> 1010.9 | Q3: =+IFERROR(BANGODSINDATA!J2,0) -> 0 | R3: =+IFERROR(BANGODSINDATA!K2,0) -> 1049.81 | S3: =+IFERROR(BANGODSINDATA!L2,0) -> 2178.71 | T3: =+IFERROR(BANGODSINDATA!M2,0) -> 1507 | U3: =+($S3/BW3)+(P3+Q3+R3+T3)/BV3 -> 20.49 | V3: =+IF(U3+Bangods_linjedel!K3<0,0,U3+Bangods_linjedel!K3) -> 20.49 | W3: =+S3/350 -> 6.224885714 | X3: =+V3-W3 -> 14.26511429 | Y3: =(IF(AM3="nej",100%,INDATABLAD!$D$268)) -> 0 | Z3: =+IF(N3=0,0,SUMPRODUCT(P3:T3,Indata_Kalkylvärden!D$104:H$104)/N3) -> 68.50667284 | AA3: =+IF(N3=0,0,SUMPRODUCT($P3:$T3,Indata_Kalkylvärden!$D$105:$H$105)/Bangods_linjedel!$N3) -> 406.5790412 | AB3: =IF(N3=0,0,(CM3*INDATABLAD!D$266+INDATABLAD!D$267*CI3)/(N3*F3)) -> 38.16895805 | AC3: =+IF(B3='Beskrivning av åtgärd'!$D$160,'Beskrivning av åtgärd'!$B$160*$N3,0) -> 0 | AD3: =+IF(N3=0,0,SUMPRODUCT(P3:T3,Indata_Kalkylvärden!D$117:H$117/Bangods_linjedel!N3)) -> 64.20349642 | AE3: =+IF(N3=0,0,SUMPRODUCT(P3:T3,Indata_Kalkylvärden!$D$116:$H$116)/N3)*DN3 -> 23.25640696 | AF3: =+IF(N3=0,0,BT3+BR3*DM3*AO3) -> 26.67627517 | AG3: =+Indata_Kalkylvärden!T$96 -> 1.53 | AH3: =+Indata_Kalkylvärden!T$97 -> 5.355 | AI3: =++IF(AA3=0,0,AA3*AB3+(AA3/Z3)*60*(AD3+AE3)) -> 46662.55241 | AJ3: =+AF3*AA3 -> 10846.01438 | AK3: =+AI3+AJ3 -> 57508.5668 | AL3: =+IF(N3=0,0,SUMPRODUCT($P3:$T3,Indata_Kalkylvärden!$D$118:$H$118)/$N3) -> -0.4065465195 | AM3: =+VLOOKUP($G3,Länkar!$F:$V,16,FALSE) -> Ja | AN3: =+VLOOKUP($G3,Länkar!$F:$V,17,FALSE) -> Ja | AO3: =+IF(N3=0,0,(SUMPRODUCT(P3:T3,Indata_Kalkylvärden!$D$110:$H$110)/N3)) -> 1.759863088 | AP3: =+IFERROR(IF(B3=0,0,VLOOKUP(B3,'Kap.ber JA'!$B:$AI,7,FALSE)),0) -> esp | AQ3: =+IFERROR(IF(B3=0,0,VLOOKUP(B3,'Kap.ber UA'!B:H,7,FALSE)),0) -> esp | AR3: =+IFERROR(IF(B3=0,0,VLOOKUP(B3,'Kap.ber JA'!$B:$AI,8,FALSE)),0) -> 0.5137026524 | AS3: =+IFERROR(IF(B3=0,0,VLOOKUP(B3,'Kap.ber UA'!$B:$AL,8,FALSE)),0) -> 0.5137026524 | AT3: =+IF($AP3="esp",INDATABLAD!$D$568,INDATABLAD!$D$566) -> 2.58 | AU3: =+IF($AP3="Esp",INDATABLAD!$D$569,INDATABLAD!$D$567) -> 0.28 | AV3: =+IF($AQ3="Esp",INDATABLAD!$D$568,INDATABLAD!$D$566) -> 2.58 | AW3: =+IF($AQ3="Esp",INDATABLAD!$D$569,INDATABLAD!$D$567) -> 0.28 | AX3: =+INDATABLAD!$D$565 -> 0.3 | AY3: =+IF((AR3*$AT3<$AU3),0,((AR3*$AT3-$AU3)*F3/10)) -> 8.660748305 | AZ3: =+AX3*F3/10 -> 2.4855 | BA3: =+IF(BC3>0,BC3,IF((AS3*$AV3<$AW3),0,((AS3*$AV3-$AW3)*(F3+BF3)/10))) -> 8.660748305 | BB3: =+IF(BD3>0,BD3,(F3+BF3)/10*AX3) -> 2.4855 | BC3: =SUMIF('Gods_nya linjedelar_UA'!$D$4:$D$18,Bangods_linjedel!B3,'Gods_nya linjedelar_UA'!$J$4:$J$18) -> 0 | BD3: =SUMIF('Gods_nya linjedelar_UA'!$D$4:$D$18,Bangods_linjedel!B3,'Gods_nya linjedelar_UA'!$K$4:$K$18) -> 0 | BE3: =+Bangods_linjedel!H3 -> 0 | BF3: =+Bangods_linjedel!I3 -> 0 | BG3: =(BA3-AY3)+(BB3-AZ3)+BE3 -> 4.440892099e-16 | BH3: =+Bangods_linjedel!K3 -> 0 | BI3: =+IF(Bangods_linjedel!J3=0,(BA3-AY3)*0.05,Bangods_linjedel!J3) -> 0 | BJ3: =+IF(AN3=AM3,0,AN3) -> 0 | BL3: =+BM3+BN3+BO3 -> 2.231913377e-10 | BM3: =+(($BG3+$BI3)*($AD3+AE3)*$N3)+Bangods_linjedel!M3 -> 2.231913377e-10 | BN3: =+(CJ3-CI3)*INDATABLAD!D$267+INDATABLAD!D$266*(CN3-CM3) -> 0 | BO3: =+DK3 -> 0 | BP3: =+((BG3/60*O3*AG3)) -> 1.033968464e-10 | BQ3: =+BI3/60*O3*AH3 -> 0 | BR3: =+IF(N3=0,0,('Beskrivning av åtgärd'!$C$154*(X3)+'Beskrivning av åtgärd'!$D$154*Bangods_linjedel!W3)/Bangods_linjedel!U3) -> 0.007683314415 | BS3: =+IF(N3=0,0,('Beskrivning av åtgärd'!$F$154*(X3)+'Beskrivning av åtgärd'!$G$154*Bangods_linjedel!W3)/Bangods_linjedel!U3) -> 0.007683314415 | BT3: =+IF(N3=0,0,('Beskrivning av åtgärd'!$C$155*(X3)+'Beskrivning av åtgärd'!$D$155*$W3)/$U3) -> 5.191725312 | BU3: =+IF(N3=0,0,('Beskrivning av åtgärd'!$F$155*(X3)+'Beskrivning av åtgärd'!$G$155*$W3)/$U3) -> 5.191725312 | BV3: =BANGODSINDATA!Q2 -> 250.0147162 | BW3: =BANGODSINDATA!R2 -> 350.2749196 | BY3: =+IF(N3=0,0,N3*V3/U3*BF3) -> 0 | BZ3: =+IF(O3=0,0,(((BM3+BN3+BO3*'Beskrivning av åtgärd'!$C$165)/(AK3*N3))*AL3)*O3) -> -2.506996968e-12 | CA3: =+BZ3*AA3 -> -1.019292424e-09 | CB3: =+IF(AO3=0,0,AO3*CA3*V3/U3) -> -1.793815113e-09 | CC3: =-IF($O3=0,0,($BZ3/$O3*BM3)*0.5) -> 3.064109326e-29 | CD3: =-IF($O3=0,0,($BZ3/$O3*BN3)*0.5) -> 0 | CE3: =-IF($O3=0,0,($BZ3/$O3*BO3)*0.5) -> 0 | CF3: =+IF($O3=0,0,IF($BZ3<0,((BP3/$O3)*-$BZ3),((BP3/$O3)*$BZ3)))*0.5 -> 1.419496136e-29 | CG3: =+IF($O3=0,0,IF($BZ3<0,((BQ3/$O3)*-$BZ3),((BQ3/$O3)*$BZ3)))*0.5 -> 0 | CI3: =+(($N3*$F3*INDATABLAD!$D$254+Bangods_linjedel!$DF3*INDATABLAD!$D$255))*Y3 -> 0 | CJ3: =+IF($AN3="Nej",(($N3*($F3+$BF3)*INDATABLAD!$D$254+DG3*INDATABLAD!$D$255)),IF($BJ3="Ja",0,(($N3*($F3+$BF3)*INDATABLAD!$D$254+DG3*INDATABLAD!$D$255))*$Y3)) -> 0 | CK3: =+IF($AN3="Nej",(($N3*($F3+$BF3)*INDATABLAD!$D$254+DH3*INDATABLAD!$D$255)),IF($BJ3="ja",0,(($N3*($F3+$BF3)*INDATABLAD!$D$254+DH3*INDATABLAD!$D$255))*$Y3)) -> 0 | CL3: =+CI3-CJ3 -> 0 | CM3: =+DF3*INDATABLAD!$D$256*(1-$Y3) -> 25959893 | CN3: =+IF(BJ3="E",DG3*INDATABLAD!$D$256,IF(BJ3="D",0,DG3*INDATABLAD!$D$256*(1-Y3))) -> 25959893 | CO3: =+IF(DG3=0,0,CN3*DH3/DG3) -> 25959893 | CP3: =+$F3*$N3*BT3 -> 2471737.462 | CQ3: =+$DF3*BR3 -> 10228616.42 | CR3: =+DF3*(INDATABLAD!$D$248)+F3*N3*INDATABLAD!$D$249 -> 12700353.88 | CT3: =+IFERROR(VLOOKUP(G3,' Bandelsspec avg o ext'!$A:$T,17,FALSE)*$F3*$N3*DQ3/500,0) -> 26876.07775 | CU3: =+IF(V3=0,0,BU3*($F3+BF3)*$N3*(V3/U3)) -> 2471737.462 | CV3: =+DH3*BS3 -> 10228616.42 | CW3: =+IF(N3=0,0,DH3*(INDATABLAD!$D$248)+N3*(V3/U3)*(F3+BF3)*INDATABLAD!D$249) -> 12700353.88 | CY3: =+IFERROR(IF(V3=0,0,VLOOKUP(G3,' Bandelsspec avg o ext'!$A:$V,18,FALSE)*($F3+BF3)*$N3*(V3/U3)*(DR3/500)),0) -> 26876.07775 | CZ3: =+DA3+DB3 -> 0 | DA3: =+CU3-CP3 -> 0 | DB3: =+CV3-CQ3 -> 0 | DC3: =+CW3-CR3 -> 0 | DD3: =+CX3-CS3 -> 0 | DE3: =+CY3-CT3 -> 0 | DF3: =+O3*F3*AO3 -> 1331276564 | DG3: =+IF(U3=0,0,$O3*($F3+BF3)*V3/U3*$AO3) -> 1331276564 | DH3: =+DF3+CB3 -> 1331276564 | DI3: =+$F3*$N3*BU3 -> 2471737.462 | DJ3: =+$DF3*BS3 -> 10228616.42 | DK3: =+SUM(DI3:DJ3)-SUM(CP3:CQ3) -> 0 | DL3: =+IF(N3=0,0,SUMPRODUCT(P3:T3,Indata_Kalkylvärden!D$106:H$106)/N3) -> 1475.603071 | DM3: =+IF(N3=0,0,O3/N3) -> 1588.90807 | DN3: =+IF(N3=0,0,DM3/DL3) -> 1.076785554 | DO3: =+IF(N3=0,0,SUMPRODUCT(P3:T3,Indata_Kalkylvärden!D$109:H$109)/Bangods_linjedel!N3) -> 0.4714972709 | DP3: =+IF(N3=0,0,BZ3/N3*DO3) -> -2.057002746e-16 | DQ3: =+IF(N3=0,0,(SUMPRODUCT(P3:T3,Indata_Kalkylvärden!D$108:H$108)/Bangods_linjedel!N3)*DN3) -> 538.2382077 | DR3: =+IF(Bangods_linjedel!L3=0,DQ3+DP3,DQ3+DP3+Bangods_linjedel!L3) -> 538.2382077 | DS3: =+Bangods_linjedel!Z3 -> 68.50667284 | DT3: =+Bangods_linjedel!AB3 -> 38.16895805 | DU3: =+Bangods_linjedel!AF3 -> 26.67627517 | DV3: =+Bangods_linjedel!AD3+Bangods_linjedel!AE3 -> 87.45990338 | DW3: =+Bangods_linjedel!AG3 -> 1.53 | DX3: =+Bangods_linjedel!AH3 -> 5.355 | DY3: =+Bangods_linjedel!BG3 -> 4.440892099e-16 | DZ3: =+(Bangods_linjedel!BM3+Bangods_linjedel!CD3)/1000000 -> 2.231913377e-16 | EA3: =+(Bangods_linjedel!BO3+Bangods_linjedel!CE3)/1000000 -> 0 | EB3: =+(Bangods_linjedel!BP3+Bangods_linjedel!CF3)/1000000 -> 1.033968464e-16 | EC3: =+(Bangods_linjedel!BQ3+Bangods_linjedel!CG3)/1000000 -> 0 | ED3: =+Bangods_linjedel!DC3/1000000 -> 0 | EE3: =+Bangods_linjedel!DD3/1000000 -> 0 | EF3: =+Bangods_linjedel!DE3/1000000 -> 0 | EG3: =+Bangods_linjedel!DA3/1000000 -> 0 | EH3: =+Bangods_linjedel!DB3/1000000 -> 0 | EJ3: =+Bangods_linjedel!DQ3 -> 538.2382077 | EK3: =+Bangods_linjedel!DR3 -> 538.2382077 | EL3: =+Bangods_linjedel!BA3-Bangods_linjedel!AY3 -> 0 | EM3: =+B3 -> L100 | ET3: =+$N3*(AF3+AB3) -> 372628.5936 | EU3: =+($N3*(AD3+AE3)) -> 502582.2126 | EV3: =+$O3*AG3 -> 13969739.97 | EW3: =+$O3*AH3 -> 48894089.9 | EX3: =+IF(Z3=0,0,(ET3*F3+EU3*F3/(Z3/60))) -> 67340787.45 | EY3: =+VLOOKUP(G3,' Bandelsspec avg o ext'!$A:$T,19,FALSE)*$F3*$N3 -> 64076.73162 | EZ3: =+F3*N3 -> 476091.7255 | FB3: =+IF(N3=0,0,SUM(CP3:CQ3)/(F3*N3)) -> 26.67627517 | FD3: =+VLOOKUP(#REF!,'Kap.ber JA'!B:G,5,FALSE) ->  | FF3: =+SUMIF(Länkar!I:I,Bangods_linjedel!B3,Länkar!Y:Y)/2 -> 82.84999943 | FH3: =+IF($N3=0,0,IF($G3="d",SUMPRODUCT($P3:$T3,Indata_Kalkylvärden!$I$139:$M$139))/$N3) -> 0 | FK3: =+F3*O3 -> 756465984.6 | FL3: =+FK3+CA3 -> 756465984.6 | FO3: =+ET3+EU3 -> 875210.8061 | FR3: =+AB3*N3*F3 -> 18171925.1 | FS3: =+N3*F3/(Z3/60)*AD3 -> 26771190.71 | FT3: =+FR3+FS3 -> 44943115.81
A4: =IFERROR(VLOOKUP(B4,' Fyrspår JA'!B:Z,25,FALSE),+VLOOKUP(B4,Länkar!I:AD,20,FALSE)) -> Malmbanan | B4: =+BANGODSINDATA!B3 -> L101 | C4: =+BANGODSINDATA!C3 -> Murjek-Gällivare | E4: =+BANGODSINDATA!D3 -> Harrträsk-Gällivare | F4: =+IFERROR(BANGODSINDATA!F3,FF4) -> 81.24 | G4: =IFERROR((+VLOOKUP(B4,Länkar!I:AD,22,FALSE)),VLOOKUP(B4,' Fyrspår JA'!B:Z,25,FALSE)) -> 117 | N4: =+IFERROR(BANGODSINDATA!G3,0) -> 5454.7 | O4: =+BANGODSINDATA!H3*Kalkylsammanställning!G$2 -> 8916075 | P4: =+IFERROR(BANGODSINDATA!I3,0) -> 1010.9 | Q4: =+IFERROR(BANGODSINDATA!J3,0) -> 0 | R4: =+IFERROR(BANGODSINDATA!K3,0) -> 758.08 | S4: =+IFERROR(BANGODSINDATA!L3,0) -> 2178.71 | T4: =+IFERROR(BANGODSINDATA!M3,0) -> 1507 | U4: 19.32 | V4: =+IF(U4+Bangods_linjedel!K4<0,0,U4+Bangods_linjedel!K4) -> 19.32 | W4: 6.224885714 | X4: =+V4-W4 -> 13.09511429 | Y4: =(IF(AM4="nej",100%,INDATABLAD!$D$268)) -> 0 | Z4: =+IF(N4=0,0,SUMPRODUCT(P4:T4,Indata_Kalkylvärden!D$104:H$104)/N4) -> 67.62457147 | AA4: =+IF(N4=0,0,SUMPRODUCT($P4:$T4,Indata_Kalkylvärden!$D$105:$H$105)/Bangods_linjedel!$N4) -> 401.5826718 | AB4: =IF(N4=0,0,(CM4*INDATABLAD!D$266+INDATABLAD!D$267*CI4)/(N4*F4)) -> 39.38857284 | AC4: =+IF(B4='Beskrivning av åtgärd'!$D$160,'Beskrivning av åtgärd'!$B$160*$N4,0) -> 0 | AD4: =+IF(N4=0,0,SUMPRODUCT(P4:T4,Indata_Kalkylvärden!D$117:H$117/Bangods_linjedel!N4)) -> 64.9875874 | AE4: =+IF(N4=0,0,SUMPRODUCT(P4:T4,Indata_Kalkylvärden!$D$116:$H$116)/N4)*DN4 -> 23.44129677 | AF4: 27.36277216 | AG4: =+Indata_Kalkylvärden!T$96 -> 1.53 | AH4: =+Indata_Kalkylvärden!T$97 -> 5.355 | AI4: =++IF(AA4=0,0,AA4*AB4+(AA4/Z4)*60*(AD4+AE4)) -> 47325.40538 | AJ4: =+AF4*AA4 -> 10988.41515 | AK4: =+AI4+AJ4 -> 58313.82054 | AL4: =+IF(N4=0,0,SUMPRODUCT($P4:$T4,Indata_Kalkylvärden!$D$118:$H$118)/$N4) -> -0.427096914 | AM4: =+VLOOKUP($G4,Länkar!$F:$V,16,FALSE) -> Ja | AN4: =+VLOOKUP($G4,Länkar!$F:$V,17,FALSE) -> Ja | AO4: =+IF(N4=0,0,(SUMPRODUCT(P4:T4,Indata_Kalkylvärden!$D$110:$H$110)/N4)) -> 1.765365972 | AP4: =+IFERROR(IF(B4=0,0,VLOOKUP(B4,'Kap.ber JA'!$B:$AI,7,FALSE)),0) -> esp | AQ4: =+IFERROR(IF(B4=0,0,VLOOKUP(B4,'Kap.ber UA'!B:H,7,FALSE)),0) -> esp | AR4: =+IFERROR(IF(B4=0,0,VLOOKUP(B4,'Kap.ber JA'!$B:$AI,8,FALSE)),0) -> 0.5402215302 | AS4: =+IFERROR(IF(B4=0,0,VLOOKUP(B4,'Kap.ber UA'!$B:$AL,8,FALSE)),0) -> 0.5402215302 | AT4: =+IF($AP4="esp",INDATABLAD!$D$568,INDATABLAD!$D$566) -> 2.58 | AU4: =+IF($AP4="Esp",INDATABLAD!$D$569,INDATABLAD!$D$567) -> 0.28 | AV4: =+IF($AQ4="Esp",INDATABLAD!$D$568,INDATABLAD!$D$566) -> 2.58 | AW4: =+IF($AQ4="Esp",INDATABLAD!$D$569,INDATABLAD!$D$567) -> 0.28 | AX4: =+INDATABLAD!$D$565 -> 0.3 | AY4: 9.048280055 | AZ4: 2.4372 | BA4: =+IF(BC4>0,BC4,IF((AS4*$AV4<$AW4),0,((AS4*$AV4-$AW4)*(F4+BF4)/10))) -> 9.048280055 | BB4: =+IF(BD4>0,BD4,(F4+BF4)/10*AX4) -> 2.4372 | BC4: =SUMIF('Gods_nya linjedelar_UA'!$D$4:$D$18,Bangods_linjedel!B4,'Gods_nya linjedelar_UA'!$J$4:$J$18) -> 0 | BD4: =SUMIF('Gods_nya linjedelar_UA'!$D$4:$D$18,Bangods_linjedel!B4,'Gods_nya linjedelar_UA'!$K$4:$K$18) -> 0 | BE4: =+Bangods_linjedel!H4 -> 0 | BF4: =+Bangods_linjedel!I4 -> 0 | BG4: =(BA4-AY4)+(BB4-AZ4)+BE4 -> -4.440892099e-16 | BH4: =+Bangods_linjedel!K4 -> 0 | BI4: =+IF(Bangods_linjedel!J4=0,(BA4-AY4)*0.05,Bangods_linjedel!J4) -> 0 | BJ4: =+IF(AN4=AM4,0,AN4) -> 0 | BL4: =+BM4+BN4+BO4 -> -2.14207778e-10 | BM4: =+(($BG4+$BI4)*($AD4+AE4)*$N4)+Bangods_linjedel!M4 -> -2.14207778e-10 | BN4: =+(CJ4-CI4)*INDATABLAD!D$267+INDATABLAD!D$266*(CN4-CM4) -> 0 | BO4: =+DK4 -> 0 | BP4: -1.009680839e-10 | BQ4: 0 | BR4: =+IF(N4=0,0,('Beskrivning av åtgärd'!$C$154*(X4)+'Beskrivning av åtgärd'!$D$154*Bangods_linjedel!W4)/Bangods_linjedel!U4) -> 0.007683314415 | BS4: =+IF(N4=0,0,('Beskrivning av åtgärd'!$F$154*(X4)+'Beskrivning av åtgärd'!$G$154*Bangods_linjedel!W4)/Bangods_linjedel!U4) -> 0.007683314415 | BT4: =+IF(N4=0,0,('Beskrivning av åtgärd'!$C$155*(X4)+'Beskrivning av åtgärd'!$D$155*$W4)/$U4) -> 5.191725312 | BU4: =+IF(N4=0,0,('Beskrivning av åtgärd'!$F$155*(X4)+'Beskrivning av åtgärd'!$G$155*$W4)/$U4) -> 5.191725312 | BV4: =BANGODSINDATA!Q3 -> 250.0748092 | BW4: =BANGODSINDATA!R3 -> 350.2749196 | BY4: =+IF(N4=0,0,N4*V4/U4*BF4) -> 0 | BZ4: =+IF(O4=0,0,(((BM4+BN4+BO4*'Beskrivning av åtgärd'!$C$165)/(AK4*N4))*AL4)*O4) -> 2.5644428e-12 | CA4: =+BZ4*AA4 -> 1.029835792e-09 | CB4: =+IF(AO4=0,0,AO4*CA4*V4/U4) -> 1.818037063e-09 | CC4: 3.080523627e-29 | CD4: 0 | CE4: 0 | CF4: =+IF($O4=0,0,IF($BZ4<0,((BP4/$O4)*-$BZ4),((BP4/$O4)*$BZ4))) -> -2.904045511e-29 | CG4: =+IF($O4=0,0,IF($BZ4<0,((BQ4/$O4)*-$BZ4),((BQ4/$O4)*$BZ4)))*0.5 -> 0 | CI4: =+(($N4*$F4*INDATABLAD!$D$254+Bangods_linjedel!$DF4*INDATABLAD!$D$255))*Y4 -> 0 | CJ4: =+IF($AN4="Nej",(($N4*($F4+$BF4)*INDATABLAD!$D$254+DG4*INDATABLAD!$D$255)),IF($BJ4="Ja",0,(($N4*($F4+$BF4)*INDATABLAD!$D$254+DG4*INDATABLAD!$D$255))*$Y4)) -> 0 | CK4: =+IF($AN4="Nej",(($N4*($F4+$BF4)*INDATABLAD!$D$254+DH4*INDATABLAD!$D$255)),IF($BJ4="ja",0,(($N4*($F4+$BF4)*INDATABLAD!$D$254+DH4*INDATABLAD!$D$255))*$Y4)) -> 0 | CL4: =+CI4-CJ4 -> 0 | CM4: =+DF4*INDATABLAD!$D$256*(1-$Y4) -> 24935207.71 | CN4: =+IF(BJ4="E",DG4*INDATABLAD!$D$256,IF(BJ4="D",0,DG4*INDATABLAD!$D$256*(1-Y4))) -> 24935207.71 | CO4: 24935207.71 | CP4: =+F4*N4*BT4 -> 2300660.262 | CQ4: =+DF4*BR4 -> 9824873.888 | CR4: =+DF4*(INDATABLAD!$D$248)+F4*N4*INDATABLAD!$D$249 -> 12125534.15 | CT4: =+IFERROR(VLOOKUP(G4,' Bandelsspec avg o ext'!$A:$T,17,FALSE)*$F4*$N4*DQ4/500,0) -> 25471.48564 | CU4: =+IF(V4=0,0,BU4*($F4+BF4)*$N4*(V4/U4)) -> 2300660.262 | CV4: =+DH4*BS4 -> 9824873.888 | CW4: =+IF(N4=0,0,DH4*(INDATABLAD!$D$248)+N4*(V4/U4)*(F4+BF4)*INDATABLAD!D$249) -> 12125534.15 | CY4: =+IFERROR(IF(V4=0,0,VLOOKUP(G4,' Bandelsspec avg o ext'!$A:$V,18,FALSE)*($F4+BF4)*$N4*(V4/U4)*(DR4/500)),0) -> 25471.48564 | CZ4: =+DA4+DB4 -> 0 | DA4: =+CU4-CP4 -> 0 | DB4: 0 | DC4: 0 | DD4: 0 | DE4: =+CY4-CT4 -> 0 | DF4: 1278728600 | DG4: 1278728600 | DH4: 1278728600 | DI4: 2300660.262 | DJ4: =+$DF4*BS4 -> 9824873.888 | DK4: =+SUM(DI4:DJ4)-SUM(CP4:CQ4) -> 0 | DL4: =+IF(N4=0,0,SUMPRODUCT(P4:T4,Indata_Kalkylvärden!D$106:H$106)/N4) -> 1521.206157 | DM4: 1634.567437 | DN4: 1.074520655 | DO4: =+IF(N4=0,0,SUMPRODUCT(P4:T4,Indata_Kalkylvärden!D$109:H$109)/Bangods_linjedel!N4) -> 0.4715079545 | DP4: =+IF(N4=0,0,BZ4/N4*DO4) -> 2.216721688e-16 | DQ4: =+IF(N4=0,0,(SUMPRODUCT(P4:T4,Indata_Kalkylvärden!D$108:H$108)/Bangods_linjedel!N4)*DN4) -> 548.0406334 | DR4: =+IF(Bangods_linjedel!L4=0,DQ4+DP4,DQ4+DP4+Bangods_linjedel!L4) -> 548.0406334 | DS4: =+Bangods_linjedel!Z4 -> 67.62457147 | DT4: =+Bangods_linjedel!AB4 -> 39.38857284 | DU4: =+Bangods_linjedel!AF4 -> 27.36277216 | DV4: =+Bangods_linjedel!AD4+Bangods_linjedel!AE4 -> 88.42888417 | DW4: =+Bangods_linjedel!AG4 -> 1.53 | DX4: =+Bangods_linjedel!AH4 -> 5.355 | DY4: =+Bangods_linjedel!BG4 -> -4.440892099e-16 | DZ4: =+(Bangods_linjedel!BM4+Bangods_linjedel!CD4)/1000000 -> -2.14207778e-16 | EA4: =+(Bangods_linjedel!BO4+Bangods_linjedel!CE4)/1000000 -> 0 | EB4: =+(Bangods_linjedel!BP4+Bangods_linjedel!CF4)/1000000 -> -1.009680839e-16 | EC4: =+(Bangods_linjedel!BQ4+Bangods_linjedel!CG4)/1000000 -> 0 | ED4: =+Bangods_linjedel!DC4/1000000 -> 0 | EE4: =+Bangods_linjedel!DD4/1000000 -> 0 | EF4: =+Bangods_linjedel!DE4/1000000 -> 0 | EG4: =+Bangods_linjedel!DA4/1000000 -> 0 | EH4: =+Bangods_linjedel!DB4/1000000 -> 0 | EJ4: =+Bangods_linjedel!DQ4 -> 548.0406334 | EK4: =+Bangods_linjedel!DR4 -> 548.0406334 | EL4: =+Bangods_linjedel!BA4-Bangods_linjedel!AY4 -> 0 | EM4: =+B4 -> L101 | ET4: =+$N4*(AF4+AB4) -> 364108.5616 | EU4: =+($N4*(AD4+AE4)) -> 482353.0345 | EV4: =+$O4*AG4 -> 13641594.75 | EW4: =+$O4*AH4 -> 47745581.63 | EX4: 64348335.26 | EY4: =+VLOOKUP(G4,' Bandelsspec avg o ext'!$A:$T,19,FALSE)*$F4*$N4 -> 59641.76714 | EZ4: 443139.828 | FB4: 27.36277216 | FD4: =+VLOOKUP(#REF!,'Kap.ber JA'!B:G,5,FALSE) ->  | FF4: =+SUMIF(Länkar!I:I,Bangods_linjedel!B4,Länkar!Y:Y)/2 -> 81.23999953 | FH4: =+IF($N4=0,0,IF($G4="d",SUMPRODUCT($P4:$T4,Indata_Kalkylvärden!$I$139:$M$139))/$N4) -> 0 | FK4: 724341933 | FL4: 724341933 | FO4: 846461.5961 | FR4: 17454645.39 | FS4: =+IF(Z4=0,0,N4*F4/(Z4/60)*AD4) -> 25551589.61 | FT4: =+FR4+FS4 -> 43006235.01
A5: =IFERROR(VLOOKUP(B5,' Fyrspår JA'!B:Z,25,FALSE),+VLOOKUP(B5,Länkar!I:AD,20,FALSE)) -> Malmbanan | B5: =+BANGODSINDATA!B4 -> L102 | C5: =+BANGODSINDATA!C4 -> Gällivare-Råtsi | E5: =+BANGODSINDATA!D4 -> Fjällåsen-Harrå | F5: =+IFERROR(BANGODSINDATA!F4,FF5) -> 92.34 | G5: =IFERROR((+VLOOKUP(B5,Länkar!I:AD,22,FALSE)),VLOOKUP(B5,' Fyrspår JA'!B:Z,25,FALSE)) -> 113 | N5: =+IFERROR(BANGODSINDATA!G4,0) -> 3685.61 | O5: =+BANGODSINDATA!H4*Kalkylsammanställning!G$2 -> 6103336 | P5: =+IFERROR(BANGODSINDATA!I4,0) -> 992.04 | Q5: =+IFERROR(BANGODSINDATA!J4,0) -> 0 | R5: =+IFERROR(BANGODSINDATA!K4,0) -> 0 | S5: =+IFERROR(BANGODSINDATA!L4,0) -> 1186.57 | T5: =+IFERROR(BANGODSINDATA!M4,0) -> 1507 | U5: 13.39 | V5: =+IF(U5+Bangods_linjedel!K5<0,0,U5+Bangods_linjedel!K5) -> 13.39 | W5: 3.3902 | X5: 9.9998 | Y5: =(IF(AM5="nej",100%,INDATABLAD!$D$268)) -> 0 | Z5: =+IF(N5=0,0,SUMPRODUCT(P5:T5,Indata_Kalkylvärden!D$104:H$104)/N5) -> 70.12908311 | AA5: =+IF(N5=0,0,SUMPRODUCT($P5:$T5,Indata_Kalkylvärden!$D$105:$H$105)/Bangods_linjedel!$N5) -> 408.6940832 | AB5: =IF(N5=0,0,(CM5*INDATABLAD!D$266+INDATABLAD!D$267*CI5)/(N5*F5)) -> 41.31717639 | AC5: =+IF(B5='Beskrivning av åtgärd'!$D$160,'Beskrivning av åtgärd'!$B$160*$N5,0) -> 0 | AD5: =+IF(N5=0,0,SUMPRODUCT(P5:T5,Indata_Kalkylvärden!D$117:H$117/Bangods_linjedel!N5)) -> 61.99194555 | AE5: =+IF(N5=0,0,SUMPRODUCT(P5:T5,Indata_Kalkylvärden!$D$116:$H$116)/N5)*DN5 -> 26.46436995 | AF5: 28.44834487 | AG5: =+Indata_Kalkylvärden!T$96 -> 1.53 | AH5: =+Indata_Kalkylvärden!T$97 -> 5.355 | AI5: 47816.11155 | AJ5: 11626.67022 | AK5: 59442.78178 | AL5: =+IF(N5=0,0,SUMPRODUCT($P5:$T5,Indata_Kalkylvärden!$D$118:$H$118)/$N5) -> -0.6163766549 | AM5: =+VLOOKUP($G5,Länkar!$F:$V,16,FALSE) -> Ja | AN5: =+VLOOKUP($G5,Länkar!$F:$V,17,FALSE) -> Ja | AO5: =+IF(N5=0,0,(SUMPRODUCT(P5:T5,Indata_Kalkylvärden!$D$110:$H$110)/N5)) -> 1.827848013 | AP5: =+IFERROR(IF(B5=0,0,VLOOKUP(B5,'Kap.ber JA'!$B:$AI,7,FALSE)),0) -> esp | AQ5: =+IFERROR(IF(B5=0,0,VLOOKUP(B5,'Kap.ber UA'!B:H,7,FALSE)),0) -> esp | AR5: =+IFERROR(IF(B5=0,0,VLOOKUP(B5,'Kap.ber JA'!$B:$AI,8,FALSE)),0) -> 0.5208981262 | AS5: =+IFERROR(IF(B5=0,0,VLOOKUP(B5,'Kap.ber UA'!$B:$AL,8,FALSE)),0) -> 0.5208981262 | AT5: =+IF($AP5="esp",INDATABLAD!$D$568,INDATABLAD!$D$566) -> 2.58 | AU5: =+IF($AP5="Esp",INDATABLAD!$D$569,INDATABLAD!$D$567) -> 0.28 | AV5: =+IF($AQ5="Esp",INDATABLAD!$D$568,INDATABLAD!$D$566) -> 2.58 | AW5: =+IF($AQ5="Esp",INDATABLAD!$D$569,INDATABLAD!$D$567) -> 0.28 | AX5: =+INDATABLAD!$D$565 -> 0.3 | AY5: 9.824211108 | AZ5: 2.7702 | BA5: 9.824211108 | BB5: 2.7702 | BC5: =SUMIF('Gods_nya linjedelar_UA'!$D$4:$D$18,Bangods_linjedel!B5,'Gods_nya linjedelar_UA'!$J$4:$J$18) -> 0 | BD5: =SUMIF('Gods_nya linjedelar_UA'!$D$4:$D$18,Bangods_linjedel!B5,'Gods_nya linjedelar_UA'!$K$4:$K$18) -> 0 | BE5: =+Bangods_linjedel!H5 -> 0 | BF5: =+Bangods_linjedel!I5 -> 0 | BG5: 0 | BH5: =+Bangods_linjedel!K5 -> 0 | BI5: =+IF(Bangods_linjedel!J5=0,(BA5-AY5)*0.05,Bangods_linjedel!J5) -> 0 | BJ5: 0 | BL5: 0 | BM5: =+(($BG5+$BI5)*($AD5+AE5)*$N5)+Bangods_linjedel!M5 -> 0 | BN5: =+(CJ5-CI5)*INDATABLAD!D$267+INDATABLAD!D$266*(CN5-CM5) -> 0 | BO5: 0 | BP5: 0 | BQ5: 0 | BR5: =+IF(N5=0,0,('Beskrivning av åtgärd'!$C$154*(X5)+'Beskrivning av åtgärd'!$D$154*Bangods_linjedel!W5)/Bangods_linjedel!U5) -> 0.007683314415 | BS5: =+IF(N5=0,0,('Beskrivning av åtgärd'!$F$154*(X5)+'Beskrivning av åtgärd'!$G$154*Bangods_linjedel!W5)/Bangods_linjedel!U5) -> 0.007683314415 | BT5: =+IF(N5=0,0,('Beskrivning av åtgärd'!$C$155*(X5)+'Beskrivning av åtgärd'!$D$155*$W5)/$U5) -> 5.191725312 | BU5: =+IF(N5=0,0,('Beskrivning av åtgärd'!$F$155*(X5)+'Beskrivning av åtgärd'!$G$155*$W5)/$U5) -> 5.191725312 | BV5: =BANGODSINDATA!Q4 -> 249.904 | BW5: =BANGODSINDATA!R4 -> 350.020649 | BY5: =+IF(N5=0,0,N5*BF5) -> 0 | BZ5: =+IF(O5=0,0,(((BM5+BN5+BO5*'Beskrivning av åtgärd'!$C$165)/(AK5*N5))*AL5)*O5) -> 0 | CA5: 0 | CB5: =+IF(AO5=0,0,AO5*CA5*V5/U5) -> 0 | CC5: 0 | CD5: 0 | CE5: 0 | CF5: 0 | CG5: 0 | CI5: =+(($N5*$F5*INDATABLAD!$D$254+Bangods_linjedel!$DF5*INDATABLAD!$D$255))*Y5 -> 0 | CJ5: =+IF($AN5="Nej",(($N5*($F5+$BF5)*INDATABLAD!$D$254+DG5*INDATABLAD!$D$255)),IF($BJ5="Ja",0,(($N5*($F5+$BF5)*INDATABLAD!$D$254+DG5*INDATABLAD!$D$255))*$Y5)) -> 0 | CK5: =+IF($AN5="Nej",(($N5*($F5+$BF5)*INDATABLAD!$D$254+DH5*INDATABLAD!$D$255)),IF($BJ5="ja",0,(($N5*($F5+$BF5)*INDATABLAD!$D$254+DH5*INDATABLAD!$D$255))*$Y5)) -> 0 | CL5: 0 | CM5: =+DF5*INDATABLAD!$D$256*(1-$Y5) -> 20087775.31 | CN5: =+IF(BJ5="E",DG5*INDATABLAD!$D$256,IF(BJ5="D",0,DG5*INDATABLAD!$D$256*(1-Y5))) -> 20087775.31 | CO5: 20087775.31 | CP5: 1766895.864 | CQ5: 7914907.365 | CR5: =+DF5*(INDATABLAD!$D$248)+F5*N5*INDATABLAD!$D$249 -> 9681803.229 | CT5: =+IFERROR(VLOOKUP(G5,' Bandelsspec avg o ext'!$A:$T,17,FALSE)*$F5*$N5*DQ5/500,0) -> 50021.59014 | CU5: 1766895.864 | CV5: 7914907.365 | CW5: =+IF(N5=0,0,DH5*(INDATABLAD!$D$248)+N5*(V5/U5)*(F5+BF5)*INDATABLAD!D$249) -> 9681803.229 | CY5: =+IFERROR(IF(V5=0,0,VLOOKUP(G5,' Bandelsspec avg o ext'!$A:$V,18,FALSE)*($F5+BF5)*$N5*(V5/U5)*(DR5/500)),0) -> 50021.59014 | CZ5: 0 | DA5: 0 | DB5: 0 | DC5: 0 | DD5: 0 | DE5: 0 | DF5: 1030142324 | DG5: 1030142324 | DH5: 1030142324 | DI5: 1766895.864 | DJ5: 7914907.365 | DK5: 0 | DL5: =+IF(N5=0,0,SUMPRODUCT(P5:T5,Indata_Kalkylvärden!D$106:H$106)/N5) -> 1313.02705 | DM5: 1655.990732 | DN5: 1.261200774 | DO5: =+IF(N5=0,0,SUMPRODUCT(P5:T5,Indata_Kalkylvärden!D$109:H$109)/Bangods_linjedel!N5) -> 0.5340165526 | DP5: 0 | DQ5: =+IF(N5=0,0,(SUMPRODUCT(P5:T5,Indata_Kalkylvärden!D$108:H$108)/Bangods_linjedel!N5)*DN5) -> 614.4956974 | DR5: =+IF(Bangods_linjedel!L5=0,DQ5+DP5,DQ5+DP5+Bangods_linjedel!L5) -> 614.4956974 | DS5: =+Bangods_linjedel!Z5 -> 70.12908311 | DT5: =+Bangods_linjedel!AB5 -> 41.31717639 | DU5: =+Bangods_linjedel!AF5 -> 28.44834487 | DV5: =+Bangods_linjedel!AD5+Bangods_linjedel!AE5 -> 88.4563155 | DW5: =+Bangods_linjedel!AG5 -> 1.53 | DX5: =+Bangods_linjedel!AH5 -> 5.355 | DY5: =+Bangods_linjedel!BG5 -> 0 | DZ5: =+(Bangods_linjedel!BM5+Bangods_linjedel!CD5)/1000000 -> 0 | EA5: =+(Bangods_linjedel!BO5+Bangods_linjedel!CE5)/1000000 -> 0 | EB5: =+(Bangods_linjedel!BP5+Bangods_linjedel!CF5)/1000000 -> 0 | EC5: =+(Bangods_linjedel!BQ5+Bangods_linjedel!CG5)/1000000 -> 0 | ED5: =+Bangods_linjedel!DC5/1000000 -> 0 | EE5: =+Bangods_linjedel!DD5/1000000 -> 0 | EF5: =+Bangods_linjedel!DE5/1000000 -> 0 | EG5: =+Bangods_linjedel!DA5/1000000 -> 0 | EH5: =+Bangods_linjedel!DB5/1000000 -> 0 | EJ5: =+Bangods_linjedel!DQ5 -> 614.4956974 | EK5: =+Bangods_linjedel!DR5 -> 614.4956974 | EL5: =+Bangods_linjedel!BA5-Bangods_linjedel!AY5 -> 0 | EM5: L102 | ET5: 257128.5028 | EU5: 326015.481 | EV5: 9338104.08 | EW5: 32683364.28 | EX5: 49499410.02 | EY5: =+VLOOKUP(G5,' Bandelsspec avg o ext'!$A:$T,19,FALSE)*$F5*$N5 -> 104459.4256 | EZ5: 340329.2274 | FB5: 28.44834487 | FD5: =+VLOOKUP(#REF!,'Kap.ber JA'!B:G,5,FALSE) ->  | FF5: =+SUMIF(Länkar!I:I,Bangods_linjedel!B5,Länkar!Y:Y)/2 -> 92.33999991 | FH5: =+IF($N5=0,0,IF($G5="d",SUMPRODUCT($P5:$T5,Indata_Kalkylvärden!$I$139:$M$139))/$N5) -> 0 | FK5: 563582046.2 | FL5: 563582046.2 | FO5: 583143.9837 | FR5: 14061442.72 | FS5: 18050432.14 | FT5: 32111874.86
A6: =IFERROR(VLOOKUP(B6,' Fyrspår JA'!B:Z,25,FALSE),+VLOOKUP(B6,Länkar!I:AD,20,FALSE)) -> Malmbanan | B6: =+BANGODSINDATA!B5 -> L103 | C6: =+BANGODSINDATA!C5 -> Råtsi-Peuravaara | E6: =+BANGODSINDATA!D5 -> Peuravaara-Kirunavaara | F6: =+IFERROR(BANGODSINDATA!F5,FF6) -> 11.46 | G6: =IFERROR((+VLOOKUP(B6,Länkar!I:AD,22,FALSE)),VLOOKUP(B6,' Fyrspår JA'!B:Z,25,FALSE)) -> 113 | N6: =+IFERROR(BANGODSINDATA!G5,0) -> 6622.13 | O6: =+BANGODSINDATA!H5*Kalkylsammanställning!G$2 -> 15506110 | P6: =+IFERROR(BANGODSINDATA!I5,0) -> 992.04 | Q6: =+IFERROR(BANGODSINDATA!J5,0) -> 0 | R6: =+IFERROR(BANGODSINDATA!K5,0) -> 0 | S6: =+IFERROR(BANGODSINDATA!L5,0) -> 4123.09 | T6: =+IFERROR(BANGODSINDATA!M5,0) -> 1507 | U6: 21.78 | V6: =+IF(U6+Bangods_linjedel!K6<0,0,U6+Bangods_linjedel!K6) -> 21.78 | W6: 11.78025714 | X6: 9.999742857 | Y6: =(IF(AM6="nej",100%,INDATABLAD!$D$268)) -> 0 | Z6: =+IF(N6=0,0,SUMPRODUCT(P6:T6,Indata_Kalkylvärden!D$104:H$104)/N6) -> 58.98583235 | AA6: =+IF(N6=0,0,SUMPRODUCT($P6:$T6,Indata_Kalkylvärden!$D$105:$H$105)/Bangods_linjedel!$N6) -> 360.4947351 | AB6: =IF(N6=0,0,(CM6*INDATABLAD!D$266+INDATABLAD!D$267*CI6)/(N6*F6)) -> 55.36653721 | AC6: =+IF(B6='Beskrivning av åtgärd'!$D$160,'Beskrivning av åtgärd'!$B$160*$N6,0) -> 0 | AD6: =+IF(N6=0,0,SUMPRODUCT(P6:T6,Indata_Kalkylvärden!D$117:H$117/Bangods_linjedel!N6)) -> 73.61864843 | AE6: =+IF(N6=0,0,SUMPRODUCT(P6:T6,Indata_Kalkylvärden!$D$116:$H$116)/N6)*DN6 -> 27.49046566 | AF6: 36.35645157 | AG6: =+Indata_Kalkylvärden!T$96 -> 1.53 | AH6: =+Indata_Kalkylvärden!T$97 -> 5.355 | AI6: 57035.33631 | AJ6: 13106.30938 | AK6: 70141.64568 | AL6: =+IF(N6=0,0,SUMPRODUCT($P6:$T6,Indata_Kalkylvärden!$D$118:$H$118)/$N6) -> -0.3529390633 | AM6: =+VLOOKUP($G6,Länkar!$F:$V,16,FALSE) -> Ja | AN6: =+VLOOKUP($G6,Länkar!$F:$V,17,FALSE) -> Ja | AO6: =+IF(N6=0,0,(SUMPRODUCT(P6:T6,Indata_Kalkylvärden!$D$110:$H$110)/N6)) -> 1.732245942 | AP6: =+IFERROR(IF(B6=0,0,VLOOKUP(B6,'Kap.ber JA'!$B:$AI,7,FALSE)),0) -> esp | AQ6: =+IFERROR(IF(B6=0,0,VLOOKUP(B6,'Kap.ber UA'!B:H,7,FALSE)),0) -> esp | AR6: =+IFERROR(IF(B6=0,0,VLOOKUP(B6,'Kap.ber JA'!$B:$AI,8,FALSE)),0) -> 0.5312587418 | AS6: =+IFERROR(IF(B6=0,0,VLOOKUP(B6,'Kap.ber UA'!$B:$AL,8,FALSE)),0) -> 0.5312587418 | AT6: =+IF($AP6="esp",INDATABLAD!$D$568,INDATABLAD!$D$566) -> 2.58 | AU6: =+IF($AP6="Esp",INDATABLAD!$D$569,INDATABLAD!$D$567) -> 0.28 | AV6: =+IF($AQ6="Esp",INDATABLAD!$D$568,INDATABLAD!$D$566) -> 2.58 | AW6: =+IF($AQ6="Esp",INDATABLAD!$D$569,INDATABLAD!$D$567) -> 0.28 | AX6: =+INDATABLAD!$D$565 -> 0.3 | AY6: 1.249882097 | AZ6: 0.3438 | BA6: 1.249882097 | BB6: 0.3438 | BC6: =SUMIF('Gods_nya linjedelar_UA'!$D$4:$D$18,Bangods_linjedel!B6,'Gods_nya linjedelar_UA'!$J$4:$J$18) -> 0 | BD6: =SUMIF('Gods_nya linjedelar_UA'!$D$4:$D$18,Bangods_linjedel!B6,'Gods_nya linjedelar_UA'!$K$4:$K$18) -> 0 | BE6: =+Bangods_linjedel!H6 -> 0 | BF6: =+Bangods_linjedel!I6 -> 0 | BG6: 5.551115123e-17 | BH6: =+Bangods_linjedel!K6 -> 0 | BI6: =+IF(Bangods_linjedel!J6=0,(BA6-AY6)*0.05,Bangods_linjedel!J6) -> 0 | BJ6: 0 | BL6: 3.716791862e-11 | BM6: =+(($BG6+$BI6)*($AD6+AE6)*$N6)+Bangods_linjedel!M6 -> 3.716791862e-11 | BN6: =+(CJ6-CI6)*INDATABLAD!D$267+INDATABLAD!D$266*(CN6-CM6) -> 0 | BO6: 0 | BP6: 2.194943144e-11 | BQ6: 0 | BR6: =+IF(N6=0,0,('Beskrivning av åtgärd'!$C$154*(X6)+'Beskrivning av åtgärd'!$D$154*Bangods_linjedel!W6)/Bangods_linjedel!U6) -> 0.007683314415 | BS6: =+IF(N6=0,0,('Beskrivning av åtgärd'!$F$154*(X6)+'Beskrivning av åtgärd'!$G$154*Bangods_linjedel!W6)/Bangods_linjedel!U6) -> 0.007683314415 | BT6: =+IF(N6=0,0,('Beskrivning av åtgärd'!$C$155*(X6)+'Beskrivning av åtgärd'!$D$155*$W6)/$U6) -> 5.191725312 | BU6: =+IF(N6=0,0,('Beskrivning av åtgärd'!$F$155*(X6)+'Beskrivning av åtgärd'!$G$155*$W6)/$U6) -> 5.191725312 | BV6: =BANGODSINDATA!Q5 -> 249.904 | BW6: =BANGODSINDATA!R5 -> 350.0076401 | BY6: 0 | BZ6: =+IF(O6=0,0,(((BM6+BN6+BO6*'Beskrivning av åtgärd'!$C$165)/(AK6*N6))*AL6)*O6) -> -4.379224173e-13 | CA6: -1.578687258e-10 | CB6: -2.734674596e-10 | CC6: 5.248468109e-31 | CD6: 0 | CE6: 0 | CF6: 6.198942271e-31 | CG6: 0 | CI6: =+(($N6*$F6*INDATABLAD!$D$254+Bangods_linjedel!$DF6*INDATABLAD!$D$255))*Y6 -> 0 | CJ6: =+IF($AN6="Nej",(($N6*($F6+$BF6)*INDATABLAD!$D$254+DG6*INDATABLAD!$D$255)),IF($BJ6="Ja",0,(($N6*($F6+$BF6)*INDATABLAD!$D$254+DG6*INDATABLAD!$D$255))*$Y6)) -> 0 | CK6: =+IF($AN6="Nej",(($N6*($F6+$BF6)*INDATABLAD!$D$254+DH6*INDATABLAD!$D$255)),IF($BJ6="ja",0,(($N6*($F6+$BF6)*INDATABLAD!$D$254+DH6*INDATABLAD!$D$255))*$Y6)) -> 0 | CL6: 0 | CM6: =+DF6*INDATABLAD!$D$256*(1-$Y6) -> 6002492.721 | CN6: =+IF(BJ6="E",DG6*INDATABLAD!$D$256,IF(BJ6="D",0,DG6*INDATABLAD!$D$256*(1-Y6))) -> 6002492.721 | CO6: 6002492.721 | CP6: 393998.0081 | CQ6: 2365078.915 | CR6: =+DF6*(INDATABLAD!$D$248)+F6*N6*INDATABLAD!$D$249 -> 2759076.924 | CT6: =+IFERROR(VLOOKUP(G6,' Bandelsspec avg o ext'!$A:$T,17,FALSE)*$F6*$N6*DQ6/500,0) -> 12452.3484 | CU6: 393998.0081 | CV6: 2365078.915 | CW6: =+IF(N6=0,0,DH6*(INDATABLAD!$D$248)+N6*(V6/U6)*(F6+BF6)*INDATABLAD!D$249) -> 2759076.924 | CY6: =+IFERROR(IF(V6=0,0,VLOOKUP(G6,' Bandelsspec avg o ext'!$A:$V,18,FALSE)*($F6+BF6)*$N6*(V6/U6)*(DR6/500)),0) -> 12452.3484 | CZ6: 0 | DA6: 0 | DB6: 0 | DC6: 0 | DD6: 0 | DE6: 0 | DF6: 307820139.5 | DG6: 307820139.5 | DH6: 307820139.5 | DI6: 393998.0081 | DJ6: 2365078.915 | DK6: 0 | DL6: =+IF(N6=0,0,SUMPRODUCT(P6:T6,Indata_Kalkylvärden!D$106:H$106)/N6) -> 2061.099016 | DM6: 2341.559287 | DN6: 1.136073167 | DO6: =+IF(N6=0,0,SUMPRODUCT(P6:T6,Indata_Kalkylvärden!D$109:H$109)/Bangods_linjedel!N6) -> 0.4013022811 | DP6: -2.653817804e-17 | DQ6: =+IF(N6=0,0,(SUMPRODUCT(P6:T6,Indata_Kalkylvärden!D$108:H$108)/Bangods_linjedel!N6)*DN6) -> 686.0085748 | DR6: =+IF(Bangods_linjedel!L6=0,DQ6+DP6,DQ6+DP6+Bangods_linjedel!L6) -> 686.0085748 | DS6: =+Bangods_linjedel!Z6 -> 58.98583235 | DT6: =+Bangods_linjedel!AB6 -> 55.36653721 | DU6: =+Bangods_linjedel!AF6 -> 36.35645157 | DV6: =+Bangods_linjedel!AD6+Bangods_linjedel!AE6 -> 101.1091141 | DW6: =+Bangods_linjedel!AG6 -> 1.53 | DX6: =+Bangods_linjedel!AH6 -> 5.355 | DY6: =+Bangods_linjedel!BG6 -> 5.551115123e-17 | DZ6: =+(Bangods_linjedel!BM6+Bangods_linjedel!CD6)/1000000 -> 3.716791862e-17 | EA6: =+(Bangods_linjedel!BO6+Bangods_linjedel!CE6)/1000000 -> 0 | EB6: =+(Bangods_linjedel!BP6+Bangods_linjedel!CF6)/1000000 -> 2.194943144e-17 | EC6: =+(Bangods_linjedel!BQ6+Bangods_linjedel!CG6)/1000000 -> 0 | ED6: =+Bangods_linjedel!DC6/1000000 -> 0 | EE6: =+Bangods_linjedel!DD6/1000000 -> 0 | EF6: =+Bangods_linjedel!DE6/1000000 -> 0 | EG6: =+Bangods_linjedel!DA6/1000000 -> 0 | EH6: =+Bangods_linjedel!DB6/1000000 -> 0 | EJ6: =+Bangods_linjedel!DQ6 -> 686.0085748 | EK6: =+Bangods_linjedel!DR6 -> 686.0085748 | EL6: =+Bangods_linjedel!BA6-Bangods_linjedel!AY6 -> 0 | EM6: L103 | ET6: 607401.5557 | EU6: 669557.6977 | EV6: 23724348.3 | EW6: 83035219.05 | EX6: 14765880.34 | EY6: =+VLOOKUP(G6,' Bandelsspec avg o ext'!$A:$T,19,FALSE)*$F6*$N6 -> 23293.28312 | EZ6: 75889.6098 | FB6: 36.35645157 | FD6: =+VLOOKUP(#REF!,'Kap.ber JA'!B:G,5,FALSE) ->  | FF6: =+SUMIF(Länkar!I:I,Bangods_linjedel!B6,Länkar!Y:Y)/2 -> 11.4599998 | FH6: =+IF($N6=0,0,IF($G6="d",SUMPRODUCT($P6:$T6,Indata_Kalkylvärden!$I$139:$M$139))/$N6) -> 0 | FK6: 177700020.6 | FL6: 177700020.6 | FO6: 1276959.253 | FR6: 4201744.905 | FS6: 5682948.207 | FT6: 9884693.112
A7: =IFERROR(VLOOKUP(B7,' Fyrspår JA'!B:Z,25,FALSE),+VLOOKUP(B7,Länkar!I:AD,20,FALSE)) -> Malmbanan | B7: =+BANGODSINDATA!B6 -> L104 | C7: =+BANGODSINDATA!C6 -> Peuravaara-Riksgränsen | E7: =+BANGODSINDATA!D6 -> Kopparåsen-Vassijaure | F7: =+IFERROR(BANGODSINDATA!F6,FF7) -> 126.24 | G7: =IFERROR((+VLOOKUP(B7,Länkar!I:AD,22,FALSE)),VLOOKUP(B7,' Fyrspår JA'!B:Z,25,FALSE)) -> 111 | N7: =+IFERROR(BANGODSINDATA!G6,0) -> 8536.45 | O7: =+BANGODSINDATA!H6*Kalkylsammanställning!G$2 -> 21909812 | P7: =+IFERROR(BANGODSINDATA!I6,0) -> 151.39 | Q7: =+IFERROR(BANGODSINDATA!J6,0) -> 0 | R7: =+IFERROR(BANGODSINDATA!K6,0) -> 0 | S7: =+IFERROR(BANGODSINDATA!L6,0) -> 6878.05 | T7: =+IFERROR(BANGODSINDATA!M6,0) -> 1507 | U7: 26.28 | V7: =+IF(U7+Bangods_linjedel!K7<0,0,U7+Bangods_linjedel!K7) -> 26.28 | W7: 19.65157143 | X7: 6.628428571 | Y7: =(IF(AM7="nej",100%,INDATABLAD!$D$268)) -> 0 | Z7: =+IF(N7=0,0,SUMPRODUCT(P7:T7,Indata_Kalkylvärden!D$104:H$104)/N7) -> 53.38747957 | AA7: =+IF(N7=0,0,SUMPRODUCT($P7:$T7,Indata_Kalkylvärden!$D$105:$H$105)/Bangods_linjedel!$N7) -> 337.0805194 | AB7: =IF(N7=0,0,(CM7*INDATABLAD!D$266+INDATABLAD!D$267*CI7)/(N7*F7)) -> 58.51990626 | AC7: =+IF(B7='Beskrivning av åtgärd'!$D$160,'Beskrivning av åtgärd'!$B$160*$N7,0) -> 0 | AD7: =+IF(N7=0,0,SUMPRODUCT(P7:T7,Indata_Kalkylvärden!D$117:H$117/Bangods_linjedel!N7)) -> 80.69896054 | AE7: =+IF(N7=0,0,SUMPRODUCT(P7:T7,Indata_Kalkylvärden!$D$116:$H$116)/N7)*DN7 -> 26.51661264 | AF7: 38.1314205 | AG7: =+Indata_Kalkylvärden!T$96 -> 1.53 | AH7: =+Indata_Kalkylvärden!T$97 -> 5.355 | AI7: 60342.50097 | AJ7: 12853.35903 | AK7: 73195.86 | AL7: =+IF(N7=0,0,SUMPRODUCT($P7:$T7,Indata_Kalkylvärden!$D$118:$H$118)/$N7) -> -0.1821365435 | AM7: =+VLOOKUP($G7,Länkar!$F:$V,16,FALSE) -> Ja | AN7: =+VLOOKUP($G7,Länkar!$F:$V,17,FALSE) -> Ja | AO7: =+IF(N7=0,0,(SUMPRODUCT(P7:T7,Indata_Kalkylvärden!$D$110:$H$110)/N7)) -> 1.670358226 | AP7: =+IFERROR(IF(B7=0,0,VLOOKUP(B7,'Kap.ber JA'!$B:$AI,7,FALSE)),0) -> esp | AQ7: =+IFERROR(IF(B7=0,0,VLOOKUP(B7,'Kap.ber UA'!B:H,7,FALSE)),0) -> esp | AR7: =+IFERROR(IF(B7=0,0,VLOOKUP(B7,'Kap.ber JA'!$B:$AI,8,FALSE)),0) -> 0.5718659259 | AS7: =+IFERROR(IF(B7=0,0,VLOOKUP(B7,'Kap.ber UA'!$B:$AL,8,FALSE)),0) -> 0.5718659259 | AT7: =+IF($AP7="esp",INDATABLAD!$D$568,INDATABLAD!$D$566) -> 2.58 | AU7: =+IF($AP7="Esp",INDATABLAD!$D$569,INDATABLAD!$D$567) -> 0.28 | AV7: =+IF($AQ7="Esp",INDATABLAD!$D$568,INDATABLAD!$D$566) -> 2.58 | AW7: =+IF($AQ7="Esp",INDATABLAD!$D$569,INDATABLAD!$D$567) -> 0.28 | AX7: =+INDATABLAD!$D$565 -> 0.3 | AY7: 15.09090746 | AZ7: 3.7872 | BA7: 15.09090746 | BB7: 3.7872 | BC7: =SUMIF('Gods_nya linjedelar_UA'!$D$4:$D$18,Bangods_linjedel!B7,'Gods_nya linjedelar_UA'!$J$4:$J$18) -> 0 | BD7: =SUMIF('Gods_nya linjedelar_UA'!$D$4:$D$18,Bangods_linjedel!B7,'Gods_nya linjedelar_UA'!$K$4:$K$18) -> 0 | BE7: =+Bangods_linjedel!H7 -> 0 | BF7: =+Bangods_linjedel!I7 -> 0 | BG7: -4.440892099e-16 | BH7: =+Bangods_linjedel!K7 -> 0 | BI7: =+IF(Bangods_linjedel!J7=0,(BA7-AY7)*0.05,Bangods_linjedel!J7) -> 0 | BJ7: 0 | BL7: -4.06448377e-10 | BM7: =+(($BG7+$BI7)*($AD7+AE7)*$N7)+Bangods_linjedel!M7 -> -4.06448377e-10 | BN7: =+(CJ7-CI7)*INDATABLAD!D$267+INDATABLAD!D$266*(CN7-CM7) -> 0 | BO7: 0 | BP7: -2.48112733e-10 | BQ7: 0 | BR7: =+IF(N7=0,0,('Beskrivning av åtgärd'!$C$154*(X7)+'Beskrivning av åtgärd'!$D$154*Bangods_linjedel!W7)/Bangods_linjedel!U7) -> 0.007683314415 | BS7: =+IF(N7=0,0,('Beskrivning av åtgärd'!$F$154*(X7)+'Beskrivning av åtgärd'!$G$154*Bangods_linjedel!W7)/Bangods_linjedel!U7) -> 0.007683314415 | BT7: =+IF(N7=0,0,('Beskrivning av åtgärd'!$C$155*(X7)+'Beskrivning av åtgärd'!$D$155*$W7)/$U7) -> 5.191725312 | BU7: =+IF(N7=0,0,('Beskrivning av åtgärd'!$F$155*(X7)+'Beskrivning av åtgärd'!$G$155*$W7)/$U7) -> 5.191725312 | BV7: =BANGODSINDATA!Q6 -> 250.1342383 | BW7: =BANGODSINDATA!R6 -> 350.0279898 | BY7: 0 | BZ7: =+IF(O7=0,0,(((BM7+BN7+BO7*'Beskrivning av åtgärd'!$C$165)/(AK7*N7))*AL7)*O7) -> 2.595836391e-12 | CA7: 8.750058792e-10 | CB7: 1.461573268e-09 | CC7: 2.407764814e-29 | CD7: 0 | CE7: 0 | CF7: -2.939596477e-29 | CG7: 0 | CI7: =+(($N7*$F7*INDATABLAD!$D$254+Bangods_linjedel!$DF7*INDATABLAD!$D$255))*Y7 -> 0 | CJ7: =+IF($AN7="Nej",(($N7*($F7+$BF7)*INDATABLAD!$D$254+DG7*INDATABLAD!$D$255)),IF($BJ7="Ja",0,(($N7*($F7+$BF7)*INDATABLAD!$D$254+DG7*INDATABLAD!$D$255))*$Y7)) -> 0 | CK7: =+IF($AN7="Nej",(($N7*($F7+$BF7)*INDATABLAD!$D$254+DH7*INDATABLAD!$D$255)),IF($BJ7="ja",0,(($N7*($F7+$BF7)*INDATABLAD!$D$254+DH7*INDATABLAD!$D$255))*$Y7)) -> 0 | CL7: 0 | CM7: =+DF7*INDATABLAD!$D$256*(1-$Y7) -> 90090680.74 | CN7: =+IF(BJ7="E",DG7*INDATABLAD!$D$256,IF(BJ7="D",0,DG7*INDATABLAD!$D$256*(1-Y7))) -> 90090680.74 | CO7: 90090680.74 | CP7: 5594818.383 | CQ7: 35497180.82 | CR7: =+DF7*(INDATABLAD!$D$248)+F7*N7*INDATABLAD!$D$249 -> 41091999.2 | CT7: =+IFERROR(VLOOKUP(G7,' Bandelsspec avg o ext'!$A:$T,17,FALSE)*$F7*$N7*DQ7/500,0) -> 168866.4002 | CU7: 5594818.383 | CV7: 35497180.82 | CW7: =+IF(N7=0,0,DH7*(INDATABLAD!$D$248)+N7*(V7/U7)*(F7+BF7)*INDATABLAD!D$249) -> 41091999.2 | CY7: =+IFERROR(IF(V7=0,0,VLOOKUP(G7,' Bandelsspec avg o ext'!$A:$V,18,FALSE)*($F7+BF7)*$N7*(V7/U7)*(DR7/500)),0) -> 168866.4002 | CZ7: 0 | DA7: 0 | DB7: 0 | DC7: 0 | DD7: 0 | DE7: 0 | DF7: 4620034910 | DG7: 4620034910 | DH7: 4620034910 | DI7: 5594818.383 | DJ7: 35497180.82 | DK7: 0 | DL7: =+IF(N7=0,0,SUMPRODUCT(P7:T7,Indata_Kalkylvärden!D$106:H$106)/N7) -> 2516.070469 | DM7: 2566.618676 | DN7: 1.02009014 | DO7: =+IF(N7=0,0,SUMPRODUCT(P7:T7,Indata_Kalkylvärden!D$109:H$109)/Bangods_linjedel!N7) -> 0.3161138463 | DP7: 9.612658962e-17 | DQ7: =+IF(N7=0,0,(SUMPRODUCT(P7:T7,Indata_Kalkylvärden!D$108:H$108)/Bangods_linjedel!N7)*DN7) -> 685.718699 | DR7: =+IF(Bangods_linjedel!L7=0,DQ7+DP7,DQ7+DP7+Bangods_linjedel!L7) -> 685.718699 | DS7: =+Bangods_linjedel!Z7 -> 53.38747957 | DT7: =+Bangods_linjedel!AB7 -> 58.51990626 | DU7: =+Bangods_linjedel!AF7 -> 38.1314205 | DV7: =+Bangods_linjedel!AD7+Bangods_linjedel!AE7 -> 107.2155732 | DW7: =+Bangods_linjedel!AG7 -> 1.53 | DX7: =+Bangods_linjedel!AH7 -> 5.355 | DY7: =+Bangods_linjedel!BG7 -> -4.440892099e-16 | DZ7: =+(Bangods_linjedel!BM7+Bangods_linjedel!CD7)/1000000 -> -4.06448377e-16 | EA7: =+(Bangods_linjedel!BO7+Bangods_linjedel!CE7)/1000000 -> 0 | EB7: =+(Bangods_linjedel!BP7+Bangods_linjedel!CF7)/1000000 -> -2.48112733e-16 | EC7: =+(Bangods_linjedel!BQ7+Bangods_linjedel!CG7)/1000000 -> 0 | ED7: =+Bangods_linjedel!DC7/1000000 -> 0 | EE7: =+Bangods_linjedel!DD7/1000000 -> 0 | EF7: =+Bangods_linjedel!DE7/1000000 -> 0 | EG7: =+Bangods_linjedel!DA7/1000000 -> 0 | EH7: =+Bangods_linjedel!DB7/1000000 -> 0 | EJ7: =+Bangods_linjedel!DQ7 -> 685.718699 | EK7: =+Bangods_linjedel!DR7 -> 685.718699 | EL7: =+Bangods_linjedel!BA7-Bangods_linjedel!AY7 -> 0 | EM7: L104 | ET7: 825059.2183 | EU7: 915240.3796 | EV7: 33522012.36 | EW7: 117327043.3 | EX7: 234006084.6 | EY7: =+VLOOKUP(G7,' Bandelsspec avg o ext'!$A:$T,19,FALSE)*$F7*$N7 -> 316013.939 | EZ7: 1077641.448 | FB7: 38.1314205 | FD7: =+VLOOKUP(#REF!,'Kap.ber JA'!B:G,5,FALSE) ->  | FF7: =+SUMIF(Länkar!I:I,Bangods_linjedel!B7,Länkar!Y:Y)/2 -> 126.2420883 | FH7: =+IF($N7=0,0,IF($G7="d",SUMPRODUCT($P7:$T7,Indata_Kalkylvärden!$I$139:$M$139))/$N7) -> 0 | FK7: 2765894667 | FL7: 2765894667 | FO7: 1740299.598 | FR7: 63063476.52 | FS7: 97735887.19 | FT7: 160799363.7
A8: =IFERROR(VLOOKUP(B8,' Fyrspår JA'!B:Z,25,FALSE),+VLOOKUP(B8,Länkar!I:AD,20,FALSE)) -> Malmbanan | B8: =+BANGODSINDATA!B7 -> L105 | C8: =+BANGODSINDATA!C7 -> Råtsi-Svappavaara | E8: =+BANGODSINDATA!D7 -> Aptas-Mertainen | F8: =+IFERROR(BANGODSINDATA!F7,FF8) -> 39.16 | G8: =IFERROR((+VLOOKUP(B8,Länkar!I:AD,22,FALSE)),VLOOKUP(B8,' Fyrspår JA'!B:Z,25,FALSE)) -> 116 | N8: =+IFERROR(BANGODSINDATA!G7,0) -> 2936.52 | O8: =+BANGODSINDATA!H7*Kalkylsammanställning!G$2 -> 9402774 | P8: =+IFERROR(BANGODSINDATA!I7,0) -> 0 | Q8: =+IFERROR(BANGODSINDATA!J7,0) -> 0 | R8: =+IFERROR(BANGODSINDATA!K7,0) -> 0 | S8: =+IFERROR(BANGODSINDATA!L7,0) -> 2936.52 | T8: =+IFERROR(BANGODSINDATA!M7,0) -> 0 | U8: 8.39 | V8: =+IF(U8+Bangods_linjedel!K8<0,0,U8+Bangods_linjedel!K8) -> 8.39 | W8: 8.390057143 | X8: -5.714285714e-05 | Y8: =(IF(AM8="nej",100%,INDATABLAD!$D$268)) -> 0 | Z8: =+IF(N8=0,0,SUMPRODUCT(P8:T8,Indata_Kalkylvärden!D$104:H$104)/N8) -> 45 | AA8: =+IF(N8=0,0,SUMPRODUCT($P8:$T8,Indata_Kalkylvärden!$D$105:$H$105)/Bangods_linjedel!$N8) -> 300 | AB8: =IF(N8=0,0,(CM8*INDATABLAD!D$266+INDATABLAD!D$267*CI8)/(N8*F8)) -> 70.46764724 | AC8: =+IF(B8='Beskrivning av åtgärd'!$D$160,'Beskrivning av åtgärd'!$B$160*$N8,0) -> 0 | AD8: =+IF(N8=0,0,SUMPRODUCT(P8:T8,Indata_Kalkylvärden!D$117:H$117/Bangods_linjedel!N8)) -> 88.21125888 | AE8: =+IF(N8=0,0,SUMPRODUCT(P8:T8,Indata_Kalkylvärden!$D$116:$H$116)/N8)*DN8 -> 30.13315347 | AF8: 44.85656706 | AG8: =+Indata_Kalkylvärden!T$96 -> 1.53 | AH8: =+Indata_Kalkylvärden!T$97 -> 5.355 | AI8: 68478.05911 | AJ8: 13456.97012 | AK8: 81935.02923 | AL8: =+IF(N8=0,0,SUMPRODUCT($P8:$T8,Indata_Kalkylvärden!$D$118:$H$118)/$N8) -> -0.0223 | AM8: =+VLOOKUP($G8,Länkar!$F:$V,16,FALSE) -> Ja | AN8: =+VLOOKUP($G8,Länkar!$F:$V,17,FALSE) -> Ja | AO8: =+IF(N8=0,0,(SUMPRODUCT(P8:T8,Indata_Kalkylvärden!$D$110:$H$110)/N8)) -> 1.612256311 | AP8: =+IFERROR(IF(B8=0,0,VLOOKUP(B8,'Kap.ber JA'!$B:$AI,7,FALSE)),0) -> esp | AQ8: =+IFERROR(IF(B8=0,0,VLOOKUP(B8,'Kap.ber UA'!B:H,7,FALSE)),0) -> esp | AR8: =+IFERROR(IF(B8=0,0,VLOOKUP(B8,'Kap.ber JA'!$B:$AI,8,FALSE)),0) -> 0.2485930847 | AS8: =+IFERROR(IF(B8=0,0,VLOOKUP(B8,'Kap.ber UA'!$B:$AL,8,FALSE)),0) -> 0.2485930847 | AT8: =+IF($AP8="esp",INDATABLAD!$D$568,INDATABLAD!$D$566) -> 2.58 | AU8: =+IF($AP8="Esp",INDATABLAD!$D$569,INDATABLAD!$D$567) -> 0.28 | AV8: =+IF($AQ8="Esp",INDATABLAD!$D$568,INDATABLAD!$D$566) -> 2.58 | AW8: =+IF($AQ8="Esp",INDATABLAD!$D$569,INDATABLAD!$D$567) -> 0.28 | AX8: =+INDATABLAD!$D$565 -> 0.3 | AY8: 1.41512554 | AZ8: 1.1748 | BA8: 1.41512554 | BB8: 1.1748 | BC8: =SUMIF('Gods_nya linjedelar_UA'!$D$4:$D$18,Bangods_linjedel!B8,'Gods_nya linjedelar_UA'!$J$4:$J$18) -> 0 | BD8: =SUMIF('Gods_nya linjedelar_UA'!$D$4:$D$18,Bangods_linjedel!B8,'Gods_nya linjedelar_UA'!$K$4:$K$18) -> 0 | BE8: =+Bangods_linjedel!H8 -> 0 | BF8: =+Bangods_linjedel!I8 -> 0 | BG8: 0 | BH8: =+Bangods_linjedel!K8 -> 0 | BI8: =+IF(Bangods_linjedel!J8=0,(BA8-AY8)*0.05,Bangods_linjedel!J8) -> 0 | BJ8: 0 | BL8: 0 | BM8: =+(($BG8+$BI8)*($AD8+AE8)*$N8)+Bangods_linjedel!M8 -> 0 | BN8: =+(CJ8-CI8)*INDATABLAD!D$267+INDATABLAD!D$266*(CN8-CM8) -> 0 | BO8: 0 | BP8: 0 | BQ8: 0 | BR8: =+IF(N8=0,0,('Beskrivning av åtgärd'!$C$154*(X8)+'Beskrivning av åtgärd'!$D$154*Bangods_linjedel!W8)/Bangods_linjedel!U8) -> 0.007683314415 | BS8: =+IF(N8=0,0,('Beskrivning av åtgärd'!$F$154*(X8)+'Beskrivning av åtgärd'!$G$154*Bangods_linjedel!W8)/Bangods_linjedel!U8) -> 0.007683314415 | BT8: =+IF(N8=0,0,('Beskrivning av åtgärd'!$C$155*(X8)+'Beskrivning av åtgärd'!$D$155*$W8)/$U8) -> 5.191725312 | BU8: =+IF(N8=0,0,('Beskrivning av åtgärd'!$F$155*(X8)+'Beskrivning av åtgärd'!$G$155*$W8)/$U8) -> 5.191725312 | BV8: =BANGODSINDATA!Q7 -> 250 | BW8: =BANGODSINDATA!R7 -> 350.0023838 | BY8: 0 | BZ8: =+IF(O8=0,0,(((BM8+BN8+BO8*'Beskrivning av åtgärd'!$C$165)/(AK8*N8))*AL8)*O8) -> 0 | CA8: 0 | CB8: 0 | CC8: 0 | CD8: 0 | CE8: 0 | CF8: 0 | CG8: 0 | CI8: =+(($N8*$F8*INDATABLAD!$D$254+Bangods_linjedel!$DF8*INDATABLAD!$D$255))*Y8 -> 0 | CJ8: =+IF($AN8="Nej",(($N8*($F8+$BF8)*INDATABLAD!$D$254+DG8*INDATABLAD!$D$255)),IF($BJ8="Ja",0,(($N8*($F8+$BF8)*INDATABLAD!$D$254+DG8*INDATABLAD!$D$255))*$Y8)) -> 0 | CK8: =+IF($AN8="Nej",(($N8*($F8+$BF8)*INDATABLAD!$D$254+DH8*INDATABLAD!$D$255)),IF($BJ8="ja",0,(($N8*($F8+$BF8)*INDATABLAD!$D$254+DH8*INDATABLAD!$D$255))*$Y8)) -> 0 | CL8: 0 | CM8: =+DF8*INDATABLAD!$D$256*(1-$Y8) -> 11576236.15 | CN8: =+IF(BJ8="E",DG8*INDATABLAD!$D$256,IF(BJ8="D",0,DG8*INDATABLAD!$D$256*(1-Y8))) -> 11576236.15 | CO8: 11576236.15 | CP8: 597017.9002 | CQ8: 4561223.699 | CR8: =+DF8*(INDATABLAD!$D$248)+F8*N8*INDATABLAD!$D$249 -> 5158241.599 | CT8: =+IFERROR(VLOOKUP(G8,' Bandelsspec avg o ext'!$A:$T,17,FALSE)*$F8*$N8*DQ8/500,0) -> 0 | CU8: 597017.9002 | CV8: 4561223.699 | CW8: =+IF(N8=0,0,DH8*(INDATABLAD!$D$248)+N8*(V8/U8)*(F8+BF8)*INDATABLAD!D$249) -> 5158241.599 | CY8: =+IFERROR(IF(V8=0,0,VLOOKUP(G8,' Bandelsspec avg o ext'!$A:$V,18,FALSE)*($F8+BF8)*$N8*(V8/U8)*(DR8/500)),0) -> 0 | CZ8: 0 | DA8: 0 | DB8: 0 | DC8: 0 | DD8: 0 | DE8: 0 | DF8: 593653136.1 | DG8: 593653136.1 | DH8: 593653136.1 | DI8: 597017.9002 | DJ8: 4561223.699 | DK8: 0 | DL8: =+IF(N8=0,0,SUMPRODUCT(P8:T8,Indata_Kalkylvärden!D$106:H$106)/N8) -> 3000 | DM8: 3202.012586 | DN8: 1.067337529 | DO8: =+IF(N8=0,0,SUMPRODUCT(P8:T8,Indata_Kalkylvärden!D$109:H$109)/Bangods_linjedel!N8) -> 0.2347333333 | DP8: 0 | DQ8: =+IF(N8=0,0,(SUMPRODUCT(P8:T8,Indata_Kalkylvärden!D$108:H$108)/Bangods_linjedel!N8)*DN8) -> 800.7166141 | DR8: =+IF(Bangods_linjedel!L8=0,DQ8+DP8,DQ8+DP8+Bangods_linjedel!L8) -> 800.7166141 | DS8: =+Bangods_linjedel!Z8 -> 45 | DT8: =+Bangods_linjedel!AB8 -> 70.46764724 | DU8: =+Bangods_linjedel!AF8 -> 44.85656706 | DV8: =+Bangods_linjedel!AD8+Bangods_linjedel!AE8 -> 118.3444123 | DW8: =+Bangods_linjedel!AG8 -> 1.53 | DX8: =+Bangods_linjedel!AH8 -> 5.355 | DY8: =+Bangods_linjedel!BG8 -> 0 | DZ8: =+(Bangods_linjedel!BM8+Bangods_linjedel!CD8)/1000000 -> 0 | EA8: =+(Bangods_linjedel!BO8+Bangods_linjedel!CE8)/1000000 -> 0 | EB8: =+(Bangods_linjedel!BP8+Bangods_linjedel!CF8)/1000000 -> 0 | EC8: =+(Bangods_linjedel!BQ8+Bangods_linjedel!CG8)/1000000 -> 0 | ED8: =+Bangods_linjedel!DC8/1000000 -> 0 | EE8: =+Bangods_linjedel!DD8/1000000 -> 0 | EF8: =+Bangods_linjedel!DE8/1000000 -> 0 | EG8: =+Bangods_linjedel!DA8/1000000 -> 0 | EH8: =+Bangods_linjedel!DB8/1000000 -> 0 | EJ8: =+Bangods_linjedel!DQ8 -> 800.7166141 | EK8: =+Bangods_linjedel!DR8 -> 800.7166141 | EL8: =+Bangods_linjedel!BA8-Bangods_linjedel!AY8 -> 0 | EM8: L105 | ET8: 338651.8618 | EU8: 347520.7337 | EV8: 14386244.22 | EW8: 50351854.77 | EX8: 31406822.82 | EY8: =+VLOOKUP(G8,' Bandelsspec avg o ext'!$A:$T,19,FALSE)*$F8*$N8 -> 0 | EZ8: 114994.1232 | FB8: 44.85656706 | FD8: =+VLOOKUP(#REF!,'Kap.ber JA'!B:G,5,FALSE) ->  | FF8: =+SUMIF(Länkar!I:I,Bangods_linjedel!B8,Länkar!Y:Y)/2 -> 0 | FH8: =+IF($N8=0,0,IF($G8="d",SUMPRODUCT($P8:$T8,Indata_Kalkylvärden!$I$139:$M$139))/$N8) -> 0 | FK8: 368212629.8 | FL8: 368212629.8 | FO8: 686172.5955 | FR8: 8103365.308 | FS8: 13525035.16 | FT8: 21628400.47
A9: =IFERROR(VLOOKUP(B9,' Fyrspår JA'!B:Z,25,FALSE),+VLOOKUP(B9,Länkar!I:AD,20,FALSE)) -> Malmbanan | B9: =+BANGODSINDATA!B8 -> L106 | C9: =+BANGODSINDATA!C8 -> Gällivare-Koskullskulle | E9: =+BANGODSINDATA!D8 -> Gällivare-Koskullskulle | F9: =+IFERROR(BANGODSINDATA!F8,FF9) -> 8.55 | G9: =IFERROR((+VLOOKUP(B9,Länkar!I:AD,22,FALSE)),VLOOKUP(B9,' Fyrspår JA'!B:Z,25,FALSE)) -> 114 | N9: =+IFERROR(BANGODSINDATA!G8,0) -> 4070.1 | O9: =+BANGODSINDATA!H8*Kalkylsammanställning!G$2 -> 12316243 | P9: =+IFERROR(BANGODSINDATA!I8,0) -> 857.15 | Q9: =+IFERROR(BANGODSINDATA!J8,0) -> 0 | R9: =+IFERROR(BANGODSINDATA!K8,0) -> 0 | S9: =+IFERROR(BANGODSINDATA!L8,0) -> 3212.95 | T9: =+IFERROR(BANGODSINDATA!M8,0) -> 0 | U9: 12.61 | V9: =+IF(U9+Bangods_linjedel!K9<0,0,U9+Bangods_linjedel!K9) -> 12.61 | W9: 9.179857143 | X9: 3.430142857 | Y9: =(IF(AM9="nej",100%,INDATABLAD!$D$268)) -> 0 | Z9: =+IF(N9=0,0,SUMPRODUCT(P9:T9,Indata_Kalkylvärden!D$104:H$104)/N9) -> 50.26491978 | AA9: =+IF(N9=0,0,SUMPRODUCT($P9:$T9,Indata_Kalkylvärden!$D$105:$H$105)/Bangods_linjedel!$N9) -> 321.0596791 | AB9: =IF(N9=0,0,(CM9*INDATABLAD!D$266+INDATABLAD!D$267*CI9)/(N9*F9)) -> 69.68441196 | AC9: =+IF(B9='Beskrivning av åtgärd'!$D$160,'Beskrivning av åtgärd'!$B$160*$N9,0) -> 0 | AD9: =+IF(N9=0,0,SUMPRODUCT(P9:T9,Indata_Kalkylvärden!D$117:H$117/Bangods_linjedel!N9)) -> 80.06779389 | AE9: =+IF(N9=0,0,SUMPRODUCT(P9:T9,Indata_Kalkylvärden!$D$116:$H$116)/N9)*DN9 -> 32.15575994 | AF9: 44.41569945 | AG9: =+Indata_Kalkylvärden!T$96 -> 1.53 | AH9: =+Indata_Kalkylvärden!T$97 -> 5.355 | AI9: 65381.5278 | AJ9: 14260.09021 | AK9: 79641.61801 | AL9: =+IF(N9=0,0,SUMPRODUCT($P9:$T9,Indata_Kalkylvärden!$D$118:$H$118)/$N9) -> -0.2290007506 | AM9: =+VLOOKUP($G9,Länkar!$F:$V,16,FALSE) -> Ja | AN9: =+VLOOKUP($G9,Länkar!$F:$V,17,FALSE) -> Ja | AO9: =+IF(N9=0,0,(SUMPRODUCT(P9:T9,Indata_Kalkylvärden!$D$110:$H$110)/N9)) -> 1.687057244 | AP9: =+IFERROR(IF(B9=0,0,VLOOKUP(B9,'Kap.ber JA'!$B:$AI,7,FALSE)),0) -> esp | AQ9: =+IFERROR(IF(B9=0,0,VLOOKUP(B9,'Kap.ber UA'!B:H,7,FALSE)),0) -> esp | AR9: =+IFERROR(IF(B9=0,0,VLOOKUP(B9,'Kap.ber JA'!$B:$AI,8,FALSE)),0) -> 0.235787328 | AS9: =+IFERROR(IF(B9=0,0,VLOOKUP(B9,'Kap.ber UA'!$B:$AL,8,FALSE)),0) -> 0.235787328 | AT9: =+IF($AP9="esp",INDATABLAD!$D$568,INDATABLAD!$D$566) -> 2.58 | AU9: =+IF($AP9="Esp",INDATABLAD!$D$569,INDATABLAD!$D$567) -> 0.28 | AV9: =+IF($AQ9="Esp",INDATABLAD!$D$568,INDATABLAD!$D$566) -> 2.58 | AW9: =+IF($AQ9="Esp",INDATABLAD!$D$569,INDATABLAD!$D$567) -> 0.28 | AX9: =+INDATABLAD!$D$565 -> 0.3 | AY9: 0.2807232669 | AZ9: 0.2565 | BA9: 0.2807232669 | BB9: 0.2565 | BC9: =SUMIF('Gods_nya linjedelar_UA'!$D$4:$D$18,Bangods_linjedel!B9,'Gods_nya linjedelar_UA'!$J$4:$J$18) -> 0 | BD9: =SUMIF('Gods_nya linjedelar_UA'!$D$4:$D$18,Bangods_linjedel!B9,'Gods_nya linjedelar_UA'!$K$4:$K$18) -> 0 | BE9: =+Bangods_linjedel!H9 -> 0 | BF9: =+Bangods_linjedel!I9 -> 0 | BG9: 0 | BH9: =+Bangods_linjedel!K9 -> 0 | BI9: =+IF(Bangods_linjedel!J9=0,(BA9-AY9)*0.05,Bangods_linjedel!J9) -> 0 | BJ9: 0 | BL9: 0 | BM9: =+(($BG9+$BI9)*($AD9+AE9)*$N9)+Bangods_linjedel!M9 -> 0 | BN9: =+(CJ9-CI9)*INDATABLAD!D$267+INDATABLAD!D$266*(CN9-CM9) -> 0 | BO9: =+DK9 -> 0 | BP9: 0 | BQ9: 0 | BR9: =+IF(N9=0,0,('Beskrivning av åtgärd'!$C$154*(X9)+'Beskrivning av åtgärd'!$D$154*Bangods_linjedel!W9)/Bangods_linjedel!U9) -> 0.007683314415 | BS9: =+IF(N9=0,0,('Beskrivning av åtgärd'!$F$154*(X9)+'Beskrivning av åtgärd'!$G$154*Bangods_linjedel!W9)/Bangods_linjedel!U9) -> 0.007683314415 | BT9: =+IF(N9=0,0,('Beskrivning av åtgärd'!$C$155*(X9)+'Beskrivning av åtgärd'!$D$155*$W9)/$U9) -> 5.191725312 | BU9: =+IF(N9=0,0,('Beskrivning av åtgärd'!$F$155*(X9)+'Beskrivning av åtgärd'!$G$155*$W9)/$U9) -> 5.191725312 | BV9: =BANGODSINDATA!Q8 -> 249.8979592 | BW9: =BANGODSINDATA!R8 -> 349.9945534 | BY9: 0 | BZ9: =+IF(O9=0,0,(((BM9+BN9+BO9*'Beskrivning av åtgärd'!$C$165)/(AK9*N9))*AL9)*O9) -> 0 | CA9: 0 | CB9: 0 | CC9: 0 | CD9: 0 | CE9: 0 | CF9: 0 | CG9: 0 | CI9: =+(($N9*$F9*INDATABLAD!$D$254+Bangods_linjedel!$DF9*INDATABLAD!$D$255))*Y9 -> 0 | CJ9: =+IF($AN9="Nej",(($N9*($F9+$BF9)*INDATABLAD!$D$254+DG9*INDATABLAD!$D$255)),IF($BJ9="Ja",0,(($N9*($F9+$BF9)*INDATABLAD!$D$254+DG9*INDATABLAD!$D$255))*$Y9)) -> 0 | CK9: =+IF($AN9="Nej",(($N9*($F9+$BF9)*INDATABLAD!$D$254+DH9*INDATABLAD!$D$255)),IF($BJ9="ja",0,(($N9*($F9+$BF9)*INDATABLAD!$D$254+DH9*INDATABLAD!$D$255))*$Y9)) -> 0 | CL9: 0 | CM9: =+DF9*INDATABLAD!$D$256*(1-$Y9) -> 3464246.557 | CN9: =+IF(BJ9="E",DG9*INDATABLAD!$D$256,IF(BJ9="D",0,DG9*INDATABLAD!$D$256*(1-Y9))) -> 3464246.557 | CO9: 3464246.557 | CP9: 180668.6922 | CQ9: 1364969 | CR9: =+DF9*(INDATABLAD!$D$248)+F9*N9*INDATABLAD!$D$249 -> 1545637.693 | CT9: =+IFERROR(VLOOKUP(G9,' Bandelsspec avg o ext'!$A:$T,17,FALSE)*$F9*$N9*DQ9/500,0) -> 123698.6055 | CU9: 180668.6922 | CV9: 1364969 | CW9: =+IF(N9=0,0,DH9*(INDATABLAD!$D$248)+N9*(V9/U9)*(F9+BF9)*INDATABLAD!D$249) -> 1545637.693 | CY9: =+IFERROR(IF(V9=0,0,VLOOKUP(G9,' Bandelsspec avg o ext'!$A:$V,18,FALSE)*($F9+BF9)*$N9*(V9/U9)*(DR9/500)),0) -> 123698.6055 | CZ9: 0 | DA9: 0 | DB9: 0 | DC9: 0 | DD9: 0 | DE9: 0 | DF9: 177653669.6 | DG9: 177653669.6 | DH9: 177653669.6 | DI9: 180668.6922 | DJ9: 1364969 | DK9: 0 | DL9: =+IF(N9=0,0,SUMPRODUCT(P9:T9,Indata_Kalkylvärden!D$106:H$106)/N9) -> 2477.293546 | DM9: 3026.029582 | DN9: 1.221506263 | DO9: =+IF(N9=0,0,SUMPRODUCT(P9:T9,Indata_Kalkylvärden!D$109:H$109)/Bangods_linjedel!N9) -> 0.3370288361 | DP9: 0 | DQ9: =+IF(N9=0,0,(SUMPRODUCT(P9:T9,Indata_Kalkylvärden!D$108:H$108)/Bangods_linjedel!N9)*DN9) -> 823.5053246 | DR9: =+IF(Bangods_linjedel!L9=0,DQ9+DP9,DQ9+DP9+Bangods_linjedel!L9) -> 823.5053246 | DS9: =+Bangods_linjedel!Z9 -> 50.26491978 | DT9: =+Bangods_linjedel!AB9 -> 69.68441196 | DU9: =+Bangods_linjedel!AF9 -> 44.41569945 | DV9: =+Bangods_linjedel!AD9+Bangods_linjedel!AE9 -> 112.2235538 | DW9: =+Bangods_linjedel!AG9 -> 1.53 | DX9: =+Bangods_linjedel!AH9 -> 5.355 | DY9: =+Bangods_linjedel!BG9 -> 0 | DZ9: =+(Bangods_linjedel!BM9+Bangods_linjedel!CD9)/1000000 -> 0 | EA9: =+(Bangods_linjedel!BO9+Bangods_linjedel!CE9)/1000000 -> 0 | EB9: =+(Bangods_linjedel!BP9+Bangods_linjedel!CF9)/1000000 -> 0 | EC9: =+(Bangods_linjedel!BQ9+Bangods_linjedel!CG9)/1000000 -> 0 | ED9: =+Bangods_linjedel!DC9/1000000 -> 0 | EE9: =+Bangods_linjedel!DD9/1000000 -> 0 | EF9: =+Bangods_linjedel!DE9/1000000 -> 0 | EG9: =+Bangods_linjedel!DA9/1000000 -> 0 | EH9: =+Bangods_linjedel!DB9/1000000 -> 0 | EJ9: =+Bangods_linjedel!DQ9 -> 823.5053246 | EK9: =+Bangods_linjedel!DR9 -> 823.5053246 | EL9: =+Bangods_linjedel!BA9-Bangods_linjedel!AY9 -> 0 | EM9: L106 | ET9: 464398.8634 | EU9: 456761.0864 | EV9: 18843851.79 | EW9: 65953481.27 | EX9: 8632279.661 | EY9: =+VLOOKUP(G9,' Bandelsspec avg o ext'!$A:$T,19,FALSE)*$F9*$N9 -> 192755.7661 | EZ9: 34799.355 | FB9: 44.41569945 | FD9: =+VLOOKUP(#REF!,'Kap.ber JA'!B:G,5,FALSE) ->  | FF9: =+SUMIF(Länkar!I:I,Bangods_linjedel!B9,Länkar!Y:Y)/2 -> 0 | FH9: =+IF($N9=0,0,IF($G9="d",SUMPRODUCT($P9:$T9,Indata_Kalkylvärden!$I$139:$M$139))/$N9) -> 0 | FK9: 105303877.7 | FL9: 105303877.7 | FO9: 921159.9499 | FR9: 2424972.59 | FS9: 3325946.918 | FT9: 5750919.508
